Workbook

Sheet Cover

Sheet Contents
A8: Contents
A11: Tab | B11: Description
A12: One-pager
A14: Cover, Guide & Drivers
A16: RAG and Ranking
A18: Chapter 2 - Incentive Payments
A19: Incentive Payments | B19: Summary table of 2020-21 incentive payments including: BMCS, IIS, ICE, TTC, LDR and total incentive payments
A21: Reliability | B21: Reliability and Availability incentive measures including: IIS, GSoP, WSC and Network resilience
A23: Network Asset Secondary Deliverables | B23: Health, critically and monetised risk
A25: Connections | B25: Connection incentives including: Time to Connect Incentive, Incentive on Connections Engagement (ICE), Connections on Guaranteed Standards of Performance and Customer Satisfaction Survey
A27: Environment | B27: Environment incentives including: Obligation to manage losses, Business Carbon Footprint, limiting emissions of Sulphur Hexafluoride (SF6), Fluid filled cable leakage, Noise pollution, Visual impact allowance for undergrounding overhead lines in Areas of Outstanding Natural Beauty (AONB) & National Parks and Environmental report
A29: Customer Satisfaction | B29: Customer Satisfaction incentives including: Customer Satisfaction Survey, Complaints Metric and Stakeholder Engagement and Consumer Vulnerability
A31: Innovation | B31: Innovation data including: Network Innovation Allowance, Network Innovation Competition and Innovation projects
A33: Chapter 3 - Financial Performance
A34: Financial Performance | B34: Review of the expenditure and financial performance of DNOs in 2020/21
A36: Chapter 4 - Expenditure Drivers
A37: Expenditure Drivers | B37: Expenditure driver's data including: Expenditure drivers of allowances and expenditures of each cost category, distribution of overall allowances and expenditures and Baselines allowances & actual expenditure by cost category
A39: Expenditure Drivers 2 | B39: Overall outline of baseline allowances of each cost category, areas of underspend and areas of overspend

Sheet One-pager
A1: One-Pager
A2: SSEH
A3: One-Pager - key data points of each DNO (Dropdown Menu above)
A4: Cover, Guide and Drivers | G4: Financial Performance
B5: 2021 | C5: 10 year trend | H5: 2021 | I5: ED1 trend
A6: Customer numbers | B6: =TEXT(Calculations!M7,"#,##0") -> 785,183 | G6: Allowed totex | H6: ="£"&TEXT(Calculations!K234,"#,##0.00")&"m" -> £194.21m
A7: Network length | B7: =TEXT(Calculations!M8,"#,##0.00")&"km" -> 49,348.80km | G7: Actual totex | H7: ="£"&TEXT(Calculations!K235,"#,##0.00")&"m" -> £226.65m
A8: Total units distributed | B8: =TEXT(Calculations!M9,"#,##0.00")&" GWh" -> 6,868.60 GWh | G8: Overspend/underspend | H8: =TEXT(Calculations!K236,"+£0.00;-£0.00")&"m" -> +£32.44m
A9: Network-wide peak load | B9: =TEXT(Calculations!M10,"#,##0")&" MVA" -> 1,400 MVA | G9: Allowed totex after totex incentive rate | H9: ="£"&TEXT(Calculations!K238,"#,##0.00")&"m" -> £208.33m
A11: Incentive Payments | G11: Customer Bill Impact (per customer) | H11: ="£"&TEXT(Calculations!K241,"#,##0.00") -> £138.08
B12: 2021 | G12: RAV at start of financial year | H12: ="£"&TEXT(Calculations!K244,"#,##0.00")&"m" -> £1,210.55m
A13: Total Incentive Payments | B13: ="£"&TEXT(Calculations!C19,"#,##0.00")&"m" -> £4.69m | G13: RAV at end of financial year | H13: ="£"&TEXT(Calculations!K247,"#,##0.00")&"m" -> £1,233.01m
A15: Reliability | G15: Expenditure Drivers (Over-spend/under-spend %)
B16: 2021 | C16: ED1 trend | D16: RAG rating | H16: 2021 Difference | I16: 2021 Difference % | J16: ED1 trend
A17: CI Performance | B17: =Calculations!I24 -> 63.99170639 | D17: =IF(B17<=(Calculations!I29+Calculations!I35),"Green",IF(B17<=(Calculations!I29+Calculations!I35)*1.05,"Amber","Red")) -> Green | G17: Network reinforcement | H17: =TEXT(Calculations!R269,"+£0.00;-£0.00")&"m" -> -£13.43m | I17: =IFERROR(TEXT(Calculations!R270,"+0.00%;-0.00%"),"") -> -59.18%
A18: CML Performance | B18: =Calculations!I26 -> 57.3898034 | D18: =IF(B18<=(Calculations!I32+Calculations!I38),"Green",IF(B18<=(Calculations!I32+Calculations!I38)*1.05,"Amber","Red")) -> Green | G18: Replacing and refurbishing equipment | H18: =TEXT(Calculations!R276,"+£0.00;-£0.00")&"m" -> +£9.95m | I18: =IFERROR(TEXT(Calculations!R277,"+0.00%;-0.00%"),"") -> +28.65%
A19: IIS Total Reward/Penalty | B19: ="£"&TEXT(Calculations!I40,"#,##0.00")&"m" -> £0.86m | G19: Network faults | H19: =TEXT(Calculations!R283,"+£0.00;-£0.00")&"m" -> +£0.83m | I19: =IFERROR(TEXT(Calculations!R284,"+0.00%;-0.00%"),"") -> +5.01%
A20: GSOP mandatory payments vs valid payments owed | B20: =Calculations!I70 -> 0.9398939305 | G20: Operational support | H20: =TEXT(Calculations!R290,"+£0.00;-£0.00")&"m" -> +£11.22m | I20: =IFERROR(TEXT(Calculations!R291,"+0.00%;-0.00%"),"") -> +31.43%
A21: WSC Expenditure | B21: ="£"&TEXT(Calculations!I75,"#,##0.00")&"m" -> £0.00m | G21: Business support | H21: =TEXT(Calculations!R297,"+£0.00;-£0.00")&"m" -> +£5.91m | I21: =IFERROR(TEXT(Calculations!R298,"+0.00%;-0.00%"),"") -> +25.61%
A22: Total Resilience Baseline | B22: ="£"&TEXT(Calculations!I88,"#,##0.00")&"m" -> £9.09m | G22: Black start, Flood mitigation, Physical security and Tree cutting | H22: =TEXT(Calculations!R304,"+£0.00;-£0.00")&"m" -> -£1.85m | I22: =IFERROR(TEXT(Calculations!R305,"+0.00%;-0.00%"),"") -> -20.39%
A23: Total Resilience Actual | B23: ="£"&TEXT(Calculations!I89,"#,##0.00")&"m" -> £7.24m
G24: Connections | H24: =TEXT(Calculations!R311,"+£0.00;-£0.00")&"m" -> -£3.33m | I24: =IFERROR(TEXT(Calculations!R312,"+0.00%;-0.00%"),"") -> -88.91%
A25: Connections | G25: Reinforcement | H25: =TEXT(Calculations!R318,"+£0.00;-£0.00")&"m" -> -£2.78m | I25: =IFERROR(TEXT(Calculations!R319,"+0.00%;-0.00%"),"") -> -30.50%
B26: 2021 | C26: ED1 trend | D26: RAG rating | E26: Ranking | G26: Transmission Connection Point | H26: =TEXT(Calculations!R325,"+£0.00;-£0.00")&"m" -> -£7.32m | I26: =IFERROR(TEXT(Calculations!R326,"+0.00%;-0.00%"),"") -> -74.46%
A27: Distributed Generation | B27: =TEXT(Calculations!H106,"#,##0.00")&" MW" -> 72.93 MW | G27: Diversions (Excluding Rail Electrification) | H27: =TEXT(Calculations!R332,"+£0.00;-£0.00")&"m" -> +£2.35m | I27: =IFERROR(TEXT(Calculations!R333,"+0.00%;-0.00%"),"") -> +376.01%
A28: TTC Reward | B28: ="£"&TEXT(Calculations!H118,"#,##0.00")&"m" -> £0.90m | D28: =Calculations!H119 -> Green | E28: =Calculations!H121 -> 5 | G28: Diversions Rail Elec | H28: =TEXT(Calculations!R339,"+£0.00;-£0.00")&"m" -> +£0.00m | I28: =IFERROR(TEXT(Calculations!R340,"+0.00%;-0.00%"),"") -> 
A29: ICE Penalty | B29: ="£"&TEXT(Calculations!C15,"#,##0.00")&"m" -> £0.00m | G29: Asset Replacement | H29: =TEXT(Calculations!R346,"+£0.00;-£0.00")&"m" -> +£13.54m | I29: =IFERROR(TEXT(Calculations!R347,"+0.00%;-0.00%"),"") -> +46.90%
A30: Penalties paid against Connection GSOPs | B30: ="£"&TEXT(Calculations!H127,"#,##0") -> £16,425 | D30: =Calculations!H129 -> Green | E30: =Calculations!H130 -> 8 | G30: Refurbishment | H30: =TEXT(Calculations!R353,"+£0.00;-£0.00")&"m" -> -£2.82m | I30: =IFERROR(TEXT(Calculations!R354,"+0.00%;-0.00%"),"") -> -66.01%
G31: Civil Works Condition Driven | H31: =TEXT(Calculations!R360,"+£0.00;-£0.00")&"m" -> -£0.28m | I31: =IFERROR(TEXT(Calculations!R361,"+0.00%;-0.00%"),"") -> -26.74%
A32: Environment | G32: Operational IT and telecoms | H32: =TEXT(Calculations!R367,"+£0.00;-£0.00")&"m" -> +£0.62m | I32: =IFERROR(TEXT(Calculations!R368,"+0.00%;-0.00%"),"") -> +28.37%
B33: 2021 | C33: ED1 trend | E33: Ranking | G33: Blackstart | H33: =TEXT(Calculations!R374,"+£0.00;-£0.00")&"m" -> -£0.40m | I33: =IFERROR(TEXT(Calculations!R375,"+0.00%;-0.00%"),"") -> -96.85%
A34: Distribution Losses | B34: =Calculations!M136 -> 0.06961333416 | G34: BT21CN | H34: =TEXT(Calculations!R381,"+£0.00;-£0.00")&"m" -> -£0.15m | I34: =IFERROR(TEXT(Calculations!R382,"+0.00%;-0.00%"),"") -> -84.87%
A35: LDR Reward (2020/21) | B35: ="£"&TEXT(Calculations!M135,"#,##0.00") -> £0.00 | E35: =Calculations!L137 ->  | G35: Legal & Safety | H35: =TEXT(Calculations!R388,"+£0.00;-£0.00")&"m" -> -£0.35m | I35: =IFERROR(TEXT(Calculations!R389,"+0.00%;-0.00%"),"") -> -55.12%
A36: BCF (as % of network length and customer numbers) | B36: =Calculations!M141 -> 0.6399267643 | E36: =Calculations!M142 -> 14 | G36: QoS & North of Scotland Resilience | H36: =TEXT(Calculations!R395,"+£0.00;-£0.00")&"m" -> +£7.29m | I36: =IFERROR(TEXT(Calculations!R396,"+0.00%;-0.00%"),"") -> +301.60%
A37: SF6 emissions (as % of SF6 bank) | B37: =Calculations!M147 -> 0.001637299133 | E37: =Calculations!M148 -> 5 | G37: Flood Mitigation | H37: =TEXT(Calculations!R402,"+£0.00;-£0.00")&"m" -> -£0.09m | I37: =IFERROR(TEXT(Calculations!R403,"+0.00%;-0.00%"),"") -> -98.34%
A38: Top up of fluid-filled cabes (as % of oil in service) | B38: =Calculations!M153 -> 0.004584384938 | E38: =Calculations!M154 -> 11 | G38: Physical Security | H38: =TEXT(Calculations!R409,"+£0.00;-£0.00")&"m" -> +£0.00m | I38: =IFERROR(TEXT(Calculations!R410,"+0.00%;-0.00%"),"") -> 
A39: Undergrounding expenditure | B39: ="£"&TEXT(Calculations!M159,"#,##0.00")&"m" -> £0.17m | G39: Rising and Lateral Mains | H39: =TEXT(Calculations!R416,"+£0.00;-£0.00")&"m" -> -£0.34m | I39: =IFERROR(TEXT(Calculations!R417,"+0.00%;-0.00%"),"") -> -89.15%
A40: Slow charge EVs connected to the distribution network | B40: =TEXT(Calculations!M162,"#,##0.00")&" MW" -> 0.01 MW | G40: Overhead Line Clearances | H40: =TEXT(Calculations!R423,"+£0.00;-£0.00")&"m" -> -£0.18m | I40: =IFERROR(TEXT(Calculations!R424,"+0.00%;-0.00%"),"") -> -65.79%
A41: Fast charge EVs connected to the distribution network | B41: =TEXT(Calculations!M163,"#,##0.00")&" MW" -> 3.64 MW | G41: Environmental Reporting & Losses | H41: =TEXT(Calculations!R430,"+£0.00;-£0.00")&"m" -> -£0.36m | I41: =IFERROR(TEXT(Calculations!R431,"+0.00%;-0.00%"),"") -> -40.91%
A42: Noise complaints | B42: =Calculations!M166 -> 4 | G42: Faults | H42: =TEXT(Calculations!R437,"+£0.00;-£0.00")&"m" -> +£2.20m | I42: =IFERROR(TEXT(Calculations!R438,"+0.00%;-0.00%"),"") -> +15.34%
G43: Severe Weather 1 in 20 | H43: =TEXT(Calculations!R444,"+£0.00;-£0.00")&"m" -> -£1.02m | I43: =IFERROR(TEXT(Calculations!R445,"+0.00%;-0.00%"),"") -> -100.00%
A44: Customer Satisfaction | G44: ONIs | H44: =TEXT(Calculations!R451,"+£0.00;-£0.00")&"m" -> -£0.35m | I44: =IFERROR(TEXT(Calculations!R452,"+0.00%;-0.00%"),"") -> -28.55%
B45: 2021 | C45: ED1 trend | D45: RAG rating | E45: Ranking | G45: Tree Cutting | H45: =TEXT(Calculations!R458,"+£0.00;-£0.00")&"m" -> -£1.36m | I45: =IFERROR(TEXT(Calculations!R459,"+0.00%;-0.00%"),"") -> -15.81%
A46: Overall CSS Score | B46: =TEXT(Calculations!H174,"#,##0.00") -> 9.26 | D46: =Calculations!H175 -> Green | E46: =Calculations!H176 -> 3 | G46: I&M | H46: =TEXT(Calculations!R465,"+£0.00;-£0.00")&"m" -> -£1.35m | I46: =IFERROR(TEXT(Calculations!R466,"+0.00%;-0.00%"),"") -> -26.42%
A47: Complaint Metric Score | B47: =TEXT(Calculations!H183,"#,##0.00") -> 2.33 | D47: =Calculations!H184 -> Green | E47: =Calculations!H185 -> 10 | G47: NOCs Other | H47: =TEXT(Calculations!R472,"+£0.00;-£0.00")&"m" -> +£5.96m | I47: =IFERROR(TEXT(Calculations!R473,"+0.00%;-0.00%"),"") -> +77.56%
A48: CSS Reward/Penalty | B48: ="£"&TEXT(Calculations!H193,"#,##0.00")&"m" -> £2.40m | G48: Non Op Capex | H48: =TEXT(Calculations!R479,"+£0.00;-£0.00")&"m" -> +£2.77m | I48: =IFERROR(TEXT(Calculations!R480,"+0.00%;-0.00%"),"") -> +52.39%
A49: Complaints Metric Penalty | B49: ="£"&TEXT(Calculations!H194,"#,##0.00")&"m" -> £0.00m | G49: Smart Meter | H49: =TEXT(Calculations!R486,"+£0.00;-£0.00")&"m" -> -£0.08m | I49: =IFERROR(TEXT(Calculations!R487,"+0.00%;-0.00%"),"") -> -54.04%
A50: Stakeholder Engagement and Consumer Vulnerability Score | B50: =TEXT(Calculations!H188,"#,##0.00") -> 6.28 | D50: =Calculations!H189 -> Green | E50: =Calculations!H190 -> 4 | G50: Closely Associated Indirects | H50: =TEXT(Calculations!R493,"+£0.00;-£0.00")&"m" -> +£11.22m | I50: =IFERROR(TEXT(Calculations!R494,"+0.00%;-0.00%"),"") -> +31.43%
A51: Stakeholder Engagement and Consumer Vulnerability Reward | B51: ="£"&TEXT(Calculations!H195,"#,##0.00")&"m" -> £0.53m | G51: Business Support | H51: =TEXT(Calculations!R500,"+£0.00;-£0.00")&"m" -> +£5.91m | I51: =IFERROR(TEXT(Calculations!R501,"+0.00%;-0.00%"),"") -> +25.61%
A52: Broad Measure of Customer Service Reward/Penalty | B52: ="£"&TEXT(Calculations!H196,"#,##0.00")&"m" -> £2.93m | G52: HVP ED1 | H52: =TEXT(Calculations!R507,"+£0.00;-£0.00")&"m" -> +£0.00m | I52: =IFERROR(TEXT(Calculations!R508,"+0.00%;-0.00%"),"") -> 
G53: HVP DPCR5 | H53: =TEXT(Calculations!R514,"+£0.00;-£0.00")&"m" -> +£0.00m | I53: =IFERROR(TEXT(Calculations!R515,"+0.00%;-0.00%"),"") -> 
A54: Innovation | B54: 2021 | C54: ED1 trend | G54: Total of the disaggregated areas | H54: =TEXT(Calculations!R521,"+£0.00;-£0.00")&"m" -> +£29.30m | I54: =IFERROR(TEXT(Calculations!R522,"+0.00%;-0.00%"),"") -> +17.53%
A55: NIA Expenditure | B55: ="£"&TEXT(Calculations!H204,"#,##0.00")&"m" -> £1.96m | G55: Policy Adjustments (Forecast DRS 8, Disposals, Shetland Competitive Process, Shetland Uncertain Energy, WSC, Atypicals) | H55: =TEXT(Calculations!R528,"+£0.00;-£0.00")&"m" -> +£2.35m | I55: =IFERROR(TEXT(Calculations!R529,"+0.00%;-0.00%"),"") -> +8.74%
A56: % of NIA Allowance | B56: =Calculations!H205 -> 0.4611764706
A57: NIC Funding Awarded | B57: ="£"&TEXT(Calculations!H207,"#,##0.00")&"m" -> £0.00m

Sheet Guide & drivers
A1: Guide and Drivers
A2: This workbook provides data that is reported in the Annual Report and more detailed data for those who want to undertake further analysis.
A4: Key
B5: Future year input (graphs will be manually pointed to the relevant years' data)
B6: Actual expenditure or performance
B7: Forecast / target expenditure or performance
B8: Baseline allowances
B9: Forecast/Adjusted allowances
B10: Adjustment factor / Difference
B11: Ranking
A13: Price base: | B13: 2020/21
A15: Input Terms
B17: RPI Index
C18: Financial Year Average RPI | D18: Conversion from 12/13 to nominal prices | E18: Conversion from 15/16 to nominal prices | I18: Index adjustment 2020/21 base year
B19: 2009/10 | C19: 215.767 | D19: =C19/$C$22 -> 0.8818514356 | E19: =C19/$C$25 -> 0.8316867939 | I19: 2009/10 | J19: =$C$30/C19 -> 1.363354915
B20: 2010/11 | C20: 226.475 | D20: 0.9256156125 | E20: 0.8729614197 | I20: 2010/11 | J20: =$C$30/C20 -> 1.298893918
B21: 2011/12 | C21: 237.342 | D21: 0.9700296311 | E21: 0.9148489205 | I21: 2011/12 | J21: 1.239422437
B22: 2012/13 | C22: 244.675 | D22: 1 | E22: 0.9431144072 | I22: 2012/13 | J22: 1.202276489
B23: 2013/14 | C23: 251.733 | D23: 1.028846429 | E23: 0.9703198899 | I23: 2013/14 | J23: 1.16856749
B24: 2014/15 | C24: 256.667 | D24: 1.049011955 | E24: 0.9893382877 | I24: 2014/15 | J24: 1.146103706
B25: 2015/16 | C25: 259.433 | D25: =C25/$C$22 -> 1.060316747 | E25: 1 | I25: 2015/16 | J25: 1.133884278
B26: 2016/17 | C26: 264.992 | D26: 1.083036681 | E26: =C26/$C$25 -> 1.021427498 | I26: 2016/17 | J26: 1.110097663
B27: 2017/18 | C27: 274.908 | D27: 1.123563911 | E27: =C27/$C$25 -> 1.059649312 | I27: 2017/18 | J27: =$C$30/C27 -> 1.070056164
B28: 2018/19 | C28: 283.308 | D28: 1.157895167 | E28: =C28/$C$25 -> 1.092027614 | I28: 2018/19 | J28: 1.038329309
B29: 2019/20 | C29: 290.642 | D29: 1.187869623 | E29: =C29/$C$25 -> 1.120296955 | I29: 2019/20 | J29: 1.012128323
B30: 2020/21 | C30: 294.167 | D30: 1.202276489 | E30: =C30/$C$25 -> 1.133884278 | I30: 2020/21 | J30: 1
B31: 2021/22
B32: 2022/23
B35: Convert 2012/13 prices to 2020/21 | C35: =C30/C22 -> 1.202276489
B36: Convert 2019/20 prices to 2020/21 | C36: =C30/C29 -> 1.012128323
A38: Drivers
B39: Customer numbers
C40: DPCR5 | H40: RIIO ED1
B41: Column1 | C41: 2011 | D41: 2012 | E41: 2013 | F41: 2014 | G41: 2015 | H41: 2016 | I41: 2017 | J41: 2018 | K41: 2019 | L41: 2020 | M41: 2021 | N41: 2022 | O41: 2023
B42: ENWL | C42: 2359391 | D42: 2364446 | E42: 2368572 | F42: 2371790 | G42: 2375305 | H42: 2381080 | I42: 2383214 | J42: 2383887 | K42: 2393226 | L42: 2399715 | M42: 2405770
B43: NPgN | C43: 1575686 | D43: 1581420 | E43: 1583627 | F43: 1586437 | G43: 1590615 | H43: 1596374 | I43: 1600885 | J43: 1602128 | K43: 1606300 | L43: 1610820 | M43: 1614053
B44: NPgY | C44: 2258404 | D44: 2266464 | E44: 2272386 | F44: 2277373 | G44: 2284044 | H44: 2291522 | I44: 2298672 | J44: 2298786 | K44: 2306293 | L44: 2312147 | M44: 2318718
B45: WMID | C45: 2446951 | D45: 2462123 | E45: 2469953 | F45: 2448930 | G45: 2455914 | H45: 2463217 | I45: 2470151 | J45: 2481944 | K45: 2491212 | L45: 2498337 | M45: 2505140
B46: EMID | C46: 2614165 | D46: 2623103 | E46: 2619183 | F46: 2604846 | G46: 2613507 | H46: 2622449 | I46: 2631017 | J46: 2647059 | K46: 2658397 | L46: 2665558 | M46: 2674911
B47: SWALES | C47: 1099333 | D47: 1103465 | E47: 1108168 | F47: 1113015 | G47: 1117685 | H47: 1122920 | I47: 1128284 | J47: 1133101 | K47: 1137812 | L47: 1142731 | M47: 1147345
B48: SWEST | C48: 1541188 | D48: 1551046 | E48: 1561137 | F48: 1570645 | G48: 1579687 | H48: 1590050 | I48: 1600520 | J48: 1613218 | K48: 1624131 | L48: 1628987 | M48: 1636981
B49: LPN | C49: 2251892 | D49: 2267440 | E49: 2279053 | F49: 2286322 | G49: 2298560 | H49: 2311906 | I49: 2330356 | J49: 2345807 | K49: 2357951 | L49: 2369157 | M49: 2375701
B50: SPN | C50: 2233288 | D50: 2247823 | E50: 2257968 | F50: 2262882 | G50: 2271189 | H50: 2281009 | I50: 2288599 | J50: 2296864 | K50: 2304887 | L50: 2311511 | M50: 2319494
B51: EPN | C51: 3516859 | D51: 3537357 | E51: 3556281 | F51: 3565115 | G51: 3581606 | H51: 3599594 | I51: 3614431 | J51: 3627858 | K51: 3638189 | L51: 3653242 | M51: 3664189
B52: SPD | C52: 1992998 | D52: 1994241 | E52: 1996169 | F52: 1996758 | G52: 1998881 | H52: 2002257 | I52: 2004462 | J52: 2007341 | K52: 2002889 | L52: 2008433 | M52: 2010896
B53: SPMW | C53: 1485153 | D53: 1487412 | E53: 1490883 | F53: 1494271 | G53: 1499500 | H53: 1503914 | I53: 1508672 | J53: 1512961 | K53: 1512275 | L53: 1519557 | M53: 1523255
B54: SSEH | C54: 740768 | D54: 745907 | E54: 750446 | F54: 754258 | G54: 757906 | H54: 758000 | I54: 767082 | J54: 772984 | K54: 778304 | L54: 782536 | M54: 785183
B55: SSES | C55: 3026488 | D55: 3040102 | E55: 3054120 | F55: 3067274 | G55: 3082913 | H55: 3098577 | I55: 3032766 | J55: 3049924 | K55: 3067988 | L55: 3092275 | M55: 3110203
B56: Total | C56: =SUM(C42:C55) -> 29142564 | D56: =SUM(D42:D55) -> 29272349 | E56: 29367946 | F56: 29399916 | G56: 29507312 | H56: 29622869 | I56: 29659111 | J56: 29773862 | K56: 29879854 | L56: 29995006 | M56: 30091839
B58: Network length (km)
C59: DPCR5 | H59: RIIO ED1
C60: 2011 | D60: 2012 | E60: 2013 | F60: 2014 | G60: 2015 | H60: 2016 | I60: 2017 | J60: 2018 | K60: 2019 | L60: 2020 | M60: 2021 | N60: 2022 | O60: 2023
B61: ENWL | C61: 56952.2565 | D61: 57115.77162 | E61: 57296.44743 | F61: 57547.74498 | G61: 57722.14882 | H61: 57946.36778 | I61: 57090.45584 | J61: 57324.15031 | K61: 57348.87727 | L61: 57432.08682 | M61: 57415.29303
B62: NPgN | C62: 40159.667 | D62: 40351.759 | E62: 40668.071 | F62: 40787.16 | G62: 41012.91718 | H62: 41243.50856 | I62: 41503.33523 | J62: 41704.94 | K62: 41839.146 | L62: 41922.93155 | M62: 42001.7035
B63: NPgY | C63: 52782.96193 | D63: 52946.18823 | E63: 53163.7354 | F63: 53299.51433 | G63: 53567.08269 | H63: 53873.2104 | I63: 54094.26509 | J63: 54318.59584 | K63: 54653.81543 | L63: 54890.93543 | M63: 55119.95643
B64: WMID | C64: 63459.141 | D64: 64111.49284 | E64: 64147.94284 | F64: 64280.34684 | G64: 64590.59284 | H64: 64268.96741 | I64: 64575.20572 | J64: 64878.79094 | K64: 65153.47412 | L64: 65363.59863 | M64: 65570.05096
B65: EMID | C65: 71700.13171 | D65: 71919.771 | E65: 72058.561 | F65: 72381.282 | G65: 72761.459 | H65: 72976.36852 | I65: 73379.48601 | J65: 73745.45368 | K65: 74111.28296 | L65: 74399.80441 | M65: 74750.61569
B66: SWALES | C66: 35162.26796 | D66: 35298.91919 | E66: 35362.00919 | F66: 35458.70019 | G66: 35632.41818 | H66: 35612.29927 | I66: 35789.68601 | J66: 35678.69495 | K66: 35758.72021 | L66: 35832.16546 | M66: 35927.35382
B67: SWEST | C67: 50183.208 | D67: 50440.85943 | E67: 50584.05944 | F67: 50761.22542 | G67: 51050.23841 | H67: 50247.79492 | I67: 50450.1221 | J67: 50610.00051 | K67: 50798.9617 | L67: 50935.80561 | M67: 51090.62605
B68: LPN | C68: 36627.93 | D68: 36703.93 | E68: 36732.21 | F68: 36822.66089 | G68: 36845.69054 | H68: 36932.86279 | I68: 37041.84541 | J68: 37159.64167 | K68: 37270.9533 | L68: 37456.53582 | M68: 37511.14746
B69: SPN | C69: 52200 | D69: 52315.75334 | E69: 52449.36234 | F69: 52686.69774 | G69: 52805.84673 | H69: 52841.05469 | I69: 52924.03279 | J69: 53014.55406 | K69: 53134.23316 | L69: 53252.59718 | M69: 53396.96876
B70: EPN | C70: 96266 | D70: 96408.8 | E70: 96541.527 | F70: 96767.73147 | G70: 96913.08314 | H70: 97261.38548 | I70: 97631.96554 | J70: 97817.45905 | K70: 98070.96429 | L70: 98393.93852 | M70: 98594.66181
B71: SPD | C71: 63848.4556 | D71: 63943.0006 | E71: 57811.99774 | F71: 57324 | G71: 57628.9 | H71: 57984.4 | I71: 58303.9 | J71: 58515.3 | K71: 58578.6 | L71: 58696.8 | M71: 58816.8
B72: SPMW | C72: 49669.0976 | D72: 49619.0976 | E72: 48454.39517 | F72: 46437.905 | G72: 46589.90371 | H72: 46844.00973 | I72: 46947 | J72: 47051.39112 | K72: 47151 | L72: 47253.2 | M72: 47374.3
B73: SSEH | C73: 47024.21947 | D73: 47477.55799 | E73: 47676.3229 | F73: 48053.1727 | G73: 48407.80773 | H73: 48346.868 | I73: 49026.46946 | J73: 49153.93914 | K73: 49356.67714 | L73: 49390.11014 | M73: 49348.79714
B74: SSES | C74: 76219.64 | D74: 76727.2343 | E74: 76965.98655 | F74: 76667.08495 | G74: 77077.0711 | H74: 77958.94515 | I74: 77378.55482 | J74: 77486.95767 | K74: 77710.03567 | L74: 77998.04867 | M74: 78149.13667
B75: Total | C75: =SUM(C61:C74) -> 792254.9768 | D75: 795380.1351 | E75: 789912.628 | F75: 789275.2265 | G75: 792605.1601 | H75: 794338.0427 | I75: 796136.324 | J75: 798459.8689 | K75: 800936.7412 | L75: =SUM(L61:L74) -> 803218.5582 | M75: =SUM(M61:M74) -> 805067.4113
B77: Total units distributed (GWh)
C78: DPCR5 | H78: RIIO ED1
C79: 2011 | D79: 2012 | E79: 2013 | F79: 2014 | G79: 2015 | H79: 2016 | I79: 2017 | J79: 2018 | K79: 2019 | L79: 2020 | M79: 2021 | N79: 2022 | O79: 2023
B80: ENWL | C80: 23835.24 | D80: 23367.42 | E80: 23484.00688 | F80: 22820 | G80: 22393 | H80: 22223.98232 | I80: 22059.6 | J80: 21855.5 | K80: 21712.4 | L80: 21372.05355 | M80: 20115
B81: NPgN | C81: 15795.56804 | D81: 15271.77665 | E81: 15489.97147 | F81: 15131.45655 | G81: 14984.01833 | H81: 14861.88999 | I81: 14494.54801 | J81: 14414.14121 | K81: 14092.21149 | L81: 13849.77093 | M81: 13156.82279
B82: NPgY | C82: 23063.32753 | D82: 22570.84487 | E82: 22692.94041 | F82: 22438.35129 | G82: 22263.32887 | H82: 22012.43424 | I82: 21674.854 | J82: 21614.84335 | K82: 21387.84575 | L82: 21059.51281 | M82: 19987.06933
B83: WMID | C83: 24932.16037 | D83: 24247.72246 | E83: 24682.02266 | F83: 24427.3279 | G83: 24212.92271 | H83: 23941.29486 | I83: 23896.44009 | J83: 23772.67072 | K83: 23198.04349 | L83: 22872.20824 | M83: 21422.28177
B84: EMID | C84: 27882.57017 | D84: 27073.80591 | E84: 27598.0905 | F84: 26795.42345 | G84: 26627.16446 | H84: 26424.59749 | I84: 26354.68094 | J84: 26187.57543 | K84: 25596.814 | L84: 25312.93487 | M84: 24029.32422
B85: SWALES | C85: 12110.70383 | D85: 11776.00643 | E85: 11769.62784 | F85: 11640.55919 | G85: 11490.95206 | H85: 11333.0048 | I85: 11177.14997 | J85: 11072.68336 | K85: 10940.40889 | L85: 10738.13637 | M85: 9989.5561
B86: SWEST | C86: 14625.00699 | D86: 14078.27414 | E86: 14412.45131 | F86: 13932.80799 | G86: 13767.54807 | H86: 13561.17809 | I86: 13531.17623 | J86: 13505.56227 | K86: 13193.50365 | L86: 13015.01699 | M86: 12401.06452
B87: LPN | C87: 29355 | D87: 28492.36302 | E87: 28722.3 | F87: 28006 | G87: 27632 | H87: 27442.4 | I87: 27266 | J87: 27012 | K87: 26864 | L87: 25779 | M87: 22309.19072
B88: SPN | C88: 21694 | D88: 20813 | E88: 20994 | F88: 20508.408 | G88: 19713 | H88: 19413.4 | I88: 19468 | J88: 19373 | K88: 19379 | L88: 18763 | M88: 17921.516
B89: EPN | C89: 34525 | D89: 34093 | E89: 35108 | F89: 33794 | G89: 32882 | H89: 32721 | I89: 33295 | J89: 33106 | K89: 32994 | L89: 31973 | M89: 30657.3915
B90: SPD | C90: 16195 | D90: 19341 | E90: 19537 | F90: 18943 | G90: 18589 | H90: 18348 | I90: 17961 | J90: 17833 | K90: 17266 | L90: 16920.72771 | M90: 15782.06644
B91: SPMW | C91: 16195 | D91: 15787 | E91: 16065 | F91: 15997 | G91: 15742 | H91: 15449 | I91: 15211 | J91: 15118 | K91: 14655 | L91: 14377.93888 | M91: 13476.78862
B92: SSEH | C92: 8521 | D92: 8117.4 | E92: 8333.8 | F92: 8075.6 | G92: 7818.5 | H92: 7859.7 | I92: 7427.8 | J92: 7662.7 | K92: 7461.9 | L92: 6996.683915 | M92: 6868.6
B93: SSES | C93: 33646.1 | D93: 32536.8 | E93: 33207.3 | F93: 32359.1 | G93: 31840.1 | H93: 31425.5 | I93: 30984.1 | J93: 31527.7 | K93: 30870.8 | L93: 26274.96718 | M93: 29279.9
B94: Total | C94: =SUM(C80:C93) -> 302375.6769 | D94: =SUM(D80:D93) -> 297566.4135 | E94: 302096.5111 | F94: 294869.0344 | G94: 289955.5345 | H94: 287017.3818 | I94: 284801.3492 | J94: 284055.3763 | K94: 279611.9273 | L94: 269304.9514 | M94: 257396.572
B96: Network-wide Peak load (MVA)
C97: DPCR5 | H97: RIIO ED1
C98: 2011 | D98: 2012 | E98: 2013 | F98: 2014 | G98: 2015 | H98: 2016 | I98: 2017 | J98: 2018 | K98: 2019 | L98: 2020 | M98: 2021 | N98: 2022 | O98: 2023
B99: ENWL | C99: 4388.66 | D99: 4280.41 | E99: 4250.4 | F99: 4062.350515 | G99: 4267 | H99: 4233 | I99: 4262 | J99: 4305 | K99: 4160 | L99: 4140 | M99: 4049
B100: NPgN | C100: 2997 | D100: 2852 | E100: 2777 | F100: 2604 | G100: 2593 | H100: 2775 | I100: 2781.3392 | J100: 2723.672 | K100: 2459.074 | L100: 2410.7036 | M100: 2531.7
B101: NPgY | C101: 4285 | D101: 4195 | E101: 4041 | F101: 4086 | G101: 3763 | H101: 4059.803 | I101: 3961.26 | J101: 3786.452 | K101: 3994.02 | L101: 3696.7076 | M101: 3474.7
B102: WMID | C102: 4662.231544 | D102: 4792.138457 | E102: 4782.4592 | F102: 4492 | G102: 4597.6 | H102: 4487.2 | I102: 4469.6 | J102: 4440 | K102: 4323.8 | L102: 4251 | M102: 4162
B103: EMID | C103: 5042.450848 | D103: 5292.3975 | E103: 5293.0718 | F103: 5056 | G103: 5012.2 | H103: 4968.4 | I103: 4961.6 | J103: 4801.8 | K103: 4769 | L103: 4699 | M103: 4692.4
B104: SWALES | C104: 2152.652603 | D104: 2117.6 | E104: 1999.5122 | F104: 1992 | G104: 2012 | H104: 1970.4 | I104: 1946.4 | J104: 1914 | K104: 1897.6 | L104: 1824.2 | M104: 1761.4
B105: SWEST | C105: 2903.634729 | D105: 2854.9 | E105: 2754.5462 | F105: 2594 | G105: 2583.8 | H105: 2536.8 | I105: 2590.8 | J105: 2565.8 | K105: 2486.8 | L105: 2462.6 | M105: 2446.4
B106: LPN | C106: 5203 | D106: 5125 | E106: 5167 | F106: 4820 | G106: 4952 | H106: 4833 | I106: 4915 | J106: 5189 | K106: 4780 | L106: 4389 | M106: 4448
B107: SPN | C107: 3976 | D107: 4108 | E107: 4107 | F107: 3672 | G107: 3795 | H107: 3809 | I107: 3923 | J107: 4022 | K107: 3672 | L107: 3526 | M107: 3592
B108: EPN | C108: 6966 | D108: 6407 | E108: 6408 | F108: 6096 | G108: 6267 | H108: 6236 | I108: 6441 | J108: 6573 | K108: 5926 | L108: 5401 | M108: 6129
B109: SPD | C109: 4024 | D109: 3611 | E109: 3673 | F109: 3426 | G109: 3414 | H109: 3626 | I109: 3563 | J109: 3575 | K109: 3437 | L109: 3384 | M109: 3132
B110: SPMW | C110: 3320 | D110: 3197 | E110: 3245 | F110: 3023 | G110: 3127 | H110: 3014 | I110: 3022 | J110: 3039 | K110: 2967 | L110: 2929 | M110: 2674
B111: SSEH | C111: 1633 | D111: 1559 | E111: 1518 | F111: 1518 | G111: 1514 | H111: 1417 | I111: 1497.2 | J111: 1564.5 | K111: 1429.5 | L111: 1416.0002 | M111: 1400
B112: SSES | C112: 6692.8 | D112: 6395.7 | E112: 6387.1 | F112: 5916.3 | G112: 6005.4 | H112: 5971.2 | I112: 6079.3 | J112: 6293 | K112: 5883.7 | L112: 5584.9832 | M112: 5699
B113: Total | C113: =SUM(C99:C112) -> 58246.42972 | D113: =SUM(D99:D112) -> 56787.14596 | E113: 56403.0894 | F113: 53357.65052 | G113: 53903 | H113: 53936.803 | I113: 54413.4992 | J113: 54792.224 | K113: 52185.494 | L113: 50114.1946 | M113: 50191.6

Sheet RAG and Ranking
A1: Outputs overview
C3: Reliability & Availability | F3: Environment | J3: Connections | O3: Customer satisfaction | T3: Social obligations
C4: Number of interruption (CIs) RAG | D4: Number of minutes lost (CMLs) RAG | F4: BCF (excl. losses) ranking | G4: SF6 ranking | H4: Fluid filled cable leakage ranking | J4: Time to Quote and Time to Connect RAG | K4: Time to Quote and Time to Connect ranking | L4: Connection GSoPs RAG | M4: Connection GSoPs ranking | O4: Complaints RAG | P4: Complaints ranking | Q4: Customer Satisfaction RAG | R4: BMCS ranking | T4: SECV RAG | U4: SECV ranking
A5: ENWL | C5: 1 | D5: 1 | F5: ='Ch2 outputs - environment'!V76 -> 5 | G5: ='Ch2 outputs - environment'!V116 -> 12 | H5: ='Ch2 outputs - environment'!V155 -> 7 | J5: 1 | K5: ='Ch2 outputs - connections'!CO42 -> 4 | L5: 1 | M5: ='Ch2 outputs - connections'!AS85 -> 9 | O5: 1 | P5: ='Ch2 outputs - cust sat'!AT43 -> 7 | Q5: 1 | R5: ='Ch2 outputs - cust sat'!AN23 -> 12 | T5: 1 | U5: ='Ch2 outputs - cust sat'!J89 -> 3
A6: NPgN | C6: 1 | D6: 1 | F6: ='Ch2 outputs - environment'!V77 -> 4 | G6: ='Ch2 outputs - environment'!V117 -> 4 | H6: ='Ch2 outputs - environment'!V156 -> 4 | J6: 0 | K6: ='Ch2 outputs - connections'!CO43 -> 14 | L6: 1 | M6: ='Ch2 outputs - connections'!AS86 -> 13 | O6: 1 | P6: ='Ch2 outputs - cust sat'!AT44 -> 12 | Q6: 1 | R6: ='Ch2 outputs - cust sat'!AN24 -> 9 | T6: 1 | U6: ='Ch2 outputs - cust sat'!J90 -> 5
A7: NPgY | C7: 1 | D7: 1 | F7: ='Ch2 outputs - environment'!V78 -> 3 | G7: ='Ch2 outputs - environment'!V118 -> 6 | H7: ='Ch2 outputs - environment'!V157 -> 8 | J7: 0 | K7: ='Ch2 outputs - connections'!CO44 -> 13 | L7: 1 | M7: ='Ch2 outputs - connections'!AS87 -> 11 | O7: 1 | P7: ='Ch2 outputs - cust sat'!AT45 -> 13 | Q7: 1 | R7: ='Ch2 outputs - cust sat'!AN25 -> 13
A8: WMID | C8: 1 | D8: 1 | F8: ='Ch2 outputs - environment'!V79 -> 8 | G8: ='Ch2 outputs - environment'!V119 -> 13 | H8: ='Ch2 outputs - environment'!V158 -> 6 | J8: 1 | K8: ='Ch2 outputs - connections'!CO45 -> 2 | L8: 1 | M8: ='Ch2 outputs - connections'!AS88 -> 2 | O8: 1 | P8: ='Ch2 outputs - cust sat'!AT46 -> 2 | Q8: 1 | R8: ='Ch2 outputs - cust sat'!AN26 -> 11 | T8: N/A | U8: N/A
A9: EMID | C9: 1 | D9: 1 | F9: ='Ch2 outputs - environment'!V80 -> 7 | G9: ='Ch2 outputs - environment'!V120 -> 7 | H9: ='Ch2 outputs - environment'!V159 -> 5 | J9: 1 | K9: ='Ch2 outputs - connections'!CO46 -> 3 | L9: 1 | M9: ='Ch2 outputs - connections'!AS89 -> 1 | O9: 1 | P9: ='Ch2 outputs - cust sat'!AT47 -> 1 | Q9: 1 | R9: ='Ch2 outputs - cust sat'!AN27 -> 8
A10: SWALES | C10: 1 | D10: 1 | F10: ='Ch2 outputs - environment'!V81 -> 10 | G10: ='Ch2 outputs - environment'!V121 -> 10 | H10: ='Ch2 outputs - environment'!V160 -> 10 | J10: 1 | K10: ='Ch2 outputs - connections'!CO47 -> 1 | L10: 1 | M10: ='Ch2 outputs - connections'!AS90 -> 3 | O10: 1 | P10: ='Ch2 outputs - cust sat'!AT48 -> 11 | Q10: 1 | R10: ='Ch2 outputs - cust sat'!AN28 -> 2
A11: SWEST | C11: 0.5 | D11: 1 | F11: ='Ch2 outputs - environment'!V82 -> 9 | G11: ='Ch2 outputs - environment'!V122 -> 11 | H11: ='Ch2 outputs - environment'!V161 -> 1 | J11: 1 | K11: ='Ch2 outputs - connections'!CO48 -> 6 | L11: 1 | M11: ='Ch2 outputs - connections'!AS91 -> 4 | O11: 1 | P11: ='Ch2 outputs - cust sat'!AT49 -> 9 | Q11: 1 | R11: ='Ch2 outputs - cust sat'!AN29 -> 10
A12: LPN | C12: 1 | D12: 1 | F12: ='Ch2 outputs - environment'!V83 -> 13 | G12: ='Ch2 outputs - environment'!V123 -> 3 | H12: ='Ch2 outputs - environment'!V162 -> 13 | J12: 1 | K12: ='Ch2 outputs - connections'!CO49 -> 7 | L12: 1 | M12: ='Ch2 outputs - connections'!AS92 -> 6 | O12: 1 | P12: ='Ch2 outputs - cust sat'!AT50 -> 6 | Q12: 1 | R12: ='Ch2 outputs - cust sat'!AN30 -> 6 | T12: 1 | U12: ='Ch2 outputs - cust sat'!J92 -> 1
A13: SPN | C13: 1 | D13: 1 | F13: ='Ch2 outputs - environment'!V84 -> 11 | G13: ='Ch2 outputs - environment'!V124 -> 1 | H13: ='Ch2 outputs - environment'!V163 -> 12 | J13: 0.5 | K13: ='Ch2 outputs - connections'!CO50 -> 10 | L13: 1 | M13: ='Ch2 outputs - connections'!AS93 -> 7 | O13: 1 | P13: ='Ch2 outputs - cust sat'!AT51 -> 8 | Q13: 1 | R13: ='Ch2 outputs - cust sat'!AN31 -> 7
A14: EPN | C14: 1 | D14: 1 | F14: ='Ch2 outputs - environment'!V85 -> 6 | G14: ='Ch2 outputs - environment'!V125 -> 2 | H14: ='Ch2 outputs - environment'!V164 -> 9 | J14: 1 | K14: ='Ch2 outputs - connections'!CO51 -> 8 | L14: 1 | M14: ='Ch2 outputs - connections'!AS94 -> 5 | O14: 1 | P14: ='Ch2 outputs - cust sat'!AT52 -> 3 | Q14: 1 | R14: ='Ch2 outputs - cust sat'!AN32 -> 1
A15: SPD | C15: 1 | D15: 1 | F15: ='Ch2 outputs - environment'!V86 -> 1 | G15: ='Ch2 outputs - environment'!V126 -> 8 | H15: ='Ch2 outputs - environment'!V165 -> 2 | J15: 0.5 | K15: ='Ch2 outputs - connections'!CO52 -> 11 | L15: 1 | M15: ='Ch2 outputs - connections'!AS95 -> 12 | O15: 1 | P15: ='Ch2 outputs - cust sat'!AT53 -> 5 | Q15: 1 | R15: ='Ch2 outputs - cust sat'!AN33 -> 5 | T15: 1 | U15: ='Ch2 outputs - cust sat'!J93 -> 2
A16: SPMW | C16: 1 | D16: 1 | F16: ='Ch2 outputs - environment'!V87 -> 2 | G16: ='Ch2 outputs - environment'!V127 -> 9 | H16: ='Ch2 outputs - environment'!V165 -> 2 | J16: 0 | K16: ='Ch2 outputs - connections'!CO53 -> 12 | L16: 1 | M16: ='Ch2 outputs - connections'!AS96 -> 10 | O16: 1 | P16: ='Ch2 outputs - cust sat'!AT54 -> 4 | Q16: 1 | R16: ='Ch2 outputs - cust sat'!AN34 -> 4
A17: SSEH | C17: 1 | D17: 1 | F17: ='Ch2 outputs - environment'!V88 -> 14 | G17: ='Ch2 outputs - environment'!V128 -> 5 | H17: ='Ch2 outputs - environment'!V166 -> 3 | J17: 1 | K17: ='Ch2 outputs - connections'!CO54 -> 5 | L17: 1 | M17: ='Ch2 outputs - connections'!AS97 -> 8 | O17: 1 | P17: ='Ch2 outputs - cust sat'!AT55 -> 10 | Q17: 1 | R17: ='Ch2 outputs - cust sat'!AN35 -> 3 | T17: 1 | U17: ='Ch2 outputs - cust sat'!J94 -> 4
A18: SSES | C18: 1 | D18: 1 | F18: ='Ch2 outputs - environment'!V89 -> 12 | G18: ='Ch2 outputs - environment'!V129 -> 14 | H18: ='Ch2 outputs - environment'!V167 -> 11 | J18: 0.5 | K18: ='Ch2 outputs - connections'!CO55 -> 9 | L18: 1 | M18: ='Ch2 outputs - connections'!AS98 -> 14 | O18: 1 | P18: ='Ch2 outputs - cust sat'!AT56 -> 14 | Q18: 1 | R18: ='Ch2 outputs - cust sat'!AN36 -> 14
A20: Industry | C20: 1 | D20: 1 | J20: 1 | L20: 1 | O20: 1 | Q20: 1 | T20: 1

Sheet Ch2 - Incentive payments
A1: Chapter 2 - Reliability and Availability
B3: Incentive payments
C5: 2020/21 prices
D6: Interruptions Incentive Scheme (IIS) | E6: Incentive on connections engagement (ICE) | F6: Time to Connect Incentive (TTC) | G6: Broad measure of customer service (BMCS) | H6: Losses discretionary reward scheme (LDR) | I6: Total incentive payments | J6: don’t erase it
C7: ENWL | D7: ='Ch2 outputs - reliability'!E150 -> 14.60652164 | E7: 0 | F7: ='Ch2 outputs - connections'!CL42 -> 1.432670536 | G7: ='Ch2 outputs - cust sat'!AG99 -> 4.632880131 | H7: =SUM(INDEX('Ch2 outputs - environment'!$J$28:$J$34,MATCH('Ch2 - Incentive payments'!$J7,'Ch2 outputs - environment'!$D$28:$D$33,0))) -> 0 | I7: =SUM(D7:H7) -> 20.67207231 | J7: ENWL
C8: NPgN | D8: ='Ch2 outputs - reliability'!E151 -> 12.02276489 | E8: 0 | F8: ='Ch2 outputs - connections'!CL43 -> 0 | G8: ='Ch2 outputs - cust sat'!AG100 -> 3.033043013 | H8: =SUM(INDEX('Ch2 outputs - environment'!$J$28:$J$34,MATCH('Ch2 - Incentive payments'!$J8,'Ch2 outputs - environment'!$D$28:$D$33,0))) -> 0 | I8: 15.05580791 | J8: NPg
C9: NPgY | D9: ='Ch2 outputs - reliability'!E152 -> 13.61977023 | E9: 0 | F9: ='Ch2 outputs - connections'!CL44 -> 0 | G9: ='Ch2 outputs - cust sat'!AG101 -> 3.847765676 | H9: =SUM(INDEX('Ch2 outputs - environment'!$J$28:$J$34,MATCH('Ch2 - Incentive payments'!$J9,'Ch2 outputs - environment'!$D$28:$D$33,0))) -> 0 | I9: 17.4675359 | J9: NPg
C10: WMID | D10: ='Ch2 outputs - reliability'!E153 -> 21.28029386 | E10: 0 | F10: ='Ch2 outputs - connections'!CL45 -> 1.923642383 | G10: ='Ch2 outputs - cust sat'!AG102 -> 4.809105957 | H10: =SUM(INDEX('Ch2 outputs - environment'!$J$28:$J$34,MATCH('Ch2 - Incentive payments'!$J10,'Ch2 outputs - environment'!$D$28:$D$33,0))) -> 0 | I10: 28.0130422 | J10: WPD
C11: EMID | D11: ='Ch2 outputs - reliability'!E154 -> 18.25195612 | E11: 0 | F11: ='Ch2 outputs - connections'!CL46 -> 1.923642383 | G11: ='Ch2 outputs - cust sat'!AG103 -> 4.809105957 | H11: =SUM(INDEX('Ch2 outputs - environment'!$J$28:$J$34,MATCH('Ch2 - Incentive payments'!$J11,'Ch2 outputs - environment'!$D$28:$D$33,0))) -> 0 | I11: 24.98470446 | J11: WPD
C12: SWALES | D12: ='Ch2 outputs - reliability'!E155 -> 6.144998007 | E12: 0 | F12: ='Ch2 outputs - connections'!CL47 -> 0.9618211914 | G12: ='Ch2 outputs - cust sat'!AG104 -> 2.28432533 | H12: =SUM(INDEX('Ch2 outputs - environment'!$J$28:$J$34,MATCH('Ch2 - Incentive payments'!$J12,'Ch2 outputs - environment'!$D$28:$D$33,0))) -> 0 | I12: 9.391144528 | J12: WPD
C13: SWEST | D13: ='Ch2 outputs - reliability'!E156 -> 1.112664364 | E13: 0 | F13: ='Ch2 outputs - connections'!CL48 -> 1.442731787 | G13: ='Ch2 outputs - cust sat'!AG105 -> 3.36637417 | H13: =SUM(INDEX('Ch2 outputs - environment'!$J$28:$J$34,MATCH('Ch2 - Incentive payments'!$J13,'Ch2 outputs - environment'!$D$28:$D$33,0))) -> 0 | I13: 5.921770321 | J13: WPD
C14: LPN | D14: ='Ch2 outputs - reliability'!E157 -> 15.74012225 | E14: 0 | F14: ='Ch2 outputs - connections'!CL49 -> 0 | G14: ='Ch2 outputs - cust sat'!AG106 -> 5.067595402 | H14: =SUM(INDEX('Ch2 outputs - environment'!$J$28:$J$34,MATCH('Ch2 - Incentive payments'!$J14,'Ch2 outputs - environment'!$D$28:$D$33,0))) -> 0 | I14: 20.80771766 | J14: UKPN
C15: SPN | D15: ='Ch2 outputs - reliability'!E158 -> 12.40856646 | E15: 0 | F15: ='Ch2 outputs - connections'!CL50 -> 0 | G15: ='Ch2 outputs - cust sat'!AG107 -> 5.285207447 | H15: =SUM(INDEX('Ch2 outputs - environment'!$J$28:$J$34,MATCH('Ch2 - Incentive payments'!$J15,'Ch2 outputs - environment'!$D$28:$D$33,0))) -> 0 | I15: 17.69377391 | J15: UKPN
C16: EPN | D16: ='Ch2 outputs - reliability'!E159 -> 24.1024448 | E16: 0 | F16: ='Ch2 outputs - connections'!CL51 -> 0 | G16: ='Ch2 outputs - cust sat'!AG108 -> 7.77031295 | H16: =SUM(INDEX('Ch2 outputs - environment'!$J$28:$J$34,MATCH('Ch2 - Incentive payments'!$J16,'Ch2 outputs - environment'!$D$28:$D$33,0))) -> 0 | I16: 31.87275775 | J16: UKPN
C17: SPD | D17: ='Ch2 outputs - reliability'!E160 -> 9.033037439 | E17: 0 | F17: ='Ch2 outputs - connections'!CL52 -> 0.6644769148 | G17: ='Ch2 outputs - cust sat'!AG109 -> 4.910097182 | H17: =SUM(INDEX('Ch2 outputs - environment'!$J$28:$J$34,MATCH('Ch2 - Incentive payments'!$J17,'Ch2 outputs - environment'!$D$28:$D$33,0))) -> 0 | I17: 14.60761154 | J17: SPEN
C18: SPMW | D18: ='Ch2 outputs - reliability'!E161 -> 1.665926035 | E18: 0 | F18: ='Ch2 outputs - connections'!CL53 -> 0.1094504425 | G18: ='Ch2 outputs - cust sat'!AG110 -> 5.344720133 | H18: =SUM(INDEX('Ch2 outputs - environment'!$J$28:$J$34,MATCH('Ch2 - Incentive payments'!$J18,'Ch2 outputs - environment'!$D$28:$D$33,0))) -> 0 | I18: 7.12009661 | J18: SPEN
C19: SSEH | D19: ='Ch2 outputs - reliability'!E162 -> 0.8559632346 | E19: 0 | F19: ='Ch2 outputs - connections'!CL54 -> 0.8955746684 | G19: ='Ch2 outputs - cust sat'!AG111 -> 2.933554634 | H19: =SUM(INDEX('Ch2 outputs - environment'!$J$28:$J$34,MATCH('Ch2 - Incentive payments'!$J19,'Ch2 outputs - environment'!$D$28:$D$33,0))) -> 0 | I19: 4.685092537 | J19: SSEN
C20: SSES | D20: ='Ch2 outputs - reliability'!E163 -> 6.644392937 | E20: 0 | F20: ='Ch2 outputs - connections'!CL55 -> 0.9049213861 | G20: ='Ch2 outputs - cust sat'!AG112 -> 3.559456264 | H20: =SUM(INDEX('Ch2 outputs - environment'!$J$28:$J$34,MATCH('Ch2 - Incentive payments'!$J20,'Ch2 outputs - environment'!$D$28:$D$33,0))) -> 0 | I20: 11.10877059 | J20: SSEN
C21: Total | D21: =SUM(D7:D20) -> 157.4894223 | E21: =SUM(E7:E20) -> 0 | F21: =SUM(F7:F20) -> 10.25893169 | G21: =SUM(G7:G20) -> 61.65354424 | H21: =SUM(H7:H20) -> 0 | I21: 229.4018982

Sheet Ch2 outputs - reliability
A1: Chapter 2 - Reliability and Availability
B2: Performance against the outputs that DNOs are incentivised to deliver under RIIO-ED1.
B4: Reliability and availability: providing long-term reliability, minimising the number and duration of interruptions and ensuring adaptation to climate change.
B5: Incentive measure | F5: Incentive type
B6: Interruption incentive scheme (IIS): DNOs can receive a financial reward or incur a financial penalty depending on their performance against a target for both the number and length of their network supply interruptions. | F6: Financial: 250 RORE basis points per annum. Supported by monitoring of Secondary Deliverables. Reputational.
B7: Guaranteed Standards of Performance (GSoP): direct payment to customers of fixed amounts if DNO fails to deliver specified minimum levels of performance. | F7: Financial: payment to customers for failure to meet standards. Reputational.
B8: Worst-served customers (WSC): DNOs have access to funding to improve the reliability for a subset of customers whose supply has been repeatedly interrupted. | F8: Financial: £76.5 million over ED1 (use-it-or-lose-it). Reputational.
B9: Network resilience: proactive network investment for reducing the impact of disruptive events, such as floods or severe storms. | F9: Reputational.
B12: Interruption Incentive Scheme (IIS) | E12: CI performance | N12: 2020/21 RAG status | Q12: CI target (Planned and unplanned)
E13: 2014/15 | F13: 2015/16 | G13: 2016/17 | H13: 2017/18 | I13: 2018/19 | J13: 2019/20 | K13: 2020/21 | L13: 2021/22 | M13: 2022/23 | Q13: 2015/16 | R13: 2016/17 | S13: 2017/18 | T13: 2018/19 | U13: 2019/20 | V13: 2020/21 | W13: 2021/22 | X13: 2022/23
D14: ENWL | E14: 36.64007359 | F14: 36.65750416 | G14: 32.89872416 | H14: 33.23113479 | I14: 33.59983554 | J14: 27.95317361 | K14: 30.73026515 | N14: =IF(K14<=V14,"Green",IF(K14<=V14*1.05,"Amber","Red")) -> Green | P14: ENWL | Q14: 48.37195356 | R14: 48.02825334 | S14: 47.4508901 | T14: 47.17044608 | U14: 46.86558384 | V14: 46.43653784
D15: NPgN | E15: 65.26359301 | F15: 58.34727383 | G15: 53.28905362 | H15: 51.81519134 | I15: 54.28416236 | J15: 46.97048435 | K15: 45.26378626 | N15: =IF(K15<=V15,"Green",IF(K15<=V15*1.05,"Amber","Red")) -> Green | P15: NPgN | Q15: 63.75172954 | R15: 62.70868495 | S15: 62.16495153 | T15: 61.38208007 | U15: 60.68086191 | V15: 60.02267158
D16: NPgY | E16: 60.91975461 | F16: 52.53464728 | G16: 48.5363288 | H16: 48.1345217 | I16: 49.3031241 | J16: 50.78773106 | K16: 52.42256713 | N16: Green | P16: NPgY | Q16: 68.59357099 | R16: 67.55372114 | S16: 66.47527679 | T16: 65.1854765 | U16: 64.04058283 | V16: 62.97852848
D17: WMID | E17: 70.24026493 | F17: 65.22689603 | G17: 58.9599988 | H17: 55.6442047 | I17: 55.37075929 | J17: 48.48407976 | K17: 44.44815459 | N17: Green | P17: WMID | Q17: 89.07684423 | R17: 87.05456485 | S17: 85.3947733 | T17: 84.07887678 | U17: 82.44388584 | V17: 80.90469161
D18: EMID | E18: 45.95520502 | F18: 42.65072457 | G18: 44.12571874 | H18: 46.94172138 | I18: 39.77135469 | J18: 37.90279559 | K18: 39.57393349 | N18: Green | P18: EMID | Q18: 53.22076207 | R18: 52.13962623 | S18: 51.42330642 | T18: 51.05155481 | U18: 50.82084743 | V18: 50.48931942
D19: SWALES | E19: 56.48447461 | F19: 48.53141809 | G19: 41.64040259 | H19: 48.46686218 | I19: 41.29104808 | J19: 43.52130477 | K19: 38.89305309 | N19: Green | P19: SWALES | Q19: 55.06037337 | R19: 53.75180744 | S19: 53.31319243 | T19: 53.09492923 | U19: 52.71872689 | V19: 52.45564499
D20: SWEST | E20: 51.61839023 | F20: 51.99880507 | G20: 52.45442106 | H20: 62.03699686 | I20: 51.46478332 | J20: 46.09622422 | K20: 58.45469165 | N20: Amber | P20: SWEST | Q20: 59.17962458 | R20: 58.86083942 | S20: 58.53708391 | T20: 58.48036798 | U20: 58.42549897 | V20: 58.1078836
D21: LPN | E21: 20.88055269 | F21: 18.956803 | G21: 17.22140308 | H21: 14.21623774 | I21: 14.09492818 | J21: 13.19999055 | K21: 13.02055688 | N21: Green | P21: LPN | Q21: 27.80442323 | R21: 27.68332947 | S21: 27.33851583 | T21: 27.03425534 | U21: 26.69761648 | V21: 26.44215534
D22: SPN | E22: 50.09437788 | F22: 48.73709832 | G22: 47.72406612 | H22: 46.68681691 | I22: 44.35653462 | J22: 45.03820228 | K22: 44.29522129 | N22: Green | P22: SPN | Q22: 65.32600982 | R22: 64.66907452 | S22: 64.09331146 | T22: 63.62583163 | U22: 63.20081553 | V22: 62.91676263
D23: EPN | E23: 52.79515655 | F23: 45.75570628 | G23: 49.37111816 | H23: 48.5218 | I23: 41.42250444 | J23: 43.78245405 | K23: 43.91491542 | N23: Green | P23: EPN | Q23: 69.78626007 | R23: 68.69974372 | S23: 67.94105245 | T23: 67.18845091 | U23: 66.65224917 | V23: 66.51686366
D24: SPD | E24: 46.58826613 | F24: 48.46533187 | G24: 42.8901371 | H24: 41.30501494 | I24: 49.33473597 | J24: 44.5284707 | K24: 40.45925299 | N24: Green | P24: SPD | Q24: 52.07347876 | R24: 51.90160342 | S24: 51.64197259 | T24: 51.09507495 | U24: 50.62929298 | V24: 50.16713872
D25: SPMW | E25: 32.77742581 | F25: 30.14843269 | G25: 38.16376257 | H25: 30.49896858 | I25: 36.14398836 | J25: 32.22179227 | K25: 31.92561324 | N25: Green | P25: SPMW | Q25: 38.27366337 | R25: 38.0644497 | S25: 37.59791787 | T25: 37.02580749 | U25: 36.40715904 | V25: 36.12211322
D26: SSEH | E26: 73.52165044 | F26: 66.72040063 | G26: 68.10679953 | H26: 57.34640044 | I26: 69.36756075 | J26: 63.17313197 | K26: 63.99170639 | N26: Green | P26: SSEH | Q26: 71.90053998 | R26: 71.18886245 | S26: 70.15106303 | T26: 70.28042452 | U26: 69.98556845 | V26: 69.18618603
D27: SSES | E27: 59.84592631 | F27: 47.50998757 | G27: 47.81686091 | H27: 55.13280003 | I27: 52.10169007 | J27: 47.15481676 | K27: 48.41785247 | N27: Green | P27: SSES | Q27: 62.53435987 | R27: 61.57780772 | S27: 60.39368654 | T27: 59.39079167 | U27: 58.95827811 | V27: 58.71053902
D28: Total | E28: 50.83062035 | F28: 46.26024092 | G28: 45.06427933 | H28: 45.28780576 | I28: 43.8099316 | J28: 41.21111265 | K28: 41.58843764
E30: CML performance | N30: 2020/21 RAG status | Q30: CML target (Planned and unplanned)
E31: 2014/15 | F31: 2015/16 | G31: 2016/17 | H31: 2017/18 | I31: 2018/19 | J31: 2019/20 | K31: 2020/21 | L31: 2021/22 | M31: 2022/23 | Q31: 2015/16 | R31: 2016/17 | S31: 2017/18 | T31: 2018/19 | U31: 2019/20 | V31: 2020/21 | W31: 2021/22 | X31: 2022/23
D32: ENWL | E32: 34.76243236 | F32: 32.49629202 | G32: 33.71355615 | H32: 34.63112634 | I32: 32.96300426 | J32: 27.14609222 | K32: 28.1502787 | N32: =IF(K32<=V32,"Green",IF(K32<=V32*1.05,"Amber","Red")) -> Green | P32: ENWL | Q32: 47.37353943 | R32: 45.82728822 | S32: 44.22557415 | T32: 43.00277457 | U32: 42.06733042 | V32: 40.78439967
D33: NPgN | E33: 56.06517018 | F33: 50.10896408 | G33: 45.00430019 | H33: 44.62516576 | I33: 47.63165205 | J33: 44.10397891 | K33: 36.81887544 | N33: =IF(K33<=V33,"Green",IF(K33<=V33*1.05,"Amber","Red")) -> Green | P33: NPgN | Q33: 65.86223246 | R33: 64.09760406 | S33: 61.87164277 | T33: 59.10684654 | U33: 57.01103882 | V33: 55.16313283
D34: NPgY | E34: 50.43404375 | F34: 41.83767088 | G34: 38.0051775 | H34: 36.39574708 | I34: 38.77214491 | J34: 42.10247027 | K34: 40.00438529 | N34: Green | P34: NPgY | Q34: 63.11966704 | R34: 61.61618976 | S34: 60.17853616 | T34: 57.95158627 | U34: 56.41385376 | V34: 54.87892798
D35: WMID | E35: 34.24748607 | F35: 32.15125114 | G35: 31.97361396 | H35: 31.02404506 | I35: 32.29735482 | J35: 29.00255602 | K35: 28.24247963 | N35: Green | P35: WMID | Q35: 55.65600016 | R35: 53.60162252 | S35: 52.99336073 | T35: 52.78337452 | U35: 52.264842 | V35: 51.96519454
D36: EMID | E36: 22.85262752 | F36: 21.55496789 | G36: 21.96212168 | H36: 24.07177192 | I36: 22.9171638 | J36: 22.55823231 | K36: 23.09835936 | N36: Green | P36: EMID | Q36: 40.23357433 | R36: 39.10588266 | S36: 38.82708102 | T36: 38.01194585 | U36: 37.23704108 | V36: 36.43231966
D37: SWALES | E37: 30.39829093 | F37: 26.3408534 | G37: 25.72609148 | H37: 28.41460867 | I37: 24.87022259 | J37: 23.4199746 | K37: 24.51110017 | N37: Green | P37: SWALES | Q37: 35.44214891 | R37: 33.56820749 | S37: 33.35629545 | T37: 33.44477928 | U37: 33.15731653 | V37: 33.1031794
D38: SWEST | E38: 38.95592924 | F38: 37.51045627 | G38: 39.69870511 | H38: 42.78232644 | I38: 40.22496535 | J38: 38.21713875 | K38: 41.54024624 | N38: Green | P38: SWEST | Q38: 43.91734302 | R38: 43.63298563 | S38: 43.50199529 | T38: 43.8273154 | U38: 43.92305606 | V38: 43.4963966
D39: LPN | E39: 24.03006735 | F39: 19.28684622 | G39: 19.78127401 | H39: 16.74064131 | I39: 15.91679339 | J39: 14.38653669 | K39: 11.37808418 | N39: Green | P39: LPN | Q39: 40.44154825 | R39: 39.71882371 | S39: 38.8503032 | T39: 37.72425531 | U39: 36.64798493 | V39: 35.96021784
D40: SPN | E40: 35.03520804 | F40: 36.34049005 | G40: 35.06263583 | H40: 37.56921184 | I40: 36.68784517 | J40: 32.85109672 | K40: 31.91647497 | N40: Green | P40: SPN | Q40: 50.17473647 | R40: 48.36490519 | S40: 46.54170473 | T40: 45.27954349 | U40: 44.03523923 | V40: 43.17999154
D41: EPN | E41: 40.20514835 | F41: 34.76516025 | G41: 39.20381675 | H41: 41.79128818 | I41: 34.81117617 | J41: 33.7663204 | K41: 32.27296168 | N41: Green | P41: EPN | Q41: 55.7003846 | R41: 54.22268524 | S41: 52.00439817 | T41: 49.61100899 | U41: 48.07036211 | V41: 47.6706727
D42: SPD | E42: 34.03126444 | F42: 34.81463329 | G42: 29.32836726 | H42: 31.19284596 | I42: 35.01017159 | J42: 33.71785108 | K42: 29.89521589 | N42: Green | P42: SPD | Q42: 46.23040403 | R42: 45.68157588 | S42: 44.75054439 | T42: 43.41874701 | U42: 42.08127773 | V42: 41.04961413
D43: SPMW | E43: 36.13681094 | F43: 33.56467524 | G43: 37.33744028 | H43: 32.98727132 | I43: 35.60105498 | J43: 33.84297637 | K43: 34.80648613 | N43: Green | P43: SPMW | Q43: 45.61961944 | R43: 44.23979445 | S43: 42.41891188 | T43: 40.30271841 | U43: 38.24794085 | V43: 36.82915479
D44: SSEH | E44: 71.56350154 | F44: 55.20969992 | G44: 59.88609562 | H44: 55.24026901 | I44: 59.068469 | J44: 55.59302741 | K44: 57.3898034 | N44: Green | P44: SSEH | Q44: 64.55381854 | R44: 62.23321321 | S44: 59.45033586 | T44: 59.34947784 | U44: 59.08513472 | V44: 58.81080101
D45: SSES | E45: 56.92164691 | F45: 41.19510635 | G45: 43.29800356 | H45: 47.56372229 | I45: 49.94647671 | J45: 45.91278195 | K45: 44.30269841 | N45: Green | P45: SSES | Q45: 54.12297476 | R45: 52.92818986 | S45: 50.82738041 | T45: 49.51790917 | U45: 47.88930423 | V45: 47.19239331
D46: Total | E46: 39.1618001 | F46: 34.43367633 | G46: 34.71078638 | H46: 35.50477918 | I46: 35.19895983 | J46: 33.11021141 | K46: 32.03103474
J49: Breakdown of performance for CI and CML/planned and unplanned
J50: PLANNED | P50: UNPLANNED
B51: Rewards and penalties under the IIS | D51: 2015/16 | E51: IIS performance total reward | I51: 2015/16 | J51: CI | M51: CML | P51: CI | S51: CML
E52: Total reward (£m)** | F52: Regulation 7 Severe Weather Conditions Adjustment | G52: Normal weather conditions adjustment | J52: Performance | K52: Target | L52: Reward/Penalty (£m) | M52: Performance | N52: Target | O52: Reward/Penalty (£m) | P52: Performance | Q52: Target | R52: Reward/Penalty (£m) | S52: Performance | T52: Target | U52: Reward/Penalty (£m)
D53: ENWL | E53: 15.34839475 | F53: 0 | G53: 0 | I53: ENWL | J53: 1.624115947 | K53: 2.37195356 | L53: 0.2416430293 | M53: 4.058171082 | N53: 6.773539429 | O53: 2.110493411 | P53: 35.03338821 | Q53: 46 | R53: 3.543557114 | S53: 28.43812094 | T53: 40.6 | U53: 9.4527012
D54: NPgN | E54: 8.972316502 | F54: 0 | G54: -0.04005023441 | I54: NPgN | J54: 2.965282572 | K54: 3.951729539 | L54: 0.198675704 | M54: 6.802123103 | N54: 11.06223246 | O54: 2.145022118 | P54: 55.38199126 | Q54: 59.8 | R54: 0.8898106291 | S54: 43.30684097 | T54: 54.8 | U54: 5.786959506
D55: NPgY | E55: 15.63376557 | F55: -0.4965305718 | G55: 0 | I55: NPgY | J55: 1.54251192 | K55: 1.893570992 | L55: 0.1031117178 | M55: 3.989441512 | N55: 5.61966704 | O55: 1.17653789 | P55: 50.99213536 | Q55: 66.7 | R55: 4.613653469 | S55: 37.84822937 | T55: 57.5 | U55: 14.1827326
D56: WMID | E56: 21.28029386 | F56: 0 | G56: 0 | I56: WMID | J56: 2.084164733 | K56: 2.376844226 | L56: 0.1170006564 | M56: 3.759735338 | N56: 4.556000165 | O56: 0.7790276787 | P56: 63.1427313 | Q56: 86.7 | R56: 9.417181477 | S56: 28.3915158 | T56: 51.1 | U56: 22.21690213
D57: EMID | E57: 20.55892797 | F57: 0 | G57: 0 | I57: EMID | J57: 0.974794934 | K57: 1.320762067 | L57: 0.1455818525 | M57: 1.658110796 | N57: 2.433574328 | O57: 0.8076235624 | P57: 41.67592964 | Q57: 51.9 | R57: 4.302255798 | S57: 19.8968571 | T57: 37.8 | U57: 18.6456222
D58: SWALES | E58: 5.188914958 | F58: 0 | G58: 0 | I58: SWALES | J58: 3.570779753 | K58: 4.96037337 | L58: 0.2485130157 | M58: 5.625713764 | N58: 7.942148915 | O58: 1.023485854 | P58: 44.96063834 | Q58: 50.1 | R58: 0.9191163877 | S58: 20.71513964 | T58: 27.5 | U58: 2.997799701
D59: SWEST | E59: 5.789595349 | F59: 0 | G59: 0 | I59: SWEST | J59: 3.496934059 | K59: 3.479624576 | L59: -0.004370264532 | M59: 8.523135122 | N59: 8.117343018 | O59: -0.2518651103 | P59: 48.50187101 | Q59: 55.7 | R59: 1.817369663 | S59: 28.98732115 | T59: 35.8 | U59: 4.228461062
D60: LPN | E60: 15.6031664 | F60: 0 | G60: -0.2219815982 | I60: LPN | J60: 0.2850245641 | K60: 0.8044232306 | L60: 0.1455618137 | M60: 0.5502822311 | N60: 1.64154825 | O60: 0.751463112 | P60: 18.67177844 | Q60: 27 | R60: 2.333989503 | S60: 18.73656399 | T60: 38.8 | U60: 13.81600069
D61: SPN | E61: 13.61608617 | F61: -0.09614364629 | G61: -0.2770448996 | I61: SPN | J61: 1.121586982 | K61: 1.926009816 | L61: 0.2254400218 | M61: 2.433797828 | N61: 4.674736473 | O61: 1.525202384 | P61: 47.61551134 | Q61: 63.4 | R61: 4.423613202 | S61: 33.90669222 | T61: 45.5 | U61: 7.890506374
D62: EPN | E62: 24.12602864 | F62: -0.002207379634 | G62: -0.2308372591 | I62: EPN | J62: 1.434231194 | K62: 2.686260072 | L62: 0.5513858532 | M62: 3.766439201 | N62: 7.700384598 | O62: 4.220964598 | P62: 44.32147509 | Q62: 67.1 | R62: 10.03152292 | S62: 30.99872105 | T62: 48 | U62: 18.24168598
D63: SPD | E63: 7.783221146 | F63: 0 | G63: 0 | I63: SPD | J63: 1.552173372 | K63: 1.673478755 | L63: 0.03023499608 | M63: 3.786221998 | N63: 4.030404027 | O63: 0.1472458656 | P63: 46.9131585 | Q63: 50.4 | R63: 0.8690845903 | S63: 31.02841129 | T63: 42.2 | U63: 6.736655694
D64: SPMW | E64: 6.930328832 | F64: 0 | G64: 0 | I64: SPMW | J64: 2.191182475 | K64: 3.073663372 | L64: 0.1631929146 | M64: 7.172235912 | N64: 10.51961944 | O64: 1.507167954 | P64: 27.95725022 | Q64: 35.2 | R64: 1.339366608 | S64: 26.39243933 | T64: 35.1 | U64: 3.920601355
D65: SSEH | E65: 2.658977216 | F65: -0.002827754303 | G65: -0.07115553174 | I65: SSEH | J65: 3.095889549 | K65: 5.000539981 | L65: 0.1939673716 | M65: 5.633821836 | N65: 10.65381854 | O65: 1.192871378 | P65: 63.62451108 | Q65: 66.9 | R65: 0.3335719591 | S65: 49.57587808 | T65: 53.9 | U65: 1.027514872
D66: SSES | E66: 18.11843125 | F66: -0.0001009912251 | G66: -0.02876085818 | I66: SSES | J66: 1.303539163 | K66: 2.234359868 | L66: 0.3633758177 | M66: 3.076354745 | N66: 6.022974762 | O66: 2.800749794 | P66: 46.2064484 | Q66: 60.3 | R66: 5.50187142 | S66: 38.11875161 | T66: 48.1 | U66: 9.487134146
D67: Total | E67: =SUM(E53:E66) -> 181.6084486 | F67: =SUM(F53:F66) -> -0.5978103433 | G67: =SUM(G53:G66) -> -0.8698303812
D68: NB: The total reward includes an adjustment for Regulation 7 Severe weather and Normal weather (Regulation 5,6 and 8)
J71: PLANNED | P71: UNPLANNED
D72: 2016/17 | I72: 2016/17 | J72: CI | M72: CML | P72: CI | S72: CML
E73: Total reward (£m)** | F73: Regulation 7 Severe Weather Conditions Adjustment | G73: Normal weather conditions adjustment | J73: Performance | K73: Target | L73: Reward/Penalty (£m) | M73: Performance | N73: Target | O73: Reward/Penalty (£m) | P73: Performance | Q73: Target | R73: Reward/Penalty (£m) | S73: Performance | T73: Target | U73: Reward/Penalty (£m)
D74: ENWL | E74: 14.17416211 | F74: 0 | G74: -0.1079668333 | I74: ENWL | J74: 1.780368863 | K74: 2.228253342 | L74: 0.1447214746 | M74: 4.370618837 | N74: 6.02728822 | O74: 1.287630027 | P74: 31.1183553 | Q74: 45.8 | R74: 4.743967192 | S74: 29.34293731 | T74: 39.8 | U74: 8.127649397
D75: NPgN | E75: 11.51089844 | F75: 0 | G75: 0 | I75: NPgN | J75: 2.968264429 | K75: 3.808684951 | L75: 0.1692651958 | M75: 7.378907974 | N75: 10.39760406 | O75: 1.519953911 | P75: 50.32078919 | Q75: 58.9 | R75: 1.72789902 | S75: 37.62539222 | T75: 53.7 | U75: 8.093780318
D76: NPgY | E76: 16.2307326 | F76: 0 | G76: 0 | I76: NPgY | J76: 1.178463043 | K76: 1.853721136 | L76: 0.1983342049 | M76: 2.974318269 | N76: 5.316189761 | O76: 1.690134583 | P76: 47.35786576 | Q76: 65.7 | R76: 5.387380984 | S76: 35.03085923 | T76: 56.3 | U76: 15.34999272
D77: WMID | E77: 21.28029386 | F77: 0 | G77: 0 | I77: WMID | J77: 2.881645697 | K77: 2.054564851 | L77: -0.3306313019 | M77: 4.894022268 | N77: 3.301622518 | O77: -1.557928265 | P77: 56.0783531 | Q77: 85 | R77: 11.56162885 | S77: 27.07959169 | T77: 50.3 | U77: 22.71774436
D78: EMID | E78: 20.55892797 | F78: 0 | G78: 0 | I78: EMID | J78: 0.911529648 | K78: 1.039626225 | L78: 0.05390262606 | M78: 1.519959202 | N78: 1.505882664 | O78: -0.01466032016 | P78: 43.21418909 | Q78: 51.1 | R78: 3.318323767 | S78: 20.44216248 | T78: 37.6 | U78: 17.86940751
D79: SWALES | E79: 5.630920974 | F79: 0 | G79: 0 | I79: SWALES | J79: 3.663084826 | K79: 3.851807436 | L79: 0.03375089253 | M79: 6.270450968 | N79: 6.06820749 | O79: -0.08935857257 | P79: 37.97731777 | Q79: 49.9 | R79: 2.13223613 | S79: 19.45564051 | T79: 27.5 | U79: 3.554292524
D80: SWEST | E80: 4.059390592 | F80: 0 | G80: 0 | I80: SWEST | J80: 4.144309349 | K80: 3.460839424 | L80: -0.1725611627 | M80: 9.551975296 | N80: 8.032985627 | O80: -0.9427992737 | P80: 48.31011171 | Q80: 55.4 | R80: 1.79004126 | S80: 30.14672981 | T80: 35.6 | U80: 3.384709769
D81: LPN | E81: 15.67646034 | F81: 0 | G81: -0.1610189666 | I81: LPN | J81: 0.1843066038 | K81: 0.7833294726 | L81: 0.1678765481 | M81: 0.4557331298 | N81: 1.618823708 | O81: 0.8009226447 | P81: 17.03709648 | Q81: 26.9 | R81: 2.764085119 | S81: 19.32554088 | T81: 38.1 | U81: 12.92839072
D82: SPN | E82: 13.48786305 | F82: -0.005749286171 | G82: -0.2559435045 | I82: SPN | J82: 1.190313375 | K82: 1.669074517 | L82: 0.134173121 | M82: 2.709920611 | N82: 3.864905187 | O82: 0.7860925744 | P82: 46.53375275 | Q82: 63 | R82: 4.61467649 | S82: 32.35271522 | T82: 44.5 | U82: 8.267547952
D83: EPN | E83: 23.88790464 | F83: -0.01444174519 | G83: -0.4166638256 | I83: EPN | J83: 1.558917572 | K83: 2.599743722 | L83: 0.4583734644 | M83: 4.245139318 | N83: 7.222685244 | O83: 3.194786575 | P83: 47.81220059 | Q83: 66.1 | R83: 8.053834901 | S83: 34.95867743 | T83: 47 | U83: 12.91985301
D84: SPD | E84: 12.10734 | F84: 0 | G84: 0 | I84: SPD | J84: 1.10780349 | K84: 1.801603415 | L84: 0.1729275115 | M84: 2.847161982 | N84: 4.381575883 | O84: 0.9252773633 | P84: 41.78233361 | Q84: 50.1 | R84: 2.073152934 | S84: 26.48120528 | T84: 41.3 | U84: 8.935982195
D85: SPMW | E85: 3.089437088 | F85: 0 | G85: 0 | I85: SPMW | J85: 1.829821194 | K85: 2.964449697 | L85: 0.2098213491 | M85: 5.755886634 | N85: 9.939794454 | O85: 1.883815145 | P85: 36.33394137 | Q85: 35.1 | R85: -0.2281867967 | S85: 31.58155364 | T85: 34.3 | U85: 1.22398739
D86: SSEH | E86: 0.8716050042 | F86: 0 | G86: 0 | I86: SSEH | J86: 5.521052508 | K86: 4.588862451 | L86: -0.09493314477 | M86: 11.76512746 | N86: 9.433213213 | O86: -0.5541186426 | P86: 62.58574703 | Q86: 66.6 | R86: 0.4088068263 | S86: 48.12096816 | T86: 52.8 | U86: 1.111849965
D87: SSES | E87: 14.51809032 | F87: -0.0003606829468 | G87: -0.005785354466 | I87: SSES | J87: 1.713139095 | K87: 2.177807717 | L87: 0.1813983505 | M87: 4.102107449 | N87: 5.828189858 | O87: 1.640633988 | P87: 46.10372182 | Q87: 59.4 | R87: 5.190630086 | S87: 39.19589611 | T87: 47.1 | U87: 7.512817134
D88: Total | E88: =SUM(E74:E87) -> 177.084027 | F88: =SUM(F74:F87) -> -0.02055171431 | G88: =SUM(G74:G87) -> -0.9473784844
J90: PLANNED | P90: UNPLANNED
D91: 2017/18 | I91: 2017/18 | J91: CI | M91: CML | P91: CI | S91: CML
E92: Total reward (£m)** | F92: Regulation 7 Severe Weather Conditions Adjustment | G92: Normal weather conditions adjustment | J92: Performance | K92: Target | L92: Reward/Penalty (£m) | M92: Performance | N92: Target | O92: Reward/Penalty (£m) | P92: Performance | Q92: Target | R92: Reward/Penalty (£m) | S92: Performance | T92: Target | U92: Reward/Penalty (£m)
D93: ENWL | E93: 11.57361393 | F93: -0.003231719203 | G93: -0.2708382675 | I93: ENWL | J93: 1.892266706 | K93: 1.950890097 | L93: 0.01870866842 | M93: 5.03023843 | N93: 5.125574149 | O93: 0.0731839527 | P93: 31.33886808 | Q93: 45.5 | R93: 4.519286804 | S93: 29.60088791 | T93: 39.1 | U93: 7.29194241
D94: NPgN | E94: 10.63538698 | F94: 0 | G94: 0 | I94: NPgN | J94: 2.109038728 | K94: 3.564951535 | L94: 0.2896085326 | M94: 4.752085388 | N94: 9.171642771 | O94: 2.197833419 | P94: 49.70615261 | Q94: 58.6 | R94: 1.769154087 | S94: 39.87308037 | T94: 52.7 | U94: 6.378790945
D95: NPgY | E95: 16.15011014 | F95: 0 | G95: -0.06705817346 | I95: NPgY | J95: 1.300773539 | K95: 1.775276789 | L95: 0.1376486579 | M95: 3.277801493 | N95: 4.978536158 | O95: 1.212271123 | P95: 46.83374816 | Q95: 64.7 | R95: 5.182821372 | S95: 33.11794559 | T95: 55.2 | U95: 15.73992549
D96: WMID | E96: 21.28029386 | F96: 0 | G96: 0 | I96: WMID | J96: 2.365847094 | K96: 2.0947733 | L96: -0.1070258059 | M96: 4.440768406 | N96: 3.493360725 | O96: -0.9154554729 | P96: 53.27835761 | Q96: 83.3 | R96: 11.85319474 | S96: 26.58327666 | T96: 49.5 | U96: 22.14383547
D97: EMID | E97: 17.04007696 | F97: 0 | G97: 0 | I97: EMID | J97: 0.8762177194 | K97: 1.023306419 | L97: 0.06113032069 | M97: 1.433053249 | N97: 1.527081019 | O97: 0.09671831155 | P97: 46.06550366 | Q97: 50.4 | R97: 1.801424262 | S97: 22.63871867 | T97: 37.3 | U97: 15.08080407
D98: SWALES | E98: 3.012473269 | F98: 0 | G98: 0 | I98: SWALES | J98: 3.622316104 | K98: 3.713192429 | L98: 0.01605155289 | M98: 5.675784859 | N98: 5.956295449 | O98: 0.1224097262 | P98: 44.84454607 | Q98: 49.6 | R98: 0.8399593627 | S98: 22.73882381 | T98: 27.4 | U98: 2.034052627
D99: SWEST | E99: -0.4315759139 | F99: 0 | G99: 0 | I99: SWEST | J99: 3.835253512 | K99: 3.437083906 | L99: -0.09928799081 | M99: 8.694057778 | N99: 8.101995285 | O99: -0.3629417563 | P99: 58.20174335 | Q99: 55.1 | R99: -0.7734539768 | S99: 34.08826867 | T99: 35.4 | U99: 0.80410781
D100: LPN | E100: 15.79484597 | F100: 0 | G100: -0.06255107936 | I100: LPN | J100: 0.1235182605 | K100: 0.6385158282 | L100: 0.1425465708 | M100: 0.3379394419 | N100: 1.350303202 | O100: 0.6885232233 | P100: 14.09271948 | Q100: 26.7 | R100: 3.489578821 | S100: 16.40270186 | T100: 37.5 | U100: 14.34857735
D101: SPN | E101: 10.38710945 | F101: -0.002524780627 | G101: -0.3819228441 | I101: SPN | J101: 0.9905462404 | K101: 1.393311458 | L101: 0.1114816928 | M101: 2.161999241 | N101: 3.041704732 | O101: 0.5913434357 | P101: 45.69627067 | Q101: 62.7 | R101: 4.70647525 | S101: 35.4072126 | T101: 43.5 | U101: 5.440021414
D102: EPN | E102: 18.68617935 | F102: 0 | G102: -0.4851849291 | I102: EPN | J102: 1.663598741 | K102: 2.241052451 | L102: 0.2511674853 | M102: 4.4995078 | N102: 6.104398168 | O102: 1.700723532 | P102: 46.85820126 | Q102: 65.7 | R102: 8.195370683 | S102: 37.29178038 | T102: 45.9 | U102: 9.122244084
D103: SPD | E103: 10.61923462 | F103: 0 | G103: 0 | I103: SPD | J103: 1.027902085 | K103: 1.741972587 | L103: 0.1757826082 | M103: 2.910449196 | N103: 4.250544389 | O103: 0.7981233749 | P103: 40.27711286 | Q103: 49.9 | R103: 2.368864414 | S103: 28.28239676 | T103: 40.5 | U103: 7.276464225
D104: SPMW | E104: 5.490759952 | F104: 0 | G104: 0 | I104: SPMW | J104: 1.700473442 | K104: 2.697917873 | L104: 0.1821753713 | M104: 5.515700008 | N104: 8.918911884 | O104: 1.513387466 | P104: 28.79849514 | Q104: 34.9 | R104: 1.11439182 | S104: 27.47157131 | T104: 33.5 | U104: 2.680805295
D105: SSEH | E105: 2.27597483 | F105: 0 | G105: 0 | I105: SSEH | J105: 5.439763307 | K105: 3.95106303 | L105: -0.1497357969 | M105: 12.25645486 | N105: 7.850335858 | O105: -1.034073424 | P105: 51.90663714 | Q105: 66.2 | R105: 1.437648742 | S105: 42.98381415 | T105: 51.6 | U105: 2.022135309
D106: SSES | E106: 5.092197056 | F106: 0 | G106: 0 | I106: SSES | J106: 1.658156072 | K106: 1.79368654 | L106: 0.05225548602 | M106: 3.289450491 | N106: 4.627380411 | O106: 1.255996739 | P106: 53.47464396 | Q106: 58.6 | R106: 1.976145851 | S106: 44.2742718 | T106: 46.2 | U106: 1.80779898
D107: Total | E107: =SUM(E93:E106) -> 147.6066805 | F107: =SUM(F93:F106) -> -0.00575649983 | G107: =SUM(G93:G106) -> -1.267555293
J109: PLANNED | P109: UNPLANNED
D110: 2018/19 | I110: 2018/19 | J110: CI | M110: CML | P110: CI | S110: CML
E111: Total reward (£m)** | F111: Regulation 7 Severe Weather Conditions Adjustment | G111: Normal weather conditions adjustment | J111: Performance | K111: Target | L111: Reward/Penalty (£m) | M111: Performance | N111: Target | O111: Reward/Penalty (£m) | P111: Performance | Q111: Target | R111: Reward/Penalty (£m) | S111: Performance | T111: Target | U111: Reward/Penalty (£m)
D112: ENWL | E112: 12.03780744 | F112: 0 | G112: -1.689395641e-07 | I112: ENWL | J112: 0.9369779536 | K112: 1.870446082 | L112: 0.2979006354 | M112: 2.345466329 | N112: 4.702774568 | O112: 1.809575018 | P112: 32.66285758 | Q112: 45.3 | R112: 4.032931217 | S112: 30.61753793 | T112: 38.3 | U112: 5.89740077
D113: NPgN | E113: 6.926935218 | F113: -0.01027946398 | G113: -0.1490486209 | I113: NPgN | J113: 1.890711573 | K113: 3.082080068 | L113: 0.2369856766 | M113: 4.258405124 | N113: 7.406846537 | O113: 1.565711033 | P113: 52.39345079 | Q113: 58.3 | R113: 1.174924104 | S113: 43.37324692 | T113: 51.7 | U113: 4.140870815
D114: NPgY | E114: 16.20331784 | F114: 0 | G114: -0.02280237589 | I114: NPgY | J114: 1.056348868 | K114: 1.485476497 | L114: 0.1244856428 | M114: 2.384664181 | N114: 3.85158627 | O114: 1.045611243 | P114: 48.24677524 | Q114: 63.7 | R114: 4.482826297 | S114: 36.38748072 | T114: 54.1 | U114: 12.62535308
D115: WMID | E115: 21.28029386 | F115: 0 | G115: 0 | I115: WMID | J115: 2.566582049 | K115: 2.378876779 | L115: -0.07411010686 | M115: 5.260792939 | N115: 4.083374521 | O115: -1.137708884 | P115: 52.80417724 | Q115: 81.7 | R115: 11.40869676 | S115: 27.03656188 | T115: 48.7 | U115: 20.93281846
D116: EMID | E116: 20.21478002 | F116: 0 | G116: 0 | I116: EMID | J116: 0.880210894 | K116: 0.9515548137 | L116: 0.02965065784 | M116: 1.643946521 | N116: 1.51194585 | O116: -0.1357777819 | P116: 38.8911438 | Q116: 50.1 | R116: 4.658420246 | S116: 21.27321728 | T116: 36.5 | U116: 15.6624869
D117: SWALES | E117: 5.826709102 | F117: 0 | G117: 0 | I117: SWALES | J117: 3.381534032 | K117: 3.694929231 | L117: 0.05535522697 | M117: 5.463302373 | N117: 6.044779277 | O117: 0.2537459593 | P117: 37.90951405 | Q117: 49.4 | R117: 2.029573076 | S117: 19.40692021 | T117: 27.4 | U117: 3.48803484
D118: SWEST | E118: 3.957699454 | F118: 0 | G118: 0 | I118: SWEST | J118: 3.444087946 | K118: 3.680367983 | L118: 0.0589190381 | M118: 7.84315674 | N118: 8.627315401 | O118: 0.4806991236 | P118: 48.02069537 | Q118: 54.8 | R118: 1.690494517 | S118: 32.38180861 | T118: 35.2 | U118: 1.727586776
D119: LPN | E119: 15.87004966 | F119: 0 | G119: -1.260947582e-09 | I119: LPN | J119: 0.1186411422 | K119: 0.434255338 | L119: 0.08735909472 | M119: 0.2869809424 | N119: 0.9242553081 | O119: 0.4334195056 | P119: 13.97628704 | Q119: 26.6 | R119: 3.494127169 | S119: 15.62981244 | T119: 36.8 | U119: 14.39815049
D120: SPN | E120: 11.10895569 | F120: -4.328195361e-11 | G120: -1.428160196e-07 | I120: SPN | J120: 1.169428263 | K120: 1.225831627 | L120: 0.01561193025 | M120: 2.568054754 | N120: 2.679543487 | O120: 0.07494341171 | P120: 43.18710635 | Q120: 62.4 | R120: 5.317951532 | S120: 34.11979041 | T120: 42.6 | U120: 5.700448984
D121: EPN | E121: 24.40621261 | F121: -1.211894701e-09 | G121: -9.652452748e-08 | I121: EPN | J121: 1.928074655 | K121: 1.788450915 | L121: -0.06073031145 | M121: 5.267370991 | N121: 4.711008991 | O121: -0.5895841644 | P121: 39.49442978 | Q121: 65.4 | R121: 11.26780694 | S121: 29.54380518 | T121: 44.9 | U121: 16.27316258
D122: SPD | E122: 5.441255668 | F122: 0 | G122: 0 | I122: SPD | J122: 1.065710581 | K122: 1.495074946 | L122: 0.1056965493 | M122: 3.091231217 | N122: 3.718747006 | O122: 0.3737309279 | P122: 48.26902539 | Q122: 49.6 | R122: 0.327645782 | S122: 31.91894037 | T122: 39.7 | U122: 4.634182409
D123: SPMW | E123: 2.251858236 | F123: 0 | G123: 0 | I123: SPMW | J123: 1.636045031 | K123: 2.325807492 | L123: 0.1259796821 | M123: 5.315877734 | N123: 7.502718408 | O123: 0.9724746464 | P123: 34.50794333 | Q123: 34.7 | R123: 0.03507763843 | S123: 30.28517724 | T123: 32.8 | U123: 1.118326269
D124: SSEH | E124: 0.157767314 | F124: 0 | G124: 0 | I124: SSEH | J124: 4.29774227 | K124: 4.380424523 | L124: 0.008316310029 | M124: 9.310820708 | N124: 8.849477843 | O124: -0.1082726989 | P124: 65.06981848 | Q124: 65.9 | R124: 0.08350095308 | S124: 49.7576483 | T124: 50.5 | U124: 0.1742227497
D125: SSES | E125: 2.408082722 | F125: 0 | G125: -4.47246854e-09 | I125: SSES | J125: 1.460321879 | K125: 1.690791671 | L125: 0.0888605437 | M125: 3.685621978 | N125: 4.217909169 | O125: 0.4996905788 | P125: 50.64136819 | Q125: 57.7 | R125: 2.721544775 | S125: 46.26085473 | T125: 45.3 | U125: -0.9020131702
D126: Total | E126: =SUM(E112:E125) -> 148.0917248 | F126: =SUM(F112:F125) -> -0.01027946524 | G126: =SUM(G112:G125) -> -0.1718514108
J128: PLANNED | P128: UNPLANNED
D129: 2019/20 | I129: 2019/20 | J129: CI | M129: CML | P129: CI | S129: CML
E130: Total reward (£m)** | F130: Regulation 7 Severe Weather Conditions Adjustment | G130: Normal weather conditions adjustment | J130: Performance | K130: Target | L130: Reward/Penalty (£m) | M130: Performance | N130: Target | O130: Reward/Penalty (£m) | P130: Performance | Q130: Target | R130: Reward/Penalty (£m) | S130: Performance | T130: Target | U130: Reward/Penalty (£m)
D131: ENWL | E131: 16.24729413 | F131: -0.001269603973 | G131: -0.08495526128 | I131: ENWL | J131: 1.282756494 | K131: 1.765583839 | L131: 0.1540862172 | M131: 3.20509248 | N131: 4.467330416 | O131: 0.968950177 | P131: 26.67041711 | Q131: 45.1 | R131: 5.881491059 | S131: 23.94099974 | T131: 37.6 | U131: 10.48525823
D132: NPgN | E132: 9.095360835 | F132: 0 | G132: -0.04203399062 | I132: NPgN | J132: 1.423933152 | K132: 2.68086191 | L132: 0.2500268501 | M132: 2.89559015 | N132: 6.311038822 | O132: 1.698492989 | P132: 45.5465512 | Q132: 58 | R132: 2.477225983 | S132: 41.20838876 | T132: 50.7 | U132: 4.720151492
D133: NPgY | E133: 13.89552897 | F133: -0.0008079298008 | G133: -0.1239883698 | I133: NPgY | J133: 0.9844097283 | K133: 1.340582834 | L133: 0.1033222637 | M133: 1.884521616 | N133: 3.413853758 | O133: 1.090096669 | P133: 49.80332133 | Q133: 62.7 | R133: 3.741197787 | S133: 40.21794866 | T133: 53 | U133: 9.110951906
D134: WMID | E134: 21.28029386 | F134: 0 | G134: 0 | I134: WMID | J134: 2.252638455 | K134: 2.443885841 | L134: 0.07550861081 | M134: 4.833512452 | N134: 4.364842004 | O134: -0.4528641005 | P134: 46.2314413 | Q134: 80 | R134: 13.33255846 | S134: 24.16904357 | T134: 47.9 | U134: 22.93060779
D135: EMID | E135: 20.46759799 | F135: 0 | G135: 0 | I135: EMID | J135: 0.6842469757 | K135: 0.9208474338 | L135: 0.0983315643 | M135: 1.28170762 | N135: 1.537041082 | O135: 0.2626396584 | P135: 37.21854861 | Q135: 49.9 | R135: 5.270433381 | S135: 21.27652469 | T135: 35.7 | U135: 14.83619339
D136: SWALES | E136: 5.873746664 | F136: 0 | G136: 0 | I136: SWALES | J136: 2.897269786 | K136: 3.618726894 | L136: 0.1274315054 | M136: 4.454346211 | N136: 5.857316531 | O136: 0.6122307651 | P136: 40.62403498 | Q136: 49.1 | R136: 1.497116003 | S136: 18.96562839 | T136: 27.3 | U136: 3.63696839
D137: SWEST | E137: 6.572239991 | F137: 0 | G137: 0 | I137: SWEST | J137: 3.41650977 | K137: 3.825498973 | L137: 0.1019859771 | M137: 8.125964787 | N137: 8.923056065 | O137: 0.4886269812 | P137: 42.67971445 | Q137: 54.6 | R137: 2.972454917 | S137: 30.09117396 | T137: 35 | U137: 3.009172115
D138: LPN | E138: 15.72829254 | F138: 0 | G138: -0.1179072553 | I138: LPN | J138: 0.05046098676 | K138: 0.1976164761 | L138: 0.04073128049 | M138: 0.1220064044 | N138: 0.4479849342 | O138: 0.221702709 | P138: 13.14952956 | Q138: 26.5 | R138: 3.695286928 | S138: 14.26453029 | T138: 36.2 | U138: 14.91862995
D139: SPN | E139: 12.27389486 | F139: 0 | G139: -0.2257368127 | I139: SPN | J139: 1.08301453 | K139: 1.100815532 | L139: 0.004927153009 | M139: 2.42706761 | N139: 2.435239227 | O139: 0.005493011153 | P139: 43.95518775 | Q139: 62.1 | R139: 5.022316464 | S139: 30.42402911 | T139: 41.6 | U139: 7.512556293
D140: EPN | E140: 23.81041209 | F140: 0 | G140: -0.4955604213 | I140: EPN | J140: 1.659512291 | K140: 1.552249169 | L140: -0.04665483671 | M140: 4.285547788 | N140: 4.170362106 | O140: -0.1220637891 | P140: 42.12294176 | Q140: 65.1 | R140: 9.994030403 | S140: 29.48077262 | T140: 43.9 | U140: 15.28024581
D141: SPD | E141: 6.482862323 | F141: 0 | G141: 0 | I141: SPD | J141: 1.159486027 | K141: 1.229292983 | L141: 0.01718436582 | M141: 3.44695591 | N141: 3.181277725 | O141: -0.1582305278 | P141: 43.36898468 | Q141: 49.4 | R141: 1.484653968 | S141: 30.27089517 | T141: 38.9 | U141: 5.139254516
D142: SPMW | E142: 2.723284994 | F142: 0 | G142: 0 | I142: SPMW | J142: 1.684800241 | K142: 1.907159037 | L142: 0.04061208318 | M142: 5.050036293 | N142: 6.147940852 | O142: 0.4882314288 | P142: 30.53699203 | Q142: 34.5 | R142: 0.7238122005 | S142: 28.79294008 | T142: 32.1 | U142: 1.470629281
D143: SSEH | E143: 1.50476923 | F143: 0 | G143: 0 | I143: SSEH | J143: 3.598364804 | K143: 4.685568454 | L143: 0.1093526398 | M143: 7.824006819 | N143: 9.885134716 | O143: 0.4837267408 | P143: 59.57476717 | Q143: 65.3 | R143: 0.5758528526 | S143: 47.76902059 | T143: 49.2 | U143: 0.3358369972
D144: SSES | E144: 6.351548734 | F144: 0 | G144: -0.04566967472 | I144: SSES | J144: 1.537460284 | K144: 1.55827811 | L144: 0.008026576064 | M144: 3.561941451 | N144: 3.489304228 | O144: -0.06818900834 | P144: 45.61735648 | Q144: 57.4 | R144: 4.542947245 | S144: 42.3508405 | T144: 44.4 | U144: 1.923671498
D145: Total | E145: =SUM(E131:E144) -> 162.3071272 | F145: =SUM(F131:F144) -> -0.002077533773 | G145: =SUM(G131:G144) -> -1.135851786
J147: PLANNED | P147: UNPLANNED
D148: 2020/21 | I148: 2020/21 | J148: CI | M148: CML | P148: CI | S148: CML
E149: Total reward (£m)** | F149: Regulation 7 Severe Weather Conditions Adjustment | G149: Normal weather conditions adjustment | J149: Performance | K149: Target | L149: Reward/Penalty (£m) | M149: Performance | N149: Target | O149: Reward/Penalty (£m) | P149: Performance | Q149: Target | R149: Reward/Penalty (£m) | S149: Performance | T149: Target | U149: Reward/Penalty (£m)
D150: ENWL | E150: 14.60652164 | F150: 0 | G150: -0.08682359895 | I150: ENWL | J150: 1.315649459 | K150: 1.536537841 | L150: 0.07049280757 | M150: 2.694319075 | N150: 3.884399671 | O150: 0.9135589824 | P150: 29.41461569 | Q150: 44.9 | R150: 4.941899656 | S150: 25.45595963 | T150: 36.9 | U150: 8.784956165
D151: NPgN | E151: 12.02276489 | F151: 0 | G151: 0 | I151: NPgN | J151: 1.139708547 | K151: 2.322671577 | L151: 0.2353136709 | M151: 1.870607656 | N151: 5.463132828 | O151: 1.786552634 | P151: 44.12407771 | Q151: 57.7 | R151: 2.700507143 | S151: 34.94826778 | T151: 49.7 | U151: 7.335994817
D152: NPgY | E152: 13.61977023 | F152: 0 | G152: -0.03732347133 | I152: NPgY | J152: 0.7474173228 | K152: 1.178528483 | L152: 0.1250610456 | M152: 1.25550583 | N152: 2.878927981 | O152: 1.157163334 | P152: 51.6751498 | Q152: 61.8 | R152: 2.937118007 | S152: 38.74887946 | T152: 52 | U152: 9.445300971
D153: WMID | E153: 21.28029386 | F153: 0 | G153: 0 | I153: WMID | J153: 1.892329371 | K153: 2.604691613 | L153: 0.2812560445 | M153: 3.962484007 | N153: 4.865194538 | O153: 0.8722657759 | P153: 42.55582522 | Q153: 78.3 | R153: 14.11257449 | S153: 24.27999562 | T153: 47.1 | U153: 22.05037845
D154: EMID | E154: 18.25195612 | F154: 0 | G154: 0 | I154: EMID | J154: 0.6177962557 | K154: 0.8893194205 | L154: 0.1128455023 | M154: 1.147747571 | N154: 1.532319657 | O154: 0.3955763592 | P154: 38.95613723 | Q154: 49.6 | R154: 4.423607986 | S154: 21.95061179 | T154: 34.9 | U154: 13.31992627
D155: SWALES | E155: 6.144998007 | F155: 0 | G155: 0 | I155: SWALES | J155: 3.00942611 | K155: 3.555644987 | L155: 0.09647904645 | M155: 4.924884069 | N155: 5.8031794 | O155: 0.3832721298 | P155: 35.88362698 | Q155: 48.9 | R155: 2.299091644 | S155: 19.5862161 | T155: 27.3 | U155: 3.366155187
D156: SWEST | E156: 1.112664364 | F156: 0 | G156: 0 | I156: SWEST | J156: 3.261216838 | K156: 3.807883602 | L156: 0.1363173983 | M156: 7.077832195 | N156: 8.696396605 | O156: 0.9922003452 | P156: 55.19347482 | Q156: 54.3 | R156: -0.2227978183 | S156: 34.46241404 | T156: 34.8 | U156: 0.2069444391
D157: LPN | E157: 15.74012225 | F157: 0 | G157: -0.1080678245 | I157: LPN | J157: 0.009323563866 | K157: 0.1421553355 | L157: 0.0367666077 | M157: 0.01803446646 | N157: 0.360217838 | O157: 0.232723856 | P157: 13.01123332 | Q157: 26.3 | R157: 3.678207897 | S157: 11.36004971 | T157: 35.6 | U157: 16.48594049
D158: SPN | E158: 12.40856646 | F158: -0.001550936671 | G158: -0.2622064032 | I158: SPN | J158: 0.2070279121 | K158: 1.116762626 | L158: 0.2518061675 | M158: 0.5486525897 | N158: 2.479991535 | O158: 1.298257905 | P158: 44.08819337 | Q158: 61.8 | R158: 4.902464507 | S158: 31.36782238 | T158: 40.7 | U158: 6.273147133
D159: EPN | E159: 24.1024448 | F159: 0 | G159: -0.252660626 | I159: EPN | J159: 0.8800719614 | K159: 1.716863656 | L159: 0.3639683353 | M159: 1.900592201 | N159: 4.670672703 | O159: 2.935490914 | P159: 43.03484345 | Q159: 64.8 | R159: 9.466905379 | S159: 30.37236948 | T159: 43 | U159: 13.38166693
D160: SPD | E160: 9.033037439 | F160: 0 | G160: 0 | I160: SPD | J160: 1.147473564 | K160: 1.067138719 | L160: -0.0197760145 | M160: 2.986902853 | N160: 2.949614131 | O160: -0.02220812421 | P160: 39.31177943 | Q160: 49.1 | R160: 2.409564515 | S160: 26.90831304 | T160: 38.1 | U160: 6.665457062
D161: SPMW | E161: 1.665926035 | F161: 0 | G161: 0 | I161: SPMW | J161: 1.749116202 | K161: 1.722113223 | L161: -0.004931881536 | M161: 4.631410368 | N161: 5.529154792 | O161: 0.3992214439 | P161: 30.17649704 | Q161: 34.4 | R161: 0.7713895593 | S161: 30.17507577 | T161: 31.3 | U161: 0.5002469134
D162: SSEH | E162: 0.8559632346 | F162: 0 | G162: 0 | I162: SSEH | J162: 3.33896684 | K162: 5.086186028 | L162: 0.1757380326 | M162: 7.087168851 | N162: 11.11080101 | O162: 0.9443074693 | P162: 60.65273955 | Q162: 64.1 | R162: 0.3467308353 | S162: 50.30263455 | T162: 47.7 | U162: -0.6108131026
D163: SSES | E163: 6.644392937 | F163: 0 | G163: -0.03062198218 | I163: SSES | J163: 1.246847875 | K163: 1.610539015 | L163: 0.1402257195 | M163: 2.571868299 | N163: 3.692393306 | O163: 1.051905435 | P163: 47.17100459 | Q163: 57.1 | R163: 3.828249767 | S163: 41.73083011 | T163: 43.5 | U163: 1.660828105
D164: Total | E164: =SUM(E150:E163) -> 157.4894223 | F164: =SUM(F150:F163) -> -0.001550936671 | G164: =SUM(G150:G163) -> -0.7777039062
J166: PLANNED | P166: UNPLANNED
D167: 2021/22 | I167: 2021/22 | J167: CI | M167: CML | P167: CI | S167: CML
E168: Total reward (£m)** | F168: Regulation 7 Severe Weather Conditions Adjustment | G168: Normal weather conditions adjustment | J168: Performance | K168: Target | L168: Reward/Penalty (£m) | M168: Performance | N168: Target | O168: Reward/Penalty (£m) | P168: Performance | Q168: Target | R168: Reward/Penalty (£m) | S168: Performance | T168: Target | U168: Reward/Penalty (£m)
D169: ENWL | I169: ENWL
D170: NPgN | I170: NPgN
D171: NPgY | I171: NPgY
D172: WMID | I172: WMID
D173: EMID | I173: EMID
D174: SWALES | I174: SWALES
D175: SWEST | I175: SWEST
D176: LPN | I176: LPN
D177: SPN | I177: SPN
D178: EPN | I178: EPN
D179: SPD | I179: SPD
D180: SPMW | I180: SPMW
D181: SSEH | I181: SSEH
D182: SSES | I182: SSES
D183: Total | E183: =SUM(E169:E182) -> 0 | F183: =SUM(F169:F182) -> 0 | G183: =SUM(G169:G182) -> 0
J185: PLANNED | P185: UNPLANNED
D186: 2022/23 | I186: 2022/23 | J186: CI | M186: CML | P186: CI | S186: CML
E187: Total reward (£m)** | F187: Regulation 7 Severe Weather Conditions Adjustment | G187: Normal weather conditions adjustment | J187: Performance | K187: Target | L187: Reward/Penalty (£m) | M187: Performance | N187: Target | O187: Reward/Penalty (£m) | P187: Performance | Q187: Target | R187: Reward/Penalty (£m) | S187: Performance | T187: Target | U187: Reward/Penalty (£m)
D188: ENWL | I188: ENWL
D189: NPgN | I189: NPgN
D190: NPgY | I190: NPgY
D191: WMID | I191: WMID
D192: EMID | I192: EMID
D193: SWALES | I193: SWALES
D194: SWEST | I194: SWEST
D195: LPN | I195: LPN
D196: SPN | I196: SPN
D197: EPN | I197: EPN
D198: SPD | I198: SPD
D199: SPMW | I199: SPMW
D200: SSEH | I200: SSEH
D201: SSES | I201: SSES
D202: Total | E202: =SUM(E188:E201) -> 0 | F202: =SUM(F188:F201) -> 0 | G202: =SUM(G188:G201) -> 0
B206: Guaranteed Standards of Performance (GSoP)
E207: Guaranteed Standards of Performance - payments owed and percentage of mandatory payments made, 2015/16
E208: Regulation 5 (Supply Restoration: Normal Conditions)* | G208: Regulation 6 (Supply Restoration: Normal Conditions - 5,000 or more customers' premises interrupted) | I208: Regulation 7(1) - Supply Restoration: Category 1 Severe Weather Conditions* | K208: Regulation 7(2) - Supply Restoration: Category 2 Severe Weather Conditions* | M208: Regulation 7(3) - Supply Restoration: Category 3 Severe Weather Conditions* | O208: Regulation 8 (Supply Restoration: Rota Disconnection) | Q208: Regulation 10 (Supply Restoration: Multiple interruptions) | S208: Regulation 11 (Responding to Operation of Distributor's Fuse) | U208: Regulation 12 (Notice of Supply Interruption ) | W208: Regulation 13 (Investigation of Voltage complaints) | X208: Regulation 17 (Making and Keeping Appointments) | Z208: Regulation 19 (Payments owed under the Guaranteed Standards)
E209: Number of valid payments owed | F209: Mandatory payments vs valid payments owed | G209: Number of valid payments owed | H209: Mandatory payments vs valid payments owed | I209: Number of valid payments owed | J209: Mandatory payments vs valid payments owed | K209: Number of valid payments owed | L209: Mandatory payments vs valid payments owed | M209: Number of valid payments owed | N209: Mandatory payments vs valid payments owed | O209: Number of valid payments owed | P209: Mandatory payments vs valid payments owed | Q209: Number of valid payments owed | R209: Mandatory payments vs valid payments owed | S209: Number of failures to attend on time | T209: Mandatory payments vs valid payments owed | U209: Number of valid payments owed | V209: Mandatory payments vs valid payments owed | W209: Total number of mandatory payments made | X209: Failures to offer timed appt. | Y209: Mandatory payments vs valid payments owed | Z209: Total payments due | AA209: Mandatory payments vs valid payments owed
D210: ENWL | E210: 256 | F210: 1.1015625 | G210: 0 | H210: N/A | I210: 0 | J210: N/A | K210: 3 | L210: 1 | M210: 0 | N210: N/A | O210: 0 | P210: N/A | Q210: 21 | R210: 1 | S210: 0 | T210: N/A | U210: 383 | V210: 1 | W210: 0 | X210: 1079 | Y210: 1 | Z210: 1042 | AA210: 1
D211: NPGN | E211: 2426 | F211: 1 | G211: 0 | H211: N/A | I211: 321 | J211: 1 | K211: 0 | L211: N/A | M211: 0 | N211: N/A | O211: 0 | P211: N/A | Q211: 2 | R211: 1 | S211: 0 | T211: N/A | U211: 28 | V211: 1 | W211: 0 | X211: 18 | Y211: 0.7727272727 | Z211: 14 | AA211: 1
D212: NPGY | E212: 1455 | F212: 1 | G212: 0 | H212: N/A | I212: 1067 | J212: 1 | K212: 0 | L212: N/A | M212: 0 | N212: N/A | O212: 0 | P212: N/A | Q212: 0 | R212: N/A | S212: 0 | T212: N/A | U212: 24 | V212: 1 | W212: 0 | X212: 27 | Y212: 0.6923076923 | Z212: 17 | AA212: 1
D213: WMID | E213: 0 | F213: N/A | G213: 0 | H213: N/A | I213: 0 | J213: N/A | K213: 0 | L213: N/A | M213: 0 | N213: N/A | O213: 0 | P213: N/A | Q213: 0 | R213: N/A | S213: 0 | T213: N/A | U213: 0 | V213: N/A | W213: 0 | X213: 12664 | Y213: 0 | Z213: 0 | AA213: N/A
D214: EMID | E214: 0 | F214: N/A | G214: 0 | H214: N/A | I214: 0 | J214: N/A | K214: 0 | L214: N/A | M214: 0 | N214: N/A | O214: 0 | P214: N/A | Q214: 0 | R214: N/A | S214: 0 | T214: N/A | U214: 3 | V214: 1 | W214: 0 | X214: 17409 | Y214: 0 | Z214: 0 | AA214: N/A
D215: SWALES | E215: 0 | F215: N/A | G215: 0 | H215: N/A | I215: 0 | J215: N/A | K215: 0 | L215: N/A | M215: 0 | N215: N/A | O215: 0 | P215: N/A | Q215: 0 | R215: N/A | S215: 0 | T215: N/A | U215: 1 | V215: 1 | W215: 0 | X215: 7505 | Y215: 0.0001332445037 | Z215: 0 | AA215: N/A
D216: SWEST | E216: 33 | F216: 1 | G216: 0 | H216: N/A | I216: 0 | J216: N/A | K216: 0 | L216: N/A | M216: 0 | N216: N/A | O216: 0 | P216: N/A | Q216: 0 | R216: N/A | S216: 2 | T216: 1 | U216: 5 | V216: 1 | W216: 0 | X216: 19295 | Y216: 0 | Z216: 0 | AA216: N/A
D217: LPN | E217: 2555 | F217: 0.03209393346 | G217: 0 | H217: N/A | I217: 0 | J217: N/A | K217: 0 | L217: N/A | M217: 0 | N217: N/A | O217: 0 | P217: N/A | Q217: 17 | R217: 1 | S217: 9 | T217: 1 | U217: 28 | V217: 1 | W217: 0 | X217: 46 | Y217: 1 | Z217: 0 | AA217: N/A
... 294 more rows

Sheet Ch2 - Network Asset SDs
A1: Chapter 2 - Reliability and Availability
B2: Performance against the outputs that DNOs are incentivised to deliver under RIIO-ED1.
B4: Reliability and availability: providing long-term reliability, minimising the number and duration of interruptions and ensuring adaptation to climate change.
B5: Incentive measure | F5: Incentive type
B6: Health, criticality and monetised risk: DNOs can receive a financial reward or incur a financial penalty depending on their performance against a target for the reduction in network risk that is delivered through specified asset replacement and refurbishment activities. | F6: Financial: penalty of 2.5% of under delivery or reward of 2.5% of over delivery.
D8: Year 1 to Year 6 cumulative delivery against rebased NAW target (Monetised risk points)
B9: Network Asset Indices Secondary Deliverables
D10: Position at Beginning of RIIO-ED1 | E10: End of RIIO-ED1 (Without Investment) | F10: End of RIIO-ED1 (With Investment) | G10: Impact of investment | H10: Deterioration | I10: Year 1 to Year 6 cumulative delivery against rebased NAW target | J10: % Delivered
C11: ENWL | D11: 34717173.95 | E11: 52801732.97 | F11: 41290441.3 | G11: 11511291.66 | H11: =+E11-D11 -> 18084559.02 | I11: 8977640.751 | J11: 0.7798986433
C12: NPgN | D12: 35398060.56 | E12: 50635472.35 | F12: 40069116.53 | G12: 10566355.82 | H12: =+E12-D12 -> 15237411.79 | I12: 9258405.224 | J12: 0.8762155448
C13: NPgY | D13: 29674137.94 | E13: 39226669.01 | F13: 29830607.61 | G13: 9396061.403 | H13: 9552531.069 | I13: 6540629.731 | J13: 0.6961033406
C14: WMID | D14: 40210986.97 | E14: 52621580.09 | F14: 35393380.37 | G14: 17228199.72 | H14: 12410593.12 | I14: 17778100.1 | J14: 1.031918622
C15: EMID | D15: 34930944.44 | E15: 42724719.56 | F15: 30194501.95 | G15: 12530217.61 | H15: 7793775.128 | I15: 12363576.35 | J15: 0.9867008483
C16: SWALES | D16: 20709600.89 | E16: 27797837.72 | F16: 17981336.21 | G16: 9816501.507 | H16: 7088236.823 | I16: 9648657.943 | J16: 0.982901896
C17: SWEST | D17: 31601986.91 | E17: 46546170.72 | F17: 30235486.38 | G17: 16310684.34 | H17: 14944183.81 | I17: 14376239.09 | J17: 0.8814001175
C18: LPN | D18: 27708452.58 | E18: 35728247.99 | F18: 26585580.8 | G18: 9142667.194 | H18: 8019795.416 | I18: 7521535.662 | J18: 0.8226850549
C19: SPN | D19: 35848065.34 | E19: 46097951.08 | F19: 37659235.17 | G19: 8438715.907 | H19: 10249885.73 | I19: 6976365.243 | J19: 0.8267093382
C20: EPN | D20: 50577623.92 | E20: 65823784.59 | F20: 54362805.49 | G20: 11460979.09 | H20: 15246160.66 | I20: 9169307.947 | J20: 0.800045779
C21: SPD | D21: 30942854.04 | E21: 46997140.34 | F21: 40114396.53 | G21: 6882743.814 | H21: 16054286.3 | I21: 6463765.382 | J21: 0.9391262493
C22: SPMW | D22: 36840842.87 | E22: 52578037.67 | F22: 42446657.55 | G22: 10131380.12 | H22: 15737194.81 | I22: 8458827.286 | J22: 0.834913623
C23: SSEH | D23: 29746923.89 | E23: 40727721.33 | F23: 34325214.59 | G23: 6402506.739 | H23: 10980797.44 | I23: 5402952.897 | J23: 0.8438808606
C24: SSES | D24: 47453646.57 | E24: 65647485.21 | F24: 49343867.27 | G24: 16303617.94 | H24: 18193838.64 | I24: 12334876.26 | J24: 0.756572946
C25: Total | D25: =SUM(D11:D24) -> 486361300.9 | E25: =SUM(E11:E24) -> 665954550.6 | F25: =SUM(F11:F24) -> 509832627.8 | G25: =SUM(F25-E25) * -1 -> 156121922.9 | H25: =+E25-D25 -> 179593249.8 | I25: =SUM(I11:I24) -> 135270879.9 | J25: =I25/G25 -> 0.8664438496

Sheet Ch2 outputs - connections
A1: Chapter 2 - Connections
B2: Performance against the outputs that DNOs are incentivised to deliver under RIIO-ED1.
B4: Connections: connecting customers in a timely and efficient way, including responding to different customers' specific needs, while enabling competition.
B5: Incentive measure | F5: Incentive type
B6: Time to Connect Incentive: reward for reducing average time taken to connect smaller and less complex customer connections. | F6: Financial: reward only of up to 0.4% base revenue.
B7: Incentive on Connections Engagement (ICE): penalty where DNOs fail to engage effectively with, and understand requirements of, customers seeking larger and more complex connections. | F7: Financial: penalty only of up to 0.9% of base revenue.
B8: Connections Guaranteed Standards of Performance (GSOP): direct payment to customers of fixed amounts if DNO fails to deliver specified minimum levels of performance regarding connections. | F8: Financial: payment to customers for failure to meet standards. Reputational.
B9: Customer satisfaction survey: connection customers are one of three customer types in the Broad Measure of Customer Satisfaction survey. | F9: Financial: reward or penalty of 0.5% of base revenue which feeds into the overall reward or penalty under BMCS of +/- 1.5% of base revenue.
B12: Distributed Generation (DG) | D12: Capacity of generation connected to the distribution network by type (MW)
E13: 2016 | F13: 2017 | G13: 2018 | H13: 2019 | I13: 2020 | J13: 2021 | K13: 2022 | L13: 2023
D14: Photovoltaic (G83) | E14: 365.9510778 | F14: 60.38518237 | G14: 41.752305 | H14: 64.306345 | I14: 27.86872945 | J14: 45.6092643
D15: Other DG (G83) | E15: 0.63915 | F15: 0.190423 | G15: 0.3235 | H15: 0.511 | I15: 1.423341 | J15: 1.762098
D16: DG (non G83) | E16: 3404.36418 | F16: 3394.38509 | G16: 1783.6006 | H16: 941.92234 | I16: 1186.599356 | J16: 957.97218
B21: Time to connect incentive
D22: Industry average Time to Connect improvements from targets (working days) comparing 2013 and 2020-21 performance
F23: LVSSA | I23: LVSSB
F24: Average Time to Quote | G24: Time to Connect | H24: Overall | I24: Average Time to Quote | J24: Time to Connect | K24: Overall
E25: Previous industry average (2013 performance) | F25: 9.140409588 | G25: 46.3821136 | H25: 55.52252319 | I25: 14.45688562 | J25: 57.00932472 | K25: 71.46621034
D26: New industry average | E26: 2016 | F26: =E56 -> 4.913018774 | G26: =G56 -> 35.71963442 | H26: 40.69503074 | I26: =I56 -> 7.438419017 | J26: =K56 -> 43.1603969 | K26: 50.79362224
E27: 2017 | F27: =U56 -> 4.641116624 | G27: =W56 -> 43.50555453 | H27: 48.14667115 | I27: =Y56 -> 7.178433711 | J27: =AA56 -> 53.13871612 | K27: 60.31714983
E28: 2018 | F28: =AJ56 -> 4.979260877 | G28: =AL56 -> 38.62718439 | H28: 43.60644526 | I28: =AN56 -> 8.906817939 | J28: =AP56 -> 47.51635595 | K28: 56.42317389
E29: 2019 | F29: =AY56 -> 4.829855035 | G29: =BA56 -> 36.17609876 | H29: 41.0059538 | I29: =BC56 -> 8.001225029 | J29: =BE56 -> 44.71706555 | K29: 52.71829058
E30: 2020 | F30: =BN56 -> 4.10658022 | G30: =BP56 -> 33.9884512 | H30: 38.09503142 | I30: =BR56 -> 6.260514907 | J30: =BT56 -> 41.34040034 | K30: 47.60091524
E31: 2021 | F31: =CC56 -> 3.602155036 | G31: =CE56 -> 36.74688332 | H31: 40.34903835 | I31: =CG56 -> 6.118423642 | J31: =CI56 -> 49.02607919 | K31: 55.14450283
E32: 2022
E33: 2023
E34: Improvement | F34: =F25-F31 -> 5.538254552 | G34: 9.635230288 | H34: 15.17348484 | I34: 8.338461978 | J34: 7.983245527 | K34: 16.3217075
E35: Improvement - % | F35: =F34/F25 -> 0.6059087942 | G35: 0.2077359038 | H35: 0.2732852177 | I35: 0.5767813481 | J35: 0.1400340307 | K35: 0.2283835596
E38: 2015/16 | U38: 2016/17 | AJ38: 2017/18 | AY38: 2018/19 | BN38: 2019/20 | CC38: 2020/21 | CR38: 2021-22 | DG38: 2022-23
E39: LVSSA | I39: LVSSB | M39: Reward | O39: RAG and ranking | U39: LVSSA | Y39: LVSSB | AC39: Reward | AE39: RAG and ranking | AJ39: LVSSA | AN39: LVSSB | AR39: Reward | AT39: RAG and ranking | AY39: LVSSA | BC39: LVSSB | BG39: Reward | BI39: RAG and ranking | BN39: LVSSA | BR39: LVSSB | BV39: Reward | BX39: RAG and ranking | CC39: LVSSA | CG39: LVSSB | CK39: Reward | CM39: RAG and ranking | CR39: LVSSA | CV39: LVSSB | CZ39: Reward | DB39: RAG and ranking | DG39: LVSSA | DK39: LVSSB | DO39: Reward | DQ39: RAG and ranking
E40: Average Time to Quote | F40: Ranking | G40: Time to Connect | H40: Ranking | I40: Time to Quote | J40: Ranking | K40: Time to Connect | L40: Ranking | M40: (£m 2012/13 Prices) | N40: (£m 2020/21 Prices) | O40: RAG | P40: Average ranking | Q40: Overall ranking | R40: Overall (LVSSA + LVSSB) | U40: Average Time to Quote | V40: Ranking | W40: Time to Connect | X40: Ranking | Y40: Time to Quote | Z40: Ranking | AA40: Time to Connect | AB40: Ranking | AC40: (£m 2012/13 Prices) | AD40: (£m 2020/21 Prices) | AE40: RAG | AF40: Average ranking | AG40: Overall ranking | AH40: Overall (LVSSA + LVSSB) | AJ40: Average Time to Quote | AK40: Ranking | AL40: Time to Connect | AM40: Ranking | AN40: Time to Quote | AO40: Ranking | AP40: Time to Connect | AQ40: Ranking | AR40: (£m 2012/13 Prices) | AS40: (£m 2020/21 Prices) | AT40: RAG | AU40: Average ranking | AV40: Overall ranking | AW40: Overall (LVSSA + LVSSB) | AY40: Average Time to Quote | AZ40: Ranking | BA40: Time to Connect | BB40: Ranking | BC40: Time to Quote | BD40: Ranking | BE40: Time to Connect | BF40: Ranking | BG40: (£m 2012/13 Prices) | BH40: (£m 2020/21 Prices) | BI40: RAG | BJ40: Average ranking | BK40: Overall ranking | BL40: Overall (LVSSA + LVSSB) | BN40: Average Time to Quote | BO40: Ranking | BP40: Time to Connect | BQ40: Ranking | BR40: Time to Quote | BS40: Ranking | BT40: Time to Connect | BU40: Ranking | BV40: (£m 2012/13 Prices) | BW40: (£m 2020/21 Prices) | BX40: RAG | BY40: Average ranking | BZ40: Overall ranking | CA40: Overall (LVSSA + LVSSB) | CC40: Average Time to Quote | CD40: Ranking | CE40: Time to Connect | CF40: Ranking | CG40: Time to Quote | CH40: Ranking | CI40: Time to Connect | CJ40: Ranking | CK40: (£m 2012/13 Prices) | CL40: (£m 2020/21 Prices) | CM40: RAG | CN40: Average ranking | CO40: Overall ranking | CP40: Overall (LVSSA + LVSSB) | CR40: Average Time to Quote | CS40: Ranking | CT40: Time to Connect | CU40: Ranking | CV40: Time to Quote | CW40: Ranking | CX40: Time to Connect | CY40: Ranking | CZ40: (£m 2012/13 Prices) | DA40: (£m 2016/17 Prices) | DB40: RAG | DC40: Average ranking | DD40: Overall ranking | DE40: Overall (LVSSA + LVSSB) | DG40: Average Time to Quote | DH40: Ranking | DI40: Time to Connect | DJ40: Ranking | DK40: Time to Quote | DL40: Ranking | DM40: Time to Connect | DN40: Ranking | DO40: (£m 2012/13 Prices) | DP40: (£m 2016/17 Prices) | DQ40: RAG | DR40: Average ranking | DS40: Overall ranking | DT40: Overall (LVSSA + LVSSB)
E41: Working days | U41: Working days | AJ41: Working days | AY41: Working days | BN41: Working days | CC41: Working days | CR41: Working days | DG41: Working days
D42: ENWL | E42: 4.002441406 | F42: =RANK(E42,$E$42:$E$55,1) -> 5 | G42: 30.36199095 | H42: =RANK(G42,$G$42:$G$55,1) -> 2 | I42: 7.434077079 | J42: =RANK(I42,$I$42:$I$55,1) -> 9 | K42: 36.88172043 | L42: =RANK(K42,$K$42:$K$55,1) -> 2 | M42: 1.2 | N42: =M42*'Guide & drivers'!$D$30 -> 1.442731787 | O42: =IF(SUM(IF(E42<=$E$57,1,0),IF(G42<=$G$57,1,0),IF(I42<=$I$57,1,0),IF(K42<=$K$57,1,0))=4,"Green",IF(SUM(IF(E42>$E$59,1,0),IF(G42>$G$59,1,0),IF(I42>$I$59,1,0),IF(K42>$K$59,1,0))>=3,"Red","Amber")) -> Green | P42: =AVERAGE(F42,H42,J42,L42) -> 4.5 | Q42: =RANK(P42,$P$42:$P$55,1) -> 3 | R42: =SUM(E42,G42,I42,K42) -> 78.68022987 | T42: ENWL | U42: 2.96 | V42: =RANK(U42,$U$42:$U$55,1) -> 2 | W42: 31.91009464 | X42: =RANK(W42,$W$42:$W$55,1) -> 2 | Y42: 7.91556367 | Z42: =RANK(Y42,$Y$42:$Y$55,1) -> 10 | AA42: 31.672 | AB42: =RANK(AA42,$AA$42:$AA$55,1) -> 1 | AC42: 1.2 | AD42: =AC42*'Guide & drivers'!$D$30 -> 1.442731787 | AE42: =IF(SUM(IF(U42<=$U$57,1,0),IF(W42<=$W$57,1,0),IF(Y42<=$Y$57,1,0),IF(AA42<=$AA$57,1,0))=4,"Green",IF(SUM(IF(U42>$U$59,1,0),IF(W42>$W$59,1,0),IF(Y42>$Y$59,1,0),IF(AA42>$AA$59,1,0))>=3,"Red","Amber")) -> Green | AF42: =AVERAGE(V42,X42,Z42,AB42) -> 3.75 | AG42: =RANK(AF42,$AF$42:$AF$55,1) -> 3 | AH42: =SUM(U42,W42,Y42,AA42) -> 74.45765831 | AI42: ENWL | AJ42: 3.7 | AK42: =RANK(AJ42,$AJ$42:$AJ$55,1) -> 5 | AL42: 31.72 | AM42: =RANK(AL42,$AL$42:$AL$55,1) -> 6 | AN42: 8.25 | AO42: =RANK(AN42,$AN$42:$AN$55,1) -> 7 | AP42: 34.28 | AQ42: =RANK(AP42,$AP$42:$AP$55,1) -> 3 | AR42: 1.2 | AS42: =AR42*'Guide & drivers'!C35 -> 1.442731787 | AT42: =IF(SUM(IF(AJ42<=$AJ$57,1,0),IF(AL42<=$AL$57,1,0),IF(AN42<=$AN$57,1,0),IF(AP42<=$AP$57,1,0))=4,"Green",IF(SUM(IF(AJ42>$AJ$59,1,0),IF(AL42>$AL$59,1,0),IF(AN42>$AN$59,1,0),IF(AP42>$AP$59,1,0))>=3,"Red","Amber")) -> Green | AU42: =AVERAGE(AK42,AM42,AO42,AQ42) -> 5.25 | AV42: =RANK(AU42,$AU$42:$AU$55,1) -> 6 | AW42: =SUM(AJ42,AL42,AN42,AP42) -> 77.95 | AX42: ENWL | AY42: 3.72 | AZ42: =RANK(AY42,$AY$42:$AY$55,1) -> 6 | BA42: 32.87 | BB42: =RANK(BA42,$BA$42:$BA$55,1) -> 7 | BC42: 6.79 | BD42: =RANK(BC42,$BC$42:$BC$55,1) -> 7 | BE42: 35.67 | BF42: =RANK(BE42,$BE$42:$BE$55,1) -> 5 | BG42: =BH42/'Guide & drivers'!$J$22 -> 1.1763 | BH42: 1.414237834 | BI42: =IF(SUM(IF(AY42<=$AY$57,1,0),IF(BA42<=$BA$57,1,0),IF(BC42<=$BC$57,1,0),IF(BE42<=$BE$57,1,0))=4,"Green",IF(SUM(IF(AY42>$AY$59,1,0),IF(BA42>$BA$59,1,0),IF(BC42>$BC$59,1,0),IF(BE42>$BE$59,1,0))>=3,"Red","Amber")) -> Green | BJ42: =AVERAGE(AZ42,BB42,BD42,BF42) -> 6.25 | BK42: =RANK(BJ42,$BJ$42:$BJ$55,1) -> 6 | BL42: =SUM(AY42,BA42,BC42,BE42) -> 79.05 | BM42: ENWL | BN42: 2.460748048 | BO42: =RANK(BN42,$BN$42:$BN$55,1) -> 4 | BP42: 27.765625 | BQ42: =RANK(BP42,$BP$42:$BP$55,1) -> 5 | BR42: 4.900815801 | BS42: =RANK(BR42,$BR$42:$BR$55,1) -> 7 | BT42: 27.61734694 | BU42: =RANK(BT42,$BT$42:$BT$55,1) -> 2 | BV42: =BW42/'Guide & drivers'!$J$22 -> 1.193271131 | BW42: 1.434641826 | BX42: =IF(SUM(IF(BN42<=$BN$57,1,0),IF(BP42<=$BP$57,1,0),IF(BR42<=$BR$57,1,0),IF(BT42<=$BT$57,1,0))=4,"Green",IF(SUM(IF(BN42>$BN$59,1,0),IF(BP42>$BP$59,1,0),IF(BR42>$BR$59,1,0),IF(BT42>$BT$59,1,0))>=3,"Red","Amber")) -> Green | BY42: =AVERAGE(BO42,BQ42,BS42,BU42) -> 4.5 | BZ42: =RANK(BY42,$BY$42:$BY$55,1) -> 6 | CA42: =SUM(BN42,BP42,BR42,BT42) -> 62.74453579 | CB42: ENWL | CC42: 2.64 | CD42: =RANK(CC42,$CC$42:$CC$55,1) -> 4 | CE42: 27.83 | CF42: =RANK(CE42,$CE$42:$CE$55,1) -> 2 | CG42: 5.01 | CH42: =RANK(CG42,$CG$42:$CG$55,1) -> 7 | CI42: 28.78 | CJ42: =RANK(CI42,$CI$42:$CI$55,1) -> 2 | CK42: =CL42*('Guide & drivers'!$C$22/'Guide & drivers'!$C$30) -> 1.1916315 | CL42: 1.432670536 | CM42: =IF(SUM(IF(CC42<=$BN$57,1,0),IF(CE42<=$BP$57,1,0),IF(CG42<=$BR$57,1,0),IF(CI42<=$BT$57,1,0))=4,"Green",IF(SUM(IF(CC42>$BN$59,1,0),IF(CE42>$BP$59,1,0),IF(CG42>$BR$59,1,0),IF(CI42>$BT$59,1,0))>=3,"Red","Amber")) -> Green | CN42: =AVERAGE(CD42,CF42,CH42,CJ42) -> 3.75 | CO42: =RANK(CN42,$CN$42:$CN$55,1) -> 4 | CP42: =SUM(CC42,CE42,CG42,CI42) -> 64.26
D43: NPgN | E43: 5.715898401 | F43: =RANK(E43,$E$42:$E$55,1) -> 11 | G43: 40.14694656 | H43: =RANK(G43,$G$42:$G$55,1) -> 11 | I43: 9.584170854 | J43: =RANK(I43,$I$42:$I$55,1) -> 12 | K43: 47.12105263 | L43: =RANK(K43,$K$42:$K$55,1) -> 12 | M43: 0.5502400161 | N43: =M43*'Guide & drivers'!$D$30 -> 0.6615406348 | O43: Green | P43: =AVERAGE(F43,H43,J43,L43) -> 11.5 | Q43: =RANK(P43,$P$42:$P$55,1) -> 12 | R43: =SUM(E43,G43,I43,K43) -> 102.5680685 | T43: NPgN | U43: 5.581349206 | V43: =RANK(U43,$U$42:$U$55,1) -> 13 | W43: 50.62416107 | X43: =RANK(W43,$W$42:$W$55,1) -> 10 | Y43: 9.408921933 | Z43: =RANK(Y43,$Y$42:$Y$55,1) -> 13 | AA43: 57.69114471 | AB43: =RANK(AA43,$AA$42:$AA$55,1) -> 8 | AC43: 0.4 | AD43: =AC43*'Guide & drivers'!$D$30 -> 0.4809105957 | AE43: Amber | AF43: =AVERAGE(V43,X43,Z43,AB43) -> 11 | AG43: 12 | AH43: =SUM(U43,W43,Y43,AA43) -> 123.3055769 | AI43: NPgN | AJ43: 7.99 | AK43: =RANK(AJ43,$AJ$42:$AJ$55,1) -> 14 | AL43: 53.75 | AM43: =RANK(AL43,$AL$42:$AL$55,1) -> 13 | AN43: 15.9 | AO43: =RANK(AN43,$AN$42:$AN$55,1) -> 13 | AP43: 63.01 | AQ43: =RANK(AP43,$AP$42:$AP$55,1) -> 11 | AR43: 0.03 | AS43: =AR43*'Guide & drivers'!C35 -> 0.03606829468 | AT43: =IF(SUM(IF(AJ43<=$AJ$57,1,0),IF(AL43<=$AL$57,1,0),IF(AN43<=$AN$57,1,0),IF(AP43<=$AP$57,1,0))=4,"Green",IF(SUM(IF(AJ43>$AJ$59,1,0),IF(AL43>$AL$59,1,0),IF(AN43>$AN$59,1,0),IF(AP43>$AP$59,1,0))>=3,"Red","Amber")) -> Red | AU43: =AVERAGE(AK43,AM43,AO43,AQ43) -> 12.75 | AV43: 14 | AW43: =SUM(AJ43,AL43,AN43,AP43) -> 140.65 | AX43: NPgN | AY43: 6.3 | AZ43: =RANK(AY43,$AY$42:$AY$55,1) -> 11 | BA43: 41.15 | BB43: =RANK(BA43,$BA$42:$BA$55,1) -> 10 | BC43: 11.39 | BD43: =RANK(BC43,$BC$42:$BC$55,1) -> 13 | BE43: 50.75 | BF43: =RANK(BE43,$BE$42:$BE$55,1) -> 10 | BG43: =BH43/'Guide & drivers'!$J$22 -> 0.3052 | BH43: 0.3669347845 | BI43: =IF(SUM(IF(AY43<=$AY$57,1,0),IF(BA43<=$BA$57,1,0),IF(BC43<=$BC$57,1,0),IF(BE43<=$BE$57,1,0))=4,"Green",IF(SUM(IF(AY43>$AY$59,1,0),IF(BA43>$BA$59,1,0),IF(BC43>$BC$59,1,0),IF(BE43>$BE$59,1,0))>=3,"Red","Amber")) -> Green | BJ43: =AVERAGE(AZ43,BB43,BD43,BF43) -> 11 | BK43: =RANK(BJ43,$BJ$42:$BJ$55,1) -> 11 | BL43: =SUM(AY43,BA43,BC43,BE43) -> 109.59 | BM43: NPgN | BN43: 7.572450805 | BO43: 14 | BP43: 40.45202952 | BQ43: 12 | BR43: 14.29889299 | BS43: 14 | BT43: 50.73857868 | BU43: 12 | BV43: =BW43/'Guide & drivers'!$J$22 -> 0 | BW43: 0 | BX43: =IF(SUM(IF(BN43<=$BN$57,1,0),IF(BP43<=$BP$57,1,0),IF(BR43<=$BR$57,1,0),IF(BT43<=$BT$57,1,0))=4,"Green",IF(SUM(IF(BN43>$BN$59,1,0),IF(BP43>$BP$59,1,0),IF(BR43>$BR$59,1,0),IF(BT43>$BT$59,1,0))>=3,"Red","Amber")) -> Red | BY43: =AVERAGE(BO43,BQ43,BS43,BU43) -> 13 | BZ43: 14 | CA43: =SUM(BN43,BP43,BR43,BT43) -> 113.061952 | CB43: NPgN | CC43: 7.049747049 | CD43: =RANK(CC43,$CC$42:$CC$55,1) -> 14 | CE43: 51.86242775 | CF43: =RANK(CE43,$CE$42:$CE$55,1) -> 14 | CG43: 14.87057387 | CH43: =RANK(CG43,$CG$42:$CG$55,1) -> 14 | CI43: 91.13372093 | CJ43: =RANK(CI43,$CI$42:$CI$55,1) -> 14 | CK43: =CL43*('Guide & drivers'!$C$22/'Guide & drivers'!$C$30) -> 0 | CL43: 0 | CM43: =IF(SUM(IF(CC43<=$BN$57,1,0),IF(CE43<=$BP$57,1,0),IF(CG43<=$BR$57,1,0),IF(CI43<=$BT$57,1,0))=4,"Green",IF(SUM(IF(CC43>$BN$59,1,0),IF(CE43>$BP$59,1,0),IF(CG43>$BR$59,1,0),IF(CI43>$BT$59,1,0))>=3,"Red","Amber")) -> Red | CN43: =AVERAGE(CD43,CF43,CH43,CJ43) -> 14 | CO43: =RANK(CN43,$CN$42:$CN$55,1) -> 14 | CP43: =SUM(CC43,CE43,CG43,CI43) -> 164.9164696
D44: NPgY | E44: 5.929051988 | F44: 12 | G44: 43.39694656 | H44: 14 | I44: 8.811673152 | J44: 11 | K44: 47.90960452 | L44: 13 | M44: 0.6958079096 | N44: =M44*'Guide & drivers'!$D$30 -> 0.8365534907 | O44: Amber | P44: 12.5 | Q44: 14 | R44: 106.0472762 | T44: NPgY | U44: 5.449211356 | V44: 11 | W44: 47.31283906 | X44: 9 | Y44: 8.455755677 | Z44: 12 | AA44: 55.8582996 | AB44: 7 | AC44: 0.6 | AD44: =AC44*'Guide & drivers'!$D$30 -> 0.7213658935 | AE44: Amber | AF44: 9.75 | AG44: 10 | AH44: 117.0761057 | AI44: NPgY | AJ44: 7.84 | AK44: 13 | AL44: 47.07 | AM44: 12 | AN44: 16.81 | AO44: 14 | AP44: 55.51 | AQ44: 10 | AR44: 0.06 | AS44: =AR44*'Guide & drivers'!C35 -> 0.07213658935 | AT44: =IF(SUM(IF(AJ44<=$AJ$57,1,0),IF(AL44<=$AL$57,1,0),IF(AN44<=$AN$57,1,0),IF(AP44<=$AP$57,1,0))=4,"Green",IF(SUM(IF(AJ44>$AJ$59,1,0),IF(AL44>$AL$59,1,0),IF(AN44>$AN$59,1,0),IF(AP44>$AP$59,1,0))>=3,"Red","Amber")) -> Red | AU44: 12.25 | AV44: 13 | AW44: 127.23 | AX44: NPgY | AY44: 6.81 | AZ44: 12 | BA44: 41.36 | BB44: 11 | BC44: 15.14 | BD44: 14 | BE44: 48.04 | BF44: 9 | BG44: =BH44/'Guide & drivers'!$J$22 -> 0.3528 | BH44: 0.4241631454 | BI44: Amber | BJ44: 11.5 | BK44: 13 | BL44: 111.35 | BM44: NPgY | BN44: 7.112997347 | BO44: 13 | BP44: 37.80387931 | BQ44: 11 | BR44: 13.94715447 | BS44: 13 | BT44: 44.90777339 | BU44: 11 | BV44: =BW44/'Guide & drivers'!$J$22 -> 0.1008490411 | BW44: 0.1212484311 | BX44: Amber | BY44: 12 | BZ44: 12 | CA44: 103.7718045 | CB44: NPgY | CC44: 6.399919452 | CD44: 13 | CE44: 46.83605442 | CF44: 12 | CG44: 13.99553571 | CH44: 13 | CI44: 71.03412969 | CJ44: 13 | CK44: =CL44*('Guide & drivers'!$C$22/'Guide & drivers'!$C$30) -> 0 | CL44: 0 | CM44: Red | CN44: 12.75 | CO44: 13 | CP44: 138.2656393
D45: WMID | E45: 4.8 | F45: 7 | G45: 34.32 | H45: 7 | I45: 6.11 | J45: 4 | K45: 44.8 | L45: 8 | M45: 1.3474 | N45: =M45*'Guide & drivers'!$D$30 -> 1.619947342 | O45: Green | P45: 6.5 | Q45: 5 | R45: 90.03 | T45: WMID | U45: 4.516757011 | V45: 6 | W45: 37.18447876 | X45: 6 | Y45: 6.083300114 | Z45: 4 | AA45: 47.50359726 | AB45: 6 | AC45: 1.15 | AD45: =AC45*'Guide & drivers'!$D$30 -> 1.382617963 | AE45: Green | AF45: 5.5 | AG45: 6 | AH45: 95.28813314 | AI45: WMID | AJ45: 4.14 | AK45: 6 | AL45: 28.08 | AM45: 3 | AN45: 4.47 | AO45: 1 | AP45: 40.28 | AQ45: 6 | AR45: 1.57 | AS45: =AR45*'Guide & drivers'!C35 -> 1.887574088 | AT45: Green | AU45: 4 | AV45: 3 | AW45: 76.97 | AX45: WMID | AY45: 4.867473602 | AZ45: 8 | BA45: 29.94631958 | BB45: 4 | BC45: 5.705698967 | BD45: 4 | BE45: 37.60849762 | BF45: 6 | BG45: =BH45/'Guide & drivers'!$J$22 -> 1.6 | BH45: 1.923642383 | BI45: Green | BJ45: 5.5 | BK45: 5 | BL45: 78.12798977 | BM45: WMID | BN45: 2.274220467 | BO45: 3 | BP45: 28.67314529 | BQ45: 6 | BR45: 2.812472343 | BS45: 1 | BT45: 34.81228256 | BU45: 6 | BV45: =BW45/'Guide & drivers'!$J$22 -> 1.6 | BW45: 1.923642383 | BX45: Green | BY45: 4 | BZ45: 4 | CA45: 68.57212067 | CB45: WMID | CC45: 1.102459073 | CD45: 2 | CE45: 31.98079872 | CF45: 5 | CG45: 2.131160498 | CH45: 1 | CI45: 37.99566269 | CJ45: 4 | CK45: =CL45*('Guide & drivers'!$C$22/'Guide & drivers'!$C$30) -> 1.6 | CL45: 1.923642383 | CM45: Green | CN45: 3 | CO45: 2 | CP45: 73.21008098
D46: EMID | E46: 3.48 | F46: 3 | G46: 31.89 | H46: 4 | I46: 5.2 | J46: 3 | K46: 41.25 | L46: 5 | M46: 1.5435 | N46: =M46*'Guide & drivers'!$D$30 -> 1.855713761 | O46: Green | P46: 3.75 | Q46: 2 | R46: 81.82 | T46: EMID | U46: 3.475764751 | V46: 3 | W46: 34.40456009 | X46: 4 | Y46: 4.734363079 | Z46: 1 | AA46: 45.77630234 | AB46: 5 | AC46: 1.31 | AD46: =AC46*'Guide & drivers'!$D$30 -> 1.574982201 | AE46: Green | AF46: 3.25 | AG46: 1 | AH46: 88.39099026 | AI46: EMID | AJ46: 3.51 | AK46: 4 | AL46: 28.16 | AM46: 4 | AN46: 4.91 | AO46: 2 | AP46: 35.42 | AQ46: 4 | AR46: 1.6 | AS46: =AR46*'Guide & drivers'!C35 -> 1.923642383 | AT46: Green | AU46: 3.5 | AV46: 1 | AW46: 72 | AX46: EMID | AY46: 3.63255024 | AZ46: 5 | BA46: 30.38181877 | BB46: 5 | BC46: 5.293838978 | BD46: 1 | BE46: 35.40050507 | BF46: 4 | BG46: =BH46/'Guide & drivers'!$J$22 -> 1.6 | BH46: 1.923642383 | BI46: Green | BJ46: 3.75 | BK46: 2 | BL46: 74.70871305 | BM46: EMID | BN46: 2.202741623 | BO46: 2 | BP46: 27.54807663 | BQ46: 4 | BR46: 3.45736146 | BS46: 2 | BT46: 33.98343658 | BU46: 5 | BV46: =BW46/'Guide & drivers'!$J$22 -> 1.6 | BW46: 1.923642383 | BX46: Green | BY46: 3.25 | BZ46: 2 | CA46: 67.1916163 | CB46: EMID | CC46: 1.562347889 | CD46: 3 | CE46: 31.68559265 | CF46: 4 | CG46: 2.910779476 | CH46: 3 | CI46: 37.58990097 | CJ46: 3 | CK46: =CL46*('Guide & drivers'!$C$22/'Guide & drivers'!$C$30) -> 1.6 | CL46: 1.923642383 | CM46: Green | CN46: 3.25 | CO46: 3 | CP46: 73.74862099
D47: SWALES | E47: 8.37 | F47: 14 | G47: 30.26 | H47: 1 | I47: 11.1 | J47: 14 | K47: 34.55 | L47: 1 | M47: 0.4571 | N47: =M47*'Guide & drivers'!$D$30 -> 0.5495605832 | O47: Amber | P47: 7.5 | Q47: 7 | R47: 84.28 | T47: SWALES | U47: 4.298858166 | V47: 5 | W47: 33.75547409 | X47: 3 | Y47: 5.778291225 | Z47: 2 | AA47: 42.5506897 | AB47: 3 | AC47: 0.67 | AD47: =AC47*'Guide & drivers'!$D$30 -> 0.8055252478 | AE47: Green | AF47: 3.25 | AG47: 1 | AH47: 86.38331318 | AI47: SWALES | AJ47: 3.3 | AK47: 2 | AL47: 28.35 | AM47: 5 | AN47: 4.93 | AO47: 3 | AP47: 38.51 | AQ47: 5 | AR47: 0.74 | AS47: =AR47*'Guide & drivers'!C35 -> 0.889684602 | AT47: Green | AU47: 3.75 | AV47: 2 | AW47: 75.09 | AX47: SWALES | AY47: 3.612288237 | AZ47: 4 | BA47: 27.12729645 | BB47: 2 | BC47: 6.367875576 | BD47: 6 | BE47: 34.06459427 | BF47: 3 | BG47: =BH47/'Guide & drivers'!$J$22 -> 0.8 | BH47: 0.9618211914 | BI47: Green | BJ47: 3.75 | BK47: 2 | BL47: 71.17205453 | BM47: SWALES | BN47: 1.983154655 | BO47: 1 | BP47: 24.60497284 | BQ47: 2 | BR47: 3.663430452 | BS47: 4 | BT47: 30.31649017 | BU47: 3 | BV47: =BW47/'Guide & drivers'!$J$22 -> 0.8 | BW47: 0.9618211914 | BX47: Green | BY47: 2.5 | BZ47: 1 | CA47: 60.56804812 | CB47: SWALES | CC47: 1.059119463 | CD47: 1 | CE47: 29.80789566 | CF47: 3 | CG47: 2.386528492 | CH47: 2 | CI47: 39.3103447 | CJ47: 5 | CK47: =CL47*('Guide & drivers'!$C$22/'Guide & drivers'!$C$30) -> 0.8 | CL47: 0.9618211914 | CM47: Green | CN47: 2.75 | CO47: 1 | CP47: 72.56388831
D48: SWEST | E48: 6.64 | F48: 13 | G48: 32.01 | H48: 5 | I48: 7.87 | J48: 10 | K48: 37.68 | L48: 3 | M48: 1.1355 | N48: =M48*'Guide & drivers'!$D$30 -> 1.365184954 | O48: Green | P48: 7.75 | Q48: 10 | R48: 84.2 | T48: SWEST | U48: 5.15520525 | V48: 8 | W48: 36.52682114 | X48: 5 | Y48: 5.863285065 | Z48: 3 | AA48: 43.38860703 | AB48: 4 | AC48: 0.95 | AD48: =AC48*'Guide & drivers'!$D$30 -> 1.142162665 | AE48: Green | AF48: 5 | AG48: 5 | AH48: 90.93391848 | AI48: SWEST | AJ48: 4.87 | AK48: 9 | AL48: 25.73 | AM48: 1 | AN48: 5.4 | AO48: 4 | AP48: 29.92 | AQ48: 2 | AR48: 1.2 | AS48: =AR48*'Guide & drivers'!C35 -> 1.442731787 | AT48: Green | AU48: 4 | AV48: 3 | AW48: 65.92 | AX48: SWEST | AY48: 5.370464325 | AZ48: 9 | BA48: 27.41638947 | BB48: 3 | BC48: 5.609411716 | BD48: 3 | BE48: 33.39303589 | BF48: 2 | BG48: =BH48/'Guide & drivers'!$J$22 -> 1.2 | BH48: 1.442731787 | BI48: Green | BJ48: 4.25 | BK48: 4 | BL48: 71.7893014 | BM48: SWEST | BN48: 3.116337299 | BO48: 6 | BP48: 26.90512276 | BQ48: 3 | BR48: 3.656934261 | BS48: 3 | BT48: 32.45755386 | BU48: 4 | BV48: =BW48/'Guide & drivers'!$J$22 -> 1.2 | BW48: 1.442731787 | BX48: Green | BY48: 4 | BZ48: 4 | CA48: 66.13594818 | CB48: SWEST | CC48: 2.78635931 | CD48: 5 | CE48: 36.8049202 | CF48: 9 | CG48: 3.630394936 | CH48: 4 | CI48: 45.59744263 | CJ48: 8 | CK48: =CL48*('Guide & drivers'!$C$22/'Guide & drivers'!$C$30) -> 1.2 | CL48: 1.442731787 | CM48: Green | CN48: 6.5 | CO48: 6 | CP48: 88.81911707
D49: LPN | E49: 3.64244898 | F49: 4 | G49: 41.29574468 | H49: 12 | I49: 4.729618768 | J49: 1 | K49: 46.79542396 | L49: 11 | M49: 0.7416191804 | N49: =M49*'Guide & drivers'!$D$30 -> 0.8916313046 | O49: Green | P49: 7 | Q49: 6 | R49: 96.46323639 | T49: LPN | U49: 5.37 | V49: 10 | W49: 59.64 | X49: 14 | Y49: 8.38 | Z49: 11 | AA49: 57.85 | AB49: 9 | AC49: 0.6 | AD49: =AC49*'Guide & drivers'!$D$30 -> 0.7213658935 | AE49: Amber | AF49: 11 | AG49: 12 | AH49: 131.24 | AI49: LPN | AJ49: 5.734031414 | AK49: 10 | AL49: 40.97727273 | AM49: 8 | AN49: 7.368633791 | AO49: 6 | AP49: 45.04388298 | AQ49: 7 | AR49: 0.79 | AS49: =AR49*'Guide & drivers'!C35 -> 0.9497984265 | AT49: Green | AU49: 7.75 | AV49: 7 | AW49: 99.12382091 | AX49: LPN | AY49: 5.391160221 | AZ49: 10 | BA49: 34.06010929 | BB49: 8 | BC49: 6.973474801 | BD49: 8 | BE49: 43.08343711 | BF49: 8 | BG49: =BH49/'Guide & drivers'!$J$22 -> 1.032927979 | BH49: 1.241865024 | BI49: Green | BJ49: 8.5 | BK49: 8 | BL49: 89.50818142 | BM49: LPN | BN49: 5.287654321 | BO49: 11 | BP49: 35.41071429 | BQ49: 8 | BR49: 6.513590034 | BS49: 10 | BT49: 44.00504414 | BU49: 10 | BV49: =BW49/'Guide & drivers'!$J$22 -> 0.3499633827 | BW49: 0.4207527471 | BX49: Amber | BY49: 9.75 | BZ49: 9 | CA49: 91.21700278 | CB49: LPN | CC49: 3.411089866 | CD49: 7 | CE49: 34.78395062 | CF49: 7 | CG49: 4.910039113 | CH49: 6 | CI49: 44.51980983 | CJ49: 7 | CK49: =CL49*('Guide & drivers'!$C$22/'Guide & drivers'!$C$30) -> 0 | CL49: 0 | CM49: Green | CN49: 6.75 | CO49: 7 | CP49: 87.62488942
D50: SPN | E50: 4.624687239 | F50: 6 | G50: 37.6561939 | H50: 10 | I50: 7.345218801 | J50: 8 | K50: 45.30828025 | L50: 10 | M50: 0.880548578 | N50: =M50*'Guide & drivers'!$D$30 -> 1.058662853 | O50: Green | P50: 8.5 | Q50: 11 | R50: 94.93438019 | T50: SPN | U50: 5.57 | V50: 12 | W50: 52.91 | X50: 12 | Y50: 6.52 | Z50: 6 | AA50: 66.43 | AB50: 13 | AC50: 0.6 | AD50: =AC50*'Guide & drivers'!$D$30 -> 0.7213658935 | AE50: Amber | AF50: 10.75 | AG50: 11 | AH50: 131.43 | AI50: SPN | AJ50: 5.748065015 | AK50: 11 | AL50: 36.50903832 | AM50: 7 | AN50: 9.797826087 | AO50: 10 | AP50: 46.02680653 | AQ50: 8 | AR50: 0.9 | AS50: =AR50*'Guide & drivers'!C35 -> 1.08204884 | AT50: Green | AU50: 9 | AV50: 10 | AW50: 98.08173595 | AX50: SPN | AY50: 7.122287968 | AZ50: 13 | BA50: 39.25501433 | BB50: 9 | BC50: 9.400570885 | BD50: 10 | BE50: 51.56063618 | BF50: 11 | BG50: =BH50/'Guide & drivers'!$J$22 -> 0.5924478919 | BH50: 0.7122861715 | BI50: Green | BJ50: 10.75 | BK50: 10 | BL50: 107.3385094 | BM50: SPN | BN50: 6.442512619 | BO50: 12 | BP50: 36.44101633 | BQ50: 9 | BR50: 7.193635383 | BS50: 11 | BT50: 43.56531049 | BU50: 9 | BV50: =BW50/'Guide & drivers'!$J$22 -> 0.2460798441 | BW50: 0.295856011 | BX50: Amber | BY50: 10.25 | BZ50: 10 | CA50: 93.64247483 | CB50: SPN | CC50: 5.44608076 | CD50: 12 | CE50: 35.72465315 | CF50: 8 | CG50: 6.707150965 | CH50: 11 | CI50: 46.76162791 | CJ50: 9 | CK50: =CL50*('Guide & drivers'!$C$22/'Guide & drivers'!$C$30) -> 0 | CL50: 0 | CM50: Amber | CN50: 10 | CO50: 10 | CP50: 94.63951278
D51: EPN | E51: 5.560302162 | F51: 9 | G51: 42.76034483 | H51: 13 | I51: 9.705137751 | J51: 13 | K51: 51.00676329 | L51: 14 | M51: 1.067729469 | N51: =M51*'Guide & drivers'!$D$30 -> 1.283706037 | O51: Amber | P51: 12.25 | Q51: 13 | R51: 109.032548 | T51: EPN | U51: 6.12 | V51: 14 | W51: 54.17 | X51: 13 | Y51: 9.76 | Z51: 14 | AA51: 67.37 | AB51: 14 | AC51: 1 | AD51: =AC51*'Guide & drivers'!$D$30 -> 1.202276489 | AE51: Amber | AF51: 13.75 | AG51: 14 | AH51: 137.42 | AI51: EPN | AJ51: 7.240318302 | AK51: 12 | AL51: 43.22931985 | AM51: 9 | AN51: 11.46362253 | AO51: 12 | AP51: 49.01349693 | AQ51: 9 | AR51: 0.48 | AS51: =AR51*'Guide & drivers'!C35 -> 0.5770927148 | AT51: Amber | AU51: 10.5 | AV51: 11 | AW51: 110.9467576 | AX51: EPN | AY51: 7.144962406 | AZ51: 14 | BA51: 41.90106802 | BB51: =RANK(BA51,$BA$42:$BA$55,1) -> 12 | BC51: 9.982537517 | BD51: 12 | BE51: 52.47799386 | BF51: 12 | BG51: =BH51/'Guide & drivers'!$J$22 -> 0.7947366193 | BH51: 0.9554931525 | BI51: Green | BJ51: 12.5 | BK51: 14 | BL51: 111.5065618 | BM51: EPN | BN51: 4.798682043 | BO51: 10 | BP51: 36.59057203 | BQ51: 10 | BR51: 5.685373134 | BS51: 9 | BT51: 42.70946353 | BU51: 8 | BV51: =BW51/'Guide & drivers'!$J$22 -> 0.7686927052 | BW51: 0.9241811669 | BX51: Green | BY51: 9.25 | BZ51: 8 | CA51: 89.78409074 | CB51: EPN | CC51: 4.161743619 | CD51: 10 | CE51: 34.24296206 | CF51: 6 | CG51: 5.03654583 | CH51: 8 | CI51: 41.10496894 | CJ51: 6 | CK51: =CL51*('Guide & drivers'!$C$22/'Guide & drivers'!$C$30) -> 0 | CL51: 0 | CM51: Green | CN51: 7.5 | CO51: 8 | CP51: 84.54622045
D52: SPD | E52: 5.24955595 | F52: 8 | G52: 35.73757455 | H52: 9 | I52: 7.325987144 | J52: 7 | K52: 42.42203742 | L52: 6 | M52: 0.962 | N52: =M52*'Guide & drivers'!$D$30 -> 1.156589983 | O52: Green | P52: 7.5 | Q52: 7 | R52: 90.73515507 | T52: SPD | U52: 4.92173189 | V52: 7 | W52: 51.10739191 | X52: 11 | Y52: 6.309927361 | Z52: 5 | AA52: 63.96688742 | AB52: 12 | AC52: 0.6 | AD52: =AC52*'Guide & drivers'!$D$30 -> 0.7213658935 | AE52: Amber | AF52: 8.75 | AG52: 9 | AH52: 126.3059386 | AI52: SPD | AJ52: 3.208126858 | AK52: 1 | AL52: 58.93573668 | AM52: 14 | AN52: 7.006410256 | AO52: 5 | AP52: 69.57369255 | AQ52: 14 | AR52: 0.6 | AS52: =AR52*'Guide & drivers'!C35 -> 0.7213658935 | AT52: Amber | AU52: 8.5 | AV52: 8 | AW52: 138.7239663 | AX52: SPD | AY52: 2.850731707 | AZ52: 1 | BA52: 54.30344828 | BB52: 14 | BC52: 5.744360902 | BD52: 5 | BE52: 69.34831461 | BF52: 14 | BG52: =BH52/'Guide & drivers'!$J$22 -> 0.6 | BH52: 0.7213658935 | BI52: Amber | BJ52: 8.5 | BK52: =RANK(BJ52,$BJ$42:$BJ$55,1) -> 8 | BL52: 132.2468555 | BM52: SPD | BN52: 3.325231481 | BO52: 8 | BP52: 51.41762452 | BQ52: 13 | BR52: 5.506613757 | BS52: 8 | BT52: 64.44222539 | BU52: 13 | BV52: =BW52/'Guide & drivers'!$J$22 -> 0.5978800878 | BW52: 0.718817173 | BX52: Amber | BY52: 10.5 | BZ52: 11 | CA52: 124.6916952 | CB52: SPD | CC52: 3.063176895 | CD52: 6 | CE52: 48.23736264 | CF52: 13 | CG52: 5.860662048 | CH52: 10 | CI52: 62.93430657 | CJ52: 12 | CK52: =CL52*('Guide & drivers'!$C$22/'Guide & drivers'!$C$30) -> 0.552682283 | CL52: 0.6644769148 | CM52: Amber | CN52: 10.25 | CO52: 11 | CP52: 120.0955081
D53: SPMW | E53: 5.607876712 | F53: 10 | G53: 35.55913978 | H53: 8 | I53: 6.881982691 | J53: 5 | K53: 43.46067416 | L53: 7 | M53: 1.008 | N53: =M53*'Guide & drivers'!$D$30 -> 1.211894701 | O53: Green | P53: 7.5 | Q53: 7 | R53: 91.50967335 | T53: SPMW | U53: 5.315705128 | V53: 9 | W53: 45.25950413 | X53: 8 | Y53: 6.839459865 | Z53: 7 | AA53: 59.76293823 | AB53: 10 | AC53: 0.6 | AD53: =AC53*'Guide & drivers'!$D$30 -> 0.7213658935 | AE53: Amber | AF53: 8.5 | AG53: 8 | AH53: 117.1776074 | AI53: SPMW | AJ53: 4.792436975 | AK53: 8 | AL53: 44.72089314 | AM53: 10 | AN53: 10.09006211 | AO53: 11 | AP53: 65.87636364 | AQ53: 13 | AR53: 0.6 | AS53: =AR53*'Guide & drivers'!C35 -> 0.7213658935 | AT53: Amber | AU53: 10.5 | AV53: 11 | AW53: 125.4797559 | AX53: SPMW | AY53: 4.82605178 | AZ53: 7 | BA53: 52.7539185 | BB53: 13 | BC53: 9.629381059 | BD53: 11 | BE53: 66.55190311 | BF53: 13 | BG53: =BH53/'Guide & drivers'!$J$22 -> 0.6 | BH53: 0.7213658935 | BI53: Amber | BJ53: 11 | BK53: 11 | BL53: 133.7612544 | BM53: SPMW | BN53: 4.641932701 | BO53: 9 | BP53: 55.8022508 | BQ53: 14 | BR53: 7.350769231 | BS53: 12 | BT53: 73.23462783 | BU53: 14 | BV53: =BW53/'Guide & drivers'!$J$22 -> 0.1034353242 | BW53: 0.1243578585 | BX53: Amber | BY53: 12.25 | BZ53: 13 | CA53: 141.0295806 | CB53: SPMW | CC53: 4.397103659 | CD53: 11 | CE53: 43.15421304 | CF53: 11 | CG53: 8.285404624 | CH53: 12 | CI53: 60.57617188 | CJ53: 11 | CK53: =CL53*('Guide & drivers'!$C$22/'Guide & drivers'!$C$30) -> 0.091036 | CL53: 0.1094504425 | CM53: Red | CN53: 11.25 | CO53: 12 | CP53: 116.4128932
D54: SSEH | E54: 2.5 | F54: 1 | G54: 31.5 | H54: 3 | I54: 5.1 | J54: 2 | K54: 40.02 | L54: 4 | M54: 0.8 | N54: =M54*'Guide & drivers'!$D$30 -> 0.9618211914 | O54: Green | P54: 2.5 | Q54: 1 | R54: 79.12 | T54: SSEH | U54: 3.552147239 | V54: 4 | W54: 29.97927461 | X54: 1 | Y54: 7.220560748 | Z54: 8 | AA54: 40.43773585 | AB54: 2 | AC54: 0.8 | AD54: =AC54*'Guide & drivers'!$D$30 -> 0.9618211914 | AE54: Green | AF54: 3.75 | AG54: 3 | AH54: 81.18971845 | AI54: SSEH | AJ54: 4.22214941 | AK54: 7 | AL54: 27.83704735 | AM54: 2 | AN54: 9.015625 | AO54: 8 | AP54: 28.75909091 | AQ54: 1 | AR54: 0.8 | AS54: =AR54*'Guide & drivers'!C35 -> 0.9618211914 | AT54: Green | AU54: 4.5 | AV54: 5 | AW54: 69.83391267 | AX54: SSEH | AY54: 2.86 | AZ54: 2 | BA54: 22.1 | BB54: 1 | BC54: 5.34 | BD54: 2 | BE54: 27.8 | BF54: 1 | BG54: =BH54/'Guide & drivers'!$J$22 -> 0.8 | BH54: 0.9618211914 | BI54: Green | BJ54: 1.5 | BK54: 1 | BL54: 58.1 | BM54: SSEH | BN54: 3.261591299 | BO54: 7 | BP54: 17.13384813 | BQ54: 1 | BR54: 4.131868132 | BS54: 5 | BT54: 21.10970464 | BU54: 1 | BV54: =BW54/'Guide & drivers'!$J$22 -> 0.8 | BW54: 0.9618211914 | BX54: Green | BY54: 3.5 | BZ54: 3 | CA54: 45.63701221 | CB54: SSEH | CC54: 3.789473684 | CD54: 9 | CE54: 19.51216389 | CF54: 1 | CG54: 4.455835962 | CH54: 5 | CI54: 24.67857143 | CJ54: 1 | CK54: =CL54*('Guide & drivers'!$C$22/'Guide & drivers'!$C$30) -> 0.7448990947 | CL54: 0.8955746684 | CM54: Green | CN54: 4 | CO54: 5 | CP54: 52.43604497
D55: SSES | E55: 2.66 | F55: 2 | G55: 33.18 | H55: 6 | I55: 6.94 | J55: 6 | K55: 45.04 | L55: 9 | M55: 1.3858 | N55: =M55*'Guide & drivers'!$D$30 -> 1.666114759 | O55: Green | P55: 5.75 | Q55: 4 | R55: 87.82 | T55: SSES | U55: 2.688902743 | V55: 1 | W55: 44.29316389 | X55: 7 | Y55: 7.228643216 | Z55: 9 | AA55: 63.68382353 | AB55: 11 | AC55: 0.8 | AD55: =AC55*'Guide & drivers'!$D$30 -> 0.9618211914 | AE55: Amber | AF55: 7 | AG55: 7 | AH55: 117.8945334 | AI55: SSES | AJ55: 3.414524301 | AK55: 3 | AL55: 45.71127332 | AM55: 11 | AN55: 9.283271375 | AO55: 9 | AP55: 64.00564972 | AQ55: 12 | AR55: 0.8 | AS55: =AR55*'Guide & drivers'!C35 -> 0.9618211914 | AT55: Amber | AU55: 8.75 | AV55: 9 | AW55: 122.4147187 | AX55: SSES | AY55: 3.11 | AZ55: 3 | BA55: 31.84 | BB55: 6 | BC55: 8.65 | BD55: 9 | BE55: 40.29 | BF55: 7 | BG55: =BH55/'Guide & drivers'!$J$22 -> 1.5723 | BH55: 1.890339324 | BI55: Green | BJ55: 6.25 | BK55: 6 | BL55: 83.89 | BM55: SSES | BN55: 3.011868369 | BO55: 5 | BP55: 29.28943937 | BQ55: 7 | BR55: 4.528297244 | BS55: 6 | BT55: 34.86576648 | BU55: 7 | BV55: =BW55/'Guide & drivers'!$J$22 -> 1.503004615 | BW55: 1.807027112 | BX55: Green | BY55: 6.25 | BZ55: 7 | CA55: 71.69537147 | CB55: SSES | CC55: 3.561549779 | CD55: 8 | CE55: 41.99337163 | CF55: 10 | CG55: 5.467319461 | CH55: 9 | CI55: 54.34845049 | CJ55: 10 | CK55: =CL55*('Guide & drivers'!$C$22/'Guide & drivers'!$C$30) -> 0.7526732779 | CL55: 0.9049213861 | CM55: Amber | CN55: 9.25 | CO55: 9 | CP55: 105.3706914
D56: Industry Average Score/Total Reward | E56: =AVERAGE(E42:E55) -> 4.913018774 | G56: 35.71963442 | I56: 7.438419017 | K56: 43.1603969 | M56: =SUM(M42:M55) -> 13.77524515 | N56: =SUM(N42:N55) -> 16.56165338 | T56: Industry Average Score/Total Reward | U56: =AVERAGE(U42:U55) -> 4.641116624 | W56: =AVERAGE(W42:W55) -> 43.50555453 | Y56: =AVERAGE(Y42:Y55) -> 7.178433711 | AA56: =AVERAGE(AA42:AA55) -> 53.13871612 | AC56: =SUM(AC42:AC55) -> 11.28 | AD56: =SUM(AD42:AD55) -> 13.5616788 | AF56: Industry Average Score/Total Reward | AJ56: =AVERAGE(AJ42:AJ55) -> 4.979260877 | AL56: =AVERAGE(AL42:AL55) -> 38.62718439 | AN56: =AVERAGE(AN42:AN55) -> 8.906817939 | AP56: =AVERAGE(AP42:AP55) -> 47.51635595 | AR56: =SUM(AR42:AR55) -> 11.37 | AS56: =SUM(AS42:AS55) -> 13.66988368 | AU56: Industry Average Score/Total Reward | AY56: =AVERAGE(AY42:AY55) -> 4.829855035 | BA56: =AVERAGE(BA42:BA55) -> 36.17609876 | BC56: =AVERAGE(BC42:BC55) -> 8.001225029 | BE56: =AVERAGE(BE42:BE55) -> 44.71706555 | BG56: =SUM(BG42:BG55) -> 13.02671249 | BH56: =SUM(BH42:BH55) -> 15.66171016 | BN56: =AVERAGE(BN42:BN55) -> 4.10658022 | BP56: =AVERAGE(BP42:BP55) -> 33.9884512 | BR56: =AVERAGE(BR42:BR55) -> 6.260514907 | BT56: =AVERAGE(BT42:BT55) -> 41.34040034 | BV56: =SUM(BV42:BV55) -> 10.86317613 | BW56: =SUM(BW42:BW55) -> 13.06054126 | CC56: =AVERAGE(CC42:CC55) -> 3.602155036 | CE56: =AVERAGE(CE42:CE55) -> 36.74688332 | CG56: =AVERAGE(CG42:CG55) -> 6.118423642 | CI56: =AVERAGE(CI42:CI55) -> 49.02607919 | CK56: =SUM(CK42:CK55) -> 8.532922156 | CL56: =SUM(CL42:CL55) -> 10.25893169
D57: Target | E57: 8.21 | G57: 42.08 | I57: 11.73 | K57: 52.7 | T57: Target | U57: 8.21 | W57: 42.08 | Y57: 11.73 | AA57: 52.7 | AI57: Target | AJ57: 8.21 | AL57: 42.08 | AN57: 11.73 | AP57: 52.7 | AX57: Target | AY57: 8.21 | BA57: 42.08 | BC57: 11.73 | BE57: 52.7 | BN57: 4.84 | BP57: 39.28 | BR57: 7.84 | BT57: 47.94 | CC57: 4.84 | CE57: 39.28 | CG57: 7.84 | CI57: 47.94
D58: Maximum Reward score | E58: 6.4 | G58: 32.47 | I58: 10.12 | K58: 39.91 | T58: Maximum Reward score | U58: 6.4 | W58: 32.47 | Y58: 10.12 | AA58: 39.91 | AI58: Maximum Reward score | AJ58: =E58 -> 6.4 | AK58: =G58 -> 32.47 | AL58: =I58 -> 10.12 | AM58: =K58 -> 39.91 | AT58: =U58 -> 6.4 | AX58: Maximum Reward score | BD58: =AJ58 -> 6.4 | BE58: =AK58 -> 32.47 | BF58: =AL58 -> 10.12 | BG58: =AM58 -> 39.91 | BS58: =AY58 -> 0 | BT58: =AZ58 -> 0 | BU58: =BA58 -> 0 | BV58: =BB58 -> 0 | CH58: =BN58 -> 0 | CI58: =BO58 -> 0 | CJ58: =BP58 -> 0 | CK58: =BQ58 -> 0
D59: 105% of target | E59: =E57*1.05 -> 8.6205 | G59: =G57*1.05 -> 44.184 | I59: =I57*1.05 -> 12.3165 | K59: =K57*1.05 -> 55.335 | T59: 105% of target | U59: =U57*1.05 -> 8.6205 | W59: =W57*1.05 -> 44.184 | Y59: =Y57*1.05 -> 12.3165 | AA59: =AA57*1.05 -> 55.335 | AH59: 105% of target | AJ59: =AJ57*1.05 -> 8.6205 | AL59: =AL57*1.05 -> 44.184 | AN59: =AN57*1.05 -> 12.3165 | AP59: =AP57*1.05 -> 55.335 | AW59: 105% of target | AY59: =AY57*1.05 -> 8.6205 | BA59: =BA57*1.05 -> 44.184 | BC59: =BC57*1.05 -> 12.3165 | BE59: =BE57*1.05 -> 55.335 | BN59: =BN57*1.05 -> 5.082 | BP59: =BP57*1.05 -> 41.244 | BR59: =BR57*1.05 -> 8.232 | BT59: =BT57*1.05 -> 50.337 | CB59: 105% of target | CC59: =CC57*1.05 -> 5.082 | CE59: =CE57*1.05 -> 41.244 | CG59: =CG57*1.05 -> 8.232 | CI59: =CI57*1.05 -> 50.337
D61: Time to Connect improvements from 2013
E62: 2015/16 | L62: 2016/17 | S62: 2017/18 | Z62: 2018/19 | AG62: 2019/20 | AN62: 2020/21 | AU62: 2021/22 | BB62: 2022/23
E63: LVSSA | H63: LVSSB | L63: LVSSA | O63: LVSSB | S63: LVSSA | V63: LVSSB | Z63: LVSSA | AC63: LVSSB | AG63: LVSSA | AJ63: LVSSB | AN63: LVSSA | AQ63: LVSSB | AU63: LVSSA | AX63: LVSSB | BB63: LVSSA | BE63: LVSSB
E64: Average Time to Quote | F64: Time to Connect | G64: Overall | H64: Average Time to Quote | I64: Time to Connect | J64: Overall | L64: Average Time to Quote | M64: Time to Connect | N64: Overall | O64: Average Time to Quote | P64: Time to Connect | Q64: Overall | S64: Average Time to Quote | T64: Time to Connect | U64: Overall | V64: Average Time to Quote | W64: Time to Connect | X64: Overall | Z64: Average Time to Quote | AA64: Time to Connect | AB64: Overall | AC64: Average Time to Quote | AD64: Time to Connect | AE64: Overall | AG64: Average Time to Quote | AH64: Time to Connect | AI64: Overall | AJ64: Average Time to Quote | AK64: Time to Connect | AL64: Overall | AN64: Average Time to Quote | AO64: Time to Connect | AP64: Overall | AQ64: Average Time to Quote | AR64: Time to Connect | AS64: Overall | AU64: Average Time to Quote | AV64: Time to Connect | AW64: Overall | AX64: Average Time to Quote | AY64: Time to Connect | AZ64: Overall | BB64: Average Time to Quote | BC64: Time to Connect | BD64: Overall | BE64: Average Time to Quote | BF64: Time to Connect | BG64: Overall
D65: ENWL | E65: 3.523335197 | F65: 43.79341055 | G65: 47.31674575 | H65: 4.083818411 | I65: 45.79215901 | J65: 49.87597742 | L65: 4.565776603 | M65: 42.24530686 | N65: 46.81108347 | O65: 3.602331821 | P65: 51.00187944 | Q65: 54.60421126 | S65: 3.825776603 | T65: 42.4354015 | U65: 46.2611781 | V65: 3.26789549 | W65: 48.39387944 | X65: 51.66177493 | Z65: 3.805776603 | AA65: 41.2854015 | AB65: 45.0911781 | AC65: 4.72789549 | AD65: 47.00387944 | AE65: 51.73177493 | AG65: 5.065028555 | AH65: 46.3897765 | AI65: 51.45480506 | AJ65: 6.61707969 | AK65: 55.0565325 | AL65: 61.67361219 | AN65: 4.885776603 | AO65: 46.3254015 | AP65: 51.2111781 | AQ65: 6.50789549 | AR65: 53.89387944 | AS65: 60.40177493
D66: NPgN | E66: 5.407092376 | F66: 11.4797201 | G66: 16.88681248 | H66: 10.23449286 | I66: 5.570614035 | J66: 15.8051069 | L66: 5.541641571 | M66: 1.002505593 | N66: 6.544147164 | O66: 10.40974178 | P66: -4.999478042 | Q66: 5.410263742 | S66: 3.132990777 | T66: -2.123333333 | U66: 1.009657444 | V66: 3.918663717 | W66: -10.31833333 | X66: -6.399669617 | Z66: 4.822990777 | AA66: 10.47666667 | AB66: 15.29965744 | AC66: 8.428663717 | AD66: 1.941666667 | AE66: 10.37033038 | AG66: 3.550539972 | AH66: 11.17463715 | AI66: 14.72517712 | AJ66: 5.519770728 | AK66: 1.953087986 | AL66: 7.472858714 | AN66: 4.073243728 | AO66: -0.235761079 | AP66: 3.837482649 | AQ66: 4.948089846 | AR66: -38.44205426 | AS66: -33.49396442
D67: NPgY | E67: 5.193938789 | F67: 4.234720102 | G67: 9.428658891 | H67: 10.50699056 | I67: 11.71872881 | J67: 22.22571938 | L67: 5.673779421 | M67: 0.318827607 | N67: 5.992607028 | O67: 10.86290804 | P67: 3.770033738 | Q67: 14.63294178 | S67: 3.282990777 | T67: 0.5616666667 | U67: 3.844657444 | V67: 2.508663717 | W67: 4.118333333 | X67: 6.62699705 | Z67: 4.312990777 | AA67: 6.271666667 | AB67: 10.58465744 | AC67: 4.178663717 | AD67: 11.58833333 | AE67: 15.76699705 | AG67: 4.00999343 | AH67: 9.827787356 | AI67: 13.83778079 | AJ67: 5.371509245 | AK67: 14.72055995 | AL67: 20.09206919 | AN67: 4.723071325 | AO67: 0.7956122449 | AP67: 5.51868357 | AQ67: 5.323128002 | AR67: -11.40579636 | AS67: -6.082668357
D68: WMID | E68: 4.272990777 | F68: 17.82 | G68: 22.09299078 | H68: 11.04199705 | I68: 11.72 | J68: 22.76199705 | L68: 4.556233766 | M68: 14.95552124 | N68: 19.51175501 | O68: 11.06869694 | P68: 9.01640274 | Q68: 20.08509968 | S68: 4.932990777 | T68: 24.06 | U68: 28.99299078 | V68: 12.68199705 | W68: 16.24 | X68: 28.92199705 | Z68: 4.205517175 | AA68: 22.19368042 | AB68: 26.39919759 | AC68: 11.44629808 | AD68: 18.91150238 | AE68: 30.35780046 | AG68: 6.798770311 | AH68: 23.46685471 | AI68: 30.26562502 | AJ68: 14.33952471 | AK68: 21.70771744 | AL68: 36.04724214 | AN68: 7.970531704 | AO68: 20.15920128 | AP68: 28.12973298 | AQ68: 15.02083655 | AR68: 18.52433731 | AS68: 33.54517386
D69: EMID | E69: 4.762990777 | F69: 12.33 | G69: 17.09299078 | H69: 9.19199705 | I69: 13.85 | J69: 23.04199705 | L69: 4.767226026 | M69: 9.815439911 | N69: 14.58266594 | O69: 9.657633971 | P69: 9.323697662 | Q69: 18.98133163 | S69: 4.732990777 | T69: 16.06 | U69: 20.79299078 | V69: 9.48199705 | W69: 19.68 | X69: 29.16199705 | Z69: 4.610440538 | AA69: 13.83818123 | AB69: 18.44862177 | AC69: 9.098158072 | AD69: 19.69949493 | AE69: 28.79765301 | AG69: 6.040249154 | AH69: 16.67192337 | AI69: 22.71217252 | AJ69: 10.93463559 | AK69: 21.11656342 | AL69: 32.05119901 | AN69: 6.680642888 | AO69: 12.53440735 | AP69: 19.21505024 | AQ69: 11.48121757 | AR69: 17.51009903 | AS69: 28.9913166
D70: SWALES | E70: -1.257009223 | F70: 11.81 | G70: 10.55299078 | H70: -1.24800295 | I70: 21.55 | J70: 20.30199705 | L70: 2.814132611 | M70: 8.314525909 | N70: 11.12865852 | O70: 4.073705825 | P70: 13.5493103 | Q70: 17.62301613 | S70: 3.812990777 | T70: 13.72 | U70: 17.53299078 | V70: 4.92199705 | W70: 17.59 | X70: 22.51199705 | Z70: 3.500702541 | AA70: 14.94270355 | AB70: 18.44340609 | AC70: 3.484121474 | AD70: 22.03540573 | AE70: 25.51952721 | AG70: 5.129836123 | AH70: 17.46502716 | AI70: 22.59486328 | AJ70: 6.188566598 | AK70: 25.78350983 | AL70: 31.97207642 | AN70: 6.053871314 | AO70: 12.26210434 | AP70: 18.31597565 | AQ70: 7.465468558 | AR70: 16.7896553 | AS70: 24.25512386
D71: SWEST | E71: 0.8729907772 | F71: 11.59 | G71: 12.46299078 | H71: 2.25199705 | I71: 19.79 | J71: 22.04199705 | L71: 2.357785527 | M71: 7.073178864 | N71: 9.430964391 | O71: 4.258711985 | P71: 14.08139297 | Q71: 18.34010496 | S71: 2.642990777 | T71: 17.87 | U71: 20.51299078 | V71: 4.72199705 | W71: 27.55 | X71: 32.27199705 | Z71: 2.142526452 | AA71: 16.18361053 | AB71: 18.32613699 | AC71: 4.512585334 | AD71: 24.07696411 | AE71: 28.58954944 | AG71: 4.396653478 | AH71: 16.69487724 | AI71: 21.09153072 | AJ71: 6.465062789 | AK71: 25.01244614 | AL71: 31.47750893 | AN71: 4.726631467 | AO71: 6.795079803 | AP71: 11.52171127 | AQ71: 6.491602114 | AR71: 11.87255737 | AS71: 18.36415949
D72: LPN | E72: 6.07755102 | F72: 7.734255319 | G72: 13.81180634 | H72: 11.37038123 | I72: 23.02457604 | J72: 34.39495727 | L72: 4.35 | M72: -10.61 | N72: -6.26 | O72: 7.72 | P72: 11.97 | Q72: 19.69 | S72: 3.985968586 | T72: 8.052727273 | U72: 12.03869586 | V72: 8.731366209 | W72: 24.77611702 | X72: 33.50748323 | Z72: 4.328839779 | AA72: 14.96989071 | AB72: 19.29873049 | AC72: 9.126525199 | AD72: 26.73656289 | AE72: 35.86308809 | AG72: 4.432345679 | AH72: 13.61928571 | AI72: 18.05163139 | AJ72: 9.586409966 | AK72: 25.81495586 | AL72: 35.40136583 | AN72: 6.308910134 | AO72: 14.24604938 | AP72: 20.55495952 | AQ72: 11.18996089 | AR72: 25.30019017 | AS72: 36.49015106
D73: SPN | E73: 5.775312761 | F73: 11.4338061 | G73: 17.20911886 | H73: 10.5447812 | I73: 18.23171975 | J73: 28.77650094 | L73: 4.83 | M73: -3.82 | N73: 1.01 | O73: 11.37 | P73: -2.89 | Q73: 8.48 | S73: 4.651934985 | T73: 12.58096168 | U73: 17.23289666 | V73: 8.092173913 | W73: 17.51319347 | X73: 25.60536739 | Z73: 3.277712032 | AA73: 9.834985673 | AB73: 13.1126977 | AC73: 8.489429115 | AD73: 11.97936382 | AE73: 20.46879293 | AG73: 3.957487381 | AH73: 12.64898367 | AI73: 16.60647105 | AJ73: 10.69636462 | AK73: 19.97468951 | AL73: 30.67105412 | AN73: 4.95391924 | AO73: 13.36534685 | AP73: 18.31926609 | AQ73: 11.18284904 | AR73: 16.77837209 | AS73: 27.96122113
D74: EPN | E74: 4.499697838 | F74: -0.5103448276 | G74: 3.98935301 | H74: 5.914862249 | I74: 2.693236715 | J74: 8.608098964 | L74: 3.94 | M74: -11.92 | N74: -7.98 | O74: 5.86 | P74: -13.67 | Q74: -7.81 | S74: 2.819681698 | T74: -0.9793198529 | U74: 1.840361845 | V74: 4.156377473 | W74: 4.686503067 | X74: 8.842880541 | Z74: 2.915037594 | AA74: 0.3489319843 | AB74: 3.263969578 | AC74: 5.637462483 | AD74: 1.222006141 | AE74: 6.859468624 | AG74: 5.261317957 | AH74: 5.659427966 | AI74: 10.92074592 | AJ74: 9.934626866 | AK74: 10.99053647 | AL74: 20.92516333 | AN74: 5.898256381 | AO74: 8.007037944 | AP74: 13.90529432 | AQ74: 10.58345417 | AR74: 12.59503106 | AS74: 23.17848523
D75: SPD | E75: 4.574434157 | F75: 6.391408755 | G75: 10.96584291 | H75: 6.171719278 | I75: 2.598634413 | J75: 8.77035369 | L75: 4.902258217 | M75: -8.978408603 | N75: -4.076150386 | O75: 7.187779061 | P75: -18.94621558 | Q75: -11.75843652 | S75: 6.615863249 | T75: -16.80675337 | U75: -10.19089012 | V75: 6.491296166 | W75: -24.55302072 | X75: -18.06172455 | Z75: 6.9732584 | AA75: -12.17446497 | AB75: -5.201206568 | AC75: 7.75334552 | AD75: -24.32764277 | AE75: -16.57429725 | AG75: 6.498758626 | AH75: -9.288641213 | AI75: -2.789882587 | AJ75: 7.991092665 | AK75: -19.42155356 | AL75: -11.43046089 | AN75: 6.760813212 | AO75: -6.108379329 | AP75: 0.6524338825 | AQ75: 7.637044374 | AR75: -17.91363473 | AS75: -10.27659036
D76: SPMW | E76: 3.668890964 | F76: 1.269745615 | G76: 4.93863658 | H76: 4.161614039 | I76: 2.508318091 | J76: 6.66993213 | L76: 3.961062549 | M76: -8.430618732 | N76: -4.469556183 | O76: 4.204136865 | P76: -13.79394598 | Q76: -9.589809117 | S76: 4.484330702 | T76: -7.892007742 | U76: -3.40767704 | V76: 0.9535346184 | W76: -19.90737139 | X76: -18.95383677 | Z76: 4.450715897 | AA76: -15.92503309 | AB76: -11.4743172 | AC76: 1.414215671 | AD76: -20.58291087 | AE76: -19.16869519 | AG76: 4.634834976 | AH76: -18.9733654 | AI76: -14.33853043 | AJ76: 3.692827499 | AK76: -27.26563558 | AL76: -23.57280808 | AN76: 4.879664018 | AO76: -6.325327636 | AP76: -1.445663618 | AQ76: 2.758192106 | AR76: -14.60717963 | AS76: -11.84898752
D77: SSEH | E77: 6.278027356 | F77: 3.581850534 | G77: 9.859877889 | H77: 8.599600464 | I77: 12.68906631 | J77: 21.28866677 | L77: 5.225880116 | M77: 5.102575922 | N77: 10.32845604 | O77: 6.479039717 | P77: 12.27133046 | Q77: 18.75037017 | S77: 4.555877945 | T77: 7.24480318 | U77: 11.80068113 | V77: 4.683975464 | W77: 23.9499754 | X77: 28.63395086 | Z77: 5.918027356 | AA77: 12.98185053 | AB77: 18.89987789 | AC77: 8.359600464 | AD77: 24.90906631 | AE77: 33.26866677 | AG77: 5.516436056 | AH77: 17.9480024 | AI77: 23.46443846 | AJ77: 9.567732332 | AK77: 31.59936166 | AL77: 41.167094 | AN77: 4.988553671 | AO77: 15.56968664 | AP77: 20.55824031 | AQ77: 9.243764502 | AR77: 28.03049488 | AS77: 37.27425938
D78: SSES | E78: 5.533227827 | F78: 6.316136364 | G78: 11.84936419 | H78: 5.432283935 | I78: 2.147936191 | J78: 7.580220127 | L78: 5.504325084 | M78: -4.797027528 | N78: 0.7072975564 | O78: 5.143640719 | P78: -16.49588734 | Q78: -11.35224662 | S78: 4.778703526 | T78: -6.215136953 | U78: -1.436433427 | V78: 3.08901256 | W78: -16.81771353 | X78: -13.72870097 | Z78: 5.083227827 | AA78: 7.656136364 | AB78: 12.73936419 | AC78: 3.722283935 | AD78: 6.897936191 | AE78: 10.62022013 | AG78: 5.181359458 | AH78: 10.20669699 | AI78: 15.38805645 | AJ78: 7.843986691 | AK78: 12.32216971 | AL78: 20.1661564 | AN78: 4.631678048 | AO78: -2.497235267 | AP78: 2.134442781 | AQ78: 6.904964474 | AR78: -7.1605143 | AS78: -0.2555498261
D79: Industry Average | E79: =AVERAGE(E65:E78) -> 4.227390814 | F79: 10.66247919 | G79: 14.88987 | H79: 7.018466603 | I79: 13.84892781 | J79: 20.86739441 | L79: =AVERAGE(L65:L78) -> 4.499292964 | M79: 2.876559075 | N79: 7.375852039 | O79: 7.278451909 | P79: 3.870608598 | Q79: 11.14906051 | S79: 4.161148711 | T79: 7.754929218 | U79: 11.91607793 | V79: 5.55006768 | W79: 9.492968769 | X79: 15.04303645 | Z79: 4.310554553 | AA79: 10.20601484 | AB79: 14.51656939 | AC79: 6.455660591 | AD79: 12.29225916 | AE79: 18.74791976 | AG79: 5.033829368 | AH79: 12.3936624 | AI79: 17.42749177 | AJ79: 8.196370713 | AK79: 15.66892438 | AL79: 23.86529509 | AN79: 5.538254552 | AO79: 9.635230288 | AP79: 15.17348484 | AQ79: 8.338461978 | AR79: 7.983245527 | AS79: 16.3217075
D80: *2015/16 targets in cells E57:K57 | L80: *2016/17 targets in cells U57:AA57 | S80: *2017/18 targets in cells AJ57:AP57 | Z80: *2018/19 targets in cells AY57:BE57 | AG80: *2019/20 targets in cells BN57:BT57 | AN80: *2020/21 targets in cells CC57:CI57
B82: Connections Guaranteed Standards of Performance (GSOPs) | D82: Connections Guaranteed Standard of Performance
E83: 2015/16 | L83: 2016/17 | S83: 2017/18 | Z83: 2018/19 | AG83: 2019/20 | AN83: 2020/21 | AU83: 2021/22 | BB83: 2022/23
E84: Total number of cases where the Connection GSOPs apply | F84: Total number of cases where the Connection GSOPs apply and the standard was not met | G84: Total penalties paid against the Connection GSOPs (£) (2020/21 prices) | H84: % of total cases when standard not met | I84: RAG | J84: Ranking | L84: Total number of cases where the Connection GSOPs apply | M84: Total number of cases where the Connection GSOPs apply and the standard was not met | N84: Total penalties paid against the Connection GSOPs (£) (2020/21 prices) | O84: % of total cases when standard not met | P84: RAG | Q84: Ranking | S84: Total number of cases where the Connection GSOPs apply | T84: Total number of cases where the Connection GSOPs apply and the standard was not met | U84: Total penalties paid against the Connection GSOPs (£) (2020/21 prices) | V84: % of total cases when standard not met | W84: RAG | X84: Ranking | Z84: Total number of cases where the Connection GSOPs apply | AA84: Total number of cases where the Connection GSOPs apply and the standard was not met | AB84: Total penalties paid against the Connection GSOPs (£) (2020/21 prices) | AC84: % of total cases when standard not met | AD84: RAG | AE84: Ranking | AG84: Total number of cases where the Connection GSOPs apply | AH84: Total number of cases where the Connection GSOPs apply and the standard was not met | AI84: Total penalties paid against the Connection GSOPs (£) (2020/21 prices) | AJ84: % of total cases when standard not met | AK84: RAG | AL84: Ranking | AN84: Total number of cases where the Connection GSOPs apply | AO84: Total number of cases where the Connection GSOPs apply and the standard was not met | AP84: Total penalties paid against the Connection GSOPs (£) (2020/21 prices) | AQ84: % of total cases when standard not met | AR84: RAG | AS84: Ranking | AU84: Total number of cases where the Connection GSOPs apply | AV84: Total number of cases where the Connection GSOPs apply and the standard was not met | AW84: Total penalties paid against the Connection GSOPs (£) | AX84: % of total cases when standard not met | AY84: RAG | AZ84: Ranking | BB84: Total number of cases where the Connection GSOPs apply | BC84: Total number of cases where the Connection GSOPs apply and the standard was not met | BD84: Total penalties paid against the Connection GSOPs (£) | BE84: % of total cases when standard not met | BF84: RAG | BG84: Ranking
D85: ENWL | E85: 21541 | F85: 338 | G85: 108291.618 | H85: =F85/E85 -> 0.01569100785 | I85: =IF(H85<=2%,"Green",IF(H85:H85>5%,"Red","Amber")) -> Green | J85: =RANK(H85,$H$85:$H$98,1) -> 14 | L85: 19435 | M85: 179 | N85: 47206.90313 | O85: =M85/L85 -> 0.009210187806 | P85: =IF(O85<=2%,"Green",IF(O85:O85>5%,"Red","Amber")) -> Green | Q85: =RANK(O85,O$85:O$98,1) -> 14 | S85: 19960 | T85: 59 | U85: 11101.8327 | V85: =T85/S85 -> 0.002955911824 | W85: =IF(V85<=2%,"Green",IF(V85:V85>5%,"Red","Amber")) -> Green | X85: =RANK(V85,V$85:V$98,1) -> 9 | Z85: 20857 | AA85: 22 | AB85: 6697.224046 | AC85: =AA85/Z85 -> 0.001054801745 | AD85: =IF(AC85<=2%,"Green",IF(AC85:AC85>5%,"Red","Amber")) -> Green | AE85: =RANK(AC85,AC$85:AC$98,1) -> 7 | AG85: 19630 | AH85: 23 | AI85: 6821.744896 | AJ85: =AH85/AG85 -> 0.001171676006 | AK85: =IF(AJ85<=2%,"Green",IF(AJ85:AJ85>5%,"Red","Amber")) -> Green | AL85: =RANK(AJ85,AJ$85:AJ$98,1) -> 8 | AN85: 19633 | AO85: 39 | AP85: 16575 | AQ85: =AO85/AN85 -> 0.001986451383 | AR85: =IF(AQ85<=2%,"Green",IF(AQ85:AQ85>5%,"Red","Amber")) -> Green | AS85: =RANK(AQ85,AQ$85:AQ$98,1) -> 9
D86: NPgN | E86: 25025 | F86: 32 | G86: 4614.909013 | H86: =F86/E86 -> 0.001278721279 | I86: =IF(H86<=2%,"Green",IF(H86:H86>5%,"Red","Amber")) -> Green | J86: =RANK(H86,$H$85:$H$98,1) -> 9 | L86: 21151 | M86: 66 | N86: 10479.32194 | O86: =M86/L86 -> 0.003120419838 | P86: =IF(O86<=2%,"Green",IF(O86:O86>5%,"Red","Amber")) -> Green | Q86: =RANK(O86,O$85:O$98,1) -> 10 | S86: 22582 | T86: 110 | U86: 28019.42066 | V86: =T86/S86 -> 0.004871136303 | W86: =IF(V86<=2%,"Green",IF(V86:V86>5%,"Red","Amber")) -> Green | X86: =RANK(V86,V$85:V$98,1) -> 11 | Z86: 18686 | AA86: 84 | AB86: 22838.05316 | AC86: =AA86/Z86 -> 0.004495344108 | AD86: =IF(AC86<=2%,"Green",IF(AC86:AC86>5%,"Red","Amber")) -> Green | AE86: =RANK(AC86,AC$85:AC$98,1) -> 10 | AG86: 16874 | AH86: 222 | AI86: 28587.56448 | AJ86: =AH86/AG86 -> 0.01315633519 | AK86: =IF(AJ86<=2%,"Green",IF(AJ86:AJ86>5%,"Red","Amber")) -> Green | AL86: =RANK(AJ86,AJ$85:AJ$98,1) -> 14 | AN86: 15559 | AO86: 137 | AP86: 29700 | AQ86: =AO86/AN86 -> 0.008805193136 | AR86: =IF(AQ86<=2%,"Green",IF(AQ86:AQ86>5%,"Red","Amber")) -> Green | AS86: =RANK(AQ86,AQ$85:AQ$98,1) -> 13
D87: NPgY | E87: 35257 | F87: 29 | G87: 10159.60313 | H87: 0.0008225316958 | I87: =IF(H87<=2%,"Green",IF(H87:H87>5%,"Red","Amber")) -> Green | J87: 7 | L87: 30076 | M87: 50 | N87: 15291.59531 | O87: 0.001662455114 | P87: Green | Q87: =RANK(O87,O$85:O$98,1) -> 8 | S87: 29262 | T87: 176 | U87: 37591.07305 | V87: 0.006014626478 | W87: Green | X87: =RANK(V87,V$85:V$98,1) -> 12 | Z87: 27120 | AA87: 173 | AB87: 39186.54814 | AC87: 0.006379056047 | AD87: Green | AE87: =RANK(AC87,AC$85:AC$98,1) -> 12 | AG87: 25661 | AH87: 189 | AI87: 43526.57852 | AJ87: 0.007365262461 | AK87: Green | AL87: 13 | AN87: 24923 | AO87: 186 | AP87: 47595 | AQ87: 0.007462985997 | AR87: Green | AS87: 11
D88: WMID | E88: 36475 | F88: 0 | G88: 0 | H88: 0 | I88: Green | J88: 1 | L88: 33786 | M88: 0 | N88: 0 | O88: 0 | P88: Green | Q88: 1 | S88: 37789 | T88: 0 | U88: 0 | V88: 0 | W88: Green | X88: 1 | Z88: 36158 | AA88: 1 | AB88: 134.9828102 | AC88: 2.765639692e-05 | AD88: Green | AE88: 3 | AG88: 35222 | AH88: 0 | AI88: 0 | AJ88: 0 | AK88: Green | AL88: 1 | AN88: 36632 | AO88: 1 | AP88: 240 | AQ88: 2.72985368e-05 | AR88: Green | AS88: 2
D89: EMID | E89: 36477 | F89: 3 | G89: 294.8099124 | H89: 8.224360556e-05 | I89: Green | J89: 4 | L89: 35861 | M89: 0 | N89: 0 | O89: 0 | P89: Green | Q89: 1 | S89: 37198 | T89: 0 | U89: 0 | V89: 0 | W89: Green | X89: 1 | Z89: 38018 | AA89: 0 | AB89: 0 | AC89: 0 | AD89: Green | AE89: 1 | AG89: 37309 | AH89: 1 | AI89: 202.4256646 | AJ89: 2.680318422e-05 | AK89: Green | AL89: 3 | AN89: 37222 | AO89: 1 | AP89: 0 | AQ89: 2.686583203e-05 | AR89: Green | AS89: 1
D90: SWALES | E90: 17189 | F90: 0 | G90: 0 | H90: 0 | I90: Green | J90: 1 | L90: 17373 | M90: 0 | N90: 0 | O90: 0 | P90: Green | Q90: 1 | S90: 16412 | T90: 0 | U90: 0 | V90: 0 | W90: Green | X90: 1 | Z90: 15416 | AA90: 0 | AB90: 0 | AC90: 0 | AD90: Green | AE90: 1 | AG90: 15766 | AH90: 0 | AI90: 0 | AJ90: 0 | AK90: Green | AL90: 1 | AN90: 16693 | AO90: 1 | AP90: 15 | AQ90: 5.990534955e-05 | AR90: Green | AS90: 3
D91: SWEST | E91: 34727 | F91: 1 | G91: 73.7024781 | H91: 2.879603767e-05 | I91: Green | J91: 3 | L91: 35009 | M91: 0 | N91: 0 | O91: 0 | P91: Green | Q91: 1 | S91: 36429 | T91: 0 | U91: 0 | V91: 0 | W91: Green | X91: 1 | Z91: 35922 | AA91: 1 | AB91: 31.14987928 | AC91: 2.783809365e-05 | AD91: Green | AE91: 4 | AG91: 35406 | AH91: 7 | AI91: 3446.296939 | AJ91: 0.0001977066034 | AK91: Green | AL91: 4 | AN91: 36469 | AO91: 5 | AP91: 280 | AQ91: 0.0001371027448 | AR91: Green | AS91: 4
D92: LPN | E92: 23103 | F92: 59 | G92: 22620.99135 | H92: 0.002553780894 | I92: Green | J92: 11 | L92: 24042 | M92: 33 | N92: 3224.833712 | O92: 0.001372597954 | P92: Green | Q92: 7 | S92: 22392 | T92: 20 | U92: 6281.229684 | V92: 0.0008931761343 | W92: Green | X92: 6 | Z92: 21455 | AA92: 4 | AB92: 425.7150169 | AC92: 0.000186436728 | AD92: Green | AE92: 5 | AG92: 20903 | AH92: 19 | AI92: 8461.392779 | AJ92: 0.0009089604363 | AK92: Green | AL92: 6 | AN92: 19344 | AO92: 11 | AP92: 2820 | AQ92: 0.0005686517783 | AR92: Green | AS92: 6
D93: SPN | E93: 28093 | F93: 106 | G93: 50009.9661 | H93: 0.003773181931 | I93: Green | J93: 12 | L93: 28894 | M93: 148 | N93: 35850.60404 | O93: 0.005122170693 | P93: Green | Q93: 13 | S93: 29614 | T93: 65 | U93: 19587.37809 | V93: 0.002194907814 | W93: Green | X93: 7 | Z93: 28627 | AA93: 42 | AB93: 14261.45307 | AC93: 0.0014671464 | AD93: Green | AE93: 9 | AG93: 27565 | AH93: 45 | AI93: 6740.77463 | AJ93: 0.001632504988 | AK93: Green | AL93: 9 | AN93: 26971 | AO93: 18 | AP93: 3095 | AQ93: 0.000667383486 | AR93: Green | AS93: 7
D94: EPN | E94: 48149 | F94: 183 | G94: 53031.7677 | H94: 0.003800701988 | I94: Green | J94: 13 | L94: 51074 | M94: 241 | N94: 53628.81812 | O94: 0.004718643537 | P94: Green | Q94: 12 | S94: 51254 | T94: 113 | U94: 17752.23176 | V94: 0.002204705974 | W94: Green | X94: 8 | Z94: 52745 | AA94: 70 | AB94: 9116.531337 | AC94: 0.001327140013 | AD94: Green | AE94: 8 | AG94: 48337 | AH94: 55 | AI94: 12960.30317 | AJ94: 0.001137844715 | AK94: Green | AL94: 7 | AN94: 47039 | AO94: 19 | AP94: 2595 | AQ94: 0.0004039201514 | AR94: Green | AS94: 5
D95: SPD | E95: 14518 | F95: 23 | G95: 2868.727224 | H95: 0.001584240253 | I95: Green | J95: 10 | L95: 14270 | M95: 54 | N95: 8791.973494 | O95: 0.003784162579 | P95: Green | Q95: 11 | S95: 13973 | T95: 55 | U95: 11690.36359 | V95: 0.003936162599 | W95: Green | X95: 10 | Z95: 12718 | AA95: 133 | AB95: 52835.38691 | AC95: 0.01045761912 | AD95: Green | AE95: 13 | AG95: 12813 | AH95: 70 | AI95: 22651.43186 | AJ95: =AH95/AG95 -> 0.005463201436 | AK95: Green | AL95: =RANK(AJ95,AJ$85:AJ$98,1) -> 12 | AN95: 11603 | AO95: 101 | AP95: 21470 | AQ95: 0.00870464535 | AR95: Green | AS95: 12
D96: SPMW | E96: 17438 | F96: 12 | G96: 10913.63618 | H96: 0.000688152311 | I96: Green | J96: 5 | L96: 16411 | M96: 18 | N96: 3452.403733 | O96: 0.0010968253 | P96: Green | Q96: 6 | S96: 15272 | T96: 96 | U96: 27297.13275 | V96: 0.00628601362 | W96: Green | X96: 13 | Z96: 13664 | AA96: 64 | AB96: 43241.22409 | AC96: 0.004683840749 | AD96: Green | AE96: 11 | AG96: 12464 | AH96: 35 | AI96: 7297.445208 | AJ96: =AH96/AG96 -> 0.002808087291 | AK96: Green | AL96: =RANK(AJ96,AJ$85:AJ$98,1) -> 10 | AN96: 12471 | AO96: 37 | AP96: 15730 | AQ96: 0.002966883169 | AR96: Green | AS96: 10
D97: SSEH | E97: 17111 | F97: 16 | G97: 9603.999838 | H97: 0.000935071007 | I97: Green | J97: 8 | L97: 16147 | M97: 10 | N97: 6316.455704 | O97: 0.0006193100886 | P97: Green | Q97: 5 | S97: 15972 | T97: 14 | U97: 44776.50019 | V97: 0.0008765339344 | W97: Green | X97: 5 | Z97: 16295 | AA97: 17 | AB97: 15424.38189 | AC97: 0.001043264805 | AD97: Green | AE97: 6 | AG97: 14958 | AH97: 12 | AI97: 4939.186215 | AJ97: =AH97/AG97 -> 0.0008022462896 | AK97: Green | AL97: =RANK(AJ97,AJ$85:AJ$98,1) -> 5 | AN97: 13546 | AO97: 15 | AP97: 16425 | AQ97: 0.00110733796 | AR97: Green | AS97: 8
D98: SSES | E98: 50730 | F98: 38 | G98: 13527.23944 | H98: 0.0007490636704 | I98: Green | J98: 6 | L98: 46064 | M98: 121 | N98: 36611.02094 | O98: 0.002626780132 | P98: Green | Q98: 9 | S98: 48229 | T98: 307 | U98: 69553.65068 | V98: 0.006365464762 | W98: Green | X98: 14 | Z98: 49956 | AA98: 869 | AB98: 621434.9001 | AC98: 0.01739530787 | AD98: Green | AE98: 14 | AG98: 46817 | AH98: 229 | AI98: 68546.39066 | AJ98: =AH98/AG98 -> 0.004891385608 | AK98: Green | AL98: =RANK(AJ98,AJ$85:AJ$98,1) -> 11 | AN98: 46137 | AO98: 416 | AP98: 85770 | AQ98: 0.009016624401 | AR98: Green | AS98: 14
D99: Total | E99: =SUM(E85:E98) -> 405833 | F99: =SUM(F85:F98) -> 840 | G99: =SUM(G85:G98) -> 286010.9704 | L99: =SUM(L85:L98) -> 389593 | M99: =SUM(M85:M98) -> 920 | N99: =SUM(N85:N98) -> 220853.9301 | S99: =SUM(S85:S98) -> 396338 | T99: =SUM(T85:T98) -> 1015 | U99: =SUM(U85:U98) -> 273650.8132 | Z99: =SUM(Z85:Z98) -> 387637 | AA99: =SUM(AA85:AA98) -> 1480 | AB99: =SUM(AB85:AB98) -> 825627.5504 | AG99: =SUM(AG85:AG98) -> 369725 | AH99: =SUM(AH85:AH98) -> 907 | AI99: =SUM(AI85:AI98) -> 214181.535 | AN99: =SUM(AN85:AN98) -> 364242 | AO99: =SUM(AO85:AO98) -> 987 | AP99: =SUM(AP85:AP98) -> 242310 | AU99: =SUM(AU85:AU98) -> 0 | AV99: =SUM(AV85:AV98) -> 0 | AW99: =SUM(AW85:AW98) -> 0 | BB99: =SUM(BB85:BB98) -> 0 | BC99: =SUM(BC85:BC98) -> 0 | BD99: =SUM(BD85:BD98) -> 0

Sheet Ch2 outputs - cust sat
A1: Chapter 2 - Customer Satisfaction
C2: Performance against the outputs that DNOs are incentivised to deliver under RIIO-ED1.
B4: Customer Service: maintaining high levels of customer satisfaction and improving service where required. Undertaking effective stakeholder engagement and reflecting stakeholders' views in the day-to-day operation of their business.
B5: Incentive measure | F5: Incentive type
B6: Customer satisfaction survey: a survey under the Broad Measure of Customer Satisfaction (BMCS) of three customer types (connections, interruptions, general enquiries) to drive DNOs to deliver good customer service. | F6: Financial: reward or penalty of +/- 1% of base revenue which feeds into the overall reward or penalty under BMCS of +/- 1.5% of base revenues.
B7: Complaints metric: part of the Broad Measure of Customer Satisfaction measuring DNOs' complaint handling procedures to drive DNOs to deliver good customer service. | F7: Financial: penalty only of 0.5% of base revenue which feeds into the overall reward or penalty under BMCS of +/- 1.5% of base revenues.
B8: Stakeholder engagement and customer vulnerability: annual panel assessment with reward for DNOs who demonstrate strong engagement with all stakeholders and address customer vulnerability issues. | F8: Financial: reward only of 0.5% of base revenue which feeds into the reward or penalty under BMCS of +/- 1.5% of base revenues.
B11: Customer satisfaction survey
D12: Customer satisfaction scores (out of 10)
E13: 2014/15 | F13: 2015/16 | G13: 2016/17 | H13: 2017/18 | I13: 2018/19 | J13: 2019/20 | K13: 2020/21 | L13: 2021/22 | M13: 2022/23 | O13: 2012/13 - baseline
D14: Interruptions | E14: 8.624285714 | F14: =AVERAGE(E23:E36) -> 8.745 | G14: =AVERAGE(K23:K36) -> 8.798335714 | H14: =AVERAGE(Q23:Q36) -> 8.839011901 | I14: =AVERAGE(W23:W36) -> 8.950271429 | J14: =AVERAGE(AC23:AC36) -> 9.015122347 | K14: =AVERAGE(AI23:AI36) -> 9.100814286 | O14: 8.2
D15: Connections | E15: 8.16 | F15: =AVERAGE(F23:F36) -> 8.320714286 | G15: =AVERAGE(L23:L36) -> 8.485342857 | H15: =AVERAGE(R23:R36) -> 8.55074279 | I15: =AVERAGE(X23:X36) -> 8.6924 | J15: =AVERAGE(AD23:AD36) -> 8.952098052 | K15: =AVERAGE(AJ23:AJ36) -> 9.065214286 | O15: 7.76
D16: General Enquiries | E16: 8.725714286 | F16: =AVERAGE(G23:G36) -> 8.974285714 | G16: =AVERAGE(M23:M36) -> 9.09265 | H16: =AVERAGE(S23:S36) -> 9.054650962 | I16: =AVERAGE(Y23:Y36) -> 9.1381 | J16: =AVERAGE(AE23:AE36) -> 9.27475345 | K16: =AVERAGE(AK23:AK36) -> 9.390821429 | O16: 8.05
D19: Annual customer satisfaction score by DNO per category (out of 10)
E20: 2015/16 | K20: 2016/17 | Q20: 2017/18 | W20: 2018/19 | AC20: 2019/20 | AI20: 2020/21 | AO20: 2021/22 | AU20: 2022/23
E21: Interruptions | F21: Connections | G21: General Enquiries | H21: Overall | I21: RAG | J21: Ranking | K21: Interruptions | L21: Connections | M21: General Enquiries | N21: Overall | O21: RAG | P21: Ranking | Q21: Interruptions | R21: Connections | S21: General Enquiries | T21: Overall | U21: RAG | V21: Ranking | W21: Interruptions | X21: Connections | Y21: General Enquiries | Z21: Overall | AA21: RAG | AB21: Ranking | AC21: Interruptions | AD21: Connections | AE21: General Enquiries | AF21: Overall | AG21: RAG | AH21: Ranking | AI21: Interruptions | AJ21: Connections | AK21: General Enquiries | AL21: Overall | AM21: RAG | AN21: Ranking | AO21: Interruptions | AP21: Connections | AQ21: General Enquiries | AR21: Overall | AS21: RAG | AT21: Ranking | AU21: Interruptions | AV21: Connections | AW21: General Enquiries | AX21: Overall | AY21: RAG | AZ21: Ranking
E22: 0.3 | F22: 0.5 | G22: 0.2 | K22: 0.3 | L22: 0.5 | M22: 0.2 | Q22: 0.3 | R22: 0.5 | S22: 0.2 | W22: 0.3 | X22: 0.5 | Y22: 0.2 | AC22: 0.3 | AD22: 0.5 | AE22: 0.2 | AI22: 0.3 | AJ22: 0.5 | AK22: 0.2 | AO22: 0.3 | AP22: 0.5 | AQ22: 0.2 | AU22: 0.3 | AV22: 0.5 | AW22: 0.2
C23: =Z23-H23 -> 0.6441 | D23: ENWL | E23: 8.08 | F23: 7.75 | G23: 8.52 | H23: =(E23*E$22)+(F23*F$22)+(G23*G$22) -> 8.003 | I23: =IF(H23<7.79,"Red",IF(H23>=8.2,"Green","Amber")) -> Amber | J23: =RANK(H23,H$23:H$36,0) -> 14 | K23: 8.1788 | L23: 8.2403 | M23: 8.7478 | N23: =(K23*K$22)+(L23*L$22)+(M23*M$22) -> 8.32335 | O23: =IF(N23<7.79,"Red",IF(N23>=8.2,"Green","Amber")) -> Green | P23: =RANK(N23,N$23:N$36,0) -> 14 | Q23: 8.3228 | R23: 8.3476 | S23: 8.9806 | T23: =(Q23*Q$22)+(R23*R$22)+(S23*S$22) -> 8.46676 | U23: =IF(T23<7.79,"Red",IF(T23>=8.2,"Green","Amber")) -> Green | V23: =RANK(T23,T$23:T$36,0) -> 13 | W23: 8.6774 | X23: 8.4408 | Y23: 9.1174 | Z23: =(W23*W$22)+(X23*X$22)+(Y23*Y$22) -> 8.6471 | AA23: =IF(Z23<7.79,"Red",IF(Z23>=8.2,"Green","Amber")) -> Green | AB23: =RANK(Z23,Z$23:Z$36,0) -> 12 | AC23: 8.7385 | AD23: 8.764 | AE23: 9.2297 | AF23: =(AC23*AC$22)+(AD23*AD$22)+(AE23*AE$22) -> 8.84949 | AG23: =IF(AF23<7.79,"Red",IF(AF23>=8.2,"Green","Amber")) -> Green | AH23: =RANK(AF23,AF$23:AF$36,0) -> 12 | AI23: 8.9091 | AJ23: 9.0947 | AK23: 9.3011 | AL23: =(AI23*AI$22)+(AJ23*AJ$22)+(AK23*AK$22) -> 9.0803 | AM23: =IF(AL23<7.79,"Red",IF(AL23>=8.2,"Green","Amber")) -> Green | AN23: =RANK(AL23,AL$23:AL$36,0) -> 12
C24: 0.336 | D24: NPgN | E24: 8.68 | F24: 8.03 | G24: 8.93 | H24: =(E24*E$22)+(F24*F$22)+(G24*G$22) -> 8.405 | I24: =IF(H24<7.79,"Red",IF(H24>=8.2,"Green","Amber")) -> Green | J24: =RANK(H24,H$23:H$36,0) -> 10 | K24: 8.8098 | L24: 8.4809 | M24: 9.0074 | N24: =(K24*K$22)+(L24*L$22)+(M24*M$22) -> 8.68487 | O24: =IF(N24<7.79,"Red",IF(N24>=8.2,"Green","Amber")) -> Green | P24: =RANK(N24,N$23:N$36,0) -> 8 | Q24: 8.77 | R24: 8.55 | S24: 9.05 | T24: =(Q24*Q$22)+(R24*R$22)+(S24*S$22) -> 8.716 | U24: =IF(T24<7.79,"Red",IF(T24>=8.2,"Green","Amber")) -> Green | V24: =RANK(T24,T$23:T$36,0) -> 10 | W24: 8.84 | X24: 8.55 | Y24: 9.07 | Z24: =(W24*W$22)+(X24*X$22)+(Y24*Y$22) -> 8.741 | AA24: =IF(Z24<7.79,"Red",IF(Z24>=8.2,"Green","Amber")) -> Green | AB24: =RANK(Z24,Z$23:Z$36,0) -> 10 | AC24: 8.9274 | AD24: 8.9743 | AE24: 9.2922 | AF24: =(AC24*AC$22)+(AD24*AD$22)+(AE24*AE$22) -> 9.02381 | AG24: =IF(AF24<7.79,"Red",IF(AF24>=8.2,"Green","Amber")) -> Green | AH24: =RANK(AF24,AF$23:AF$36,0) -> 10 | AI24: 9.13 | AJ24: 8.99 | AK24: 9.52 | AL24: =(AI24*AI$22)+(AJ24*AJ$22)+(AK24*AK$22) -> 9.138 | AM24: =IF(AL24<7.79,"Red",IF(AL24>=8.2,"Green","Amber")) -> Green | AN24: =RANK(AL24,AL$23:AL$36,0) -> 9
C25: 0.283 | D25: NPgY | E25: 8.69 | F25: 7.95 | G25: 8.76 | H25: 8.334 | I25: =IF(H25<7.79,"Red",IF(H25>=8.2,"Green","Amber")) -> Green | J25: =RANK(H25,H$23:H$36,0) -> 12 | K25: 8.7253 | L25: 8.4332 | M25: 8.7674 | N25: 8.58767 | O25: Green | P25: 12 | Q25: 8.73 | R25: 8.34 | S25: 8.84 | T25: =(Q25*Q$22)+(R25*R$22)+(S25*S$22) -> 8.557 | U25: =IF(T25<7.79,"Red",IF(T25>=8.2,"Green","Amber")) -> Green | V25: =RANK(T25,T$23:T$36,0) -> 12 | W25: 8.79 | X25: 8.44 | Y25: 8.8 | Z25: =(W25*W$22)+(X25*X$22)+(Y25*Y$22) -> 8.617 | AA25: =IF(Z25<7.79,"Red",IF(Z25>=8.2,"Green","Amber")) -> Green | AB25: =RANK(Z25,Z$23:Z$36,0) -> 13 | AC25: 8.8714 | AD25: 8.7422 | AE25: 8.8167 | AF25: =(AC25*AC$22)+(AD25*AD$22)+(AE25*AE$22) -> 8.79586 | AG25: =IF(AF25<7.79,"Red",IF(AF25>=8.2,"Green","Amber")) -> Green | AH25: =RANK(AF25,AF$23:AF$36,0) -> 13 | AI25: 9.01 | AJ25: 8.82 | AK25: 9.28 | AL25: =(AI25*AI$22)+(AJ25*AJ$22)+(AK25*AK$22) -> 8.969 | AM25: =IF(AL25<7.79,"Red",IF(AL25>=8.2,"Green","Amber")) -> Green | AN25: 13
C26: 0.19066 | D26: WMID | E26: 8.88 | F26: 8.7 | G26: 9.14 | H26: 8.842 | I26: Green | J26: 4 | K26: 8.98 | L26: 8.66 | M26: 9.2 | N26: 8.864 | O26: Green | P26: 4 | Q26: 8.9862 | R26: 8.7127 | S26: 9.2665 | T26: 8.90551 | U26: Green | V26: 2 | W26: 9.0773 | X26: 8.8675 | Y26: 9.3786 | Z26: 9.03266 | AA26: Green | AB26: 3 | AC26: 9.0828 | AD26: 8.9723 | AE26: 9.4834 | AF26: 9.10767 | AG26: Green | AH26: 7 | AI26: 9.126 | AJ26: 9.0375 | AK26: 9.3295 | AL26: 9.12245 | AM26: Green | AN26: 11
C27: 0.03116 | D27: EMID | E27: 8.97 | F27: 8.79 | G27: 9.35 | H27: 8.956 | I27: Green | J27: 2 | K27: 9.02 | L27: 8.78 | M27: 9.32 | N27: 8.96 | O27: =IF(N27<7.79,"Red",IF(N27>=8.2,"Green","Amber")) -> Green | P27: 1 | Q27: 8.8675 | R27: 8.8073 | S27: 9.1944 | T27: 8.90278 | U27: Green | V27: 3 | W27: 9.031 | X27: 8.872 | Y27: 9.2093 | Z27: 8.98716 | AA27: Green | AB27: 5 | AC27: 9.0698 | AD27: 9.0133 | AE27: 9.492 | AF27: 9.12599 | AG27: Green | AH27: 6 | AI27: 9.0932 | AJ27: 9.1307 | AK27: 9.5006 | AL27: 9.19343 | AM27: Green | AN27: 8
C28: 0.15618 | D28: SWALES | E28: 9.14 | F28: 8.75 | G28: 9.29 | H28: 8.975 | I28: Green | J28: 1 | K28: 9.07 | L28: 8.68 | M28: 9.15 | N28: 8.891 | O28: Green | P28: 3 | Q28: 9.1037 | R28: 8.9076 | S28: 9.2067 | T28: 9.02625 | U28: Green | V28: 1 | W28: 9.234 | X28: 8.9812 | Y28: 9.3519 | Z28: 9.13118 | AA28: Green | AB28: 1 | AC28: 9.1762 | AD28: 9.0532 | AE28: 9.4124 | AF28: 9.16194 | AG28: Green | AH28: 3 | AI28: 9.2447 | AJ28: 9.1721 | AK28: 9.5983 | AL28: 9.27912 | AM28: Green | AN28: 2
C29: 0.11793 | D29: SWEST | E29: 8.86 | F29: 8.73 | G29: 9.18 | H29: 8.859 | I29: Green | J29: 3 | K29: 8.92 | L29: 8.77 | M29: 9.24 | N29: 8.909 | O29: Green | P29: 2 | Q29: 8.8683 | R29: 8.7658 | S29: 9.2888 | T29: 8.90115 | U29: Green | V29: 4 | W29: 9.0012 | X29: 8.8419 | Y29: 9.2781 | Z29: 8.97693 | AA29: Green | AB29: 6 | AC29: 9.1017 | AD29: 8.9498 | AE29: 9.3491 | AF29: 9.07523 | AG29: Green | AH29: 8 | AI29: 9.1473 | AJ29: 9.0115 | AK29: 9.4372 | AL29: 9.13738 | AM29: Green | AN29: 10
C30: 0.38898 | D30: LPN | E30: 8.52 | F30: 8.13 | G30: 8.86 | H30: 8.393 | I30: Green | J30: 11 | K30: 8.5501 | L30: 8.4166 | M30: 9.3043 | N30: 8.63419 | O30: Green | P30: 10 | Q30: 8.77 | R30: 8.7 | S30: 8.84 | T30: 8.749 | U30: Green | V30: 6 | W30: 8.7892 | X30: 8.6432 | Y30: 9.1181 | Z30: 8.78198 | AA30: Green | AB30: 9 | AC30: 9.034246575 | AD30: 8.948672566 | AE30: 9.333333333 | AF30: 9.051276922 | AG30: Green | AH30: 9 | AI30: 9.2424 | AJ30: 9.066 | AK30: 9.5727 | AL30: 9.22026 | AM30: Green | AN30: 6
C31: 0.15677 | D31: SPN | E31: 8.63 | F31: 8.34 | G31: 9.12 | H31: 8.583 | I31: Green | J31: 8 | K31: 8.7693 | L31: 8.4119 | M31: 9.2622 | N31: 8.68918 | O31: Green | P31: 7 | Q31: 8.793373494 | R31: 8.503448276 | S31: 9.254901961 | T31: 8.740716578 | U31: Green | V31: 8 | W31: 8.951 | X31: 8.4701 | Y31: 9.0971 | Z31: 8.73977 | AA31: Green | AB31: 11 | AC31: 8.989037759 | AD31: 8.847392638 | AE31: 9.28407225 | AF31: 8.977222097 | AG31: Green | AH31: 11 | AI31: 9.1478 | AJ31: 9.1246 | AK31: 9.4942 | AL31: 9.20548 | AM31: Green | AN31: 7
C32: 0.26589 | D32: EPN | E32: 8.88 | F32: 8.1 | G32: 9.16 | H32: 8.546 | I32: Green | J32: 9 | K32: 8.8178 | L32: 8.18 | M32: 9.3541 | N32: 8.60616 | O32: Green | P32: 11 | Q32: 8.883293124 | R32: 8.429350791 | S32: 9.228611501 | T32: 8.725385633 | U32: Green | V32: 9 | W32: 9.0434 | X32: 8.5071 | Y32: 9.2266 | Z32: 8.81189 | AA32: Green | AB32: 8 | AC32: 9.125228519 | AD32: 9.035307517 | AE32: 9.450242718 | AF32: 9.145270858 | AG32: Green | AH32: 5 | AI32: 9.1745 | AJ32: 9.3531 | AK32: 9.5418 | AL32: 9.33726 | AM32: Green | AN32: =RANK(AL32,AL$23:AL$36,0) -> 1
C33: 0.35007 | D33: SPD | E33: 8.79 | F33: 8.36 | G33: 8.84 | H33: 8.585 | I33: Green | J33: 7 | K33: 8.7406 | L33: 8.4311 | M33: 9.045 | N33: 8.64673 | O33: Green | P33: 9 | Q33: 8.822 | R33: 8.5213 | S33: 8.9478 | T33: 8.69681 | U33: Green | V33: 11 | W33: 8.8902 | X33: 8.8173 | Y33: 9.2968 | Z33: 8.93507 | AA33: Green | AB33: 7 | AC33: 9.1328 | AD33: 9.1242 | AE33: 9.3218 | AF33: 9.1663 | AG33: Green | AH33: 2 | AI33: 9.1794 | AJ33: 9.1582 | AK33: 9.4667 | AL33: 9.22626 | AM33: Green | AN33: 5
C34: 0.28588 | D34: SPMW | E34: 8.86 | F34: 8.43 | G34: 9.24 | H34: 8.721 | I34: Green | J34: 6 | K34: 8.735 | L34: 8.6808 | M34: 9.2989 | N34: 8.82068 | O34: =IF(N34<7.79,"Red",IF(N34>=8.2,"Green","Amber")) -> Green | P34: 6 | Q34: 8.859 | R34: 8.4253 | S34: 9.3868 | T34: 8.74771 | U34: Green | V34: 7 | W34: 8.9991 | X34: 8.8825 | Y34: 9.3295 | Z34: 9.00688 | AA34: Green | AB34: 4 | AC34: 9.0626 | AD34: 9.1047 | AE34: 9.4416 | AF34: 9.15945 | AG34: Green | AH34: 4 | AI34: 9.197 | AJ34: 9.1046 | AK34: 9.6294 | AL34: 9.23728 | AM34: Green | AN34: 4
C35: 0.332 | D35: SSEH | E35: 9.06 | F35: 8.55 | G35: 8.72 | H35: 8.737 | I35: Green | J35: 5 | K35: 9.15 | L35: 8.53 | M35: 9.06 | N35: 8.822 | O35: Green | P35: 5 | Q35: 9.22 | R35: 8.59 | S35: 8.96 | T35: 8.853 | U35: Green | V35: 5 | W35: 9.19 | X35: 8.96 | Y35: 9.16 | Z35: 9.069 | AA35: Green | AB35: 2 | AC35: 9.23 | AD35: 9.16 | AE35: 9.21 | AF35: 9.191 | AG35: Green | AH35: 1 | AI35: 9.25 | AJ35: 9.31 | AK35: 9.13 | AL35: 9.256 | AM35: Green | AN35: 3
C36: 0.384 | D36: SSES | E36: 8.39 | F36: 7.88 | G36: 8.53 | H36: 8.163 | I36: =IF(H36<7.79,"Red",IF(H36>=8.2,"Green","Amber")) -> Amber | J36: 13 | K36: 8.71 | L36: 8.1 | M36: 8.54 | N36: 8.371 | O36: =IF(N36<7.79,"Red",IF(N36>=8.2,"Green","Amber")) -> Green | P36: 13 | Q36: 8.75 | R36: 8.11 | S36: 8.32 | T36: 8.344 | U36: Green | V36: 14 | W36: 8.79 | X36: 8.42 | Y36: 8.5 | Z36: 8.547 | AA36: Green | AB36: 14 | AC36: 8.67 | AD36: 8.64 | AE36: 8.73 | AF36: 8.667 | AG36: Green | AH36: 14 | AI36: 8.56 | AJ36: 8.54 | AK36: 8.67 | AL36: 8.572 | AM36: Green | AN36: 14
D37: Target | E37: 8.2 | F37: 8.2 | G37: 8.2 | H37: 8.2 | K37: 8.2 | L37: 8.2 | M37: 8.2 | N37: 8.2 | Q37: 8.2 | R37: 8.2 | S37: 8.2 | T37: 8.2 | W37: 8.2 | X37: 8.2 | Y37: 8.2 | Z37: 8.2 | AC37: 8.2 | AD37: 8.2 | AE37: 8.2 | AF37: 8.2 | AI37: 8.2 | AJ37: 8.2 | AK37: 8.2 | AL37: 8.2 | AO37: 8.2 | AP37: 8.2 | AQ37: 8.2 | AU37: 8.2 | AV37: 8.2 | AW37: 8.2
B40: Complaints metric | D40: DNO complaint metric scores
E41: 2015/16 | L41: 2016/17 | S41: 2017/18 | Z41: 2018/19 | AG41: 2019/20 | AN41: 2020/21 | AU41: 2021/22 | BB41: 2022/23
E42: The percentage of total complaints outstanding after one day | F42: The percentage of total complaints outstanding after 31 days | G42: The percentage of total complaints that are repeat complaints | H42: The number of Energy Ombudsman (EO) Findings Against the Licensee as a percentage of the total complaints | I42: Complaints Metric Score | J42: RAG | K42: Ranking | L42: The percentage of total complaints outstanding after one day | M42: The percentage of total complaints outstanding after 31 days | N42: The percentage of total complaints that are repeat complaints | O42: The number of Energy Ombudsman (EO) Findings Against the Licensee as a percentage of the total complaints | P42: Complaints Metric Score | Q42: RAG | R42: Ranking | S42: The percentage of total complaints outstanding after one day | T42: The percentage of total complaints outstanding after 31 days | U42: The percentage of total complaints that are repeat complaints | V42: The number of Energy Ombudsman (EO) Findings Against the Licensee as a percentage of the total complaints | W42: Complaints Metric Score | X42: RAG | Y42: Ranking | Z42: The percentage of total complaints outstanding after one day | AA42: The percentage of total complaints outstanding after 31 days | AB42: The percentage of total complaints that are repeat complaints | AC42: The number of Energy Ombudsman (EO) Findings Against the Licensee as a percentage of the total complaints | AD42: Complaints Metric Score | AE42: RAG | AF42: Ranking | AG42: The percentage of total complaints outstanding after one day | AH42: The percentage of total complaints outstanding after 31 days | AI42: The percentage of total complaints that are repeat complaints | AJ42: The number of Energy Ombudsman (EO) Findings Against the Licensee as a percentage of the total complaints | AK42: Complaints Metric Score | AL42: RAG | AM42: Ranking | AN42: The percentage of total complaints outstanding after one day | AO42: The percentage of total complaints outstanding after 31 days | AP42: The percentage of total complaints that are repeat complaints | AQ42: The number of Energy Ombudsman (EO) Findings Against the Licensee as a percentage of the total complaints | AR42: Complaints Metric Score | AS42: RAG | AT42: Ranking | AU42: The percentage of total complaints outstanding after one day | AV42: The percentage of total complaints outstanding after 31 days | AW42: The percentage of total complaints that are repeat complaints | AX42: The number of Energy Ombudsman (EO) Findings Against the Licensee as a percentage of the total complaints | AY42: Complaints Metric Score | AZ42: RAG | BA42: Ranking | BB42: The percentage of total complaints outstanding after one day | BC42: The percentage of total complaints outstanding after 31 days | BD42: The percentage of total complaints that are repeat complaints | BE42: The number of Energy Ombudsman (EO) Findings Against the Licensee as a percentage of the total complaints | BF42: Complaints Metric Score | BG42: RAG | BH42: Ranking
D43: ENWL | E43: 0.4879626684 | F43: 0.09248064482 | G43: 0 | H43: 0 | I43: 7.654046028 | J43: =IF(I43<=$I$57,"Green",IF(I43<=$I$57*1.05,"Amber","Red")) -> Green | K43: =RANK(I43,I$43:I$56,1) -> 13 | L43: 0.2330568481 | M43: 0.03722435768 | N43: 0 | O43: 0 | P43: 3.447299211 | Q43: =IF(P43<=$P$57,"Green",IF(P43<=$P$57*1.05,"Amber","Red")) -> Green | R43: =RANK(P43,P$43:P$56,1) -> 9 | S43: 0.1792799412 | T43: 0.01653196179 | U43: 0 | V43: 0 | W43: 2.288758266 | X43: =IF(W43<=$W$57,"Green",IF(W43<=$W$57*1.05,"Amber","Red")) -> Green | Y43: =RANK(W43,W$43:W$56,1) -> 6 | Z43: 0.1790081522 | AA43: 0.008831521739 | AB43: 0 | AC43: 0 | AD43: 2.055027174 | AE43: =IF(AD43<=$W$57,"Green",IF(AD43<=$W$57*1.05,"Amber","Red")) -> Green | AF43: =RANK(AD43,AD$43:AD$56,1) -> 8 | AG43: 0.1558419819 | AH43: 0.01104787412 | AI43: 0 | AJ43: 0 | AK43: 1.889856043 | AL43: =IF(AK43<=$AK$57,"Green",IF(AK43<=$AK$57*1.05,"Amber","Red")) -> Green | AM43: =RANK(AK43,AK$43:AK$56,1) -> 6 | AN43: 0.1424388564 | AO43: 0.01085084395 | AP43: 0 | AQ43: 0 | AR43: 1.749913882 | AS43: =IF(AR43<=$AR$57,"Green",IF(AR43<=$AK$57*1.05,"Amber","Red")) -> Green | AT43: =RANK(AR43,AR$43:AR$56,1) -> 7
D44: NPgN | E44: 0.4985549133 | F44: 0.09971098266 | G44: 0.0004816955684 | H44: 0 | I44: 8.000963391 | J44: Green | K44: 14 | L44: 0.3858093126 | M44: 0.1075388027 | N44: 0 | O44: 0 | P44: 7.084257206 | Q44: =IF(P44<=$P$57,"Green",IF(P44<=$P$57*1.05,"Amber","Red")) -> Green | R44: 14 | S44: 0.2820343461 | T44: 0.07529722589 | U44: 0 | V44: 0 | W44: 5.079260238 | X44: =IF(W44<=$W$57,"Green",IF(W44<=$W$57*1.05,"Amber","Red")) -> Green | Y44: =RANK(W44,W$43:W$56,1) -> 14 | Z44: 0.2171945701 | AA44: 0.04524886878 | AB44: 0 | AC44: 0 | AD44: 3.529411765 | AE44: =IF(AD44<=$W$57,"Green",IF(AD44<=$W$57*1.05,"Amber","Red")) -> Green | AF44: =RANK(AD44,AD$43:AD$56,1) -> 14 | AG44: 0.1643454039 | AH44: 0.03621169916 | AI44: 0 | AJ44: 0 | AK44: 2.729805014 | AL44: Green | AM44: =RANK(AK44,AK$43:AK$56,1) -> 14 | AN44: 0.1750805585 | AO44: 0.03222341568 | AP44: 0 | AQ44: 0 | AR44: 2.717508056 | AS44: =IF(AR44<=$AR$57,"Green",IF(AR44<=$AK$57*1.05,"Amber","Red")) -> Green | AT44: =RANK(AR44,AR$43:AR$56,1) -> 12
D45: NPgY | E45: 0.473316913 | F45: 0.08128078818 | G45: 0.0004105090312 | H45: 0 | I45: 7.192118227 | J45: Green | K45: 12 | L45: 0.3170620438 | M45: 0.07436131387 | N45: 0 | O45: 0 | P45: 5.401459854 | Q45: Green | R45: 12 | S45: 0.2820242488 | T45: 0.06062203479 | U45: 0 | V45: 0 | W45: 4.638903532 | X45: Green | Y45: 13 | Z45: 0.1811158798 | AA45: 0.02832618026 | AB45: 0 | AC45: 0 | AD45: 2.660944206 | AE45: Green | AF45: 11 | AG45: 0.1451612903 | AH45: 0.02284946237 | AI45: 0 | AJ45: 0 | AK45: 2.137096774 | AL45: Green | AM45: 11 | AN45: 0.162109375 | AO45: 0.0390625 | AP45: 0 | AQ45: 0 | AR45: 2.79296875 | AS45: Green | AT45: 13
D46: WMID | E46: 0.1480505796 | F46: 0.007376185458 | G46: 0 | H46: 0 | I46: 1.701791359 | J46: Green | K46: 1 | L46: 0.1252399232 | M46: 0.00575815739 | N46: 0 | O46: 0 | P46: 1.425143954 | Q46: Green | R46: 1 | S46: 0.1162909836 | T46: 0.006147540984 | U46: 0 | V46: 0 | W46: 1.347336066 | X46: Green | Y46: 1 | Z46: 0.1160924965 | AA46: 0.003775365739 | AB46: 0 | AC46: 0 | AD46: 1.274185937 | AE46: Green | AF46: 3 | AG46: 0.08507462687 | AH46: 0.008457711443 | AI46: 0 | AJ46: 0 | AK46: 1.104477612 | AL46: Green | AM46: 2 | AN46: 0.09108910891 | AO46: 0.007920792079 | AP46: 0 | AQ46: 0 | AR46: 1.148514851 | AS46: Green | AT46: 2
D47: EMID | E47: 0.1588669951 | F47: 0.01108374384 | G47: 0 | H47: 0 | I47: 1.921182266 | J47: Green | K47: 2 | L47: 0.1431034483 | M47: 0.01034482759 | N47: 0 | O47: 0 | P47: 1.74137931 | Q47: Green | R47: 2 | S47: 0.1253644315 | T47: 0.008163265306 | U47: 0 | V47: 0 | W47: 1.498542274 | X47: Green | Y47: 2 | Z47: 0.1061766207 | AA47: 0.00561510975 | AB47: 0 | AC47: 0 | AD47: 1.2302195 | AE47: Green | AF47: 2 | AG47: 0.08024691358 | AH47: 0.007122507123 | AI47: 0 | AJ47: 0 | AK47: 1.016144349 | AL47: Green | AM47: 1 | AN47: 0.08246887967 | AO47: 0.008817427386 | AP47: 0 | AQ47: 0 | AR47: 1.089211618 | AS47: Green | AT47: 1
D48: SWALES | E48: 0.2439281943 | F48: 0.02006335797 | G48: 0 | H48: 0 | I48: 3.041182682 | J48: Green | K48: 4 | L48: 0.1983663944 | M48: 0.02100350058 | N48: 0 | O48: 0 | P48: 2.613768961 | Q48: Green | R48: 5 | S48: 0.2054794521 | T48: 0.01598173516 | U48: 0 | V48: 0 | W48: 2.534246575 | X48: Green | Y48: 7 | Z48: 0.1582417582 | AA48: 0.008791208791 | AB48: 0 | AC48: 0 | AD48: 1.846153846 | AE48: Green | AF48: 6 | AG48: 0.1698754247 | AH48: 0.01698754247 | AI48: 0 | AJ48: 0 | AK48: 2.208380521 | AL48: Green | AM48: 13 | AN48: 0.1898864809 | AO48: 0.02270381837 | AP48: 0 | AQ48: 0 | AR48: 2.57997936 | AS48: Green | AT48: 11
D49: SWEST | E49: 0.1954066265 | F49: 0.01468373494 | G49: 0.0003765060241 | H49: 0 | I49: 2.413403614 | J49: Green | K49: 3 | L49: 0.1814569536 | M49: 0.01589403974 | N49: 0 | O49: 0 | P49: 2.291390728 | Q49: Green | R49: 4 | S49: 0.1635420822 | T49: 0.009972078181 | U49: 0 | V49: 0 | W49: 1.934583167 | X49: Green | Y49: 4 | Z49: 0.1673553719 | AA49: 0.01239669421 | AB49: 0.0004132231405 | AC49: 0 | AD49: 2.066115702 | AE49: Green | AF49: 9 | AG49: 0.1454856654 | AH49: 0.02225074882 | AI49: 0 | AJ49: 0 | AK49: 2.122379119 | AL49: Green | AM49: 10 | AN49: 0.1424541608 | AO49: 0.01833568406 | AP49: 0 | AQ49: 0 | AR49: 1.97461213 | AS49: Green | AT49: 9
D50: LPN | E50: 0.3590096286 | F50: 0.05295735901 | G50: 0 | H50: 0 | I50: 5.178817056 | J50: Green | K50: 9 | L50: 0.3456090652 | M50: 0.07507082153 | N50: 0 | O50: 0 | P50: 5.708215297 | Q50: Green | R50: 13 | S50: 0.2565130261 | T50: 0.05911823647 | U50: 0 | V50: 0 | W50: 4.338677355 | X50: Green | Y50: 12 | Z50: 0.1931567329 | AA50: 0.02869757174 | AB50: 0 | AC50: 0 | AD50: 2.792494481 | AE50: Green | AF50: 12 | AG50: 0.170153417 | AH50: 0.01534170153 | AI50: 0 | AJ50: 0 | AK50: 2.161785216 | AL50: Green | AM50: 12 | AN50: 0.1338709677 | AO50: 0.006451612903 | AP50: 0 | AQ50: 0 | AR50: 1.532258065 | AS50: Green | AT50: 6
D51: SPN | E51: 0.4019534185 | F51: 0.06949661908 | G51: 0 | H51: 0 | I51: 6.104432757 | J51: Green | K51: 11 | L51: 0.3390461997 | M51: 0.06333830104 | N51: 0 | O51: 0 | P51: 5.290611028 | Q51: Green | R51: 11 | S51: 0.2431451613 | T51: 0.05725806452 | U51: 0 | V51: 0 | W51: 4.149193548 | X51: Green | Y51: 11 | Z51: 0.1576413959 | AA51: 0.03048535901 | AB51: 0 | AC51: 0 | AD51: 2.490974729 | AE51: Green | AF51: 10 | AG51: 0.1501642421 | AH51: 0.01642421398 | AI51: 0 | AJ51: 0 | AK51: 1.994368841 | AL51: Green | AM51: 8 | AN51: 0.1467473525 | AO51: 0.01563287948 | AP51: 0 | AQ51: 0 | AR51: 1.936459909 | AS51: Green | AT51: 8
D52: EPN | E52: 0.3853528628 | F52: 0.05832223702 | G52: 0 | H52: 0 | I52: 5.603195739 | J52: Green | K52: 10 | L52: 0.3233442458 | M52: 0.06094182825 | N52: 0 | O52: 0 | P52: 5.061697305 | Q52: Green | R52: 10 | S52: 0.2247032222 | T52: 0.04663651781 | U52: 0 | V52: 0 | W52: 3.646127756 | X52: Green | Y52: 10 | Z52: 0.1903266332 | AA52: 0.03863065327 | AB52: 0 | AC52: 0 | AD52: 3.06218593 | AE52: Green | AF52: 13 | AG52: 0.1337817638 | AH52: 0.01307922272 | AI52: 0 | AJ52: 0 | AK52: 1.73019432 | AL52: Green | AM52: 5 | AN52: 0.1085549964 | AO52: 0.006829618979 | AP52: 0 | AQ52: 0 | AR52: 1.290438533 | AS52: Green | AT52: 3
D53: SPD | E53: 0.2331428571 | F53: 0.04228571429 | G53: 0 | H53: 0 | I53: 3.6 | J53: Green | K53: 6 | L53: 0.1892575928 | M53: 0.03205849269 | N53: 0 | O53: 0 | P53: 2.854330709 | Q53: Green | R53: 7 | S53: 0.1291525424 | T53: 0.02677966102 | U53: 0 | V53: 0 | W53: 2.094915254 | X53: Green | Y53: 5 | Z53: 0.1068301226 | AA53: 0.01751313485 | AB53: 0 | AC53: 0 | AD53: 1.593695271 | AE53: Green | AF53: 4 | AG53: 0.1070678796 | AH53: 0.01294611617 | AI53: 0 | AJ53: 0 | AK53: 1.459062281 | AL53: Green | AM53: 4 | AN53: 0.1171623074 | AO53: 0.008957362952 | AP53: 0 | AQ53: 0 | AR53: 1.440343963 | AS53: Green | AT53: 5
D54: SPMW | E54: 0.2110125647 | F54: 0.0421286031 | G54: 0 | H54: 0 | I54: 3.37398374 | J54: Green | K54: 5 | L54: 0.1909353905 | M54: 0.03053680489 | N54: 0 | O54: 0 | P54: 2.825458052 | Q54: Green | R54: 6 | S54: 0.1856060606 | T54: 0.02840909091 | U54: 0 | V54: 0 | W54: 2.708333333 | X54: Green | Y54: 8 | Z54: 0.1269448373 | AA54: 0.01944837341 | AB54: 0 | AC54: 0 | AD54: 1.852899576 | AE54: Green | AF54: 7 | AG54: 0.1022506252 | AH54: 0.01250347319 | AI54: 0 | AJ54: 0 | AK54: 1.397610447 | AL54: Green | AM54: 3 | AN54: 0.1113158865 | AO54: 0.01032067822 | AP54: 0 | AQ54: 0 | AR54: 1.422779211 | AS54: Green | AT54: 4
D55: SSEH | E55: 0.3041594454 | F55: 0.03466204506 | G55: 0 | H55: 0 | I55: 4.081455806 | J55: Green | K55: 7 | L55: 0.1479680445 | M55: 0.02327196943 | N55: 0 | O55: 0 | P55: 2.177839528 | Q55: Green | R55: 3 | S55: 0.1321299639 | T55: 0.009386281588 | U55: 0 | V55: 0 | W55: 1.602888087 | X55: Green | Y55: 3 | Z55: 0.08255243195 | AA55: 0.01338688086 | AB55: 0 | AC55: 0 | AD55: 1.227130745 | AE55: Green | AF55: 1 | AG55: 0.1011541073 | AH55: 0.02987101154 | AI55: 0 | AJ55: 0 | AK55: 1.907671419 | AL55: Green | AM55: 7 | AN55: 0.1393389501 | AO55: 0.03110823072 | AP55: 0 | AQ55: 0 | AR55: 2.326636423 | AS55: Green | AT55: 10
D56: SSES | E56: 0.3249506903 | F56: 0.04684418146 | G56: 0 | H56: 0 | I56: 4.654832347 | J56: Green | K56: 8 | L56: 0.2343330349 | M56: 0.03304983587 | N56: 0 | O56: 0 | P56: 3.334825425 | Q56: Green | R56: 8 | S56: 0.1957754979 | T56: 0.02697646349 | U56: 0 | V56: 0 | W56: 2.767048884 | X56: Green | Y56: 9 | Z56: 0.1133586469 | AA56: 0.02091819123 | AB56: 0 | AC56: 0 | AD56: 1.761132206 | AE56: Green | AF56: 5 | AG56: 0.1176006314 | AH56: 0.03125493291 | AI56: 0 | AJ56: 0 | AK56: 2.113654301 | AL56: Green | AM56: 9 | AN56: 0.1812317512 | AO56: 0.04739593943 | AP56: 0 | AQ56: 0 | AR56: 3.234195695 | AS56: Green | AT56: 14
D57: Target | I57: 8.33 | P57: 8.33 | W57: 8.33 | AD57: 8.33 | AK57: 8.33 | AR57: 8.33 | AY57: 8.33 | BF57: 8.33
B59: Stakeholder Engagement and Consumer Vulnerability Incentive
E60: Score (out of 10)
E61: 2015/16 | F61: 2016/17 | G61: 2017/18 | H61: 2018/19 | I61: 2019/20 | J61: 2020/21 | K61: 2021/22 | L61: 2022/23
D62: ENWL | E62: 6.9 | F62: 6.375 | G62: 5.75 | H62: 4.5375 | I62: 6.025 | J62: 6.6125
D63: NPg | E63: 6.5 | F63: 6.5 | G63: 7.5 | H63: 7.0125 | I63: 6.7125 | J63: 5.0125
D64: WPD | E64: 8.75 | F64: 8.525 | G64: 8.75 | H64: 8.35 | I64: 0 | J64: 0
D65: UKPN | E65: 7.525 | F65: 7.525 | G65: 7.25 | H65: 7.95 | I65: 8.3 | J65: 8.05
D66: SPEN | E66: 6.775 | F66: 6.275 | G66: 6.35 | H66: 6.7125 | I66: 6.85 | J66: 7.075
D67: SSEN | E67: 5.725 | F67: 5.225 | G67: 5.5 | H67: 3.95 | I67: 5.5375 | J67: 6.2
E69: Reward (£m)
E70: 2015/16 | F70: 2016/17 | G70: 2017/18 | H70: 2018/19 | I70: 2019/20 | J70: 2020/21 | K70: 2021/22 | L70: 2022/23
D71: ENWL | E71: 1.115712582 | F71: 0.9137301318 | G71: 0.673274834 | H71: 0.2067915561 | I71: 0.779075165 | J71: 1.005103145
D72: NPg | E72: 1.62307326 | F72: 1.62307326 | G72: 2.272302565 | H72: 1.955803279 | I72: 1.761034488 | J72: 0.6573446705
D73: WPD | E73: 7.195624788 | F73: 6.854779403 | G73: 7.195624788 | H73: 6.589677437 | I73: 0 | J73: 0
D74: UKPN | E74: 4.577066594 | F74: 4.577066594 | G74: 4.219990477 | H74: 5.128911503 | I74: 5.583372016 | J74: 5.258757364
D75: SPEN | E75: 2.20196939 | F75: 1.805218149 | G75: 1.864730835 | H75: 2.152375485 | I75: 2.261482076 | J75: 2.440020135
D76: SSEN | E76: 1.285834705 | F76: 0.9131289936 | G76: 1.118117135 | H76: 0 | I76: 1.146070063 | J76: 1.639905131
E78: RAG
E79: 2015/16 | F79: 2016/17 | G79: 2017/18 | H79: 2018/19 | I79: 2019/20 | J79: 2020/21 | K79: 2021/22 | L79: 2022/23
D80: ENWL | E80: =IF(E62<4,"Red","Green") -> Green | F80: Green | G80: Green | H80: Green | I80: =IF(I62<4,"Red","Green") -> Green | J80: =IF(J62<4,"Red","Green") -> Green
D81: NPg | E81: Green | F81: Green | G81: Green | H81: Green | I81: =IF(I63<4,"Red","Green") -> Green | J81: =IF(J63<4,"Red","Green") -> Green
D82: WPD | E82: Green | F82: Green | G82: Green | H82: Green | I82: N/A | J82: N/A
D83: UKPN | E83: Green | F83: Green | G83: Green | H83: Green | I83: =IF(I65<4,"Red","Green") -> Green | J83: Green
D84: SPEN | E84: Green | F84: Green | G84: Green | H84: Green | I84: Green | J84: Green
D85: SSEN | E85: Green | F85: Green | G85: Green | H85: Red | I85: Green | J85: Green
E87: Ranking
E88: 2015/16 | F88: 2016/17 | G88: 2017/18 | H88: 2018/19 | I88: 2019/20 | J88: 2020/21 | K88: 2021/22 | L88: 2022/23
D89: ENWL | E89: =RANK(E62,$E$62:$E$67,0) -> 3 | F89: =RANK(F62,$F$62:$F$67,0) -> 4 | G89: =RANK(G62,$G$62:$G$67,0) -> 5 | H89: =RANK(H62,$H$62:$H$67,0) -> 5 | I89: =RANK(I62,$I$62:$I$67,0) -> 4 | J89: =RANK(J62,$J$62:$J$67,0) -> 3
D90: NPg | E90: 5 | F90: 3 | G90: 2 | H90: 3 | I90: 3 | J90: =RANK(J63,$J$62:$J$67,0) -> 5
D91: WPD | E91: 1 | F91: 1 | G91: 1 | H91: 1 | I91: 0 | J91: 0
D92: UKPN | E92: 2 | F92: 2 | G92: 3 | H92: 2 | I92: 1 | J92: =RANK(J65,$J$62:$J$67,0) -> 1
D93: SPEN | E93: 4 | F93: 5 | G93: 4 | H93: 4 | I93: 2 | J93: =RANK(J66,$J$62:$J$67,0) -> 2
D94: SSEN | E94: 6 | F94: 6 | G94: 6 | H94: 6 | I94: 5 | J94: =RANK(J67,$J$62:$J$67,0) -> 4
B96: Broad Measure of Customer Service
E97: 2015/16 | J97: 2016/17 | O97: 2017/18 | T97: 2018/19 | Y97: 2019/20 | AD97: 2020/21 | AI97: 2021/22 | AN97: 2022/23
E98: Customer Satisfaction Survey Reward/Penalty (£m) | F98: Complaints Metric Penalty (£m) | G98: Stakeholder Engagement and Consumer Vulnerability Financial Reward (£m) | H98: Broad Measure of Customer Service reward (£m) | J98: Customer Satisfaction Survey Reward/Penalty (£m) | K98: Complaints Metric Penalty (£m) | L98: Stakeholder Engagement and Consumer Vulnerability Financial Reward (£m) | M98: Broad Measure of Customer Service reward (£m) | O98: Customer Satisfaction Survey Reward/Penalty (£m) | P98: Complaints Metric Penalty (£m) | Q98: Stakeholder Engagement and Consumer Vulnerability Financial Reward (£m) | R98: Broad Measure of Customer Service reward (£m) | T98: Customer Satisfaction Survey Reward/Penalty (£m) | U98: Complaints Metric Penalty (£m) | V98: Stakeholder Engagement and Consumer Vulnerability Financial Reward (£m) | W98: Broad Measure of Customer Service reward (£m) | Y98: Customer Satisfaction Survey Reward/Penalty (£m) | Z98: Complaints Metric Penalty (£m) | AA98: Stakeholder Engagement and Consumer Vulnerability Financial Reward (£m) | AB98: Broad Measure of Customer Service reward (£m) | AD98: Customer Satisfaction Survey Reward/Penalty (£m) | AE98: Complaints Metric Penalty (£m) | AF98: Stakeholder Engagement and Consumer Vulnerability Financial Reward (£m) | AG98: Broad Measure of Customer Service reward (£m) | AI98: Customer Satisfaction Survey Reward/Penalty (£m) | AJ98: Complaints Metric Penalty (£m) | AK98: Stakeholder Engagement and Consumer Vulnerability Financial Reward (£m) | AL98: Broad Measure of Customer Service reward (£m) | AN98: Customer Satisfaction Survey Reward/Penalty (£m) | AO98: Complaints Metric Penalty (£m) | AP98: Stakeholder Engagement and Consumer Vulnerability Financial Reward (£m) | AQ98: Broad Measure of Customer Service reward (£m)
D99: ENWL | E99: -0.6680933784 | F99: 0 | G99: 1.115712582 | H99: 0.4448424073 | J99: 0.4371743386 | K99: 0 | L99: 0.9137301318 | M99: =SUM(J99:L99) -> 1.35090447 | O99: 1.093657087 | P99: 0 | Q99: 0.673274834 | R99: =SUM(O99:Q99) -> 1.766931921 | T99: 1.995536796 | U99: 0 | V99: 0.2067915561 | W99: =SUM(T99:V99) -> 2.202328352 | Y99: 2.975060461 | Z99: 0 | AA99: 0.779075165 | AB99: =SUM(Y99:AA99) -> 3.754135626 | AD99: 3.627776986 | AE99: 0 | AF99: 1.005103145 | AG99: =SUM(AD99:AF99) -> 4.632880131
D100: NPgN | E100: 0.7885240836 | F100: 0 | G100: 0.6612520691 | H100: 1.454754899 | J100: 1.752775125 | K100: 0 | L100: 0.6612520691 | M100: =SUM(J100:L100) -> 2.414027194 | O100: 1.832940213 | P100: 0 | Q100: 0.9257528967 | R100: =SUM(O100:Q100) -> 2.75869311 | T100: 1.888408891 | U100: 0 | V100: 0.7968087432 | W100: =SUM(T100:V100) -> 2.685217634 | Y100: 2.412364575 | Z100: 0 | AA100: 0.7174584949 | AB100: =SUM(Y100:AA100) -> 3.12982307 | AD100: 2.765235925 | AE100: 0 | AF100: 0.267807088 | AG100: =SUM(AD100:AF100) -> 3.033043013
D101: NPgY | E101: 0.835661533 | F101: 0 | G101: 0.9618211914 | H101: 1.803415165 | J101: 1.972220078 | K101: 0 | L101: 0.9618211914 | M101: 2.934041269 | O101: 1.73305303 | P101: 0 | Q101: 1.346549668 | R101: 3.079602698 | T101: 2.099250655 | U101: 0 | V101: 1.158994536 | W101: 3.258245191 | Y101: 2.963452767 | Z101: 0 | AA101: 1.043575993 | AB101: 4.007028759 | AD101: 3.458228094 | AE101: 0 | AF101: 0.3895375825 | AG101: 3.847765676
D102: WMID | E102: 4.085337791 | F102: 0 | G102: 2.28432533 | H102: 6.372066915 | J102: 4.008389815 | K102: 0 | L102: 2.176120445 | M102: 6.184510261 | O102: 4.192133731 | P102: 0 | Q102: 2.28432533 | R102: 6.47645906 | T102: 4.731859692 | U102: 0 | V102: 2.091961091 | W102: 6.823820784 | Y102: 4.809105957 | Z102: 0 | AA102: 0 | AB102: 4.809105957 | AD102: 4.809105957 | AE102: 0 | AF102: 0 | AG102: 4.809105957
D103: EMID | E103: 4.39780717 | F103: 0 | G103: 1.027946398 | H103: 6.684658877 | J103: 4.364023201 | K103: 0 | L103: 2.176120445 | M103: 6.540143646 | O103: 4.332682405 | P103: 0 | Q103: 1.027946398 | R103: 5.360628804 | T103: 4.674835719 | U103: 0 | V103: 2.091961091 | W103: 6.76679681 | Y103: 4.809105957 | Z103: 0 | AA103: 0 | AB103: 4.809105957 | AD103: 4.809105957 | AE103: 0 | AF103: 0 | AG103: 4.809105957
D104: SWALES | E104: 2.088354262 | F104: 0 | G104: 1.027946398 | H104: 3.113896851 | J104: 1.975580727 | K104: 0 | L104: 0.9792542005 | M104: 2.954834928 | O104: 2.28432533 | P104: 0 | Q104: 1.027946398 | R104: 3.312271728 | T104: 2.28432533 | U104: 0 | V104: 0.9413824911 | W104: 3.225707821 | Y104: 2.28432533 | Z104: 0 | AA104: 0 | AB104: 2.28432533 | AD104: 2.28432533 | AE104: 0 | AF104: 0 | AG104: 2.28432533
D105: SWEST | E105: 2.920041684 | F105: 0 | G105: 1.599027731 | H105: 4.520560679 | J105: 3.053782283 | K105: 0 | L105: 1.523284312 | M105: 4.577066594 | O105: 3.019800656 | P105: 0 | Q105: 1.599027731 | R105: 4.618828387 | T105: 3.226669642 | U105: 0 | V105: 1.464372764 | W105: 4.691042406 | Y105: 3.36637417 | Z105: 0 | AA105: 0 | AB105: 3.36637417 | AD105: 3.36637417 | AE105: 0 | AF105: 0 | AG105: 3.36637417
D106: LPN | E106: 1.020333119 | F106: 0 | G106: 1.271407387 | H106: 2.296348643 | J106: 1.804413331 | K106: 0 | L106: 1.271407387 | M106: 3.075820719 | O106: 2.81137442 | P106: 0 | Q106: 1.172219577 | R106: 3.983593997 | T106: 2.780246288 | U106: 0 | V106: 1.42469764 | W106: 4.204943928 | Y106: 3.606829468 | Z106: 0 | AA106: 1.550936671 | AB106: 5.157766139 | AD106: 3.606829468 | AE106: 0 | AF106: 1.460765934 | AG106: 5.067595402
D107: SPN | E107: 1.726277619 | F107: 0 | G107: 1.35616788 | H107: 3.077828548 | J107: 2.174236844 | K107: 0 | L107: 1.35616788 | M107: 3.530404723 | O107: 2.445188044 | P107: 0 | Q107: 1.250367549 | R107: 3.695555593 | T107: 2.524326167 | U107: 0 | V107: 1.519677482 | W107: 4.044003649 | Y107: 3.531340518 | Z107: 0 | AA107: 1.654332449 | AB107: 5.185672968 | AD107: 3.727057117 | AE107: 0 | AF107: 1.55815033 | AG107: 5.285207447
D108: EPN | E108: 2.35391798 | F108: 0 | G108: 1.949491327 | H108: 4.30415086 | J108: 2.45190882 | K108: 0 | L108: 1.949491327 | M108: 4.401400147 | O108: 3.592668793 | P108: 0 | Q108: 1.797403351 | R108: 5.390072145 | T108: 3.99104337 | U108: 0 | V108: 2.184536381 | W108: 6.175579751 | Y108: 5.53047185 | Z108: 0 | AA108: 2.378102896 | AB108: 7.908574746 | AD108: 5.53047185 | AE108: 0 | AF108: 2.239841099 | AG108: 7.77031295
D109: SPD | E109: 2.019681638 | F109: 0 | G109: 1.067621522 | H109: 3.089851315 | J109: 2.162190719 | K109: 0 | L109: 0.8752572842 | M109: 3.037448003 | O109: 2.503937135 | P109: 0 | Q109: 0.9041119199 | R109: 3.408049055 | T109: 3.387396176 | U109: 0 | V109: 1.043575993 | W109: 4.430972169 | Y109: 3.727057117 | Z109: 0 | AA109: 1.096476158 | AB109: 4.823533275 | AD109: 3.727057117 | AE109: 0 | AF109: 1.183040065 | AG109: 4.910097182
D110: SPMW | E110: 2.59280857 | F110: 0 | G110: 1.134347868 | H110: 3.727058007 | J110: 3.004373254 | K110: 0 | L110: 0.9299608644 | M110: 3.934334118 | O110: 2.52580618 | P110: 0 | Q110: 0.9606189149 | R110: 3.486425094 | T110: 3.98858231 | U110: 0 | V110: 1.108799492 | W110: 5.097381802 | Y110: 4.087740063 | Z110: 0 | AA110: 1.165005918 | AB110: 5.252745981 | AD110: 4.087740063 | AE110: 0 | AF110: 1.256980069 | AG110: 5.344720133
D111: SSEH | E111: 1.660584287 | F111: 0 | G111: 0.4147853888 | H111: 2.079938823 | J111: 1.757728227 | K111: 0 | L111: 0.2945577399 | M111: 2.052285967 | O111: 1.858719452 | P111: 0 | Q111: 0.3606829468 | R111: 2.219402399 | T111: 2.404552978 | U111: 0 | V111: 0 | W111: 2.404552978 | Y111: 2.404552978 | Z111: 0 | AA111: 0.3697000204 | AB111: 2.774252999 | AD111: 2.404552978 | AE111: 0 | AF111: 0.5290016553 | AG111: 2.933554634
D112: SSES | E112: 0.2471145934 | F112: 0 | G112: 0.8710493164 | H112: 1.118117402 | J112: 1.334300448 | K112: 0 | L112: 0.6185712537 | M112: 1.952871702 | O112: 1.101018574 | P112: 0 | Q112: 0.7574341882 | R112: 1.858452762 | T112: 2.427917458 | U112: 0 | V112: 0 | W112: 2.427917458 | Y112: 3.28846341 | Z112: 0 | AA112: 0.7763700429 | AB112: 4.064833453 | AD112: 2.448552788 | AE112: 0 | AF112: 1.110903476 | AG112: 3.559456264
D113: Total | E113: =SUM(E99:E112) -> 26.06835095 | F113: =SUM(F99:F112) -> 0 | G113: =SUM(G99:G112) -> 16.74290239 | H113: =SUM(H99:H112) -> 44.08748939 | J113: =SUM(J99:J112) -> 32.25309721 | K113: =SUM(K99:K112) -> 0 | L113: =SUM(L99:L112) -> 16.68699653 | M113: =SUM(M99:M112) -> 48.94009374 | O113: =SUM(O99:O112) -> 35.32730505 | P113: =SUM(P99:P112) -> 0 | Q113: =SUM(Q99:Q112) -> 16.0876617 | R113: =SUM(R99:R112) -> 51.41496675 | T113: =SUM(T99:T112) -> 42.40495147 | U113: =SUM(U99:U112) -> 0 | V113: =SUM(V99:V112) -> 16.03355926 | W113: =SUM(W99:W112) -> 58.43851073 | Y113: =SUM(Y99:Y112) -> 49.79624462 | Z113: =SUM(Z99:Z112) -> 0 | AA113: =SUM(AA99:AA112) -> 11.53103381 | AB113: =SUM(AB99:AB112) -> 61.32727843 | AD113: =SUM(AD99:AD112) -> 50.6524138 | AE113: =SUM(AE99:AE112) -> 0 | AF113: 11.00113045 | AG113: =SUM(AG99:AG112) -> 61.65354424

Sheet Ch2 outputs - environment
A1: Chapter 2 - Environment
B4: Environment: encouraging DNOs to play their role in achieving broader environmental objectives, namely the reduction in carbon emissions, as well as minimising the narrow environmental impact of the company's activities by managing their own carbon footprint, visual amenity and pollution.
B5: Incentive measure | F5: Incentive type
B6: Obligation to manage losses | F6: Financial: Losses Discretionary Reward of up to £32m across all DNOs, awarded in three tranches. Reputational: publish annual progress and a losses strategy. Licence obligation: to keep losses as low as reasonably practicable.
B7: Business Carbon Footprint (BCF) | F7: Reputational: publish annual progress.
B8: Limiting emissions of Sulphur Hexafluoride (SF6) | F8: Reputational: publish annual progress.
B9: Fluid filled cable leakage | F9: Reputational: publish annual progress.
B10: Noise pollution | F10: Reputational: publish annual progress.
B11: Visual impact allowance for undergrounding overhead lines in Areas of Outstanding Natural Beauty (AONB) and National Parks. | F11: Reputational incentive in the context of its performance in the utilisation of a funding pot of £103.6m (split between DNOs).
B12: Environmental report: obligation to inform stakeholders about the activities they have undertaken in relation to environmental matters, including their role in the transition to a low carbon economy. | F12: Licence obligation. Reputational.
D15: Reward allocated for the LDR
B16: Losses Discretionary Reward (LDR) | E16: Score
E17: 2015/16 | F17: 2016/17 | G17: 2017/18 | H17: 2018/19 | I17: 2019/20 | J17: 2020/21 | K17: 2021/22 | L17: 2022/23
D18: ENWL | F18: 0.52 | H18: 0 | J18: 0
D19: NPg | F19: 0.26 | H19: 0 | J19: 0
D20: WPD | F20: 0.12 | H20: 0 | J20: 0
D21: UKPN | F21: 0.71 | H21: 0 | J21: 0
D22: SPEN | F22: 0.58 | H22: 0 | J22: 0
D23: SSEN | F23: 0.68 | H23: 0 | J23: 0
D24: Total | F24: 0.48 | H24: 0 | J24: 0
E26: Reward (£)
E27: 2015/16 | F27: 2016/17 | G27: 2017/18 | H27: 2018/19 | I27: 2019/20 | J27: 2020/21 | K27: 2021/22 | L27: 2022/23
D28: ENWL | F28: =SUM(695000*'Guide & drivers'!D27) -> 780876.9184 | H28: 0 | J28: I
D29: NPg | F29: =SUM(350000*'Guide & drivers'!D27) -> 393247.369 | H29: 0 | J29: 0
D30: WPD | F30: =SUM(160000*'Guide & drivers'!D27) -> 179770.2258 | H30: 0 | J30: 0
D31: UKPN | F31: =SUM(945000*'Guide & drivers'!D27) -> 1061767.896 | H31: 0 | J31: 0
D32: SPEN | F32: =SUM(770000*'Guide & drivers'!D27) -> 865144.2117 | H32: 0 | J32: 0
D33: SSEN | F33: =SUM(910000*'Guide & drivers'!D27) -> 1022443.159 | H33: 0 | J33: 0
D34: Total | F34: =SUM(3830000*'Guide & drivers'!$D$27) -> 4303249.78 | H34: 0 | J34: 0
D36: Distribution losses (as % of units distributed)
E37: 2015/16 | F37: 2016/17 | G37: 2017/18 | H37: 2018/19 | I37: 2019/20 | J37: 2020/21 | K37: 2021/22 | L37: 2022/23
D38: ENWL | E38: 0.06503127969 | F38: 0.06384746757 | G38: 0.0666740889 | H38: 0.05645994619 | I38: 0.05378180315 | J38: 0.06039078535
D39: NPGN | E39: 0.0532639851 | F39: 0.0528818281 | G39: 0.05320209731 | H39: 0.04772904924 | I39: 0.05602674834 | J39: 0.05504855709
D40: NPGY | E40: 0.05812554782 | F40: 0.05827591783 | G40: 0.06339824738 | H40: 0.05765754177 | I40: 0.06533281138 | J40: 0.07098184319
D41: WMID | E41: 0.05240778805 | F41: 0.05728452603 | G41: 0.06072177801 | H41: 0.05628504838 | I41: 0.06074447819 | J41: 0.06668225881
D42: EMID | E42: 0.04790161836 | F42: 0.04794023485 | G42: 0.05150017428 | H42: 0.04707285056 | I42: 0.05184140795 | J42: 0.06028899006
D43: SWALES | E43: 0.04387134635 | F43: 0.04016175829 | G43: 0.04084752425 | H43: 0.04153491929 | I43: 0.0459599909 | J43: 0.05545563449
D44: SWEST | E44: 0.04668244866 | F44: 0.04672922118 | G44: 0.04988696892 | H44: 0.04423184436 | I44: 0.04701013084 | J44: 0.04562557488
D45: LPN | E45: 0.06938168673 | F45: 0.06939044964 | G45: 0.06782170887 | H45: 0.06625967838 | I45: 0.07525505256 | J45: 0.07839818224
D46: SPN | E46: 0.06232808266 | F46: 0.06744401068 | G46: 0.07190419656 | H46: 0.06914701481 | I46: 0.07941160795 | J46: 0.07856478211
D47: EPN | E47: 0.06839644265 | F47: 0.07412524403 | G47: 0.07207152782 | H47: 0.06464811784 | I47: 0.05489006349 | J47: 0.08497135184
D48: SPD | E48: 0.06660126444 | F48: 0.06775791994 | G48: 0.0699826165 | H48: 0.0697903394 | I48: 0.07428758511 | J48: 0.07666930087
D49: SPMW | E49: 0.06595896175 | F49: 0.06725396095 | G49: 0.06733694933 | H49: 0.06734902764 | I49: 0.06927279413 | J49: 0.07093678081
D50: SSEH | E50: 0.06712136691 | F50: 0.0725810125 | G50: 0.07067913635 | H50: 0.06986519071 | I50: 0.07382466694 | J50: 0.06961333416
D51: SSES | E51: 0.05675750811 | F51: 0.05791707972 | G51: 0.05187142815 | H51: 0.05210803301 | I51: 0.06057219645 | J51: 0.05186091216
D52: Total | E52: 0.05947822232 | F52: 0.06108902519 | G52: 0.06184219482 | H52: 0.05813487033 | I52: 0.06184180227 | J52: 0.06713121627
B55: Business Carbon Footprint (BCF)
D56: Business Carbon Footprint (excluding losses and contractors) (tCO2e)
E57: DPCR5 - 2013/14 | F57: DPCR5 - 2014/15 | G57: 2015/16 | H57: 2016/17 | I57: 2017/18 | J57: 2018/19 | K57: 2019/20 | L57: 2020/21 | M57: 2021/22 | N57: 2022/23
D58: ENWL | E58: 23761.21 | F58: 24414.91 | G58: 15790.45012 | H58: 15301.95892 | I58: 14147.27178 | J58: 12567.10379 | K58: 12553.20179 | L58: 10799.07428
D59: NPgN | E59: 23368.30067 | F59: 22745.42599 | G59: 10554.83099 | H59: 9412.945166 | I59: 9162.694699 | J59: 7564.022133 | K59: 7332.945606 | L59: 6421.972579
D60: NPgY | E60: 26495.1002 | F60: 28807.02231 | G60: 14559.85992 | H60: 13872.99774 | I60: 12110.70638 | J60: 10159.42816 | K60: 9439.20046 | L60: 8300.364884
D61: WMID | E61: 29290.64506 | F61: 29722.9 | G61: 26708.58787 | H61: 22933.91543 | I61: 20832.01647 | J61: 17325.74038 | K61: 14547.59089 | L61: 14876.63857
D62: EMID | E62: 30151.78594 | F62: 30172.15 | G62: 22830.06446 | H62: 21098.21969 | I62: 19571.0382 | J62: 19027.40271 | K62: 18342.34716 | L62: 15602.96502
D63: SWALES | E63: 13395.22439 | F63: 18330.133 | G63: 13628.27571 | H63: 12486.93762 | I63: 12144.53251 | J63: 12131.97911 | K63: 9432.036388 | L63: 8297.287383
D64: SWEST | E64: 23059.60036 | F64: 23752.9 | G64: 17504.45863 | H64: 15669.23247 | I64: 15183.02573 | J64: 15336.21441 | K64: 14185.33931 | L64: 11790.79655
D65: LPN | E65: 16573.19727 | F65: 19776.4951 | G65: 14176.25335 | H65: 14796.48874 | I65: 12807.22149 | J65: 11755.68789 | K65: 12583.6663 | L65: 11559.7823
D66: SPN | E66: 26961.82503 | F66: 25025.1182 | G66: 17694.08893 | H66: 16687.61324 | I66: 15607.20966 | J66: 16029.60831 | K66: 14621.06771 | L66: 13488.79899
D67: EPN | E67: 35454.95621 | F67: 32539.493 | G67: 23609.29692 | H67: 26083.40172 | I67: 24848.05331 | J67: 22849.98509 | K67: 20213.87736 | L67: 19998.99611
D68: SPD* | E68: 31088.83718 | F68: 24450.95 | G68: 15639.59506 | H68: 13534.27891 | I68: 12196.56833 | J68: 11898.00493 | K68: 9652.403765 | L68: 6158.725433
D69: SPMW* | E69: 15143.10141 | F69: 26026.38 | G69: 12710.08881 | H69: 12572.99524 | I69: 11557.53608 | J69: 11798.7689 | K69: 8237.536587 | L69: 6700.283818
D70: SSEH | E70: 23653.44041 | F70: 43857.57083 | G70: 16911.07147 | H70: 17429.13633 | I70: 21468.44536 | J70: 24140.90693 | K70: 26786.76184 | L70: 59424.40485
D71: SSES | E71: 35373.50362 | F71: 34060.00891 | G71: 26641.07361 | H71: 26558.88481 | I71: 25601.27111 | J71: 24511.39474 | K71: 24594.3808 | L71: 23861.12582
D72: Total | E72: =SUM(E58:E71) -> 353770.7277 | F72: 383681.4573 | G72: 248957.9958 | H72: 238439.006 | I72: 227237.5911 | J72: 217096.2475 | K72: =SUM(K58:K71) -> 202522.356 | L72: =SUM(L58:L71) -> 217281.2166
D73: *SPEN have moved from estimation to direct observation for a large proposition of it's activities
D74: Business Carbon Footprint (excluding losses and contractors) as % network length and customer numbers
E75: DPCR5 - 2013/14 | F75: DPCR5 - 2014/15 | G75: 2015/16 | H75: 2016/17 | I75: 2017/18 | J75: 2018/19 | K75: 2019/20 | L75: 2020/21 | M75: 2021/22 | N75: 2022/23 | P75: Ranking | Q75: 2015/16 | R75: 2016/17 | S75: 2017/18 | T75: 2018/19 | U75: 2019/20 | V75: 2020/21 | W75: 2021/22 | X75: 2022/23
D76: ENWL | E76: =((E58/'Guide & drivers'!F42)*50%)+(E58/'Guide & drivers'!F61)*50% -> 0.2114569242 | F76: =((F58/'Guide & drivers'!G42)*50%)+(F58/'Guide & drivers'!G61)*50% -> 0.2166258171 | G76: =((G58/'Guide & drivers'!H42)*50%)+(G58/'Guide & drivers'!H61)*50% -> 0.1395663768 | H76: =((H58/'Guide & drivers'!I42)*50%)+(H58/'Guide & drivers'!I61)*50% -> 0.1372253973 | I76: =((I58/'Guide & drivers'!J42)*50%)+(I58/'Guide & drivers'!J61)*50% -> 0.1263644044 | J76: =((J58/'Guide & drivers'!K42)*50%)+(J58/'Guide & drivers'!K61)*50% -> 0.1121926873 | K76: =((K58/'Guide & drivers'!L42)*50%)+(K58/'Guide & drivers'!L61)*50% -> 0.1119029165 | L76: =((L58/'Guide & drivers'!M42)*50%)+(L58/'Guide & drivers'!M61)*50% -> 0.09628794655 | P76: ENWL | Q76: =RANK(G76,$G$76:$G$89,1) -> 5 | R76: =RANK(H76,$H$76:$H$89,1) -> 5 | S76: =RANK(I76,$I$76:$I$89,1) -> 4 | T76: =RANK(J76,$J$76:$J$89,1) -> 4 | U76: =RANK(K76,$K$76:$K$89,1) -> 6 | V76: =RANK(L76,$L$76:$L$89,1) -> 5
D77: NPgN | E77: =((E59/'Guide & drivers'!F43)*50%)+(E59/'Guide & drivers'!F62)*50% -> 0.2938314128 | F77: =((F59/'Guide & drivers'!G43)*50%)+(F59/'Guide & drivers'!G62)*50% -> 0.284445765 | G77: =((G59/'Guide & drivers'!H43)*50%)+(G59/'Guide & drivers'!H62)*50% -> 0.1312633584 | H77: =((H59/'Guide & drivers'!I43)*50%)+(H59/'Guide & drivers'!I62)*50% -> 0.1163397835 | I77: =((I59/'Guide & drivers'!J43)*50%)+(I59/'Guide & drivers'!J62)*50% -> 0.1127109702 | J77: =((J59/'Guide & drivers'!K43)*50%)+(J59/'Guide & drivers'!K62)*50% -> 0.09274856507 | K77: =((K59/'Guide & drivers'!L43)*50%)+(K59/'Guide & drivers'!L62)*50% -> 0.08973360571 | L77: =((L59/'Guide & drivers'!M43)*50%)+(L59/'Guide & drivers'!M62)*50% -> 0.07843834713 | P77: NPgN | Q77: =RANK(G77,$G$76:$G$89,1) -> 2 | R77: =RANK(H77,$H$76:$H$89,1) -> 1 | S77: =RANK(I77,$I$76:$I$89,1) -> 2 | T77: =RANK(J77,$J$76:$J$89,1) -> 1 | U77: 3 | V77: =RANK(L77,$L$76:$L$89,1) -> 4
D78: NPgY | E78: =((E60/'Guide & drivers'!F44)*50%)+(E60/'Guide & drivers'!F63)*50% -> 0.2543662023 | F78: =((F60/'Guide & drivers'!G44)*50%)+(F60/'Guide & drivers'!G63)*50% -> 0.2751934989 | G78: =((G60/'Guide & drivers'!H44)*50%)+(G60/'Guide & drivers'!H63)*50% -> 0.1383076961 | H78: =((H60/'Guide & drivers'!I44)*50%)+(H60/'Guide & drivers'!I63)*50% -> 0.1312474498 | I78: =((I60/'Guide & drivers'!J44)*50%)+(I60/'Guide & drivers'!J63)*50% -> 0.1141126085 | J78: =((J60/'Guide & drivers'!K44)*50%)+(J60/'Guide & drivers'!K63)*50% -> 0.09514599346 | K78: =((K60/'Guide & drivers'!L44)*50%)+(K60/'Guide & drivers'!L63)*50% -> 0.08802263355 | L78: =((L60/'Guide & drivers'!M44)*50%)+(L60/'Guide & drivers'!M63)*50% -> 0.07708350598 | P78: NPgY | Q78: 3 | R78: 3 | S78: =RANK(I78,$I$76:$I$89,1) -> 3 | T78: 2 | U78: 2 | V78: 3
D79: WMID | E79: =((E61/'Guide & drivers'!F45)*50%)+(E61/'Guide & drivers'!F64)*50% -> 0.2338154455 | F79: =((F61/'Guide & drivers'!G45)*50%)+(F61/'Guide & drivers'!G64)*50% -> 0.2361382021 | G79: =((G61/'Guide & drivers'!H45)*50%)+(G61/'Guide & drivers'!H64)*50% -> 0.2132090763 | H79: =((H61/'Guide & drivers'!I45)*50%)+(H61/'Guide & drivers'!I64)*50% -> 0.1822174502 | I79: =((I61/'Guide & drivers'!J45)*50%)+(I61/'Guide & drivers'!J64)*50% -> 0.1647423725 | J79: =((J61/'Guide & drivers'!K45)*50%)+(J61/'Guide & drivers'!K64)*50% -> 0.1364383582 | K79: =((K61/'Guide & drivers'!L45)*50%)+(K61/'Guide & drivers'!L64)*50% -> 0.1141935079 | L79: =((L61/'Guide & drivers'!M45)*50%)+(L61/'Guide & drivers'!M64)*50% -> 0.1164100267 | P79: WMID | Q79: 14 | R79: 12 | S79: 10 | T79: 8 | U79: 7 | V79: 8
D80: EMID | E80: =((E62/'Guide & drivers'!F46)*50%)+(E62/'Guide & drivers'!F65)*50% -> 0.214072048 | F80: =((F62/'Guide & drivers'!G46)*50%)+(F62/'Guide & drivers'!G65)*50% -> 0.2131084198 | G80: =((G62/'Guide & drivers'!H46)*50%)+(G62/'Guide & drivers'!H65)*50% -> 0.1607737547 | H80: =((H62/'Guide & drivers'!I46)*50%)+(H62/'Guide & drivers'!I65)*50% -> 0.1477705392 | I80: =((I62/'Guide & drivers'!J46)*50%)+(I62/'Guide & drivers'!J65)*50% -> 0.136389936 | J80: =((J62/'Guide & drivers'!K46)*50%)+(J62/'Guide & drivers'!K65)*50% -> 0.1319492214 | K80: =((K62/'Guide & drivers'!L46)*50%)+(K62/'Guide & drivers'!L65)*50% -> 0.1267094067 | L80: =((L62/'Guide & drivers'!M46)*50%)+(L62/'Guide & drivers'!M65)*50% -> 0.1072833385 | P80: EMID | Q80: 7 | R80: 7 | S80: 7 | T80: 7 | U80: 8 | V80: 7
D81: SWALES | E81: =((E63/'Guide & drivers'!F47)*50%)+(E63/'Guide & drivers'!F66)*50% -> 0.1949024161 | F81: =((F63/'Guide & drivers'!G47)*50%)+(F63/'Guide & drivers'!G66)*50% -> 0.2654115098 | G81: =((G63/'Guide & drivers'!H47)*50%)+(G63/'Guide & drivers'!H66)*50% -> 0.1974104917 | H81: =((H63/'Guide & drivers'!I47)*50%)+(H63/'Guide & drivers'!I66)*50% -> 0.1799824258 | I81: =((I63/'Guide & drivers'!J47)*50%)+(I63/'Guide & drivers'!J66)*50% -> 0.1755520401 | J81: =((J63/'Guide & drivers'!K47)*50%)+(J63/'Guide & drivers'!K66)*50% -> 0.1749679271 | K81: =((K63/'Guide & drivers'!L47)*50%)+(K63/'Guide & drivers'!L66)*50% -> 0.135741071 | L81: =((L63/'Guide & drivers'!M47)*50%)+(L63/'Guide & drivers'!M66)*50% -> 0.1190889857 | P81: SWALES | Q81: 13 | R81: 11 | S81: 13 | T81: 13 | U81: 9 | V81: 10
D82: SWEST | E82: =((E64/'Guide & drivers'!F48)*50%)+(E64/'Guide & drivers'!F67)*50% -> 0.2344787461 | F82: =((F64/'Guide & drivers'!G48)*50%)+(F64/'Guide & drivers'!G67)*50% -> 0.2401606302 | G82: =((G64/'Guide & drivers'!H48)*50%)+(G64/'Guide & drivers'!H67)*50% -> 0.1796857348 | H82: =((H64/'Guide & drivers'!I48)*50%)+(H64/'Guide & drivers'!I67)*50% -> 0.1601893411 | I82: =((I64/'Guide & drivers'!J48)*50%)+(I64/'Guide & drivers'!J67)*50% -> 0.1547060723 | J82: =((J64/'Guide & drivers'!K48)*50%)+(J64/'Guide & drivers'!K67)*50% -> 0.1556714376 | K82: =((K64/'Guide & drivers'!L48)*50%)+(K64/'Guide & drivers'!L67)*50% -> 0.1436012634 | L82: =((L64/'Guide & drivers'!M48)*50%)+(L64/'Guide & drivers'!M67)*50% -> 0.1189923816 | P82: SWEST | Q82: 10 | R82: 8 | S82: 9 | T82: 10 | U82: 11 | V82: 9
D83: LPN | E83: =((E65/'Guide & drivers'!F49)*50%)+(E65/'Guide & drivers'!F68)*50% -> 0.2286651572 | F83: =((F65/'Guide & drivers'!G49)*50%)+(F65/'Guide & drivers'!G68)*50% -> 0.2726711059 | G83: =((G65/'Guide & drivers'!H49)*50%)+(G65/'Guide & drivers'!H68)*50% -> 0.1949851558 | H83: =((H65/'Guide & drivers'!I49)*50%)+(H65/'Guide & drivers'!I68)*50% -> 0.2029013953 | I83: =((I65/'Guide & drivers'!J49)*50%)+(I65/'Guide & drivers'!J68)*50% -> 0.1750568431 | J83: =((J65/'Guide & drivers'!K49)*50%)+(J65/'Guide & drivers'!K68)*50% -> 0.1601985343 | K83: =((K65/'Guide & drivers'!L49)*50%)+(K65/'Guide & drivers'!L68)*50% -> 0.1706326366 | L83: =((L65/'Guide & drivers'!M49)*50%)+(L65/'Guide & drivers'!M68)*50% -> 0.1565175469 | P83: LPN | Q83: 12 | R83: 14 | S83: 12 | T83: 11 | U83: 13 | V83: 13
D84: SPN | E84: =((E66/'Guide & drivers'!F50)*50%)+(E66/'Guide & drivers'!F69)*50% -> 0.2618267853 | F84: =((F66/'Guide & drivers'!G50)*50%)+(F66/'Guide & drivers'!G69)*50% -> 0.2424633021 | G84: =((G66/'Guide & drivers'!H50)*50%)+(G66/'Guide & drivers'!H69)*50% -> 0.1713060431 | H84: =((H66/'Guide & drivers'!I50)*50%)+(H66/'Guide & drivers'!I69)*50% -> 0.1613021033 | I84: =((I66/'Guide & drivers'!J50)*50%)+(I66/'Guide & drivers'!J69)*50% -> 0.15059491 | J84: =((J66/'Guide & drivers'!K50)*50%)+(J66/'Guide & drivers'!K69)*50% -> 0.1543179945 | K84: =((K66/'Guide & drivers'!L50)*50%)+(K66/'Guide & drivers'!L69)*50% -> 0.1404429896 | L84: =((L66/'Guide & drivers'!M50)*50%)+(L66/'Guide & drivers'!M69)*50% -> 0.1292144887 | P84: SPN | Q84: 8 | R84: 9 | S84: 8 | T84: 9 | U84: 10 | V84: 11
D85: EPN | E85: =((E67/'Guide & drivers'!F51)*50%)+(E67/'Guide & drivers'!F70)*50% -> 0.1881686575 | F85: =((F67/'Guide & drivers'!G51)*50%)+(F67/'Guide & drivers'!G70)*50% -> 0.1724223582 | G85: =((G67/'Guide & drivers'!H51)*50%)+(G67/'Guide & drivers'!H70)*50% -> 0.1246497895 | H85: =((H67/'Guide & drivers'!I51)*50%)+(H67/'Guide & drivers'!I70)*50% -> 0.1371884653 | I85: =((I67/'Guide & drivers'!J51)*50%)+(I67/'Guide & drivers'!J70)*50% -> 0.1304369811 | J85: =((J67/'Guide & drivers'!K51)*50%)+(J67/'Guide & drivers'!K70)*50% -> 0.1196374946 | K85: =((K67/'Guide & drivers'!L51)*50%)+(K67/'Guide & drivers'!L70)*50% -> 0.105485686 | L85: =((L67/'Guide & drivers'!M51)*50%)+(L67/'Guide & drivers'!M70)*50% -> 0.1041492583 | P85: EPN | Q85: 1 | R85: 4 | S85: 6 | T85: 5 | U85: 5 | V85: 6
D86: SPD* | E86: =((E68/'Guide & drivers'!F52)*50%)+(E68/'Guide & drivers'!F71)*50% -> 0.2789525521 | F86: =((F68/'Guide & drivers'!G52)*50%)+(F68/'Guide & drivers'!G71)*50% -> 0.2182575504 | G86: =((G68/'Guide & drivers'!H52)*50%)+(G68/'Guide & drivers'!H71)*50% -> 0.1387658595 | H86: =((H68/'Guide & drivers'!I52)*50%)+(H68/'Guide & drivers'!I71)*50% -> 0.1194427067 | I86: =((I68/'Guide & drivers'!J52)*50%)+(I68/'Guide & drivers'!J71)*50% -> 0.1072549081 | J86: =((J68/'Guide & drivers'!K52)*50%)+(J68/'Guide & drivers'!K71)*50% -> 0.1045261111 | K86: =((K68/'Guide & drivers'!L52)*50%)+(K68/'Guide & drivers'!L71)*50% -> 0.08462554114 | L86: =((L68/'Guide & drivers'!M52)*50%)+(L68/'Guide & drivers'!M71)*50% -> 0.05388649423 | P86: SPD | Q86: 4 | R86: 2 | S86: 1 | T86: 3 | U86: 1 | V86: 1
D87: SPMW* | E87: =((E69/'Guide & drivers'!F53)*50%)+(E69/'Guide & drivers'!F72)*50% -> 0.1681138295 | F87: =((F69/'Guide & drivers'!G53)*50%)+(F69/'Guide & drivers'!G72)*50% -> 0.2879918727 | G87: =((G69/'Guide & drivers'!H53)*50%)+(G69/'Guide & drivers'!H72)*50% -> 0.1398896417 | H87: =((H69/'Guide & drivers'!I53)*50%)+(H69/'Guide & drivers'!I72)*50% -> 0.1380731773 | I87: =((I69/'Guide & drivers'!J53)*50%)+(I69/'Guide & drivers'!J72)*50% -> 0.1266377275 | J87: =((J69/'Guide & drivers'!K53)*50%)+(J69/'Guide & drivers'!K72)*50% -> 0.1290178468 | K87: =((K69/'Guide & drivers'!L53)*50%)+(K69/'Guide & drivers'!L72)*50% -> 0.08987430213 | L87: =((L69/'Guide & drivers'!M53)*50%)+(L69/'Guide & drivers'!M72)*50% -> 0.07291577236 | P87: SPMW | Q87: 6 | R87: 6 | S87: 5 | T87: 6 | U87: 4 | V87: 2
D88: SSEH | E88: =((E70/'Guide & drivers'!F54)*50%)+(E70/'Guide & drivers'!F73)*50% -> 0.2617973042 | F88: =((F70/'Guide & drivers'!G54)*50%)+(F70/'Guide & drivers'!G73)*50% -> 0.4819343863 | G88: =((G70/'Guide & drivers'!H54)*50%)+(G70/'Guide & drivers'!H73)*50% -> 0.1860482041 | H88: =((H70/'Guide & drivers'!I54)*50%)+(H70/'Guide & drivers'!I73)*50% -> 0.1891129829 | I88: =((I70/'Guide & drivers'!J54)*50%)+(I70/'Guide & drivers'!J73)*50% -> 0.2322664373 | J88: =((J70/'Guide & drivers'!K54)*50%)+(J70/'Guide & drivers'!K73)*50% -> 0.2600642957 | K88: =((K70/'Guide & drivers'!L54)*50%)+(K70/'Guide & drivers'!L73)*50% -> 0.2882907148 | L88: =((L70/'Guide & drivers'!M54)*50%)+(L70/'Guide & drivers'!M73)*50% -> 0.6399267643 | P88: SSEH | Q88: 11 | R88: 13 | S88: 14 | T88: 14 | U88: 14 | V88: 14
D89: SSES | E89: =((E71/'Guide & drivers'!F55)*50%)+(E71/'Guide & drivers'!F74)*50% -> 0.2364617812 | F89: =((F71/'Guide & drivers'!G55)*50%)+(F71/'Guide & drivers'!G74)*50% -> 0.226471735 | G89: =((G71/'Guide & drivers'!H55)*50%)+(G71/'Guide & drivers'!H74)*50% -> 0.1751649679 | H89: =((H71/'Guide & drivers'!I55)*50%)+(H71/'Guide & drivers'!I74)*50% -> 0.1759952301 | I89: =((I71/'Guide & drivers'!J55)*50%)+(I71/'Guide & drivers'!J74)*50% -> 0.169394326 | J89: =((J71/'Guide & drivers'!K55)*50%)+(J71/'Guide & drivers'!K74)*50% -> 0.1617053149 | K89: =((K71/'Guide & drivers'!L55)*50%)+(K71/'Guide & drivers'!L74)*50% -> 0.1616369768 | L89: =((L71/'Guide & drivers'!M55)*50%)+(L71/'Guide & drivers'!M74)*50% -> 0.1564999833 | P89: SSES | Q89: 9 | R89: 10 | S89: 11 | T89: 12 | U89: 12 | V89: 12
D90: Total | E90: =((E72/'Guide & drivers'!F56)*50%)+(E72/'Guide & drivers'!F75)*50% -> 0.2301276574 | F90: =((F72/'Guide & drivers'!G56)*50%)+(F72/'Guide & drivers'!G75)*50% -> 0.2485396671 | G90: =((G72/'Guide & drivers'!H56)*50%)+(G72/'Guide & drivers'!H75)*50% -> 0.1609099637 | H90: =((H72/'Guide & drivers'!I56)*50%)+(H72/'Guide & drivers'!I75)*50% -> 0.1537672577 | I90: =((I72/'Guide & drivers'!J56)*50%)+(I72/'Guide & drivers'!J75)*50% -> 0.1461134987 | J90: =((J72/'Guide & drivers'!K56)*50%)+(J72/'Guide & drivers'!K75)*50% -> 0.1391592829 | K90: =((K72/'Guide & drivers'!L56)*50%)+(K72/'Guide & drivers'!L75)*50% -> 0.1294452054 | L90: =((L72/'Guide & drivers'!M56)*50%)+(L72/'Guide & drivers'!M75)*50% -> 0.1385562783
B93: Sulphur hexafluoride emissions (SF6)
D94: SF6 emissions (kg) | P94: SF6 bank (kg)
E95: DPCR5 - 2013/14 | F95: DPCR5 - 2014/15 | G95: 2015/16 | H95: 2016/17 | I95: 2017/18 | J95: 2018/19 | K95: 2019/20 | L95: 2020/21 | M95: 2021/22 | N95: 2022/23 | Q95: DPCR5 - 2013/14 | R95: DPCR5 - 2014/15 | S95: 2015/16 | T95: 2016/17 | U95: 2017/18 | V95: 2018/19 | W95: 2019/20 | X95: 2020/21 | Y95: 2021/22 | Z95: 2022/23
D96: ENWL | E96: 57.1 | F96: 36.1 | G96: 14.627 | H96: 55.23 | I96: 54.27 | J96: 38.03 | K96: 77.73 | L96: 65.26 | P96: ENWL | Q96: 13508.72 | R96: 16852.1 | S96: 14736.27 | T96: 14159.45 | U96: 14615.28 | V96: 15751.63 | W96: 16097.92 | X96: 16787.41
D97: NPgN | E97: 25.11 | F97: 16.12 | G97: 23.75 | H97: 14.87 | I97: 36 | J97: 17.7 | K97: 14.75 | L97: 24.05 | P97: NPgN | Q97: 14530.14981 | R97: 15125.06981 | S97: 15258.78981 | T97: 15392.50981 | U97: 16174 | V97: 16357.03 | W97: 16590.15 | X97: 16620.75
D98: NPgY | E98: 97.98 | F98: 79.105 | G98: 84.49 | H98: 98.75 | I98: 61.96 | J98: 47.45 | K98: 48.37 | L98: 49.01 | P98: NPgY | Q98: 17280.80328 | R98: 17816.80328 | S98: 18304.15328 | T98: 18637.59328 | U98: 19101.25328 | V98: 19486.64328 | W98: 19604.74328 | X98: 19679.06328
D99: WMID | E99: 94.66088137 | F99: 62 | G99: 352.64 | H99: 199.63 | I99: 186.96 | J99: 166.284 | K99: 111.521 | L99: 184.796 | P99: WMID | Q99: 17537 | R99: 19464 | S99: 20866 | T99: 22761 | U99: 24570 | V99: 25776.7 | W99: 26230.76 | X99: 26940.35
D100: EMID | E100: 43.52911863 | F100: 14.14 | G100: 75.61 | H100: 56.74 | I100: 56.96 | J100: 69.1 | K100: 109.419 | L100: 70.53 | P100: EMID | Q100: 15684 | R100: 16952 | S100: 18231 | T100: 20124 | U100: 22588 | V100: 25327.9 | W100: 26137.02 | X100: 27320.81
D101: SWALES | E101: 41.83 | F101: 141.42 | G101: 93.9 | H101: 88.3 | I101: 103.64 | J101: 151.383 | K101: 72.8 | L101: 66.639 | P101: SWALES | Q101: 15597 | R101: 16227 | S101: 16632 | T101: 17455 | U101: 18098 | V101: 18801.1 | W101: 19248.48 | X101: 19401.39
D102: SWEST | E102: 157.67 | F102: 128.97 | G102: 105.3 | H102: 74 | I102: 121.28 | J102: 92.79 | K102: 101.234 | L102: 58.587 | P102: SWEST | Q102: 11327 | R102: 11558 | S102: 11684 | T102: 12368 | U102: 13277 | V102: 16009.59 | W102: 17172.1 | X102: 17012.69
D103: LPN | E103: 10.42 | F103: 20.609 | G103: 9.55 | H103: 16.1 | I103: 7.35 | J103: 26.65 | K103: 44.88 | L103: 62.38 | P103: LPN | Q103: 43149.7 | R103: 40825.459 | S103: 41889.606 | T103: 42305 | U103: 46089 | V103: 46880.7 | W103: 47581.09 | X103: 48518
D104: SPN | E104: 16.578 | F104: 15.138 | G104: 17.609 | H104: 16.5 | I104: 35.7 | J104: 22.68 | K104: 14.85 | L104: 9.93 | P104: SPN | Q104: 19622.9 | R104: 20451.965 | S104: 21158.534 | T104: 21124 | U104: 21603 | V104: 24198.5 | W104: 24445.46 | X104: 25218
D105: EPN | E105: 71.86 | F105: 64.47 | G105: 66.89 | H105: 98.96 | I105: 93.28 | J105: 42.47 | K105: 56.47 | L105: 58.14 | P105: EPN | Q105: 32780.7 | R105: 34185.484 | S105: 36058.736 | T105: 36921 | U105: 41022 | V105: 42026.7 | W105: 44830.54 | X105: 48944
D106: SPD | E106: 61.7 | F106: 62.4 | G106: 0.8 | H106: 1.04 | I106: 36.502 | J106: 18.296 | K106: 45.599 | L106: 49.919 | P106: SPD | Q106: 12564 | R106: 13259 | S106: 12709.962 | T106: 14314.642 | U106: 15181.751 | V106: 15274.388 | W106: 15584.724 | X106: 15866.573
D107: SPMW | E107: 121.8 | F107: 124.2 | G107: 29.87 | H107: 46.69 | I107: 67.49 | J107: 37.5 | K107: 32.63 | L107: 69.495 | P107: SPMW | Q107: 22193 | R107: 23117 | S107: 16893.361 | T107: 16922.361 | U107: 17833.271 | V107: 18739.053 | W107: 19976.825 | X107: 20850.46
D108: SSEH | E108: 9 | F108: 14 | G108: 5.8 | H108: 3.9 | I108: 1.56 | J108: 8.47 | K108: 10.96 | L108: 9.88 | P108: SSEH | Q108: 4887.276 | R108: 5231.978 | S108: 5510.844556 | T108: 5716.13 | U108: 5653.77 | V108: 5433.386 | W108: 5116.904 | X108: 6034.328
D109: SSES | E109: 107 | F109: 102 | G109: 133 | H109: 132.3 | I109: 186.2 | J109: 211.052 | K109: 162.99 | L109: 161.785 | P109: SSES | Q109: 22983.677 | R109: 21967.991 | S109: 25702 | T109: 24272.526 | U109: 23941.639 | V109: 22703.79 | W109: 22038.96 | X109: 22570.94
D110: Total | E110: =SUM(E96:E109) -> 916.238 | F110: 880.672 | G110: 1013.836 | H110: 903.01 | I110: 1049.152 | J110: 949.855 | K110: =SUM(K96:K109) -> 904.203 | L110: =SUM(L96:L109) -> 940.401 | P110: Total | Q110: =SUM(Q96:Q109) -> 263645.9261 | R110: 273033.8501 | S110: 275635.2566 | T110: 282473.2121 | U110: 299747.9643 | V110: 312767.1103 | W110: =SUM(W96:W109) -> 320655.6763 | X110: =SUM(X96:X109) -> 331764.7643
D114: SF6 emissions as a percentage of the SF6 bank | P114: SF6 emitted as % of bank - SNAPSHOT
E115: DPCR5 - 2013/14 | F115: DPCR5 - 2014/15 | G115: 2015/16 | H115: 2016/17 | I115: 2017/18 | J115: 2018/19 | K115: 2019/20 | L115: 2020/21 | M115: 2021/22 | N115: 2022/23 | P115: Ranking | Q115: 2015/16 | R115: 2016/17 | S115: 2017/18 | T115: 2018/19 | U115: 2019/20 | V115: 2020/21 | W115: 2021/22 | X115: 2022/23
D116: ENWL | E116: =E96/Q96 -> 0.004226899366 | F116: 0.002142166258 | G116: 0.0009925849621 | H116: 0.003900575234 | I116: 0.003713237105 | J116: 0.002414353308 | K116: 0.004828574126 | L116: 0.003887437073 | P116: ENWL | Q116: =RANK(G116,$G$116:$G$129,1) -> 4 | R116: =RANK(H116,$H$116:$H$129,1) -> 9 | S116: =RANK(I116,$I$116:$I$129,1) -> 9 | T116: =RANK(J116,$J$116:$J$129,1) -> 8 | U116: =RANK(K116,$K$116:$K$129,1) -> 12 | V116: =RANK(L116,$L$116:$L$129,1) -> 12
D117: NPgN | E117: =E97/Q97 -> 0.001728130841 | F117: =F97/R97 -> 0.001065780205 | G117: =G97/S97 -> 0.001556479924 | H117: =H97/T97 -> 0.0009660542813 | I117: =I97/U97 -> 0.002225794485 | J117: =J97/V97 -> 0.001082103536 | K117: =K97/W97 -> 0.0008890817744 | L117: =L97/X97 -> 0.001446986448 | P117: NPgN | Q117: =RANK(G117,$G$116:$G$129,1) -> 6 | R117: =RANK(H117,$H$116:$H$129,1) -> 5 | S117: =RANK(I117,$I$116:$I$129,1) -> 4 | T117: =RANK(J117,$J$116:$J$129,1) -> 4 | U117: 2 | V117: =RANK(L117,$L$116:$L$129,1) -> 4
D118: NPgY | E118: 0.00566987532 | F118: 0.00443990983 | G118: 0.004615892291 | H118: =H98/T98 -> 0.005298430894 | I118: =I98/U98 -> 0.003243766213 | J118: 0.002435001212 | K118: 0.002467260056 | L118: =L98/X98 -> 0.002490464069 | P118: NPgY | Q118: 10 | R118: 11 | S118: 8 | T118: 9 | U118: 7 | V118: 6
D119: WMID | E119: 0.00539778077 | F119: 0.003185367859 | G119: 0.01690022045 | H119: 0.008770704275 | I119: 0.007609279609 | J119: 0.00645094213 | K119: 0.00425153522 | L119: 0.006859450601 | P119: WMID | Q119: 14 | R119: 14 | S119: 12 | T119: 12 | U119: 11 | V119: 13
D120: EMID | E120: 0.002775383743 | F120: 0.0008341198679 | G120: 0.004147331468 | H120: 0.002819518982 | I120: 0.002521692934 | J120: 0.00272821671 | K120: 0.004186360955 | L120: 0.002581548644 | P120: EMID | Q120: 9 | R120: 8 | S120: 7 | T120: 10 | U120: 10 | V120: 7
D121: SWALES | E121: 0.002681926011 | F121: 0.008715104456 | G121: 0.005645743146 | H121: 0.005058722429 | I121: 0.005726599624 | J121: 0.008051816117 | K121: 0.003782116822 | L121: 0.003434753902 | P121: SWALES | Q121: 12 | R121: 10 | S121: 11 | T121: 13 | U121: 9 | V121: 10
D122: SWEST | E122: 0.01391983756 | F122: 0.01115850493 | G122: 0.009012324546 | H122: 0.005983182406 | I122: 0.009134593658 | J122: 0.005795901082 | K122: 0.005895260335 | L122: 0.003443723479 | P122: SWEST | Q122: 13 | R122: 13 | S122: 14 | T122: 11 | U122: 13 | V122: 11
D123: LPN | E123: 0.0002414848771 | F123: 0.0005048075516 | G123: 0.000227980182 | H123: 0.0003805696726 | I123: 0.0001594740611 | J123: 0.0005684642081 | K123: 0.0009432318595 | L123: 0.001285708397 | P123: LPN | Q123: 2 | R123: 2 | S123: 1 | T123: 1 | U123: 3 | V123: 3
D124: SPN | E124: 0.0008448292556 | F124: 0.000740173377 | G124: 0.0008322410239 | H124: 0.000781102064 | I124: 0.001652548257 | J124: 0.0009372481765 | K124: 0.0006074747622 | L124: 0.0003937663574 | P124: SPN | Q124: 3 | R124: 4 | S124: 3 | T124: 2 | U124: 1 | V124: 1
D125: EPN | E125: 0.002192143548 | F125: 0.001885888174 | G125: 0.001855028973 | H125: 0.002680317435 | I125: 0.002273901809 | J125: 0.001010548056 | K125: 0.001259632385 | L125: 0.001187888199 | P125: EPN | Q125: 8 | R125: 6 | S125: 5 | T125: 3 | U125: 4 | V125: 2
D126: SPD | E126: 0.004910856415 | F126: 0.004706237273 | G126: 6.294275309e-05 | H126: 7.265288227e-05 | I126: 0.002404333993 | J126: 0.001197822132 | K126: 0.00292587793 | L126: 0.003146174035 | P126: SPD | Q126: 1 | R126: 1 | S126: 6 | T126: 5 | U126: 8 | V126: 8
D127: SPMW | E127: 0.005488217005 | F127: 0.005372669464 | G127: 0.001768150222 | H127: 0.002759071267 | I127: 0.003784499209 | J127: 0.002001168362 | K127: 0.001633392694 | L127: 0.003333019991 | P127: SPMW | Q127: 7 | R127: 7 | S127: 10 | T127: 7 | U127: 5 | V127: 9
D128: SSEH | E128: 0.001841516624 | F128: 0.00267585223 | G128: 0.00105247026 | H128: 0.0006822797942 | I128: 0.0002759220838 | J128: 0.001558880595 | K128: 0.002141920192 | L128: 0.001637299133 | P128: SSEH | Q128: 5 | R128: 3 | S128: 2 | T128: 6 | U128: 6 | V128: 5
D129: SSES | E129: 0.004655477885 | F129: 0.004643119164 | G129: 0.005174694576 | H129: 0.005450606995 | I129: 0.007777245326 | J129: 0.009295892888 | K129: 0.007395539535 | L129: 0.007167845026 | P129: SSES | Q129: 11 | R129: 12 | S129: 13 | T129: 14 | U129: 14 | V129: 14
D130: Total | E130: 0.003475259465 | F130: 0.003225504822 | G130: 0.00367817968 | H130: 0.00319679871 | I130: =I110/U110 -> 0.003500113846 | J130: =J110/V110 -> 0.003036940167 | K130: =K110/W110 -> 0.002819856522 | L130: 0.002834541522
B133: Leakages from fluid filled cables
D134: Top up of fluid filled cables (litres) | P134: Oil in Service in Cables (litres)
E135: DPCR5 - 2013/14 | F135: DPCR5 - 2014/15 | G135: 2015/16 | H135: 2016/17 | I135: 2017/18 | J135: 2018/19 | K135: 2019/20 | L135: 2020/21 | M135: 2021/22 | N135: 2022/23 | Q135: DPCR5 - 2013/14 | R135: DPCR5 - 2014/15 | S135: 2015/16 | T135: 2016/17 | U135: 2017/18 | V135: 2018/19 | W135: 2019/20 | X135: 2020/21 | Y135: 2021/22 | Z135: 2022/23
D136: ENWL | E136: 33115 | F136: 28318 | G136: 31220 | H136: 21096 | I136: 67398 | J136: 55829 | K136: 21616 | L136: 16998 | P136: ENWL | Q136: 1311206 | R136: 1266283.417 | S136: 1202260.53 | T136: 1319898.91 | U136: 1106980.41 | V136: 1093156.61 | W136: 1066356.99 | X136: 1069908
D137: NPgN | E137: 16837 | F137: 15890 | G137: 13021 | H137: 18641 | I137: 12124 | J137: 14747 | K137: 9543 | L137: 7831 | P137: NPgN | Q137: 1469598.816 | R137: 1419147.339 | S137: 1433538.018 | T137: 1429192.027 | U137: 1347254 | V137: 1305156.334 | W137: 1240009.32 | X137: 1211779.327
D138: NPgY | E138: 42951 | F138: 28113 | G138: 18732 | H138: 18150 | I138: 17438 | J138: 19567 | K138: 24267 | L138: 20224 | P138: NPgY | Q138: 1398926.373 | R138: 1362750.509 | S138: 1145692.085 | T138: 1089977.698 | U138: 1078595.852 | V138: 1042745.063 | W138: 974315.4115 | X138: 914406.4292
D139: WMID | E139: 11382 | F139: 19717 | G139: 8392 | H139: 9421 | I139: 12771 | J139: 31474 | K139: 12511 | L139: 8348 | P139: WMID | Q139: 918008.229 | R139: 877755.234 | S139: 865392 | T139: 935150 | U139: 663808 | V139: 671353 | W139: 671353 | X139: 671353
D140: EMID | E140: 10110 | F140: 9303 | G140: 7255 | H140: 7220 | I140: 9630 | J140: 9848 | K140: 4611 | L140: 4645 | P140: EMID | Q140: 794256.8495 | R140: 770711.498 | S140: 711036 | T140: 694510 | U140: 521215 | V140: 521138 | W140: 521138 | X140: 521113
D141: SWALES | E141: 0 | F141: 0 | G141: 938 | H141: 400 | I141: 270 | J141: 860 | K141: 2840 | L141: 5055 | P141: SWALES | Q141: 144156.0682 | R141: 143999.3922 | S141: 144974 | T141: 182210 | U141: 161291 | V141: 193712 | W141: 193712 | X141: 193712
D142: SWEST | E142: 724 | F142: 1930 | G142: 706 | H142: 210 | I142: 687 | J142: 3310 | K142: 251 | L142: 363 | P142: SWEST | Q142: 311241.5292 | R142: 314455.3845 | S142: 303186 | T142: 285380 | U142: 241053 | V142: 273595 | W142: 273595 | X142: 273595
D143: LPN | E143: 143605 | F143: 165221 | G143: 151557 | H143: 137086 | I143: 114723 | J143: 96865 | K143: 68146 | L143: 105153 | P143: LPN | Q143: 3111189.2 | R143: 3158906.69 | S143: 3156496.207 | T143: 3238312.287 | U143: 3248501.919 | V143: 3182030.941 | W143: 3162410.94 | X143: 3091620.94
D144: SPN | E144: 66208 | F144: 71297 | G144: 52446 | H144: 52068 | I144: 72233 | J144: 80385 | K144: 53783 | L144: 59404 | P144: SPN | Q144: 1981939.81 | R144: 2002002.87 | S144: 2002711.878 | T144: 2073473.872 | U144: 2062589.84 | V144: 2054119.779 | W144: 2054119.779 | X144: 2040743.33
D145: EPN | E145: 30829 | F145: 46916 | G145: 37768 | H145: 42306 | I145: 55978 | J145: 63787 | K145: 56557 | L145: 48996 | P145: EPN | Q145: 1943552.7 | R145: 1989261.7 | S145: 1931841.77 | T145: 2196313.671 | U145: 2191115.463 | V145: 2191115.463 | W145: 2174076.83 | X145: 2164067.66
D146: SPD | E146: 46 | F146: 37 | G146: 0 | H146: 0 | I146: 20 | J146: 26 | K146: 49 | L146: 39 | P146: SPD | Q146: 0 | R146: 0 | S146: 86700 | T146: 86700 | U146: 86700 | V146: 86700 | W146: 86700 | X146: 86700
D147: SPMW | E147: 5535 | F147: 3555 | G147: 13600 | H147: 9315 | I147: 4420 | J147: 5024 | K147: 3230 | L147: 2067 | P147: SPMW | Q147: 0 | R147: 0 | S147: 699600 | T147: 699600 | U147: 699319.28 | V147: 699319.28 | W147: 699319.28 | X147: 699187.28
D148: SSEH | E148: 1077 | F148: 1623 | G148: 410 | H148: 612 | I148: 3440 | J148: 1191 | K148: 221 | L148: 139 | P148: SSEH | Q148: 38188.995 | R148: 38116.845 | S148: 35090.393 | T148: 32744.075 | U148: 32744.075 | V148: 30317.911 | W148: 30317.911 | X148: 30320.316
D149: SSES | E149: 17184 | F149: 18804 | G149: 14851 | H149: 21199 | I149: 31857 | J149: 31377 | K149: 25936 | L149: 18317 | P149: SSES | Q149: 513316.1781 | R149: 513316.1781 | S149: 689617.708 | T149: 684272.836 | U149: 646332.3588 | V149: 643478.3518 | W149: 640179.6538 | X149: 640113.2758
D150: Total | E150: =SUM(E136:E149) -> 379603 | F150: 410724 | G150: 350896 | H150: 337724 | I150: 402989 | J150: 414290 | K150: =SUM(K136:K149) -> 283561 | L150: =SUM(L136:L149) -> 297579 | P150: Total | Q150: =SUM(Q136:Q149) -> 13935580.75 | R150: 13856707.06 | S150: 14408136.59 | T150: 14947735.38 | U150: 14087500.2 | V150: 13987937.73 | W150: =SUM(W136:W149) -> 13787604.12 | X150: =SUM(X136:X149) -> 13608619.56
D153: Top up as a % of oil in service | P153: Top up as a % of oil in service - SNAPSHOT
E154: DPCR5 - 2013/14 | F154: DPCR5 - 2014/15 | G154: 2015/16 | H154: 2016/17 | I154: 2017/18 | J154: 2018/19 | K154: 2019/20 | L154: 2020/21 | M154: 2021/22 | N154: 2022/23 | P154: Ranking | Q154: 2015/16 | R154: 2016/17 | S154: 2017/18 | T154: 2018/19 | U154: 2019/20 | V154: 2020/21 | W154: 2021/22 | X154: 2022/23 | AA154: 2015/16 | AB154: 2016/17 | AC154: 2017/18 | AD154: 2018/19 | AE154: 2019/20 | AF154: 2020/21 | AG154: 2021/22 | AH154: 2022/23
D155: ENWL | E155: =IFERROR(E136/Q136,"") -> 0.02525537559 | F155: =IFERROR(F136/R136,"") -> 0.02236308208 | G155: =IFERROR(G136/S136,"") -> 0.02596774927 | H155: =IFERROR(H136/T136,"") -> 0.01598304222 | I155: 0.06088454628 | J155: =IFERROR(J136/V136,"") -> 0.05107136479 | K155: 0.02027088508 | L155: 0.01588734732 | M155: =IFERROR(M136/Y136,"") ->  | N155: =IFERROR(N136/Z136,"") ->  | P155: ENWL | Q155: =RANK(AA155,$AA$155:$AA$167,1) -> 11 | R155: =RANK(AB155,$AB$155:$AB$167,1) -> 7 | S155: =RANK(AC155,$AC$155:$AC$167,1) -> 12 | T155: =RANK(AD155,$AD$155:$AD$167,1) -> 13 | U155: =RANK(AE155,$AE$155:$AE$167,1) -> 8 | V155: =RANK(AF155,$AF$155:$AF$167,1) -> 7 | Z155: ENWL | AA155: =G155 -> 0.02596774927 | AB155: =H155 -> 0.01598304222 | AC155: =I155 -> 0.06088454628 | AD155: =J155 -> 0.05107136479 | AE155: =K155 -> 0.02027088508 | AF155: =L155 -> 0.01588734732
D156: NPgN | E156: 0.01145686824 | F156: 0.01119686418 | G156: 0.009083121506 | H156: 0.01304303386 | I156: 0.008999045466 | J156: 0.01129902956 | K156: 0.007695909896 | L156: 0.006462397755 | P156: NPgN | Q156: 3 | R156: 5 | S156: 4 | T156: 3 | U156: 4 | V156: 4 | Z156: NPgN | AA156: 0.009083121506 | AB156: 0.01304303386 | AC156: 0.008999045466 | AD156: 0.01129902956 | AE156: 0.007695909896 | AF156: =L156 -> 0.006462397755
D157: NPgY | E157: 0.03070283099 | F157: 0.02062960154 | G157: 0.01634994275 | H157: 0.01665171684 | I157: 0.01616731602 | J157: 0.01876489344 | K157: 0.02490671882 | L157: 0.02211707984 | P157: NPgY | Q157: 7 | R157: 8 | S157: 5 | T157: 5 | U157: 10 | V157: 8 | Z157: NPgY | AA157: 0.01634994275 | AB157: 0.01665171684 | AC157: 0.01616731602 | AD157: 0.01876489344 | AE157: 0.02490671882 | AF157: 0.02211707984
D158: WMID | E158: 0.01239858167 | F158: 0.02246298198 | G158: 0.009697339472 | H158: 0.01007431963 | I158: 0.01923899682 | J158: 0.04688144687 | K158: 0.01863550174 | L158: 0.01243459104 | P158: WMID | Q158: 4 | R158: 3 | S158: 7 | T158: 11 | U158: 7 | V158: 6 | Z158: WMID | AA158: 0.009697339472 | AB158: 0.01007431963 | AC158: 0.01923899682 | AD158: 0.04688144687 | AE158: 0.01863550174 | AF158: 0.01243459104
D159: EMID | E159: 0.01272887984 | F159: 0.01207066461 | G159: 0.01020342149 | H159: 0.01039581863 | I159: 0.01847606074 | J159: 0.01889710595 | K159: 0.008847944306 | L159: 0.008913613746 | P159: EMID | Q159: 5 | R159: 4 | S159: 6 | T159: 6 | U159: 5 | V159: 5 | Z159: EMID | AA159: 0.01020342149 | AB159: 0.01039581863 | AC159: 0.01847606074 | AD159: 0.01889710595 | AE159: 0.008847944306 | AF159: 0.008913613746
D160: SWALES | E160: 0 | F160: 0 | G160: 0.006470125678 | H160: 0.002195269195 | I160: 0.001673992969 | J160: 0.004439580408 | K160: 0.01466093995 | L160: 0.02609544065 | N160: =IFERROR(N141/Z141,"") ->  | P160: SWALES | Q160: 2 | R160: 2 | S160: 1 | T160: 1 | U160: 6 | V160: 10 | Z160: SWALES | AA160: 0.006470125678 | AB160: 0.002195269195 | AC160: 0.001673992969 | AD160: 0.004439580408 | AE160: 0.01466093995 | AF160: 0.02609544065
D161: SWEST | E161: 0.002326167725 | F161: 0.006137595649 | G161: 0.002328603563 | H161: 0.0007358609573 | I161: 0.002849995644 | J161: 0.01209817431 | K161: 0.0009174144264 | L161: 0.001326778633 | P161: SWEST | Q161: 1 | R161: 1 | S161: 2 | T161: 4 | U161: 1 | V161: 1 | Z161: SWEST | AA161: 0.002328603563 | AB161: 0.0007358609573 | AC161: 0.002849995644 | AD161: 0.01209817431 | AE161: 0.0009174144264 | AF161: 0.001326778633
D162: LPN | E162: 0.04615759144 | F162: 0.05230322267 | G162: 0.04801431399 | H162: 0.04233254481 | I162: 0.0353156633 | J162: 0.0304412502 | K162: 0.02154874913 | L162: 0.03401225507 | P162: LPN | Q162: 13 | R162: 13 | S162: 10 | T162: 8 | U162: 9 | V162: 13 | Z162: LPN | AA162: 0.04801431399 | AB162: 0.04233254481 | AC162: 0.0353156633 | AD162: 0.0304412502 | AE162: 0.02154874913 | AF162: 0.03401225507
D163: SPN | E163: 0.03340565625 | F163: 0.03561283606 | G163: 0.02618749136 | H163: 0.02511148112 | I163: 0.03502053516 | J163: 0.03913355045 | K163: 0.02618299115 | L163: 0.02910900118 | P163: SPN | Q163: 12 | R163: 11 | S163: 9 | T163: 9 | U163: 12 | V163: 12 | Z163: SPN | AA163: 0.02618749136 | AB163: 0.02511148112 | AC163: 0.03502053516 | AD163: 0.03913355045 | AE163: 0.02618299115 | AF163: 0.02910900118
D164: EPN | E164: 0.01586218887 | F164: 0.02358462941 | G164: =IFERROR(G145/S145,"") -> 0.0195502554 | H164: 0.01926227595 | I164: 0.02554771802 | J164: 0.02911165617 | K164: 0.02601426004 | L164: 0.02264069692 | P164: EPN | Q164: 9 | R164: 10 | S164: 8 | T164: 7 | U164: 11 | V164: 9 | Z164: EPN | AA164: 0.0195502554 | AB164: 0.01926227595 | AC164: 0.02554771802 | AD164: 0.02911165617 | AE164: 0.02601426004 | AF164: 0.02264069692
D165: SPD | E165: =IFERROR(E146/Q146,"") ->  | F165: =IFERROR(F146/R146,"") ->  | G165: =IFERROR(G146/S146,"") -> 0 | H165: =IFERROR(H146/T146,"") -> 0 | I165: =IFERROR(I146/U146,"") -> 0.0002306805075 | J165: =IFERROR(J146/V146,"") -> 0.0002998846597 | K165: =IFERROR(K146/W146,"") -> 0.0005651672434 | L165: 0.0004498269896 | M165: - | N165: - | P165: SPMW | Q165: 8 | R165: 6 | S165: 3 | T165: 2 | U165: 2 | V165: 2 | Z165: SPMW | AA165: =G166 -> 0.01943967982 | AB165: 0.01331475129 | AC165: 0.006320432064 | AD165: 0.007184129115 | AE165: 0.004618777277 | AF165: 0.002956289479
D166: SPMW | E166: =IFERROR(E147/Q147,"") ->  | F166: =IFERROR(F147/R147,"") ->  | G166: =IFERROR(G147/S147,"") -> 0.01943967982 | H166: 0.01331475129 | I166: 0.006320432064 | J166: 0.007184129115 | K166: 0.004618777277 | L166: 0.002956289479 | P166: SSEH | Q166: 6 | R166: 9 | S166: 13 | T166: 10 | U166: 3 | V166: 3 | Z166: SSEH | AA166: 0.01168410967 | AB166: 0.01869040429 | AC166: 0.1050571745 | AD166: 0.03928370922 | AE166: 0.007289420435 | AF166: 0.004584384938
D167: SSEH | E167: =IFERROR(E148/Q148,"") -> 0.02820184192 | F167: 0.04257959965 | G167: 0.01168410967 | H167: 0.01869040429 | I167: 0.1050571745 | J167: 0.03928370922 | K167: 0.007289420435 | L167: 0.004584384938 | P167: SSES | Q167: 10 | R167: 12 | S167: 11 | T167: 12 | U167: 13 | V167: 11 | Z167: SSES | AA167: 0.02153511986 | AB167: 0.03098033253 | AC167: 0.04928888298 | AD167: 0.04876154716 | AE167: 0.04051362746 | AF167: 0.02861524779
D168: SSES | E168: 0.03347644344 | F168: 0.03663239306 | G168: 0.02153511986 | H168: 0.03098033253 | I168: 0.04928888298 | J168: 0.04876154716 | K168: 0.04051362746 | L168: 0.02861524779
D169: Total | E169: 0.02723984073 | F169: 0.02964080848 | G169: 0.02435401676 | H169: 0.0225936566 | I169: 0.02860613979 | J169: 0.02961766115 | K169: 0.02056637235 | L169: 0.02186694975
B172: Undergrounding
D173: Undergrounding performance
E174: 2015/16 | H174: 2016/17 | K174: 2017/18 | N174: 2018/19 | Q174: 2019/20 | T174: 2020/21 | W174: 2021/22 | Z174: 2022/23
E175: Length of overhead lines removed (km) | F175: Length of underground lines installed (km) | G175: Undergrounding expenditure (£m) | H175: Length of overhead lines removed (km) | I175: Length of underground lines installed (km) | J175: Undergrounding expenditure (£m) | K175: Length of overhead lines removed (km) | L175: Length of underground lines installed (km) | M175: Undergrounding expenditure (£m) | N175: Length of overhead lines removed (km) | O175: Length of underground lines installed (km) | P175: Undergrounding expenditure (£m) | Q175: Length of overhead lines removed (km) | R175: Length of underground lines installed (km) | S175: Undergrounding expenditure (£m) | T175: Length of overhead lines removed (km) | U175: Length of underground lines installed (km) | V175: Undergrounding expenditure (£m) | W175: Length of overhead lines removed (km) | X175: Length of underground lines installed (km) | Y175: Undergrounding expenditure (£m) | Z175: Length of overhead lines removed (km) | AA175: Length of underground lines installed (km) | AB175: Undergrounding expenditure (£m)
D176: ENWL | E176: 3.79 | F176: 3.41 | G176: 0.9772201413 | H176: 11.23 | I176: 12.206 | J176: 1.047329213 | K176: 4.88 | L176: 4.46 | M176: 1.151250956 | N176: 7.311 | O176: 9.2 | P176: 1.121791246 | Q176: 7.176 | R176: 8.614 | S176: 1.266540217 | T176: 11.23 | U176: 14.83 | V176: 1.715
D177: NPgN | E177: 9.112 | F177: 9.067 | G177: 0.9302407449 | H177: 9.161 | I177: 8.876 | J177: 2.485248917 | K177: 9.995 | L177: 12.03 | M177: 1.877632848 | N177: 6.93 | O177: 7.592 | P177: 0.9773836086 | Q177: 3.205 | R177: 3.878 | S177: 1.790352775 | T177: 5.38 | U177: 6.47 | V177: 1.775722936
D178: NPgY | E178: 7.751 | F178: 7.845 | G178: 0.449437796 | H178: 3.85 | I178: 3.645 | J178: 0.6642057446 | K178: 3.87 | L178: 3.585 | M178: 0.7063272028 | N178: 4.38 | O178: 5.5 | P178: 1.179279803 | Q178: 10.418 | R178: 12.119 | S178: 0.5640682729 | T178: 0.836 | U178: 1.39 | V178: 0.647991673
D179: WMID | E179: 4.655857 | F179: 5.029391 | G179: 0.7848746975 | H179: 3.293036 | I179: 6.442838042 | J179: 0.5040899742 | K179: 0 | L179: 0 | M179: 0 | N179: 0.350793 | O179: 0 | P179: 0.001138862918 | Q179: 5.70078 | R179: 5.96822 | S179: 0.5031129316 | T179: 0 | U179: 0.09394 | V179: 0.0713
D180: EMID | E180: 4.160633 | F180: 0 | G180: 0.01893586745 | H180: 0 | I180: 0.289111 | J180: 0.02532244891 | K180: 1.092980523 | L180: 0.014685116 | M180: 0 | N180: 0 | O180: 0 | P180: 0.009656462578 | Q180: 3.281904 | R180: 3.304386 | S180: 0.3968262401 | T180: 0.37509 | U180: 0.32566 | V180: 0.2615
D181: SWALES | E181: 0 | F181: 0 | G181: 0 | H181: 1.171771696 | I181: 1.174857 | J181: 0.08087341652 | K181: 0.113239 | L181: 0 | M181: 0.1900419748 | N181: 0.116752 | O181: 0.124092983 | P181: 0.01412127861 | Q181: 0 | R181: 0 | S181: 0.0001839307603 | T181: 0 | U181: 0 | V181: 0
D182: SWEST | E182: 0 | F182: 0 | G182: 0.06009586676 | H182: 0.305728 | I182: 0.685364377 | J182: 0.04144647121 | K182: 1.898316 | L182: 9.438434236 | M182: 1.164542124 | N182: 0.336942 | O182: 1.348525441 | P182: 0.163980088 | Q182: 2.644278 | R182: 0.102598 | S182: 0.2787127129 | T182: 3.18665 | U182: 3.155564 | V182: 0.1587
D183: LPN* | E183: N/A | F183: N/A | G183: N/A | H183: 0 | I183: 0 | J183: N/A | K183: 0 | L183: 0 | M183: N/A | N183: 0 | O183: 0 | P183: 0 | Q183: 0 | R183: 0 | S183: 0 | T183: 0 | U183: 0 | V183: 0
D184: SPN | E184: 5.349638 | F184: 7.883125 | G184: 0.3837828261 | H184: 3.1821 | I184: 1.86 | J184: 0.3819911472 | K184: 0 | L184: 0 | M184: 0.0518806192 | N184: 0 | O184: 0 | P184: 0.0452931774 | Q184: 0 | R184: 0 | S184: 0.04404441423 | T184: 0 | U184: 0 | V184: 0.1406989396
D185: EPN | E185: 0 | F185: 0.135 | G185: 0.5420005605 | H185: 1.46682782 | I185: 1.785446065 | J185: 0.2098088727 | K185: 2.053488 | L185: 3.449360167 | M185: 0.1967939875 | N185: 0.53192 | O185: 2.6719 | P185: 0.8085259801 | Q185: 8.44702 | R185: 9.91455 | S185: 1.16767695 | T185: 5.42242 | U185: 5.59226 | V185: 0.6068570359
D186: SPD | E186: 0 | F186: 0 | G186: 0 | H186: 0 | I186: 0 | J186: 0.1605191896 | K186: 0.16355 | L186: 0 | M186: 0 | N186: 0 | O186: 0 | P186: 0.1834398739 | Q186: 0.16355 | R186: 0 | S186: 0.0598153669 | T186: 0.16355 | U186: 0 | V186: 1.093149288
D187: SPMW | E187: 1.6 | F187: 0 | G187: 0.1056575709 | H187: 1.968943195 | I187: 1.623761834 | J187: 0.2324937466 | K187: 7.437 | L187: 0 | M187: 0.5282561462 | N187: 0.7059 | O187: 0.6927 | P187: 0 | Q187: 1.3136 | R187: 1.17311 | S187: 0.5793119417 | T187: 1.33264 | U187: 1.76255 | V187: 0.4911428803
D188: SSEH | E188: 0 | F188: 0 | G188: 0 | H188: 0 | I188: 0 | J188: 0.2620000441 | K188: 1.922 | L188: 2.509 | M188: 0.8798190647 | N188: 2.599 | O188: 3.133 | P188: 0.2199133714 | Q188: 0 | R188: 0 | S188: 0.1770564354 | T188: 11.214 | U188: 10.724 | V188: 0.16500426
D189: SSES | E189: 2.5 | F189: 2.4 | G189: 0.2832144716 | H189: 6.027 | I189: 6.967 | J189: 0.505856419 | K189: 0 | L189: 0 | M189: 0.2178243245 | N189: 0 | O189: 0 | P189: 0.1454315388 | Q189: 2.394 | R189: 2.76221 | S189: 0.5981098135 | T189: 0.572 | U189: 0.989 | V189: 0.06827388
D190: Total | E190: =SUM(E176:E189) -> 38.919128 | F190: 35.769516 | G190: =SUM(G176:G189) -> 4.535460543 | H190: 41.65640671 | I190: 45.55537832 | J190: 6.601185605 | K190: 33.42557352 | L190: 35.48647952 | M190: 6.964369247 | N190: 23.262307 | O190: 30.26221842 | P190: 4.869955291 | Q190: =SUM(Q176:Q189) -> 44.744132 | R190: 47.836074 | S190: 7.425812003 | T190: 39.71235 | U190: 45.332974 | V190: 7.195340893
D191: * nb LPN does not have an undergrounding allowance
D194: Detailed Undergrounding Activity Under ED1 Visual Amenity Allowance
D196: DNO | E196: AONB / national park | F196: 2015/16 | I196: 2016/17 | L196: 2017/18 | O196: 2018/19 | R196: 2019/20 | U196: 2020/21 | X196: 2021/22 | AA196: 2022/23
F197: Length of overhead lines (km) removed | G197: Length of underground cables installed in Designated Areas (km) | H197: Expenditure (£m) | I197: Length of overhead lines (km) removed | J197: Length of underground cables installed in Designated Areas (km) | K197: Expenditure (£m) | L197: Length of overhead lines (km) removed | M197: Length of underground cables installed in Designated Areas (km) | N197: Expenditure (£m) | O197: Length of overhead lines (km) removed | P197: Length of underground cables installed in Designated Areas (km) | Q197: Expenditure (£m) | R197: Length of overhead lines (km) removed | S197: Length of underground cables installed in Designated Areas (km) | T197: Expenditure (£m) | U197: Length of overhead lines (km) removed | V197: Length of underground cables installed in Designated Areas (km) | W197: Expenditure (£m) | X197: Length of overhead lines (km) removed | Y197: Length of underground cables installed in Designated Areas (km) | Z197: Expenditure (£m) | AA197: Length of overhead lines (km) removed | AB197: Length of underground cables installed in Designated Areas (km) | AC197: Expenditure (£m)
D198: ENWL | E198: Arnside & Silverdale | F198: 0 | G198: 0 | H198: 0.0096718295 | I198: 0 | J198: 0 | K198: -0.0001494748369 | L198: 0 | M198: 0 | N198: 0 | O198: 0 | P198: 0 | Q198: 0 | R198: 0 | S198: 0 | T198: 0 | U198: 0 | V198: 0 | W198: 0
E199: Forest of Bowland | F199: 1.22 | G199: 1.355 | H199: 0.1492830187 | I199: 1.801 | J199: 2.251 | K199: 0.1795484005 | L199: 2.687 | M199: 3.4 | N199: 0.2948422054 | O199: 0 | P199: 0 | Q199: 0.1872823124 | R199: 5.271 | S199: 6.43 | T199: 0.5215080727 | U199: 5.796 | V199: 8.194 | W199: 0.8500806706
E200: North Pennines | F200: 0 | G200: 0 | H200: 0.003249793936 | I200: 2.719 | J200: 3.108 | K200: 0.3388615501 | L200: 0 | M200: 0 | N200: 0.008020070951 | O200: 0 | P200: 0 | Q200: 0.001186789606 | R200: 0 | S200: 0 | T200: 0 | U200: 0 | V200: 0 | W200: 0
E201: Solway Coast | F201: 0.93 | G201: 1.185 | H201: 0.09778099631 | I201: 1.607 | J201: 2.241 | K201: 0.1742771184 | L201: 0 | M201: 0 | N201: 0 | O201: 0 | P201: 0 | Q201: 0 | R201: 0.73 | S201: 0.702 | T201: 0.09406081627 | U201: 0 | V201: 0 | W201: 0
E202: The Lake District | F202: 0.8 | G202: 0.87 | H202: 0.6313456945 | I202: 4.052 | J202: 3.555 | K202: 0.1807180949 | L202: 0.882 | M202: 1.06 | N202: 0.741456897 | O202: 5.827 | P202: 7.031 | Q202: 0.5614483924 | R202: 0.125 | S202: 0.162 | T202: 0.02524966675 | U202: 2.664 | V202: 3.09 | W202: 0.5290805791
E203: The Peak District | F203: 0.84 | G203: 0 | H203: 0.05275278157 | I203: 1.051 | J203: 1.051 | K203: 0.1765738761 | L203: 1.315 | M203: 0 | N203: 0.1069317825 | O203: 0.98 | P203: 1.49 | Q203: 0.2340699242 | R203: 0 | S203: 0 | T203: -0.003851047312 | U203: 0 | V203: 0 | W203: 0.3557535313
E204: The Yorkshire Dales | F204: 0 | G204: 0 | H204: 0.0331360268 | I204: 0 | J204: 0 | K204: 0.0008155113928 | L204: 0 | M204: 0 | N204: 0 | O204: 0.504 | P204: 0.679 | Q204: 0.1404558459 | R204: 1.05 | S204: 1.32 | T204: 0.6295727091 | U204: 2.771 | V204: 3.545 | W204: -0.0333695107
D205: NPGN | E205: Howardian Hills | F205: 1.505 | G205: 1.505 | H205: 0.1329603591 | I205: 1.07 | J205: 0.965 | K205: 0.2153906242 | L205: 0.27 | M205: 0.425 | N205: 0.0574350399 | O205: 0.58 | P205: 0.8 | Q205: 0.08047843368 | R205: 0 | S205: 0 | T205: 0.00399236914 | U205: 1.175 | V205: 1.455 | W205: 0.4477804938
E206: Nidderdale | F206: 1.148 | G206: 1.148 | H206: 0.09329495986 | I206: 0.192 | J206: 0.192 | K206: 0.01205035226 | L206: 0 | M206: 0 | N206: 0.1025180898 | O206: 0.52 | P206: 0.54 | Q206: 0.09105760559 | R206: 0.52 | S206: 0.78 | T206: 0.3412536139 | U206: 0 | V206: 0 | W206: 0.5951136028
E207: North Pennines | F207: 1.17 | G207: 1.17 | H207: 0.16076018 | I207: 1.446 | J207: 1.446 | K207: 0.2961488217 | L207: 1.755 | M207: 1.875 | N207: 0.5886831165 | O207: 1.56 | P207: 1.697 | Q207: 0.4220185155 | R207: 1.39 | S207: 1.745 | T207: 0.5205175654 | U207: 0 | V207: 0 | W207: 0.06254836352
E208: Northumberland Coast | F208: 0 | G208: 0 | H208: 0 | I208: 0.73 | J208: 0.73 | K208: 0.0963225472 | L208: 0 | M208: 0 | N208: 0.01822374131 | O208: 0.32 | P208: 0.31 | Q208: 0.04864870296 | R208: 0 | S208: 0 | T208: 0.008757672726 | U208: 0 | V208: 0 | W208: 0
E209: Northumberland | F209: 0.78 | G209: 0.78 | H209: 0.08102180337 | I209: 0.86 | J209: 0.5 | K209: 0.1373153621 | L209: 0 | M209: 0 | N209: 0.02809862622 | O209: 0 | P209: 0 | Q209: 0.0247384465 | R209: 0 | S209: 0 | T209: 0.396434856 | U209: 0 | V209: 0 | W209: 0.04949326406
E210: North York Moors | F210: 4.309 | G210: 4.264 | H210: 0.4393086031 | I210: 4.863 | J210: 5.043 | K210: 1.725797439 | L210: 4.44 | M210: 5.545 | N210: 0.6781412029 | O210: 3.95 | P210: 4.245 | Q210: 0.2639393744 | R210: 0.325 | S210: 0.468 | T210: 0.2731367203 | U210: 4.205 | V210: 5.015 | W210: 0.5382235075
E211: Yorkshire Dales | F211: 0.2 | G211: 0.2 | H211: 0.02289483945 | I211: 0 | J211: 0 | K211: 0 | L211: 3.53 | M211: 4.185 | N211: 0.4045330636 | O211: 0 | P211: 0 | Q211: 0.04650252987 | R211: 0.97 | S211: 0.885 | T211: 0.2462599772 | U211: 0 | V211: 0 | W211: 0.08256370456
D212: NPGY | E212: Peak District | F212: 0.481 | G212: 0.575 | H212: 0.02044526992 | I212: 0 | J212: 0 | K212: 0.0419087973 | L212: 0.25 | M212: 0.28 | N212: 0.3167332936 | O212: 1.8 | P212: 2.6 | Q212: 0.04652173374 | R212: 0 | S212: 0 | T212: 0.01876267541 | U212: 0 | V212: 0 | W212: 0.5744288154
E213: Yorkshire Dales | F213: 0 | G213: 0 | H213: 0 | I213: 0 | J213: 0 | K213: 0.02031783191 | L213: 0 | M213: 0 | N213: 0.005513844959 | O213: 0 | P213: 0 | Q213: 0.5572248839 | R213: 4.68 | S213: 5.286 | T213: 0.2314412538 | U213: 0.836 | V213: 1.39 | W213: 0.0574812793
E214: Nidderdale | F214: 5 | G214: 5 | H214: 0.1139839144 | I214: 0.24 | J214: 0.24 | K214: 0.05213732994 | L214: 0 | M214: 0 | N214: 0.0003390864998 | O214: 0 | P214: 0 | Q214: 0.0057041721 | R214: 1.888 | S214: 2.663 | T214: 0.2326236004 | U214: 0 | V214: 0 | W214: 0.01012058435
E215: Lincolnshire Wolds | F215: 2.27 | G215: 2.27 | H215: 0.3150086117 | I215: 3.61 | J215: 3.405 | K215: 0.5498417855 | L215: 3.62 | M215: 3.305 | N215: 0.3837409778 | O215: 2.58 | P215: 2.9 | Q215: 0.5698290133 | R215: 3.85 | S215: 4.17 | T215: 0.08124074329 | U215: 0 | V215: 0 | W215: 0.005960993955
D216: WMID | E216: Cannock Chase | F216: 0.052672 | G216: 0.015998 | H216: -0.08764925472 | I216: 0 | J216: 0 | K216: -0.08814175447 | L216: 0 | M216: 0 | N216: 0 | O216: 0 | P216: 0 | Q216: 0 | R216: 4.037038 | S216: 4.340457 | T216: 0.3273411757 | U216: 0 | V216: 0.09394 | W216: 0.04707221867
E217: Cotswolds (WMID) | F217: 0.75935 | G217: 1.100196 | H217: 0.07619702351 | I217: 1.533846 | J217: 1.821023042 | K217: 0.3046107988 | L217: 0 | M217: 0 | N217: 0 | O217: 0 | P217: 0 | Q217: 0 | R217: 0 | S217: 0 | T217: 0.0004797327877 | U217: 0 | V217: 0 | W217: 0.02137351286
E218: Malvern Hills | F218: 1.826298 | G218: 1.117835 | H218: 0.08039239534 | I218: 0 | J218: 0.18185 | K218: 0.07870592433 | L218: 0 | M218: 0 | N218: 0 | O218: 0 | P218: 0 | Q218: 0 | R218: 0 | S218: 0 | T218: 0 | U218: 0 | V218: 0 | W218: 0
E219: Peak District NP (WMID) | F219: 0.641478 | G219: 0.827735 | H219: 0.3073960279 | I219: 0.416485 | J219: 0.458741 | K219: 0.3018355547 | L219: 0 | M219: 0 | N219: 0 | O219: 0 | P219: 0 | Q219: 0 | R219: 0 | S219: 0 | T219: 0 | U219: 0 | V219: 0 | W219: 0
E220: Wye Valley (WMID) | F220: 0 | G220: 0 | H220: 0.3581940435 | I220: 0 | J220: 1.882215 | K220: 0.3475715784 | L220: 0 | M220: 0 | N220: 0 | O220: 0 | P220: 0 | Q220: 0.00114216224 | R220: 0 | S220: 0 | T220: 0 | U220: 0 | V220: 0 | W220: 0
E221: Shropshire Hills | F221: 1.376059 | G221: 1.967627 | H221: 0.05000429668 | I221: 1.342705 | J221: 2.099009 | K221: 0.3275898204 | L221: 0 | M221: 0 | N221: 0 | O221: 0.350793 | P221: 0 | Q221: 0 | R221: 1.663742 | S221: 1.627763 | T221: 0.1744848887 | U221: 0 | V221: 0 | W221: 0.002864981815
D222: EMID | E222: Lincolnshire Wolds | F222: 0 | G222: 0 | H222: -0.01111206593 | I222: 0 | J222: 0.289111 | K222: 0.01443126962 | L222: 1.092980523 | M222: 0.014685116 | N222: 0 | O222: 0 | P222: 0 | Q222: 0 | R222: 3.281904 | S222: 3.304386 | T222: 0.2744027111 | U222: 0 | V222: 0.02752 | W222: 0.002132797817
... 101 more rows

Sheet Ch2 - innovation
A1: Chapter 2 - Innovation
B2: Overview of the DNOs’ expenditure in relation to the various innovation schemes in RIIO-ED1.
B3: Network Innovation Allowance (NIA) Source: Expenditure: Revenue Returns R9 Allowance: NIA % of Base Revenue | D3: Network Innovation Allowance projects and expenditure
E4: 2015/16 (in 15/16 prices) | I4: 2016/17 (in 16/17 prices) | M4: 2017/18 (in 17/18 prices) | Q4: 2018/19 (in 18/19 prices) | U4: 2019/20 | Y4: 2020/21 | AC4: 2021/22 | AG4: 2022/23
E5: Number of projects | F5: NIA allowance (£m) | G5: NIA expenditure (£m) | H5: % of allowance | I5: Number of projects | J5: NIA allowance (£m) | K5: NIA expenditure (£m) | L5: % of allowance | M5: Number of projects | N5: NIA allowance (£m) | O5: NIA expenditure (£m) | P5: % of allowance | Q5: Number of projects | R5: NIA allowance (£m) | S5: NIA expenditure (£m) | T5: % of allowance | U5: Number of projects | V5: NIA allowance (£m) | W5: NIA expenditure (£m) | X5: % of allowance | Y5: Number of projects | Z5: NIA allowance (£m) | AA5: NIA expenditure (£m) | AB5: % of allowance | AC5: Number of projects | AD5: NIA allowance (£m) | AE5: NIA expenditure (£m) | AF5: % of allowance | AG5: Number of projects | AH5: NIA allowance (£m) | AI5: NIA expenditure (£m) | AJ5: % of allowance
D6: ENWL | E6: 18 | F6: 2.825102 | G6: 2.525378644 | H6: =G6/F6 -> 0.8939070676 | I6: 18 | J6: 2.865936317 | K6: 2.86498227 | L6: =K6/J6 -> 0.9996671081 | M6: 13 | N6: 2.729036879 | O6: 2.729036879 | P6: =O6/N6 -> 1 | Q6: 15 | R6: 2.792660125 | S6: 2.792660125 | T6: 1 | U6: 10 | V6: 2.872269159 | W6: 2.872269159 | X6: =W6/V6 -> 1 | Y6: 8 | Z6: 2.913395459 | AA6: 2.913395459 | AB6: =AA6/Z6 -> 1
D7: NPg | E7: 16 | F7: 3.7179684 | G7: 1.307496213 | H7: =G7/F7 -> 0.3516695336 | I7: 18 | J7: 3.7090614 | K7: 1.259185095 | L7: =K7/J7 -> 0.3394888785 | M7: 26 | N7: 3.699986137 | O7: 3.697980533 | P7: =O7/N7 -> 0.9994579428 | Q7: 30 | R7: 3.840466706 | S7: 3.832167322 | T7: 0.9978389647 | U7: 33 | V7: 3.941209541 | W7: 3.707239104 | X7: =W7/V7 -> 0.9406348648 | Y7: 25 | Z7: 4.0110349 | AA7: 3.898482858 | AB7: =AA7/Z7 -> 0.971939401
D8: WPD | E8: 14 | F8: 6.802534 | G8: 1.534576988 | H8: 0.2255890214 | I8: 22 | J8: 7.051369 | K8: 5.060908023 | L8: 0.717719924 | M8: 23 | N8: 7.211238998 | O8: 6.20455 | P8: 0.8603999953 | Q8: 28 | R8: 7.52939105 | S8: 4.10796 | T8: 0.5455899385 | U8: 28 | V8: 7.905424457 | W8: 6.1214427 | X8: 0.7743344754 | Y8: 26 | Z8: 7.893032773 | AA8: 4.814685 | AB8: =AA8/Z8 -> 0.609991766
D9: UKPN | E9: 31 | F9: 5.903535 | G9: 2.47017267 | H9: 0.4184226349 | I9: 24 | J9: 6.1354335 | K9: 4.523898929 | L9: 0.7373397379 | M9: 33 | N9: 5.941970593 | O9: 5.473571124 | P9: 0.921171022 | Q9: 30 | R9: 6.630393771 | S9: 5.002599375 | T9: 0.7544950644 | U9: 34 | V9: 7.230525249 | W9: 6.690845043 | X9: 0.9253608573 | Y9: 43 | Z9: 7.48392458 | AA9: 6.991594641 | AB9: 0.9342150052
D10: SPEN | E10: 21 | F10: 3.478089 | G10: 3.0739 | H10: 0.8837899203 | I10: 22 | J10: 3.552675439 | K10: 3.0412 | L10: 0.8560309132 | M10: 31 | N10: 3.542363333 | O10: 2.77 | P10: 0.7819638303 | Q10: 28 | R10: 3.66142714 | S10: 2.942286464 | T10: 0.8035900624 | U10: 32 | V10: 3.818388126 | W10: 3.39428227 | X10: 0.8889306582 | Y10: 41 | Z10: 3.982880831 | AA10: 3.780575778 | AB10: 0.9492063505
D11: SSEN | E11: 35 | F11: 3.794717 | G11: 3.085577681 | H11: 0.8131245837 | I11: 31 | J11: 3.8070795 | K11: 2.790449717 | L11: 0.7329633429 | M11: 28 | N11: 3.759920429 | O11: 1.813750698 | P11: 0.4823907134 | Q11: 37 | R11: 4.083544453 | S11: 2.308242238 | T11: 0.5652545882 | U11: 35 | V11: 4.172035405 | W11: 1.961457291 | X11: 0.4701439706 | Y11: 25 | Z11: 4.250327768 | AA11: 2.805718599 | AB11: 0.6601181725
D12: Total | E12: 128 | F12: =SUM(F6:F11) -> 26.5219454 | G12: =SUM(G6:G11) -> 13.9971022 | H12: 0.5277554865 | I12: =SUM(I6:I11) -> 135 | J12: =SUM(J6:J11) -> 27.12155516 | K12: =SUM(K6:K11) -> 19.54062403 | L12: 0.72048317 | M12: =SUM(M6:M11) -> 154 | N12: =SUM(N6:N11) -> 26.88451637 | O12: =SUM(O6:O11) -> 22.68888923 | P12: 0.8439389023 | Q12: =SUM(Q6:Q11) -> 168 | R12: =SUM(R6:R11) -> 28.53788324 | S12: =SUM(S6:S11) -> 20.98591552 | T12: =S12/R12 -> 0.7353704318 | U12: =SUM(U6:U11) -> 172 | V12: =SUM(V6:V11) -> 29.93985194 | W12: =SUM(W6:W11) -> 24.74753557 | X12: 0.8265750819 | Y12: =SUM(Y6:Y11) -> 168 | Z12: =SUM(Z6:Z11) -> 30.53459631 | AA12: =SUM(AA6:AA11) -> 25.20445234 | AB12: 0.8254391863
B15: Network Innovation Competition (NIC) | D15: Network Innovation Competition projects
D16: 2015/16
D17: Project Title | E17: Lead company | F17: Description | G17: NIC funding awarded (£m) | H17: Total project costs (£m) | I17: Project end date
D18: Celsius | E18: ENWL | F18: To develop a new way of managing the temperature of substations – increasing their operational capacity and lifespan. | G18: 5.378958236 | H18: 6.22976886 | I18: 2020
D19: ANGLE- DC | E19: SPEN - SPMW | F19: To increase Network Reinforcement through converting an existing Alternating Current (AC) circuit between the mainland and Anglesey to Direct Current (DC). | G19: 14.87819023 | H19: 16.56075041 | I19: 2020
D20: Source: https://www.ofgem.gov.uk/sites/default/files/docs/innovation_competitions_brochure_webready_0.pdf
D22: 2016/17
D23: Project Title | E23: Lead company | F23: Description | G23: NIC funding awarded (£m) | H23: Total project costs (£m) | I23: Project end date
D24: Open LV | E24: WPD - WMID | F24: To develop a new software platform which uses cloud technology to enhance visibility of residential-level substations. | G24: 5.389056275 | H24: 6.558778923 | I24: 2020
D25: PowerFul-CB | E25: UKPN - LPN | F25: To develop two new types of circuit breaker on the GB network. | G25: 5.100267844 | H25: 6.870106324 | I25: 2021
D26: Source: https://www.ofgem.gov.uk/system/files/docs/2016/11/innovation_competitions_brochure_to_upload.pdf
D28: 2017/18
D29: Project Title | E29: Lead company | F29: Description | G29: NIC funding awarded (£m) | H29: Total project costs (£m) | I29: Project end date
D30: Active Response | E30: UKPN - LPN | F30: To develop two new types of network equipment to direct power flows across the distribution network | G30: 14.80320994 | H30: 19.5796515 | I30: 2021
D31: LV Engine | E31: SPEN - SPD | F31: To test a new type of solid-state transformer on the GB network | G31: 7.800775168 | H31: 8.876420215 | I31: 2022
D32: EFFS | E32: WPD - EMID | F32: To develop an IT platform to forecast network capacity and identify opportunities to trade flexible network services | G32: 3.148858958 | H32: 4.613710336 | I32: 2020
D33: Transition | E33: SSE - SSES | F33: To test technical and commercial solution to resolve constraints on the distribution network | G33: =13.1*'Guide & drivers'!J27 -> 14.01773575 | H33: 15.72003936 | I33: 2021
D34: Fusion | E34: SPEN - SPD | F34: To test a technical and commercial solution developed in Europe to resolve constraints on the distribution network. | G34: 5.66521484 | H34: 6.389139489 | I34: 2022
D35: Source: https://www.ofgem.gov.uk/system/files/docs/2017/11/ofg1031_innovation_competitions_brochure_web.pdf
D37: 2018/19
D38: Project Title | E38: Lead company | F38: Description | G38: NIC funding awarded (£m) | H38: Total project costs (£m) | I38: Project end date
D39: Charge | E39: SPEN - SPMW | F39: Overlaying transport planning and network mapping to give visibility of network capacity for electric vehicle (EV) charging points, including conducting trials of on street residential and destination charging in preparation for the deliver of flexible connection. | G39: =6.85*'Guide & drivers'!J28 -> 7.11255577 | H39: =8.4*'Guide & drivers'!J28 -> 8.721966199 | I39: 2021
D40: Optimise Prime | E40: UKPN - LPN | F40: Conducting trials and gathering data on the charging patterns of different commercial electric vehicle (EV) fleets and their network impact. | G40: =16.4*'Guide & drivers'!J28 -> 17.02860067 | H40: =34.5*'Guide & drivers'!J28 -> 35.82236118 | I40: 2021
D41: Source: https://www.ofgem.gov.uk/system/files/docs/2018/11/competitions_brochure_2018.pdf
D43: 2019/20
D44: Project Title | E44: Lead company | F44: Description | G44: NIC funding awarded (£m) | H44: Total project costs (£m) | I44: Project end date
D45: DC Share | E45: WPD - EMID | F45: DC Share intends to trial a DC ring on a part of the low voltage (LV) network experiencing constraints to deliver two key outcomes. Firstly, it intends to power fifteen electric vehicle (EV) rapid charge points in a location better suited to customer needs than the current rapid charge offering, and secondly, enable load sharing between secondary substations connected to the ring. | G45: =4.7*'Guide & drivers'!J29 -> 4.757003117 | H45: =5.59*'Guide & drivers'!J29 -> 5.657797325 | I45: 2023
D46: Resilience as a Service | E46: SSE - SSEH | F46: Resilience as a Service (RaaS) intends to trial an alternative to standby diesel generation for remote parts of the network. The project will test a system through which low carbon technologies on the distribution network could provide resilience services, and will also examine how to facilitate the market for these services. | G46: =9.7*'Guide & drivers'!J29 -> 9.817644731 | H46: =10.76*'Guide & drivers'!J29 -> 10.89050075 | I46: 2024
D48: 2020/21
D49: Project Title | E49: Lead company | F49: Description | G49: NIC funding awarded (£m) | H49: Total project costs (£m) | I49: Project end date
D50: Constellation | E50: UKPN | F50: The project aims to enable the transition to Net Zero by transforming the existing network management and control systems, through the introduction of local intelligence at a substation level. It is a simplified and focused evolution of a proposal which was brought forward to the 2019 NIC. | G50: 14.38 | H50: 17.57 | I50: 2025
D51: Quest | E51: ENWL | F51: The project aims to integrate standalone discrete voltage control schemes into a single scheme using ENWL’s Network Management System (NMS). It will develop a novel distribution network-wide, fully co-ordinated, overarching system to manage voltages and balance centralised and decentralised control hierarchies. This should reduce cumulative design margins and free up network capacity. | G51: 7.95 | H51: 9.67 | I51: 2024
D52: Source: https://www.ofgem.gov.uk/publications/network-innovation-competition-2020-funding-decision
D53: 2021/22
D54: Project Title | E54: Lead company | F54: Description | G54: NIC funding awarded (£m) | H54: Total project costs (£m) | I54: Project end date
D58: 2022/23
D59: Project Title | E59: Lead company | F59: Description | G59: NIC funding awarded (£m) | H59: Total project costs (£m) | I59: Project end date
D63: 2023
D64: Project Title | E64: Lead company | F64: Description | G64: NIC funding awarded (£m) | H64: Total project costs (£m) | I64: Project end date
B68: Innovation project Source data 'Environment and Innovation' Reporting Pack > 'Environment' Spreadsheet > 'E6 - Innovative solutions' | D68: Innovation projects in 2020-21
D69: Solution type/ Primary benefit | E69: ENWL | F69: NPg | G69: WPD | H69: UKPN | I69: SPEN | J69: SSEN
D70: Increase network capacity/optimise utilisation | E70: Demand Side Response; Long and Crawford switchgear modification; Smart Street IRM. | F70: Load Capacity Release; Generation Capacity Release;Voltage reduction at primary | G70: Soft Intertrip - Upstream DUOS Costs; Flexibility: CMZ_T4A_EM_0019 Union Street, Rugby; Flexibility: CMZ_T4A_EM_0015 Hinckley; Flexibility: CMZ_T3A_EM_0004 Lincoln - North Hykeham | H70: LPN Interconnection; Flexible DG Connections; Demand Side Response; N-3 with NGESO ICCP; | I70: Enhanced Trasformer Rating @Frodsham Primary Substation; WANDA; EV Up; OLTC | J70: Active Network Management (Western Isles); Active Network Management (Orkney); 3rd Party ANM; Constraint Managed Zones
D71: Improve asset life cycle management | E71: Transformer regeneration | F71: Transformer insulating oil on-line regeneration; HV Circuit breaker retrofit | H71: Joint Shell PFT; CNAIM Modelling; Woodpecker filler; OHL Assessment Tool; Load Share; Advanced Analytics Cable Length Estimation | I71: G38 End Box Tester;
D72: Improve network performance | E72: Fault Support Centre and LV Closing Device | F72: LV Technology Programme; Automatic Power Restoration System | H72: LV Re-energising Devices; Automated Power Restoration System; Mobile Assest Assessment Vehicle; OHL FPIs; Fusesaver; Network Vision; VisNet Fault Location | I72: Zebedee; NAVI; SINE POST; | J72: Bidoyng
D73: Improve vegetation management | J73: Live Line Tree Cutting;Forestry Mulcher
D74: Improve safety | F74: Telematics in operational vehicles; Fire Retardant Workwear; Farm Safety | H74: Public Safety; 3D Laser Surveying; FirePro Fire Suppression System | I74: Smart Lock Deployment in Merseyside 2020/21; Identification of Live and Not Live HV and LV cables
D75: Improve environmental impact | F75: Fluid-filled cable leak detection | J75: Hybrid Generators
D76: Improve connection performance | E76: Capacity to Customers (Customer contribution); PV Connect & Manage | F76: Flexible connection agreements (constrained generators); AutoDesign Project | G76: Active Network Management - Upstream DUOS Costs (3); Active Network Management - Customer Sole Use & Upstream Contribution (3) | H76: Distribution Network Visibility (DNV) Application; Timed Connection; Timed Connection Assessment Tool; Smart Connect (TransPower);
D78: Number of Projects | E78: 8 | F78: 13 | G78: 5 | H78: 32 | I78: 10 | J78: 8

Sheet Ch3 financial performance
A1: Chapter 3 - Financial Performance
A2: Review of the expenditure and financial performance of DNOs in 2020/21 | E2: Annual (2020-21) | I2: Cumulative to date (2015-16 to 2020-21) | M2: Forecast RIIO-ED1 (2015-16 to 2022-23)
B3: Totex performance Source: PCFM | E3: Allowance | F3: Actual | G3: Difference | H3: Difference | I3: Allowance | J3: Actual | K3: Difference | L3: Difference | M3: Allowance | N3: Actual & Forecast | O3: Difference | P3: Difference
E4: £m | F4: £m | G4: £m | H4: % | I4: £m | J4: £m | K4: £m | L4: % | M4: £m | N4: £m | O4: £m | P4: %
D5: ENWL | E5: =E128 -> 284.3914369 | F5: 242.5479044 | G5: =F5-E5 -> -41.84353256 | H5: =G5/E5 -> -0.1471335882 | I5: =I128 -> 1674.04707 | J5: =J128 -> 1562.500705 | K5: =J5-I5 -> -111.5463648 | L5: =K5/I5 -> -0.0666327529 | M5: =M128 -> 2252.284209 | N5: =N128 -> 2083.145509 | O5: =N5-M5 -> -169.1386996 | P5: =O5/M5 -> -0.07509651712
D6: NPgN | E6: 180.4817892 | F6: 213.3955134 | G6: 32.91372419 | H6: 0.1823659015 | I6: =I129 -> 1216.14507 | J6: =J129 -> 1237.868023 | K6: 21.7229535 | L6: 0.01786214 | M6: =M129 -> 1558.711305 | N6: =N129 -> 1580.973022 | O6: 22.26171672 | P6: 0.01428212951
D7: NPgY | E7: 245.8541124 | F7: 265.7226769 | G7: 19.86856446 | H7: 0.08081444833 | I7: 1610.132928 | J7: 1550.600934 | K7: -59.53199376 | L7: -0.03697334098 | M7: 2087.32847 | N7: 2070.236902 | O7: -17.09156797 | P7: -0.008188250299
D8: WMID | E8: 316.3699426 | F8: 316.3160101 | G8: -0.05393250801 | H8: -0.0001704729203 | I8: 1875.989171 | J8: 1871.26084 | K8: -4.728331199 | L8: -0.002520446958 | M8: 2515.264074 | N8: 2558.268223 | O8: 43.00414952 | P8: 0.01709727021
D9: EMID | E9: 308.8169854 | F9: 305.7077496 | G9: -3.109235843 | H9: -0.01006821513 | I9: 1891.202206 | J9: 1885.446249 | K9: -5.755956615 | L9: -0.00304354373 | M9: 2549.58133 | N9: 2549.409976 | O9: -0.1713539249 | P9: -6.72086522e-05
D10: SWALES | E10: 149.0882017 | F10: 167.7695721 | G10: 18.68137041 | H10: 0.1253041501 | I10: 1016.221702 | J10: 942.0762253 | K10: -74.14547648 | L10: -0.07296191013 | M10: 1311.56759 | N10: 1261.138255 | O10: -50.42933547 | P10: -0.03844966577
D11: SWEST | E11: 252.1032886 | F11: 236.1841369 | G11: -15.91915171 | H11: -0.06314535521 | I11: 1533.416553 | J11: 1505.151291 | K11: -28.26526143 | L11: -0.01843286573 | M11: 2055.250021 | N11: 2039.022056 | O11: -16.22796562 | P11: -0.007895859603
D12: LPN | E12: 256.3271538 | F12: 234.062425 | G12: -22.26472876 | H12: -0.08686059369 | I12: 1656.332022 | J12: 1405.788691 | K12: -250.5433309 | L12: -0.1512639541 | M12: 2133.323137 | N12: 1870.992917 | O12: -262.3302197 | P12: -0.1229678782
D13: SPN | E13: 242.0638333 | F13: 220.9252278 | G13: -21.13860542 | H13: -0.0873265747 | I13: 1591.305898 | J13: 1341.114803 | K13: -250.1910956 | L13: -0.1572237594 | M13: 2078.121663 | N13: 1834.151618 | O13: -243.9700455 | P13: -0.1173993081
D14: EPN | E14: 369.1501356 | F14: 361.252158 | G14: -7.897977567 | H14: -0.02139502822 | I14: 2359.848417 | J14: 2116.732948 | K14: -243.1154696 | L14: -0.1030216466 | M14: 3093.773148 | N14: 2905.691336 | O14: -188.081812 | P14: -0.06079366617
D15: SPD | E15: 218.7563057 | F15: 249.6444784 | G15: 30.88817277 | H15: 0.1411990053 | I15: 1429.492755 | J15: 1464.3002 | K15: 34.8074452 | L15: 0.02434950795 | M15: 1881.244073 | N15: 1923.165959 | O15: 41.92188659 | P15: 0.02228412953
D16: SPMW | E16: 252.2141498 | F16: 249.7091392 | G16: -2.505010548 | H16: -0.009932077762 | I16: 1599.848715 | J16: 1673.865648 | K16: 74.01693325 | L16: 0.04626495778 | M16: 2080.748376 | N16: 2192.049212 | O16: 111.3008358 | P16: 0.05349077144
D17: SSEH | E17: 194.2081284 | F17: 226.6451239 | G17: 32.43699555 | H17: 0.1670218225 | I17: 1203.06513 | J17: 1176.080453 | K17: -26.98467761 | L17: -0.02242993911 | M17: 1605.184003 | N17: 1668.328836 | O17: 63.14483274 | P17: 0.03933806506
D18: SSES | E18: 334.9247669 | F18: 380.7455631 | G18: 45.82079619 | H18: 0.1368092202 | I18: 2147.455123 | J18: 2178.541241 | K18: 31.08611856 | L18: 0.01447579427 | M18: 2821.26204 | N18: 2914.611092 | O18: 93.34905163 | P18: 0.03308769278
D19: Total | E19: =SUM(E5:E18) -> 3604.75023 | F19: =SUM(F5:F18) -> 3670.627679 | G19: =SUM(G5:G18) -> 65.87744867 | H19: 0.01827517705 | I19: =SUM(I5:I18) -> 22804.50276 | J19: =SUM(J5:J18) -> 21911.32825 | K19: =SUM(K5:K18) -> -893.1745075 | L19: -0.03916658552 | M19: =SUM(M5:M18) -> 30023.64344 | N19: =SUM(N5:N18) -> 29451.18491 | O19: =SUM(O5:O18) -> -572.4585268 | P19: -0.01906692397
E21: Annual (2020-21) | I21: Cumulative to date (2015-16 to 2020-21) | M21: Forecast RIIO-ED1 (2015-16 to 2022-23)
E22: Allowance | F22: Actual | G22: Difference | H22: Difference | I22: Allowance | J22: Actual | K22: Difference | L22: Difference | M22: Allowance | N22: Actual & Forecast | O22: Difference | P22: Difference
E23: £m | F23: £m | G23: £m | H23: % | I23: £m | J23: £m | K23: £m | L23: % | M23: £m | N23: £m | O23: £m | P23: %
D24: ENWL | E24: =E5 -> 284.3914369 | F24: =F5 -> 242.5479044 | G24: =F24-E24 -> -41.84353256 | H24: =G24/E24 -> -0.1471335882 | I24: =I5 -> 1674.04707 | J24: =J5 -> 1562.500705 | K24: =J24-I24 -> -111.5463648 | L24: =K24/I24 -> -0.0666327529 | M24: =M5 -> 2252.284209 | N24: =N5 -> 2083.145509 | O24: =N24-M24 -> -169.1386996 | P24: =O24/M24 -> -0.07509651712
D25: NPg | E25: =SUM(E6:E7) -> 426.3359016 | F25: =SUM(F6:F7) -> 479.1181902 | G25: 52.78228866 | H25: 0.1238044661 | I25: =SUM(I6:I7) -> 2826.277998 | J25: =SUM(J6:J7) -> 2788.468958 | K25: -37.80904026 | L25: -0.01337767916 | M25: =SUM(M6:M7) -> 3646.039775 | N25: =SUM(N6:N7) -> 3651.209924 | O25: 5.170148747 | P25: 0.001418017648
D26: WPD | E26: =SUM(E8:E11) -> 1026.378418 | F26: =SUM(F8:F11) -> 1025.977469 | G26: -0.4009496503 | H26: -0.0003906450518 | I26: =SUM(I8:I11) -> 6316.829631 | J26: =SUM(J8:J11) -> 6203.934605 | K26: -112.8950257 | L26: -0.01787210235 | M26: =SUM(M8:M11) -> 8431.663015 | N26: =SUM(N8:N11) -> 8407.83851 | O26: -23.82450549 | P26: =O26/M26 -> -0.002825599819
D27: UKPN | E27: =SUM(E12:E14) -> 867.5411226 | F27: =SUM(F12:F14) -> 816.2398109 | G27: -51.30131174 | H27: -0.05913415561 | I27: =SUM(I12:I14) -> 5607.486337 | J27: =SUM(J12:J14) -> 4863.636441 | K27: -743.8498961 | L27: -0.132653002 | M27: =SUM(M12:M14) -> 7305.217949 | N27: =SUM(N12:N14) -> 6610.835872 | O27: -694.3820772 | P27: -0.09505288988
D28: SPEN | E28: =SUM(E15:E16) -> 470.9704555 | F28: =SUM(F15:F16) -> 499.3536177 | G28: 28.38316222 | H28: 0.0602652712 | I28: =SUM(I15:I16) -> 3029.34147 | J28: =SUM(J15:J16) -> 3138.165849 | K28: 108.8243785 | L28: 0.03592344393 | M28: =SUM(M15:M16) -> 3961.992449 | N28: =SUM(N15:N16) -> 4115.215171 | O28: 153.2227224 | P28: 0.03867314852
D29: SSEN | E29: =SUM(E17:E18) -> 529.1328953 | F29: =SUM(F17:F18) -> 607.390687 | G29: 78.25779174 | H29: 0.1478981791 | I29: =SUM(I17:I18) -> 3350.520253 | J29: =SUM(J17:J18) -> 3354.621694 | K29: 4.101440951 | L29: 0.001224120626 | M29: =SUM(M17:M18) -> 4426.446043 | N29: =SUM(N17:N18) -> 4582.939927 | O29: 156.4938844 | P29: 0.03535429617
D30: Total | E30: =SUM(E24:E29) -> 3604.75023 | F30: =SUM(F24:F29) -> 3670.627679 | G30: 65.87744867 | H30: 0.01827517705 | I30: =SUM(I24:I29) -> 22804.50276 | J30: =SUM(J24:J29) -> 21911.32825 | K30: =J30-I30 -> -893.1745075 | L30: =K30/I30 -> -0.03916658552 | M30: =SUM(M24:M29) -> 30023.64344 | N30: =SUM(N24:N29) -> 29451.18491 | O30: =N30-M30 -> -572.4585268 | P30: =O30/M30 -> -0.01906692397
F33: Annual (2020-21) | I33: Cumulative to date (2015-16 to 2020-21) | L33: Forecast RIIO-ED1 (2015-16 to 2022-23)
E34: Sharing factor | F34: Totex performance | G34: Customer share | H34: DNO share | I34: Totex performance | J34: Customer share | K34: DNO share | L34: Totex performance | M34: Customer share | N34: DNO share
D35: ENWL | E35: =E57 -> 0.5811466619 | F35: =G5 -> -41.84353256 | G35: =F35*(1-$E$35) -> -17.52630329 | H35: =F35*$E$35 -> -24.31722927 | I35: =K5 -> -111.5463648 | J35: =I35*(1-$E$35) -> -46.72156724 | K35: =I35*$E$35 -> -64.82479753 | L35: =O5 -> -169.1386996 | M35: =L35*(1-$E$35) -> -70.84430896 | N35: =L35*$E$35 -> -98.29439069
D36: NPgN | E36: =F57 -> 0.5584370346 | F36: 32.91372419 | G36: =F36*(1-$E$36) -> 14.53348166 | H36: =F36*$E$36 -> 18.38024254 | I36: 21.7229535 | J36: =I36*(1-$E$36) -> 9.592051766 | K36: =I36*$E$36 -> 12.13090174 | L36: 22.26171672 | M36: =L36*(1-$E$36) -> 9.829949649 | N36: =L36*$E$36 -> 12.43176707
D37: NPgY | E37: =G57 -> 0.5584370346 | F37: 19.86856446 | G37: =F37*(1-$E$37) -> 8.773222243 | H37: =F37*$E$37 -> 11.09534222 | I37: -59.53199376 | J37: =I37*(1-$E$37) -> -26.2871237 | K37: =I37*$E$37 -> -33.24487006 | L37: -17.09156797 | M37: =L37*(1-$E$37) -> -7.547003437 | N37: =L37*$E$37 -> -9.544564534
D38: WMID | E38: =H57 -> 0.7 | F38: -0.05393250801 | G38: =F38*(1-$E$38) -> -0.0161797524 | H38: =F38*$E$38 -> -0.03775275561 | I38: -4.728331199 | J38: =I38*(1-$E$38) -> -1.41849936 | K38: =I38*$E$38 -> -3.309831839 | L38: 43.00414952 | M38: =L38*(1-$E$38) -> 12.90124486 | N38: =L38*$E$38 -> 30.10290467
D39: EMID | E39: =I57 -> 0.7 | F39: -3.109235843 | G39: =F39*(1-$E$38) -> -0.932770753 | H39: =F39*$E$38 -> -2.17646509 | I39: -5.755956615 | J39: =I39*(1-$E$38) -> -1.726786984 | K39: =I39*$E$38 -> -4.02916963 | L39: -0.1713539249 | M39: =L39*(1-$E$38) -> -0.05140617747 | N39: =L39*$E$38 -> -0.1199477474
D40: SWALES | E40: =J57 -> 0.7 | F40: 18.68137041 | G40: =F40*(1-$E$38) -> 5.604411123 | H40: =F40*$E$38 -> 13.07695929 | I40: -74.14547648 | J40: =I40*(1-$E$38) -> -22.24364294 | K40: =I40*$E$38 -> -51.90183353 | L40: -50.42933547 | M40: =L40*(1-$E$38) -> -15.12880064 | N40: =L40*$E$38 -> -35.30053483
D41: SWEST | E41: =K57 -> 0.7 | F41: -15.91915171 | G41: =F41*(1-$E$38) -> -4.775745513 | H41: =F41*$E$38 -> -11.1434062 | I41: -28.26526143 | J41: =I41*(1-$E$38) -> -8.479578429 | K41: =I41*$E$38 -> -19.785683 | L41: -16.22796562 | M41: =L41*(1-$E$38) -> -4.868389685 | N41: =L41*$E$38 -> -11.35957593
D42: LPN | E42: =L57 -> 0.5328418572 | F42: -22.26472876 | G42: =F42*(1-$E$42) -> -10.40114934 | H42: =F42*$E$42 -> -11.86357942 | I42: -250.5433309 | J42: =I42*(1-$E$42) -> -117.0433571 | K42: =I42*$E$42 -> -133.4999737 | L42: -262.3302197 | M42: =L42*(1-$E$42) -> -122.5496983 | N42: =L42*$E$42 -> -139.7805215
D43: SPN | E43: =M57 -> 0.5328418572 | F43: -21.13860542 | G43: =F43*(1-$E$42) -> -9.875071649 | H43: =F43*$E$42 -> -11.26353377 | I43: -250.1910956 | J43: =I43*(1-$E$42) -> -116.8788076 | K43: =I43*$E$42 -> -133.3122881 | L43: -243.9700455 | M43: =L43*(1-$E$42) -> -113.9725933 | N43: =L43*$E$42 -> -129.9974521
D44: EPN | E44: =N57 -> 0.5328418572 | F44: -7.897977567 | G44: =F44*(1-$E$42) -> -3.689604532 | H44: =F44*$E$42 -> -4.208373035 | I44: -243.1154696 | J44: =I44*(1-$E$42) -> -113.5733713 | K44: =I44*$E$42 -> -129.5420984 | L44: -188.081812 | M44: =L44*(1-$E$42) -> -87.86394998 | N44: =L44*$E$42 -> -100.217862
D45: SPD | E45: =O57 -> 0.5350457456 | F45: 30.88817277 | G45: =F45*(1-$E$45) -> 14.36158734 | H45: =F45*$E$45 -> 16.52658543 | I45: 34.8074452 | J45: =I45*(1-$E$45) -> 16.18386973 | K45: =I45*$E$45 -> 18.62357547 | L45: 41.92188659 | M45: =L45*(1-$E$45) -> 19.49175952 | N45: =L45*$E$45 -> 22.43012707
D46: SPMW | E46: =P57 -> 0.5350457456 | F46: -2.505010548 | G46: =F46*(1-$E$45) -> -1.164715312 | H46: =F46*$E$45 -> -1.340295237 | I46: 74.01693325 | J46: =I46*(1-$E$45) -> 34.41448802 | K46: =I46*$E$45 -> 39.60244524 | L46: 111.3008358 | M46: =L46*(1-$E$45) -> 51.74979713 | N46: =L46*$E$45 -> 59.55103868
D47: SSEH | E47: =Q57 -> 0.5647137527 | F47: 32.43699555 | G47: =F47*(1-$E$47) -> 14.11937807 | H47: =F47*$E$47 -> 18.31761748 | I47: -26.98467761 | J47: =I47*(1-$E$47) -> -11.74605905 | K47: =I47*$E$47 -> -15.23861856 | L47: 63.14483274 | M47: =L47*(1-$E$47) -> 27.48607728 | N47: =L47*$E$47 -> 35.65875546
D48: SSES | E48: =R57 -> 0.5647137527 | F48: 45.82079619 | G48: =F48*(1-$E$47) -> 19.94516242 | H48: =F48*$E$47 -> 25.87563377 | I48: 31.08611856 | J48: =I48*(1-$E$47) -> 13.53135989 | K48: =I48*$E$47 -> 17.55475867 | L48: 93.34905163 | M48: =L48*(1-$E$47) -> 40.63355837 | N48: =L48*$E$47 -> 52.71549326
D49: Total | F49: =SUM(F35:F48) -> 65.87744867 | G49: 28.95570271 | H49: 36.92174595 | I49: -893.1745075 | J49: -392.3970243 | K49: -500.7774832 | L49: -572.4585268 | M49: -260.7337637 | N49: -311.7247632
D52: Pre-tax Totex (£m) | E52: 2015/16
E53: ENWL | F53: NPgN | G53: NPgY | H53: WMID | I53: EMID | J53: SWALES | K53: SWEST | L53: LPN | M53: SPN | N53: EPN | O53: SPD | P53: SPMW | Q53: SSEH | R53: SSES
D54: Allowed Totex16 | E54: 285.4013171 | F54: 220.2785481 | G54: 290.5777138 | H54: 313.1249545 | I54: 342.7898834 | J54: 176.6416758 | K54: 258.0934599 | L54: 297.1526726 | M54: 267.967554 | N54: 401.4834728 | O54: 246.5622683 | P54: 284.1062703 | Q54: 193.9169547 | R54: 369.740335
D55: Actual Totex16 | E55: 277.1436774 | F55: 213.8031801 | G55: 282.9417905 | H55: 353.5896797 | I55: 349.1236497 | J55: 161.0108872 | K55: 253.0147111 | L55: 214.3409526 | M55: 196.1220858 | N55: 318.4915896 | O55: 218.8064692 | P55: 272.2701871 | Q55: 171.5844329 | R55: 318.4058285
D56: Overspend (underspend) | E56: =E55-E54 -> -8.257639681 | F56: =F55-F54 -> -6.475368003 | G56: -7.635923337 | H56: 40.46472513 | I56: 6.333766294 | J56: -15.6307886 | K56: -5.078748781 | L56: -82.81172006 | M56: -71.84546825 | N56: -82.9918833 | O56: -27.75579914 | P56: -11.83608321 | Q56: -22.33252176 | R56: -51.33450652
D57: Totex incentive rate | E57: 0.5811466619 | F57: 0.5584370346 | G57: 0.5584370346 | H57: 0.7 | I57: 0.7 | J57: 0.7 | K57: 0.7 | L57: 0.5328418572 | M57: 0.5328418572 | N57: 0.5328418572 | O57: 0.5350457456 | P57: 0.5350457456 | Q57: 0.5647137527 | R57: 0.5647137527
D58: Allowed Totex after Totex incentive rate | E58: =(E57*-E56)+E55 -> 281.9425771 | F58: 217.4192654 | G58: 287.2059728 | H58: 325.2643721 | I58: 344.6900132 | J58: 171.9524392 | K58: 256.5698353 | L58: 258.4665033 | M58: 234.4043585 | N58: 362.7131388 | O58: 233.6570914 | P58: 278.6030331 | Q58: 184.1959151 | R58: 347.3951303
E61: 2016/17
E62: ENWL | F62: NPgN | G62: NPgY | H62: WMID | I62: EMID | J62: SWALES | K62: SWEST | L62: LPN | M62: SPN | N62: EPN | O62: SPD | P62: SPMW | Q62: SSEH | R62: SSES
D63: Allowed Totex17 | E63: 272.7619333 | F63: 216.3659822 | G63: 273.9778807 | H63: 314.2149836 | I63: 335.7036224 | J63: 178.2333556 | K63: 258.8539972 | L63: 291.615982 | M63: 293.5918144 | N63: 414.6752824 | O63: 245.1472413 | P63: 295.3084953 | Q63: 201.387965 | R63: 377.9178471
D64: Actual Totex17 | E64: 234.9060188 | F64: 209.379865 | G64: 244.0123862 | H64: 356.099265 | I64: 352.319243 | J64: 167.3737296 | K64: 289.7987159 | L64: 230.9058222 | M64: 228.7976135 | N64: 345.3929772 | O64: 235.9333951 | P64: 284.8664626 | Q64: 193.0909171 | R64: 342.109287
D65: Overspend (underspend) | E65: =E64-E63 -> -37.85591459 | F65: =F64-F63 -> -6.986117226 | G65: -29.96549458 | H65: 41.88428144 | I65: 16.61562066 | J65: -10.859626 | K65: 30.94471878 | L65: =L64-L63 -> -60.71015983 | M65: =M64-M63 -> -64.79420088 | N65: -69.28230516 | O65: -9.213846266 | P65: -10.44203267 | Q65: -8.297047865 | R65: -35.80856004
D66: Totex incentive rate | E66: =E57 -> 0.5811466619 | F66: =F57 -> 0.5584370346 | G66: 0.5584370346 | H66: 0.7 | I66: 0.7 | J66: 0.7 | K66: 0.7 | L66: =L57 -> 0.5328418572 | M66: =M57 -> 0.5328418572 | N66: 0.5328418572 | O66: 0.5350457456 | P66: 0.5350457456 | Q66: 0.5647137527 | R66: 0.5647137527
D67: Allowed Totex after Totex incentive rate | E67: =(E66*-E65)+E64 -> 256.9058572 | F67: =(F66*-F65)+F64 -> 213.2811715 | G67: 260.7462281 | H67: 326.780268 | I67: 340.6883086 | J67: 174.9754678 | K67: 268.1374128 | L67: 263.2547365 | M67: 263.3226758 | N67: 382.3094894 | O67: 240.8632243 | P67: 290.4534278 | Q67: 197.7763741 | R67: 362.3308734
E70: 2017/18
E71: ENWL | F71: NPgN | G71: NPgY | H71: WMID | I71: EMID | J71: SWALES | K71: SWEST | L71: LPN | M71: SPN | N71: EPN | O71: SPD | P71: SPMW | Q71: SSEH | R71: SSES
D72: Allowed Totex18 | E72: 275.2121387 | F72: 201.9597534 | G72: 269.4095691 | H72: 304.2056745 | I72: 298.7768591 | J72: 168.7195696 | K72: 254.0694315 | L72: 276.3037932 | M72: 275.9405198 | N72: 394.322172 | O72: 250.8186523 | P72: 270.6881702 | Q72: 199.6051202 | R72: 365.6070661
D73: Actual Totex18 | E73: 272.457096 | F73: 189.1138656 | G73: 236.5085913 | H73: 300.9996172 | I73: 306.2201671 | J73: 147.1572573 | K73: 249.9648223 | L73: 251.5865252 | M73: 229.1987465 | N73: 369.7757732 | O73: 240.2132181 | P73: 289.3889498 | Q73: 182.9123604 | R73: 384.8573428
D74: Overspend (underspend) | E74: =E73-E72 -> -2.755042626 | F74: =F73-F72 -> -12.84588783 | G74: -32.90097776 | H74: -3.206057268 | I74: 7.443307964 | J74: -21.56231233 | K74: -4.104609256 | L74: =L73-L72 -> -24.71726799 | M74: =M73-M72 -> -46.74177324 | N74: -24.54639887 | O74: -10.60543412 | P74: 18.70077967 | Q74: -16.69275977 | R74: 19.25027668
D75: Totex incentive rate | E75: =E57 -> 0.5811466619 | F75: =F57 -> 0.5584370346 | G75: 0.5584370346 | H75: 0.7 | I75: 0.7 | J75: 0.7 | K75: 0.7 | L75: 0.5328418572 | M75: 0.5328418572 | N75: 0.5328418572 | O75: 0.5350457456 | P75: 0.5350457456 | Q75: 0.5647137527 | R75: 0.5647137527
D76: Allowed Totex after Totex incentive rate | E76: =(E75*-E74)+E73 -> 274.0581799 | F76: =(F75*-F74)+F73 -> 196.2874851 | G76: 254.8817158 | H76: 303.2438573 | I76: 301.0098515 | J76: 162.2508759 | K76: 252.8380488 | L76: 264.7569202 | M76: 254.1047198 | N76: 382.8551219 | O76: 245.8876106 | P76: 279.3831772 | Q76: 192.3389914 | R76: 373.9864468
E79: 2018/19
E80: ENWL | F80: NPgN | G80: NPgY | H80: WMID | I80: EMID | J80: SWALES | K80: SWEST | L80: LPN | M80: SPN | N80: EPN | O80: SPD | P80: SPMW | Q80: SSEH | R80: SSES
D81: Allowed Totex19 | E81: 278.0116551 | F81: 199.0365805 | G81: 271.9129498 | H81: 309.6811453 | I81: 304.6893027 | J81: 179.5796801 | K81: 257.6503187 | L81: 265.2476735 | M81: 261.5330077 | N81: 392.6112229 | O81: 238.2581507 | P81: 249.287661 | Q81: 204.0468548 | R81: 369.1278269
D82: Actual Totex19 | E82: 279.7434673 | F82: 194.1683214 | G82: 248.808951 | H82: 272.0928177 | I82: 276.3666291 | J82: 153.5778374 | K82: 230.5848132 | L82: 237.3427451 | M82: 236.3337788 | N82: 354.0311673 | O82: 264.9253618 | P82: 302.0383428 | Q82: 197.3885566 | R82: 360.0825717
D83: Overspend (underspend) | E83: =E82-E81 -> 1.731812171 | F83: =F82-F81 -> -4.868259132 | G83: -23.10399887 | H83: -37.5883276 | I83: -28.32267357 | J83: -26.00184267 | K83: -27.06550553 | L83: =L82-L81 -> -27.90492837 | M83: =M82-M81 -> -25.19922891 | N83: -38.58005566 | O83: 26.66721117 | P83: 52.75068178 | Q83: -6.658298238 | R83: -9.045255122
D84: Totex incentive rate | E84: =E66 -> 0.5811466619 | F84: =F66 -> 0.5584370346 | G84: 0.5584370346 | H84: 0.7 | I84: 0.7 | J84: 0.7 | K84: 0.7 | L84: 0.5328418572 | M84: 0.5328418572 | N84: 0.5328418572 | O84: 0.5350457456 | P84: 0.5350457456 | Q84: 0.5647137527 | R84: 0.5647137527
D85: Allowed Totex after Totex incentive rate | E85: =(E84*-E83)+E82 -> 278.7370304 | F85: =(F84*-F83)+F82 -> 196.8869376 | G85: 261.7110796 | H85: 298.404647 | I85: 296.1925006 | J85: 171.7791273 | K85: 249.5306671 | L85: 252.211659 | M85: 249.7609828 | N85: 374.5882358 | O85: 250.657184 | P85: 273.8143149 | Q85: 201.1485891 | R85: 365.1905517
E88: 2019/20
E89: ENWL | F89: NPgN | G89: NPgY | H89: WMID | I89: EMID | J89: SWALES | K89: SWEST | L89: LPN | M89: SPN | N89: EPN | O89: SPD | P89: SPMW | Q89: SSEH | R89: SSES
D90: Allowed Totex20 | E90: 278.2685889 | F90: 198.0224166 | G90: 258.4007021 | H90: 318.3924705 | I90: 300.4255528 | J90: 163.959219 | K90: 252.6460567 | L90: 269.6847465 | M90: 250.209169 | N90: 387.6061314 | O90: 229.950137 | P90: 248.2439685 | Q90: 209.9001072 | R90: 330.1372806
D91: Actual Totex20 | E91: 255.7025415 | F91: 218.0072781 | G91: 272.6065384 | H91: 272.1634501 | I91: 295.7088107 | J91: 145.1869417 | K91: 245.6040918 | L91: 237.5502206 | M91: 229.7373501 | N91: 367.7892823 | O91: 254.7772778 | P91: 275.5925667 | Q91: 204.4590617 | R91: 392.340648
D92: Overspend (underspend) | E92: =E91-E90 -> -22.56604747 | F92: =F91-F90 -> 19.9848615 | G92: 14.20583632 | H92: -46.22902038 | I92: -4.716742119 | J92: -18.77227728 | K92: -7.041964934 | L92: =L91-L90 -> -32.13452584 | M92: =M91-M90 -> -20.47181893 | N92: -19.81684909 | O92: 24.82714079 | P92: 27.34859824 | Q92: -5.441045531 | R92: 62.20336737
D93: Totex incentive rate | E93: =E75 -> 0.5811466619 | F93: =F75 -> 0.5584370346 | G93: 0.5584370346 | H93: 0.7 | I93: 0.7 | J93: 0.7 | K93: 0.7 | L93: 0.5328418572 | M93: 0.5328418572 | N93: 0.5328418572 | O93: 0.5350457456 | P93: 0.5350457456 | Q93: 0.5647137527 | R93: 0.5647137527
D94: Allowed Totex after Totex incentive rate | E94: =(E93*-E92)+E91 -> 268.8167246 | F94: =(F93*-F92)+F91 -> 206.8469913 | G94: 264.6734733 | H94: 304.5237644 | I94: 299.0105302 | J94: 158.3275358 | K94: 250.5334672 | L94: 254.6728411 | M94: 240.6455921 | N94: 378.348529 | O94: 241.4936217 | P94: 260.9598156 | Q94: 207.531695 | R94: 357.213551
E97: 2020/21
E98: ENWL | F98: NPgN | G98: NPgY | H98: WMID | I98: EMID | J98: SWALES | K98: SWEST | L98: LPN | M98: SPN | N98: EPN | O98: SPD | P98: SPMW | Q98: SSEH | R98: SSES
D99: Allowed Totex21 | E99: 284.3914369 | F99: 180.4817892 | G99: 245.8541124 | H99: 316.3699426 | I99: 308.8169854 | J99: 149.0882017 | K99: 252.1032886 | L99: 256.3271538 | M99: 242.0638333 | N99: 369.1501356 | O99: 218.7563057 | P99: 252.2141498 | Q99: 194.2081284 | R99: 334.9247669
D100: Actual Totex21 | E100: 242.5479044 | F100: 213.3955134 | G100: 265.7226769 | H100: 316.3160101 | I100: 305.7077496 | J100: 167.7695721 | K100: 236.1841369 | L100: 234.062425 | M100: 220.9252278 | N100: 361.252158 | O100: 249.6444784 | P100: 249.7091392 | Q100: 226.6451239 | R100: 380.7455631
D101: Overspend (underspend) | E101: =E100-E99 -> -41.84353256 | F101: =F100-F99 -> 32.91372419 | G101: 19.86856446 | H101: -0.05393250801 | I101: -3.109235843 | J101: 18.68137041 | K101: -15.91915171 | L101: =L100-L99 -> -22.26472876 | M101: =M100-M99 -> -21.13860542 | N101: -7.897977567 | O101: 30.88817277 | P101: -2.505010548 | Q101: 32.43699555 | R101: 45.82079619
D102: Totex incentive rate | E102: =E84 -> 0.5811466619 | F102: =F84 -> 0.5584370346 | G102: 0.5584370346 | H102: 0.7 | I102: 0.7 | J102: 0.7 | K102: 0.7 | L102: 0.5328418572 | M102: 0.5328418572 | N102: 0.5328418572 | O102: 0.5350457456 | P102: 0.5350457456 | Q102: 0.5647137527 | R102: 0.5647137527
D103: Allowed Totex after Totex incentive rate | E103: =(E102*-E101)+E100 -> 266.8651336 | F103: =(F102*-F101)+F100 -> 195.0152708 | G103: 254.6273346 | H103: 316.3537628 | I103: 307.8842146 | J103: 154.6926128 | K103: 247.3275431 | L103: 245.9260045 | M103: 232.1887616 | N103: 365.4605311 | O103: 233.117893 | P103: 251.0494345 | Q103: 208.3275065 | R103: 354.8699293
E106: 2021/22
E107: ENWL | F107: NPgN | G107: NPgY | H107: WMID | I107: EMID | J107: SWALES | K107: SWEST | L107: LPN | M107: SPN | N107: EPN | O107: SPD | P107: SPMW | Q107: SSEH | R107: SSES
D108: Allowed Totex
D109: Actual Totex
D110: Overspend (underspend)
D111: Totex incentive rate
D112: Allowed Totex after Totex incentive rate
E115: 2022/23
E116: ENWL | F116: NPgN | G116: NPgY | H116: WMID | I116: EMID | J116: SWALES | K116: SWEST | L116: LPN | M116: SPN | N116: EPN | O116: SPD | P116: SPMW | Q116: SSEH | R116: SSES
D117: Allowed Totex
D118: Actual Totex
D119: Overspend (underspend)
D120: Totex incentive rate
D121: Allowed Totex after Totex incentive rate
D124: Expenditure relative to cost allowances
E125: 2020-21 | I125: Cumulative to date | M125: RIIO-ED1
E126: Allowance | F126: Actual | G126: Difference | I126: Allowance | J126: Actual | K126: Difference | M126: Allowance | N126: Actual | O126: Difference
G127: No | H127: % | K127: No | L127: % | O127: No | P127: %
D128: ENWL | E128: =TRANSPOSE(E99:R99) -> 284.3914369 | F128: =TRANSPOSE(E100:R100) -> 242.5479044 | G128: =F128-E128 -> -41.84353256 | H128: =G128/E128 -> -0.1471335882 | I128: =SUM(INDEX($E$54:$R$103,MATCH({"Allowed Totex16","Allowed Totex17","Allowed Totex18","Allowed Totex19","Allowed Totex20","Allowed Totex21"},$D$54:$D$103,0),MATCH($D128,$E$53:$R$53,0))) -> 1674.04707 | J128: =SUM(INDEX($E$54:$R$103,MATCH({"Actual Totex16","Actual Totex17","Actual Totex18","Actual Totex19","Actual Totex20","Actual Totex21"},$D$54:$D$103,0),MATCH($D128,$E$53:$R$53,0))) -> 1562.500705 | K128: =J128-I128 -> -111.5463648 | L128: =K128/I128 -> -0.0666327529 | M128: 2252.284209 | N128: 2083.145509 | O128: =N128-M128 -> -169.1386996 | P128: =O128/M128 -> -0.07509651712
D129: NPgN | E129: 180.4817892 | F129: 213.3955134 | G129: 32.91372419 | H129: 0.1823659015 | I129: =SUM(INDEX($E$54:$R$103,MATCH({"Allowed Totex16","Allowed Totex17","Allowed Totex18","Allowed Totex19","Allowed Totex20","Allowed Totex21"},$D$54:$D$103,0),MATCH($D129,$E$53:$R$53,0))) -> 1216.14507 | J129: =SUM(INDEX($E$54:$R$103,MATCH({"Actual Totex16","Actual Totex17","Actual Totex18","Actual Totex19","Actual Totex20","Actual Totex21"},$D$54:$D$103,0),MATCH($D129,$E$53:$R$53,0))) -> 1237.868023 | K129: 21.7229535 | L129: 0.01786214 | M129: 1558.711305 | N129: 1580.973022 | O129: 22.26171672 | P129: 0.01428212951
D130: NPgY | E130: 245.8541124 | F130: 265.7226769 | G130: 19.86856446 | H130: 0.08081444833 | I130: =SUM(INDEX($E$54:$R$103,MATCH({"Allowed Totex16","Allowed Totex17","Allowed Totex18","Allowed Totex19","Allowed Totex20","Allowed Totex21"},$D$54:$D$103,0),MATCH($D130,$E$53:$R$53,0))) -> 1610.132928 | J130: =SUM(INDEX($E$54:$R$103,MATCH({"Actual Totex16","Actual Totex17","Actual Totex18","Actual Totex19","Actual Totex20","Actual Totex21"},$D$54:$D$103,0),MATCH($D130,$E$53:$R$53,0))) -> 1550.600934 | K130: -59.53199376 | L130: -0.03697334098 | M130: 2087.32847 | N130: 2070.236902 | O130: -17.09156797 | P130: -0.008188250299
D131: WMID | E131: 316.3699426 | F131: 316.3160101 | G131: -0.05393250801 | H131: -0.0001704729203 | I131: =SUM(INDEX($E$54:$R$103,MATCH({"Allowed Totex16","Allowed Totex17","Allowed Totex18","Allowed Totex19","Allowed Totex20","Allowed Totex21"},$D$54:$D$103,0),MATCH($D131,$E$53:$R$53,0))) -> 1875.989171 | J131: =SUM(INDEX($E$54:$R$103,MATCH({"Actual Totex16","Actual Totex17","Actual Totex18","Actual Totex19","Actual Totex20","Actual Totex21"},$D$54:$D$103,0),MATCH($D131,$E$53:$R$53,0))) -> 1871.26084 | K131: -4.728331199 | L131: -0.002520446958 | M131: 2515.264074 | N131: 2558.268223 | O131: 43.00414952 | P131: 0.01709727021
D132: EMID | E132: 308.8169854 | F132: 305.7077496 | G132: -3.109235843 | H132: -0.01006821513 | I132: =SUM(INDEX($E$54:$R$103,MATCH({"Allowed Totex16","Allowed Totex17","Allowed Totex18","Allowed Totex19","Allowed Totex20","Allowed Totex21"},$D$54:$D$103,0),MATCH($D132,$E$53:$R$53,0))) -> 1891.202206 | J132: =SUM(INDEX($E$54:$R$103,MATCH({"Actual Totex16","Actual Totex17","Actual Totex18","Actual Totex19","Actual Totex20","Actual Totex21"},$D$54:$D$103,0),MATCH($D132,$E$53:$R$53,0))) -> 1885.446249 | K132: -5.755956615 | L132: -0.00304354373 | M132: 2549.58133 | N132: 2549.409976 | O132: -0.1713539249 | P132: -6.72086522e-05
D133: SWALES | E133: 149.0882017 | F133: 167.7695721 | G133: 18.68137041 | H133: 0.1253041501 | I133: =SUM(INDEX($E$54:$R$103,MATCH({"Allowed Totex16","Allowed Totex17","Allowed Totex18","Allowed Totex19","Allowed Totex20","Allowed Totex21"},$D$54:$D$103,0),MATCH($D133,$E$53:$R$53,0))) -> 1016.221702 | J133: =SUM(INDEX($E$54:$R$103,MATCH({"Actual Totex16","Actual Totex17","Actual Totex18","Actual Totex19","Actual Totex20","Actual Totex21"},$D$54:$D$103,0),MATCH($D133,$E$53:$R$53,0))) -> 942.0762253 | K133: -74.14547648 | L133: -0.07296191013 | M133: 1311.56759 | N133: 1261.138255 | O133: -50.42933547 | P133: -0.03844966577
D134: SWEST | E134: 252.1032886 | F134: 236.1841369 | G134: -15.91915171 | H134: -0.06314535521 | I134: =SUM(INDEX($E$54:$R$103,MATCH({"Allowed Totex16","Allowed Totex17","Allowed Totex18","Allowed Totex19","Allowed Totex20","Allowed Totex21"},$D$54:$D$103,0),MATCH($D134,$E$53:$R$53,0))) -> 1533.416553 | J134: =SUM(INDEX($E$54:$R$103,MATCH({"Actual Totex16","Actual Totex17","Actual Totex18","Actual Totex19","Actual Totex20","Actual Totex21"},$D$54:$D$103,0),MATCH($D134,$E$53:$R$53,0))) -> 1505.151291 | K134: -28.26526143 | L134: -0.01843286573 | M134: 2055.250021 | N134: 2039.022056 | O134: -16.22796562 | P134: -0.007895859603
D135: LPN | E135: 256.3271538 | F135: 234.062425 | G135: -22.26472876 | H135: -0.08686059369 | I135: =SUM(INDEX($E$54:$R$103,MATCH({"Allowed Totex16","Allowed Totex17","Allowed Totex18","Allowed Totex19","Allowed Totex20","Allowed Totex21"},$D$54:$D$103,0),MATCH($D135,$E$53:$R$53,0))) -> 1656.332022 | J135: =SUM(INDEX($E$54:$R$103,MATCH({"Actual Totex16","Actual Totex17","Actual Totex18","Actual Totex19","Actual Totex20","Actual Totex21"},$D$54:$D$103,0),MATCH($D135,$E$53:$R$53,0))) -> 1405.788691 | K135: -250.5433309 | L135: -0.1512639541 | M135: 2133.323137 | N135: 1870.992917 | O135: -262.3302197 | P135: -0.1229678782
D136: SPN | E136: 242.0638333 | F136: 220.9252278 | G136: -21.13860542 | H136: -0.0873265747 | I136: =SUM(INDEX($E$54:$R$103,MATCH({"Allowed Totex16","Allowed Totex17","Allowed Totex18","Allowed Totex19","Allowed Totex20","Allowed Totex21"},$D$54:$D$103,0),MATCH($D136,$E$53:$R$53,0))) -> 1591.305898 | J136: =SUM(INDEX($E$54:$R$103,MATCH({"Actual Totex16","Actual Totex17","Actual Totex18","Actual Totex19","Actual Totex20","Actual Totex21"},$D$54:$D$103,0),MATCH($D136,$E$53:$R$53,0))) -> 1341.114803 | K136: -250.1910956 | L136: -0.1572237594 | M136: 2078.121663 | N136: 1834.151618 | O136: -243.9700455 | P136: -0.1173993081
D137: EPN | E137: 369.1501356 | F137: 361.252158 | G137: -7.897977567 | H137: -0.02139502822 | I137: =SUM(INDEX($E$54:$R$103,MATCH({"Allowed Totex16","Allowed Totex17","Allowed Totex18","Allowed Totex19","Allowed Totex20","Allowed Totex21"},$D$54:$D$103,0),MATCH($D137,$E$53:$R$53,0))) -> 2359.848417 | J137: =SUM(INDEX($E$54:$R$103,MATCH({"Actual Totex16","Actual Totex17","Actual Totex18","Actual Totex19","Actual Totex20","Actual Totex21"},$D$54:$D$103,0),MATCH($D137,$E$53:$R$53,0))) -> 2116.732948 | K137: -243.1154696 | L137: -0.1030216466 | M137: 3093.773148 | N137: 2905.691336 | O137: -188.081812 | P137: -0.06079366617
D138: SPD | E138: 218.7563057 | F138: 249.6444784 | G138: 30.88817277 | H138: 0.1411990053 | I138: =SUM(INDEX($E$54:$R$103,MATCH({"Allowed Totex16","Allowed Totex17","Allowed Totex18","Allowed Totex19","Allowed Totex20","Allowed Totex21"},$D$54:$D$103,0),MATCH($D138,$E$53:$R$53,0))) -> 1429.492755 | J138: =SUM(INDEX($E$54:$R$103,MATCH({"Actual Totex16","Actual Totex17","Actual Totex18","Actual Totex19","Actual Totex20","Actual Totex21"},$D$54:$D$103,0),MATCH($D138,$E$53:$R$53,0))) -> 1464.3002 | K138: 34.8074452 | L138: 0.02434950795 | M138: 1881.244073 | N138: 1923.165959 | O138: 41.92188659 | P138: 0.02228412953
D139: SPMW | E139: 252.2141498 | F139: 249.7091392 | G139: -2.505010548 | H139: -0.009932077762 | I139: =SUM(INDEX($E$54:$R$103,MATCH({"Allowed Totex16","Allowed Totex17","Allowed Totex18","Allowed Totex19","Allowed Totex20","Allowed Totex21"},$D$54:$D$103,0),MATCH($D139,$E$53:$R$53,0))) -> 1599.848715 | J139: =SUM(INDEX($E$54:$R$103,MATCH({"Actual Totex16","Actual Totex17","Actual Totex18","Actual Totex19","Actual Totex20","Actual Totex21"},$D$54:$D$103,0),MATCH($D139,$E$53:$R$53,0))) -> 1673.865648 | K139: 74.01693325 | L139: 0.04626495778 | M139: 2080.748376 | N139: 2192.049212 | O139: 111.3008358 | P139: 0.05349077144
D140: SSEH | E140: 194.2081284 | F140: 226.6451239 | G140: 32.43699555 | H140: 0.1670218225 | I140: =SUM(INDEX($E$54:$R$103,MATCH({"Allowed Totex16","Allowed Totex17","Allowed Totex18","Allowed Totex19","Allowed Totex20","Allowed Totex21"},$D$54:$D$103,0),MATCH($D140,$E$53:$R$53,0))) -> 1203.06513 | J140: =SUM(INDEX($E$54:$R$103,MATCH({"Actual Totex16","Actual Totex17","Actual Totex18","Actual Totex19","Actual Totex20","Actual Totex21"},$D$54:$D$103,0),MATCH($D140,$E$53:$R$53,0))) -> 1176.080453 | K140: -26.98467761 | L140: -0.02242993911 | M140: 1605.184003 | N140: 1668.328836 | O140: 63.14483274 | P140: 0.03933806506
D141: SSES | E141: 334.9247669 | F141: 380.7455631 | G141: 45.82079619 | H141: 0.1368092202 | I141: =SUM(INDEX($E$54:$R$103,MATCH({"Allowed Totex16","Allowed Totex17","Allowed Totex18","Allowed Totex19","Allowed Totex20","Allowed Totex21"},$D$54:$D$103,0),MATCH($D141,$E$53:$R$53,0))) -> 2147.455123 | J141: =SUM(INDEX($E$54:$R$103,MATCH({"Actual Totex16","Actual Totex17","Actual Totex18","Actual Totex19","Actual Totex20","Actual Totex21"},$D$54:$D$103,0),MATCH($D141,$E$53:$R$53,0))) -> 2178.541241 | K141: 31.08611856 | L141: 0.01447579427 | M141: 2821.26204 | N141: 2914.611092 | O141: 93.34905163 | P141: 0.03308769278
D142: Total | E142: =SUM(E128:E141) -> 3604.75023 | F142: =SUM(F128:F141) -> 3670.627679 | G142: 65.87744867 | H142: 0.01827517705 | I142: =SUM(I128:I141) -> 22804.50276 | J142: =SUM(J128:J141) -> 21911.32825 | K142: -893.1745075 | L142: -0.03916658552 | M142: =SUM(M128:M141) -> 30023.64344 | N142: =SUM(N128:N141) -> 29451.18491 | O142: =N142-M142 -> -572.4585268 | P142: -0.01906692397
E144: 2020-21 | I144: Cumulative to date | M144: RIIO-ED1
E145: Allowance | F145: Actual | G145: Difference | I145: Allowance | J145: Actual | K145: Difference | M145: Allowance | N145: Actual | O145: Difference
G146: No | H146: % | K146: No | L146: % | O146: No | P146: %
D147: ENWL | E147: =SUM(INDEX(E$128:E$141,MATCH($D147,$D$128:$D$141,0))) -> 284.3914369 | F147: =SUM(INDEX(F$128:F$141,MATCH($D147,$D$128:$D$141,0))) -> 242.5479044 | G147: =F147-E147 -> -41.84353256 | H147: =G147/E147 -> -0.1471335882 | I147: =SUM(INDEX(I$128:I$141,MATCH($D147,$D$128:$D$141,0))) -> 1674.04707 | J147: =SUM(INDEX(J$128:J$141,MATCH($D147,$D$128:$D$141,0))) -> 1562.500705 | K147: =J147-I147 -> -111.5463648 | L147: =K147/I147 -> -0.0666327529 | M147: =SUM(INDEX(M$128:M$141,MATCH($D147,$D$128:$D$141,0))) -> 2252.284209 | N147: =SUM(INDEX(N$128:N$141,MATCH($D147,$D$128:$D$141,0))) -> 2083.145509 | O147: =N147-M147 -> -169.1386996 | P147: =O147/M147 -> -0.07509651712
D148: NPg | E148: =SUM(INDEX(E$128:E$141,MATCH({"NPgN","Npgy"},$D$128:$D$141,0))) -> 426.3359016 | F148: =SUM(INDEX(F$128:F$141,MATCH({"NPgN","Npgy"},$D$128:$D$141,0))) -> 479.1181902 | G148: 52.78228866 | H148: 0.1238044661 | I148: =SUM(INDEX(I$128:I$141,MATCH({"NPgN","Npgy"},$D$128:$D$141,0))) -> 2826.277998 | J148: =SUM(INDEX(J$128:J$141,MATCH({"NPgN","Npgy"},$D$128:$D$141,0))) -> 2788.468958 | K148: -37.80904026 | L148: -0.01337767916 | M148: =SUM(INDEX(M$128:M$141,MATCH({"NPgN","Npgy"},$D$128:$D$141,0))) -> 3646.039775 | N148: =SUM(INDEX(N$128:N$141,MATCH({"NPgN","Npgy"},$D$128:$D$141,0))) -> 3651.209924 | O148: 5.170148747 | P148: 0.001418017648
D149: WPD | E149: =SUM(INDEX(E$128:E$141,MATCH({"WMID","EMID","SWALES","SWEST"},$D$128:$D$141,0))) -> 1026.378418 | F149: =SUM(INDEX(F$128:F$141,MATCH({"WMID","EMID","SWALES","SWEST"},$D$128:$D$141,0))) -> 1025.977469 | G149: -0.4009496503 | H149: -0.0003906450518 | I149: =SUM(INDEX(I$128:I$141,MATCH({"WMID","EMID","SWALES","SWEST"},$D$128:$D$141,0))) -> 6316.829631 | J149: =SUM(INDEX(J$128:J$141,MATCH({"WMID","EMID","SWALES","SWEST"},$D$128:$D$141,0))) -> 6203.934605 | K149: -112.8950257 | L149: -0.01787210235 | M149: =SUM(INDEX(M$128:M$141,MATCH({"WMID","EMID","SWALES","SWEST"},$D$128:$D$141,0))) -> 8431.663015 | N149: =SUM(INDEX(N$128:N$141,MATCH({"WMID","EMID","SWALES","SWEST"},$D$128:$D$141,0))) -> 8407.83851 | O149: -23.82450549 | P149: -0.002825599819
D150: UKPN | E150: =SUM(INDEX(E$128:E$141,MATCH({"LPN","SPN","EPN"},$D$128:$D$141,0))) -> 867.5411226 | F150: =SUM(INDEX(F$128:F$141,MATCH({"LPN","SPN","EPN"},$D$128:$D$141,0))) -> 816.2398109 | G150: -51.30131174 | H150: -0.05913415561 | I150: =SUM(INDEX(I$128:I$141,MATCH({"LPN","SPN","EPN"},$D$128:$D$141,0))) -> 5607.486337 | J150: =SUM(INDEX(J$128:J$141,MATCH({"LPN","SPN","EPN"},$D$128:$D$141,0))) -> 4863.636441 | K150: -743.8498961 | L150: -0.132653002 | M150: =SUM(INDEX(M$128:M$141,MATCH({"LPN","SPN","EPN"},$D$128:$D$141,0))) -> 7305.217949 | N150: =SUM(INDEX(N$128:N$141,MATCH({"LPN","SPN","EPN"},$D$128:$D$141,0))) -> 6610.835872 | O150: -694.3820772 | P150: -0.09505288988
D151: SPEN | E151: =SUM(INDEX(E$128:E$141,MATCH({"SPD","SPMW"},$D$128:$D$141,0))) -> 470.9704555 | F151: =SUM(INDEX(F$128:F$141,MATCH({"SPD","SPMW"},$D$128:$D$141,0))) -> 499.3536177 | G151: 28.38316222 | H151: 0.0602652712 | I151: =SUM(INDEX(I$128:I$141,MATCH({"SPD","SPMW"},$D$128:$D$141,0))) -> 3029.34147 | J151: =SUM(INDEX(J$128:J$141,MATCH({"SPD","SPMW"},$D$128:$D$141,0))) -> 3138.165849 | K151: 108.8243785 | L151: 0.03592344393 | M151: =SUM(INDEX(M$128:M$141,MATCH({"SPD","SPMW"},$D$128:$D$141,0))) -> 3961.992449 | N151: =SUM(INDEX(N$128:N$141,MATCH({"SPD","SPMW"},$D$128:$D$141,0))) -> 4115.215171 | O151: 153.2227224 | P151: 0.03867314852
D152: SSEN | E152: =SUM(INDEX(E$128:E$141,MATCH({"SSEH","SSES"},$D$128:$D$141,0))) -> 529.1328953 | F152: =SUM(INDEX(F$128:F$141,MATCH({"SSEH","SSES"},$D$128:$D$141,0))) -> 607.390687 | G152: 78.25779174 | H152: 0.1478981791 | I152: =SUM(INDEX(I$128:I$141,MATCH({"SSEH","SSES"},$D$128:$D$141,0))) -> 3350.520253 | J152: =SUM(INDEX(J$128:J$141,MATCH({"SSEH","SSES"},$D$128:$D$141,0))) -> 3354.621694 | K152: 4.101440951 | L152: 0.001224120626 | M152: =SUM(INDEX(M$128:M$141,MATCH({"SSEH","SSES"},$D$128:$D$141,0))) -> 4426.446043 | N152: =SUM(INDEX(N$128:N$141,MATCH({"SSEH","SSES"},$D$128:$D$141,0))) -> 4582.939927 | O152: 156.4938844 | P152: 0.03535429617
D153: Total | E153: =SUM(E147:E152) -> 3604.75023 | F153: =SUM(F147:F152) -> 3670.627679 | G153: 65.87744867 | H153: 0.01827517705 | I153: =SUM(I147:I152) -> 22804.50276 | J153: =SUM(J147:J152) -> 21911.32825 | K153: -893.1745075 | L153: -0.03916658552 | M153: =SUM(M147:M152) -> 30023.64344 | N153: =SUM(N147:N152) -> 29451.18491 | O153: -572.4585268 | P153: -0.01906692397
D156: Regional estimates of typical GB customer cost to meet Allowed Revenue
B157: Customer Bll Impact | D157: £ real prices per domestic consumer
F158: 2015-04-01 | G158: 2016-04-01 | H158: 2017-04-01 | I158: 2018-04-01 | J158: 2019-04-01 | K158: 2020-04-01 | L158: 2021-04-01
D159: GB consumer count weighted average | F159: 103.2521017 | G159: 108.1223468 | H159: 96.12998595 | I159: 91.10256861 | J159: 93.84493571 | K159: 95.00182143 | L159: 90.76907399
D160: Region | E160: DNO
D161: North West | E161: ENWL | F161: 100.7671619 | G161: 102.5208495 | H161: 84.57242397 | I161: 83.5195755 | J161: 88.32489628 | K161: 82.26 | L161: 75.52051372
D162: North East | E162: NPgN | F162: 110.5009915 | G162: 107.8537587 | H162: 96.98614553 | I162: 91.26810797 | J162: 94.46750307 | K162: 99.5935 | L162: 94.25105693
D163: Yorkshire | E163: NPgY | F163: 94.70598353 | G163: 88.68958766 | H163: 80.89464093 | I163: 77.73140876 | J163: 78.83366294 | K163: 83.2915 | L163: 79.441694
D164: Midlands | E164: WMID | F164: 90.19709269 | G164: 103.0237237 | H164: 89.10571691 | I164: 85.33457513 | J164: 84.49146026 | K164: 79.992 | L164: 80.28608717
D165: East Midlands | E165: EMID | F165: 85.77777872 | G165: 92.00267414 | H165: 80.81813192 | I165: 75.53689977 | J165: 76.12368935 | K165: 76.8625 | L165: 75.9409829
D166: South Wales | E166: SWALES | F166: 108.6300825 | G166: 124.3564705 | H166: 109.5587704 | I166: 105.456878 | J166: 106.4440175 | K166: 105.3345 | L166: 100.392005
D167: South West | E167: SWEST | F167: 121.1600707 | G167: 134.9978667 | H167: 120.9666392 | I167: 106.6763958 | J167: 105.1247082 | K167: 104.169 | L167: 103.7233991
D168: London | E168: LPN | F168: 74.38677726 | G168: 84.0376124 | H168: 71.69108786 | I168: 69.14182955 | J168: 76.16164416 | K168: 82.6125 | L168: 79.45605327
D169: South East | E169: SPN | F169: 97.30371241 | G169: 114.1501216 | H169: 97.52545384 | I169: 87.18487796 | J169: 93.70435832 | K169: 97.46 | L169: 96.71432281
D170: East Anglia | E170: EPN | F170: 86.37193408 | G170: 87.59614147 | H170: 84.59489515 | I170: 80.87598908 | J170: 84.53953636 | K170: 85.68 | L170: 81.12761082
D171: South Scotland | E171: SPD | F171: 109.1255899 | G171: 105.9982304 | H171: 97.70308316 | I171: 97.09521206 | J171: 99.24677301 | K171: 100.925 | L171: 93.52194971
D172: Merseyside and N Wales | E172: SPMW | F172: 137.0649521 | G172: 120.3090545 | H172: 111.1852558 | I172: 105.5280035 | J172: 118.8926898 | K172: 120.9985 | L172: 110.3013939
D173: North Scotland | E173: SSEH | F173: 138.6337944 | G173: 152.1771831 | H173: 133.6746262 | I173: 131.2084832 | J173: 130.3833827 | K173: 138.081 | L173: 125.4225437
D174: Southern | E174: SSES | F174: 90.9035026 | G174: 95.99958078 | H174: 86.5429324 | I174: 78.87772432 | J174: 77.09077796 | K174: 72.7655 | L174: 74.66742279
D175: Customer Bill Value: the methodology chosen by Ofgem and relevant network companies have simplifying assumptions that may result in a different customer bill value
B179: RAV | D179: 2015/16 | E179: ENWL | F179: NPgN | G179: NPgY | H179: WMID | I179: EMID | J179: SWALES | K179: SWEST | L179: LPN | M179: SPN | N179: EPN | O179: SPD | P179: SPMW | Q179: SSEH | R179: SSES
D180: RAV at 1st April 2015 | E180: 1834.943382 | F180: 1357.60494 | G180: 1789.506571 | H180: 2360.801728 | I180: 2319.146158 | J180: 1011.055153 | K180: 1450.788206 | L180: 1701.662163 | M180: 1735.301287 | N180: 2766.131364 | O180: 1830.353603 | P180: 1833.523846 | Q180: 1145.96298 | R180: 2422.582189
D181: Slow Money | E181: 191.7162627 | F181: 152.1473038 | G181: 206.7890813 | H181: 260.2114977 | I181: 275.7520106 | J181: 137.5619514 | K181: 205.2558682 | L181: 175.7715498 | M181: 159.4001225 | N181: 246.6447441 | O181: 186.9256731 | P181: 222.8824265 | Q181: 114.2014674 | R181: 243.1765912
D182: Depreciation | E182: -177.5570064 | F182: -122.0580931 | G182: -162.5815991 | H182: -206.5598126 | I182: -200.7542507 | J182: -102.3274591 | K182: -134.5799446 | L182: -165.6465401 | M182: -146.4586775 | N182: -250.1003814 | O182: -167.4681912 | P182: -159.1849546 | Q182: -109.5706888 | R182: -236.6635649
D183: RAV at 31st March 2016 | E183: 1849.102638 | F183: 1387.69415 | G183: 1833.714053 | H183: 2414.453413 | I183: 2394.143918 | J183: 1046.289645 | K183: 1521.464129 | L183: 1711.787173 | M183: 1748.242732 | N183: 2762.675726 | O183: 1849.811085 | P183: 1897.221318 | Q183: 1150.593758 | R183: 2429.095215
D185: 2016/17 | E185: ENWL | F185: NPgN | G185: NPgY | H185: WMID | I185: EMID | J185: SWALES | K185: SWEST | L185: LPN | M185: SPN | N185: EPN | O185: SPD | P185: SPMW | Q185: SSEH | R185: SSES
D186: RAV at 1st April 2016 | E186: =E183 -> 1849.102638 | F186: =F183 -> 1387.69415 | G186: 1833.714053 | H186: 2414.453413 | I186: 2394.143918 | J186: 1046.289645 | K186: 1521.464129 | L186: 1711.787173 | M186: 1748.242732 | N186: 2762.675726 | O186: 1849.811085 | P186: 1897.221318 | Q186: 1150.593758 | R186: 2429.095215
D187: Slow Money | E187: 174.69592 | F187: 149.1918179 | G187: 187.7372843 | H187: 261.4242144 | I187: 272.5506469 | J187: 139.9803743 | K187: 214.5099302 | L187: 179.0191295 | M187: 179.0520958 | N187: 259.9619456 | O187: 192.6905795 | P187: 232.3627422 | Q187: 122.621352 | R187: 253.6316114
D188: Depreciation | E188: -179.2345862 | F188: -124.7567841 | G188: -165.8093613 | H188: 261.4242144 | I188: -207.2976148 | J188: -103.5155707 | K188: -138.9824733 | L188: -166.6994507 | M188: -150.3971738 | N188: -253.0696281 | O188: -169.6980697 | P188: -164.3960214 | Q188: -110.1746554 | R188: -235.2409793
